Workbook

Sheet Cover
H21: Federated States of Micronesia
H23: FY2010 Statistical Tables
H28: August 2011
H35: Prepared for
H36: Government of the Federated States of Micronesia

Sheet Ackn
E5: Acknowledgements
B10: Prepared under a grant awarded to:
B11: Graduate School, Pacific Islands Training Initiative, Honolulu, HI
B12: http://www.pitiviti.org
B14: Jointly funded by:
B15: US Department of Interior, Office of Insular Affairs
B16: Government of the Federated States of Micronesia
B18: The Graduate School team for the FSM comprised:
B19: Glenn McKinlay
B20: Mark Sturton
B23: Thanks are due for the assistance provided by:
B24: Staff of the FSM National Government, especially the Statistics Division within SBOC
B25: Staff of Kosrae, Pohnpei, Chuuk and Yap State Governments
B26: The many respondents to data requests, in both the public and private sector
B28: Statistical tables were prepared as best possible at time of compilation
B30: This Statistical Appendix is available as an Excel file.
B31: Queries may be directed to SBOC: mchigiyal@sboc.fm
B32: Or to Glenn McKinlay: gmckinlay@hotmail.com
B33: Also available online at http://econ.pitiviti.org

Sheet Index
C2: List of Statistical Tables | D2: Page | F2: Hyperlinks to tables [worksheet name]
B3: =GNI!A1 -> Table 1a : FSM: Income measures in current prices and real terms, FY1981-FY2010 | D3: 5 | F3: [GNI]
B4: =cerNApc!B1 -> Table 1b : FSM and States: Current and constant price GDP, GDP per capita, FY1981-FY2010 | D4: =D3+1 -> 6 | F4: [cerNApc]
B5: =gdpFSM!A1 -> Table 1c : FSM: Constant price GDP by industry, FY1995-FY2010 | D5: =D4+1 -> 7 | F5: [gdpFSM]
B6: =gdpFSM!A24 -> Table 1d : FSM: Constant price GDP by industry sector, annual % growth, FY1995-FY2010 | D6: =D5 -> 7
B7: =gdpFSM!A47 -> Table 1e : FSM: Constant price GDP by industry sector, annual % growth, FY1995-FY2010 | D7: =D6+1 -> 8
B8: =gdpFSM!A70 -> Table 1f : FSM Constant price GDP by industry, contribution to change, FY1995-FY2010 | D8: =D7 -> 8
B9: =gdpFSM!A93 -> Table 1g : FSM: Implicit GDP price deflators by industry, FY1995-FY2010 | D9: =D7+1 -> 9
B10: =gdpFSM!A115 -> Table 1h : FSM: Share of GDP by industry, current prices, FY1995-FY2010 | D10: =D9 -> 9
B11: =gdpFSM!A138 -> Table 1i : FSM: Constant price GDP by institutional sector, FY1995-FY2010 | D11: =D10+1 -> 10
B12: =gdpFSM!A151 -> Table 1j : FSM: Constant price GDP by institutional sector, annual % growth, FY1995-FY2010 | D12: =D11 -> 10
B13: =gdpFSM!A164 -> Table 1k : FSM: Current price GDP by institutional sector, FY1995-FY2010 | D13: =D12+1 -> 11
B14: =gdpFSM!A177 -> Table 1l : FSM: Implicit GDP price deflators by institutional sector, FY1995-FY2010 | D14: 11
B15: =gdpFSM!A190 -> Table 1m : FSM: Share of GDP by institutional sector, current prices, FY1995-FY2010 | D15: 11
B16: =gdpFSM!A203 -> Table 1n : FSM: GDP by income component, current prices, FY1995-FY2010 | D16: =D15+1 -> 12
B17: =gdpFSM!A218 -> Table 1o : FSM: Current price GDP by institutional sector and income components, FY1995-FY2010 | D17: 12
B18: =gdp_C!A1 -> Table 2a : Chuuk: Constant price GDP by industry, FY1995-FY2010 | D18: =D17+1 -> 13 | F18: [gdp_C]
B19: =gdp_C!A24 -> Table 2b : Chuuk: Constant price GDP by industry sector, annual % growth, FY1995-FY2010 | D19: =D18 -> 13
B20: =gdp_C!A47 -> Table 2c : Chuuk: Current price GDP by industry, FY1995-FY2010 | D20: =D19+1 -> 14
B21: =gdp_C!A70 -> Table 2d : Chuuk: Implicit GDP price deflators by industry, FY1995-FY2010 | D21: =D20 -> 14
B22: =gdp_C!A92 -> Table 2e : Chuuk: Share of GDP by industry, current prices, FY1995-FY2010 | D22: =D21+1 -> 15
B23: =gdp_C!A115 -> Table 2f : Chuuk: Constant price GDP by institutional sector, FY1995-FY2010 | D23: 15
B24: =gdp_C!A128 -> Table 2g : Chuuk: Constant price GDP by institutional sector, annual % growth, FY1995-FY2010 | D24: 15
B25: =gdp_C!A141 -> Table 2h : Chuuk: Current price GDP by institutional sector, FY1995-FY2010 | D25: =D24+1 -> 16
B26: =gdp_C!A154 -> Table 2i : Chuuk: Implicit GDP price deflators by institutional sector, FY1995-FY2010 | D26: 16
B27: =gdp_C!A167 -> Table 2j : Chuuk: Share of GDP by institutional sector, current prices, FY1995-FY2010 | D27: 16
B28: =gdp_C!A180 -> Table 2k : Chuuk: GDP by income component, current prices, FY1995-FY2010 | D28: =D27+1 -> 17
B29: =gdp_C!A195 -> Table 2l : Chuuk: Current price GDP by institutional sector and income components, FY1995-FY2010 | D29: 17
B30: =gdp_K!A1 -> Table 3a : Kosrae: Constant price GDP by industry, FY1995-FY2010 | D30: =D29+1 -> 18 | F30: [gdp_K]
B31: =gdp_K!A24 -> Table 3b : Kosrae: Constant price GDP by industry sector, annual % growth, FY1995-FY2010 | D31: =D30 -> 18
B32: =gdp_K!A47 -> Table 3c : Kosrae: Current price GDP by industry, FY1995-FY2010 | D32: =D31+1 -> 19
B33: =gdp_K!A70 -> Table 3d : Kosrae: Implicit GDP price deflators by industry, FY1995-FY2010 | D33: =D32 -> 19
B34: =gdp_K!A92 -> Table 3e : Kosrae: Share of GDP by industry, current prices, FY1995-FY2010 | D34: =D33+1 -> 20
B35: =gdp_K!A115 -> Table 3f : Kosrae: Constant price GDP by institutional sector, FY1995-FY2010 | D35: 20
B36: =gdp_K!A128 -> Table 3g : Kosrae: Constant price GDP by institutional sector, annual % growth, FY1995-FY2010 | D36: 20
B37: =gdp_K!A141 -> Table 3h : Kosrae: Current price GDP by institutional sector, FY1995-FY2010 | D37: =D36+1 -> 21
B38: =gdp_K!A154 -> Table 3i : Kosrae: Implicit GDP price deflators by institutional sector, FY1995-FY2010 | D38: 21
B39: =gdp_K!A167 -> Table 3j : Kosrae: Share of GDP by institutional sector, current prices, FY1995-FY2010 | D39: 21
B40: =gdp_K!A180 -> Table 3k : Kosrae: GDP by income component, current prices, FY1995-FY2010 | D40: =D39+1 -> 22
B41: =gdp_K!A195 -> Table 3l : Kosrae: Current price GDP by institutional sector and income components, FY1995-FY2010 | D41: 22
B42: =gdp_P!A1 -> Table 4a : Pohnpei: Constant price GDP by industry, FY1995-FY2010 | D42: =D41+1 -> 23 | F42: [gdp_P]
B43: =gdp_P!A24 -> Table 4b : Pohnpei: Constant price GDP by industry sector, annual % growth, FY1995-FY2010 | D43: =D42 -> 23
B44: =gdp_P!A47 -> Table 4c : Pohnpei: Current price GDP by industry, FY1995-FY2010 | D44: =D43+1 -> 24
B45: =gdp_P!A70 -> Table 4d : Pohnpei: Implicit GDP price deflators by industry, FY1995-FY2010 | D45: =D44 -> 24
B46: =gdp_P!A92 -> Table 4e : Pohnpei: Share of GDP by industry, current prices, FY1995-FY2010 | D46: =D45+1 -> 25
B47: =gdp_P!A115 -> Table 4f : Pohnpei: Constant price GDP by institutional sector, FY1995-FY2010 | D47: 25
B48: =gdp_P!A128 -> Table 4g : Pohnpei: Constant price GDP by institutional sector, annual % growth, FY1995-FY2010 | D48: 25
B49: =gdp_P!A141 -> Table 4h : Pohnpei: Current price GDP by institutional sector, FY1995-FY2010 | D49: =D48+1 -> 26
B50: =gdp_P!A154 -> Table 4i : Pohnpei: Implicit GDP price deflators by institutional sector, FY1995-FY2010 | D50: 26
B51: =gdp_P!A167 -> Table 4j : Pohnpei: Share of GDP by institutional sector, current prices, FY1995-FY2010 | D51: 26
B52: =gdp_P!A180 -> Table 4k : Pohnpei: GDP by income component, current prices, FY1995-FY2010 | D52: =D51+1 -> 27
B53: =gdp_P!A195 -> Table 4l : Pohnpei: Current price GDP by institutional sector and income components, FY1995-FY2010 | D53: 27
D55: continued
C58: List of Statistical Tables (continued)
B60: =gdp_Y!A1 -> Table 5a : Yap: Constant price GDP by industry, FY1995-FY2010 | D60: =D53+1 -> 28 | F60: [gdp_Y]
B61: =gdp_Y!A24 -> Table 5b : Yap: Constant price GDP by industry sector, annual % growth, FY1995-FY2010 | D61: =D60 -> 28
B62: =gdp_Y!A47 -> Table 5c : Yap: Current price GDP by industry, FY1995-FY2010 | D62: =D61+1 -> 29
B63: =gdp_Y!A70 -> Table 5d : Yap: Implicit GDP price deflators by industry, FY1995-FY2010 | D63: =D62 -> 29
B64: =gdp_Y!A92 -> Table 5e : Yap: Share of GDP by industry, current prices, FY1995-FY2010 | D64: =D63+1 -> 30
B65: =gdp_Y!A115 -> Table 5f : Yap: Constant price GDP by institutional sector, FY1995-FY2010 | D65: 30
B66: =gdp_Y!A128 -> Table 5g : Yap: Constant price GDP by institutional sector, annual % growth, FY1995-FY2010 | D66: 30
B67: =gdp_Y!A141 -> Table 5h : Yap: Current price GDP by institutional sector, FY1995-FY2010 | D67: =D66+1 -> 31
B68: =gdp_Y!A154 -> Table 5i : Yap: Implicit GDP price deflators by institutional sector, FY1995-FY2010 | D68: 31
B69: =gdp_Y!A167 -> Table 5j : Yap: Share of GDP by institutional sector, current prices, FY1995-FY2010 | D69: 31
B70: =gdp_Y!A180 -> Table 5k : Yap: GDP by income component, current prices, FY1995-FY2010 | D70: =D69+1 -> 32
B71: =gdp_Y!A195 -> Table 5l : Yap: Current price GDP by institutional sector and income components, FY1995-FY2010 | D71: 32
B72: =Visitors!A1 -> Table 6a : FSM, Sum of four FSM states: Visitor arrivals by Year, FY1997-FY2010 | D72: =D71+1 -> 33 | F72: [Visitors]
B73: =Visitors!A25 -> Table 6b : Chuuk : Visitor Arrivals by Year, FY1997-FY2010 | D73: =D72 -> 33
B74: =Visitors!A50 -> Table 6c : Kosrae : Visitor Arrivals by Year, FY1997-FY2010 | D74: =D73+1 -> 34
B75: =Visitors!A73 -> Table 6d : Pohnpei : Visitor Arrivals by Year, FY1997-FY2010 | D75: =D74 -> 34
B76: =Visitors!A98 -> Table 6e : Yap : Visitor Arrivals by Year, FY1997-FY2010 | D76: =D75+1 -> 35
B77: =Fish!A2 -> Table 6f: Total fish catch in FSM EEZ, by method, CY1998-FY2010 | D77: =D76+1 -> 36 | F77: [Fish]
B78: =Fish!A22 -> Table 6g: Total fish catch, by FSM and Domestically Based vessels, CY2001-FY2010 | D78: =D77 -> 36
B79: =Fish!A41 -> Table 6h: License fees collected, FY1999-FY2010 | D79: =D78 -> 36
B80: =E_ind!C1 -> Table 7a : Employment by Industry, FSM and States, FY1995-FY2010 | D80: =D79+1 -> 37 | F80: [E_ind]
B81: =E_inst!B1 -> Table 7b : Employment by Institution, FSM and States, FY1995-FY2010 | D81: =D80+3 -> 40 | F81: [E_inst]
B82: =EinstWR!B1 -> Table 7c : Average Nominal Wage Rates by Institution, FSM and States, FY1995-FY2010 | D82: =D81+2 -> 42 | F82: [EinstWR]
B83: =EinstWR!B59 -> Table 7d : Average Real Wage Rates by Institution, FSM and States, FY1995-FY2010 | D83: =D82+2 -> 44
B84: =EinstW!B1 -> Table 7e : Employee Earnings by Institution, FSM and States, FY1995-FY2010 | D84: 46 | F84: [EinstW]
B85: =E_Priv!C1 -> Table 7f : Employment by Industry, FSM and States, Private Sector, FY1995-FY2010 | D85: 49 | F85: [E_Priv]
B86: =E_PrivW!C1 -> Table 7g : Earnings by Industry, FSM and States, Private Sector, FY1995-FY2010 | D86: 52 | F86: [E_PrivW]
B87: =BSurv!A1 -> Table 8a : FSM Commercial Banking Survey, CY1995-FY2010 | D87: =D86+2 -> 54 | F87: [BSurv]
B88: =IntRt!A1 -> Table 8b: Interest Rates of Domestic Money Banks, CY1997-FY2010 | D88: =D87+1 -> 55 | F88: [IntRt]
B89: =cpiFSM!A1 -> Table 9a : FSM : CPI Index, FY1999 to FY2010 | D89: =D88+1 -> 56 | F89: [cpiFSM]
B90: =cpiFSM!AL1 -> Table 9b : FSM : CPI Index, Domestic Item, FY1999 to FY2010 | D90: =D89+1 -> 57
B91: =cpiFSM!BW1 -> Table 9c : FSM : CPI Index, Imported Items, FY1999 to FY2010 | D91: =D90+1 -> 58
B92: =cpiState!A1 -> Table 9d : Chuuk : State CPI Index, FY1999 to FY2010 | D92: 59 | F92: [cpiState]
B93: =cpiState!AL1 -> Table 9e : Kosrae : State CPI Index, FY1999 to FY2010 | D93: 60
B94: =cpiState!BW1 -> Table 9e : Pohnpei : State CPI Index, FY1999 to FY2010 | D94: 61
B95: =cpiState!DH1 -> Table 9f : Yap : State CPI Index, FY1999 to FY2010 | D95: 62
B96: =Imports!A1 -> Table 10a : FSM and States: Imports by Major Category, FY2000-FY2010 | D96: 63 | F96: [Imports]
B97: =BOPsum!A1 -> Table 10b : FSM Balance of Payments (summary) FY1995-FY2010 | D97: 64 | F97: [BOPsum]
B98: =BOPdet!A1 -> Table 10c : FSM Balance of Payments (detail), FY1995-FY2010 | D98: =D97+1 -> 65 | F98: [BOPdet]
B99: =IIP!A1 -> Table 10d : FSM International Investment Position, FY1995-FY2010 | D99: =D98+3 -> 68 | F99: [IIP]
B100: =ExtDebt!A1 -> Table 10e : FSM External Debt, FY1995-FY2010 | D100: =D99+1 -> 69 | F100: [ExtDebt]
B101: =gfsFSM!A1 -> Table 11a : FSM Consolidated Government Finances (GFS Format), FY1995-FY2010 | D101: =D100+1 -> 70 | F101: [gfsFSM]
B102: =gfsN!A1 -> Table 11b : National Government Finances (GFS Format), FY1995-FY2010 | D102: =D101+2 -> 72 | F102: [gfsN]
B103: =gfsC!A1 -> Table 11c : Chuuk Government Finances (GFS Format), FY1995-FY2010 | D103: 74 | F103: [gfsC]
B104: =gfsK!A1 -> Table 11d : Kosrae Government Finances (GFS Format), FY1995-FY2010 | D104: 76 | F104: [gfsK]
B105: =gfsP!A1 -> Table 11e : Pohnpei Government Finances (GFS Format), FY1995-FY2010 | D105: 78 | F105: [gfsP]
B106: =gfsY!A1 -> Table 11f : Yap Government Finances (GFS Format), FY1995-FY2010 | D106: 80 | F106: [gfsY]
B107: =Nf!A1 -> Table 11g : National Government Finances (Audit Format), FY1995-FY2010 | D107: 82 | F107: [Nf]
B108: =Cf!A1 -> Table 11h : Chuuk State Government Finances (Audit Format), FY1995-FY2010 | D108: 84 | F108: [Cf]
B109: =Kf!A1 -> Table 11i : Kosrae State Government Finances (Audit Format), FY1995-FY2010 | D109: 86 | F109: [Kf]
B110: =Pf!A1 -> Table 11j : Pohnpei State Government Finances (Audit Format), FY1995-FY2010 | D110: 88 | F110: [Pf]
B111: =Yf!A1 -> Table 11k : Yap State Government Finances (Audit Format), FY1995-FY2010 | D111: 90 | F111: [Yf]
B112: =CII!A1 -> Table 11l : FSM Compact grants awarded, FY2004-FY2010 | D112: 92 | F112: [CII]
B113: =Pop!A1 -> Table 12a: Population growth by State and outer islands, 1980 to 2010 | D113: =D112+1 -> 93 | F113: [Pop] | G113: New2010
B114: =Pop!A19 -> Table 12b: Age and sex distribution, by State and outer islands, 2010 | D114: =D113 -> 93 | G114: New2011
B115: =NetArr!A1 -> Table 12c : Net Air Passengers from the USA, FY1991 to FY2010 | D115: =D114+1 -> 94 | F115: [NetArr]
F119: `

Sheet GNI
A1: Table 1a : FSM: Income measures in current prices and real terms, FY1981-FY2010
B2: (US$ millions 1) | C2: FY1995 | D2: FY1996 | E2: FY1997 | F2: FY1998 | G2: FY1999 | H2: FY2000 | I2: FY2001 | J2: FY2002 | K2: FY2003 | L2: FY2004 | M2: FY2005 | N2: FY2006 | O2: FY2007 | P2: FY2008 | Q2: FY2009 | R2: FY2010
A3: Current prices
B4: Gross Domestic Product (GDP) | C4: 222.6266975 | D4: 219.2644868 | E4: 207.3703631 | F4: 220.085753 | G4: 221.0962533 | H4: 233.6114344 | I4: 240.3672645 | J4: 241.7381847 | K4: 245.1212274 | L4: 239.7317831 | M4: 250.0475469 | N4: 254.5170528 | O4: 257.4515338 | P4: 263.4423011 | Q4: 279.7880411 | R4: 297.4514328
B5: Primary incomes 2
B6: Receivable from the rest of the world | C6: 30.57137468 | D6: 29.6479111 | E6: 19.82378925 | F6: 19.22181211 | G6: 22.69765946 | H6: 21.13895807 | I6: 19.2738638 | J6: 18.41477037 | K6: 18.35012608 | L6: 19.49473717 | M6: 23.68419653 | N6: 27.21075913 | O6: 29.75774834 | P6: 27.72879808 | Q6: 28.91725408 | R6: 26.97267527
B7: Payable to the rest of the world | C7: -19.14412195 | D7: -19.07087851 | E7: -17.1058191 | F7: -18.34631378 | G7: -16.5590947 | H7: -14.82792455 | I7: -14.05087292 | J7: -13.71896859 | K7: -14.10851295 | L7: -12.0471756 | M7: -11.45609738 | N7: -11.90105637 | O7: -12.23992175 | P7: -15.39803403 | Q7: -10.12767306 | R7: -12.735847
B8: Gross National Income (GNI) | C8: 234.0539503 | D8: 229.8415194 | E8: 210.0883333 | F8: 220.9612513 | G8: 227.2348181 | H8: 239.9224679 | I8: 245.5902553 | J8: 246.4339865 | K8: 249.3628405 | L8: 247.1793447 | M8: 262.2756461 | N8: 269.8267555 | O8: 274.9693604 | P8: 275.7730651 | Q8: 298.5776222 | R8: 311.6882611
B9: Secondary Incomes (Current transfers) 2
B10: Receivable from the rest of the world | C10: 98.23672002 | D10: 99.75652895 | E10: 86.71254506 | F10: 92.64702337 | G10: 93.0864675 | H10: 96.70201567 | I10: 100.7186437 | J10: 111.5595408 | K10: 132.4976906 | L10: 110.3779904 | M10: 126.7561358 | N10: 113.9068362 | O10: 111.7853884 | P10: 116.2008237 | Q10: 122.8175079 | R10: 127.0964038
B11: Payable to the rest of the world | C11: -9.665082526 | D11: -9.718705047 | E11: -8.85940874 | F11: -9.175429178 | G11: -9.290348547 | H11: -9.522126891 | I11: -9.920483592 | J11: -10.07045567 | K11: -10.46273184 | L11: -10.08851789 | M11: -10.49237522 | N11: -10.76690058 | O11: -10.62735394 | P11: -10.73598785 | Q11: -14.3978481 | R11: -15.3419431
B12: Gross National Disposable Income (GNDI) | C12: 322.6255878 | D12: 319.8793433 | E12: 287.9414696 | F12: 304.4328455 | G12: 311.030937 | H12: 327.1023567 | I12: 336.3884155 | J12: 347.9230717 | K12: 371.3977992 | L12: 347.4688173 | M12: 378.5394066 | N12: 372.9666911 | O12: 376.1273949 | P12: 381.237901 | Q12: 406.997282 | R12: 423.4427218
A13: Constant 2004 prices
B14: GDP, at constant prices | C14: 239.7625468 | D14: 232.3335484 | E14: 218.5119739 | F14: 224.4617506 | G14: 228.1151563 | H14: 238.3355797 | I14: 242.2748996 | J14: 243.4935259 | K14: 247.7643647 | L14: 239.7317831 | M14: 244.7541127 | N14: 245.1299235 | O14: 239.8938596 | P14: 234.1318263 | Q14: 235.6980195 | R14: 243.0636665
B15: Trading gains/losses 3 | C15: n.a | D15: n.a | E15: n.a | F15: n.a | G15: n.a | H15: n.a | I15: n.a | J15: n.a | K15: n.a | L15: n.a | M15: n.a | N15: n.a | O15: n.a | P15: n.a | Q15: n.a | R15: n.a
B16: Real Gross Domestic Income | C16: 239.7625468 | D16: 232.3335484 | E16: 218.5119739 | F16: 224.4617506 | G16: 228.1151563 | H16: 238.3355797 | I16: 242.2748996 | J16: 243.4935259 | K16: 247.7643647 | L16: 239.7317831 | M16: 244.7541127 | N16: 245.1299235 | O16: 239.8938596 | P16: 234.1318263 | Q16: 235.6980195 | R16: 243.0636665
B17: Primary incomes 4
B18: Receivable from the rest of the world | C18: 33.61306281 | D18: 31.89932676 | E18: 21.2377747 | F18: 19.98338564 | G18: 23.69632314 | H18: 21.61739217 | I18: 19.50057076 | J18: 18.61433467 | K18: 18.5968503 | L18: 19.49473717 | M18: 22.86638692 | N18: 25.31870388 | O18: 26.75016642 | P18: 23.51483521 | Q18: 22.78065442 | R18: 20.42616381
B19: Payable to the rest of the world | C19: -21.0488596 | D19: -20.51909098 | E19: -18.32593796 | F19: -19.07319982 | G19: -17.28767055 | H19: -15.1635222 | I19: -14.21614495 | J19: -13.86764361 | K19: -14.29820712 | L19: -12.0471756 | M19: -11.0605211 | N19: -11.07353604 | O19: -11.00284672 | P19: -13.05798513 | Q19: -7.97845533 | R19: -9.64474211
B20: Real Gross National Income (GNI) | C20: 252.32675 | D20: 243.7137842 | E20: 221.4238107 | F20: 225.3719364 | G20: 234.5238089 | H20: 244.7894497 | I20: 247.5593254 | J20: 248.240217 | K20: 252.0630079 | L20: 247.1793447 | M20: 256.5599785 | N20: 259.3750913 | O20: 255.6411793 | P20: 244.5886764 | Q20: 250.5002186 | R20: 253.8450882
B21: Secondary Incomes (Current transfers) 4
B22: Receivable from the rest of the world | C22: 108.0107478 | D22: 107.3318826 | E22: 92.89755214 | F22: 96.31772415 | G22: 97.18213533 | H22: 98.89065436 | I22: 101.903337 | J22: 112.7685324 | K22: 134.2791709 | L22: 110.3779904 | M22: 122.3792769 | N22: 105.9865122 | O22: 100.4873658 | P22: 98.54171156 | Q22: 96.75411073 | R22: 96.24896075
B23: Payable to the rest of the world | C23: -10.6267065 | D23: -10.4567282 | E23: -9.491330059 | F23: -9.538962229 | G23: -9.699110235 | H23: -9.737639414 | I23: -10.03717232 | J23: -10.17959107 | K23: -10.60340713 | L23: -10.08851789 | M23: -10.13007602 | N23: -10.01824191 | O23: -9.553259317 | P23: -9.104433028 | Q23: -11.34244631 | R23: -11.6183152
B24: Real Gross National Disposable Income (GNDI) 1 | C24: 349.7107913 | D24: 340.5889386 | E24: 304.8300328 | F24: 312.1506983 | G24: 322.006834 | H24: 333.9424646 | I24: 339.4254901 | J24: 350.8291583 | K24: 375.7387717 | L24: 347.4688173 | M24: 368.8091793 | N24: 355.3433616 | O24: 346.5752858 | P24: 334.0259549 | Q24: 335.911883 | R24: 338.4757338
B25: Annual changes
B26: GDP at constant prices | D26: =D14/C14-1 -> -0.03098481584 | E26: -0.05949022243 | F26: 0.02722860701 | G26: 0.01627629533 | H26: 0.04480378925 | I26: 0.016528459 | J26: 0.005029932332 | K26: 0.01753984536 | L26: -0.03242024572 | M26: 0.02094978588 | N26: 0.001535462581 | O26: =O14/N14-1 -> -0.02136036178 | P26: =P14/O14-1 -> -0.02401909461 | Q26: =Q14/P14-1 -> 0.006689364958 | R26: =R14/Q14-1 -> 0.03125035585
B27: Real GNI | D27: =D20/C20-1 -> -0.03413417636 | E27: =E20/D20-1 -> -0.09145963406 | F27: 0.01783062868 | G27: 0.04060786211 | H27: 0.04377227544 | I27: 0.0113153394 | J27: 0.002750417899 | K27: 0.01539956322 | L27: -0.01937477157 | M27: 0.03795071869 | N27: 0.01097253287 | O27: -0.01439580017 | P27: -0.04323443881 | Q27: 0.02416932101 | R27: 0.01335276119
B28: Real GNDI | D28: =D24/C24-1 -> -0.02608398972 | E28: -0.1049913892 | F28: 0.02401556538 | G28: 0.03157492756 | H28: 0.03706638914 | I28: 0.01641907227 | J28: 0.03359697061 | K28: 0.07100211831 | L28: -0.07523832137 | M28: 0.06141662506 | N28: -0.03651161223 | O28: =O24/N24-1 -> -0.02467493907 | P28: =P24/O24-1 -> -0.03620953773 | Q28: =Q24/P24-1 -> 0.005646052631 | R28: =R24/Q24-1 -> 0.007632509786
B29: Per capita income measures 5
B30: Population 6 | C30: 105753.675 | D30: 106002.4052 | E30: 106252.1966 | F30: 106503.0554 | G30: 106754.9878 | H30: 107008 | I30: 106594.8 | J30: 106181.6 | K30: 105768.4 | L30: 105355.2 | M30: 104942 | N30: 104478.4 | O30: 104014.8 | P30: 103551.2 | Q30: 103087.6 | R30: 102624
B31: Current price GDP per capita (US$) | C31: =C4/C$30*1000000 -> 2105.14384 | D31: =D4/D$30*1000000 -> 2068.48596 | E31: 1951.680717 | F31: 2066.473607 | G31: 2071.062514 | H31: 2183.121209 | I31: 2254.962385 | J31: 2276.648541 | K31: 2317.527989 | L31: 2275.462276 | M31: 2382.721379 | N31: 2436.073416 | O31: =O4/O$30*1000000 -> 2475.143286 | P31: =P4/P$30*1000000 -> 2544.077723 | Q31: =Q4/Q$30*1000000 -> 2714.080463 | R31: =R4/R$30*1000000 -> 2898.45877
B32: Current price GNI per capita (US$) | C32: =C8/C$30*1000000 -> 2213.199213 | D32: =D8/D$30*1000000 -> 2168.267022 | E32: 1977.261083 | F32: 2074.694013 | G32: 2128.563947 | H32: 2242.098421 | I32: 2303.960937 | J32: 2320.872793 | K32: 2357.630828 | L32: 2346.152299 | M32: 2499.243831 | N32: 2582.608037 | O32: =O8/O$30*1000000 -> 2643.559959 | P32: =P8/P$30*1000000 -> 2663.156633 | Q32: =Q8/Q$30*1000000 -> 2896.348563 | R32: =R8/R$30*1000000 -> 3037.186829
B33: Current price GNDI per capita (US$) | C33: =C12/C$30*1000000 -> 3050.726963 | D33: =D12/D$30*1000000 -> 3017.661182 | E33: 2709.981336 | F33: 2858.442365 | G33: 2913.502624 | H33: 3056.802825 | I33: 3155.767594 | J33: 3276.679497 | K33: 3511.424955 | L33: 3298.069932 | M33: 3607.129716 | N33: 3569.797117 | O33: =O12/O$30*1000000 -> 3616.094968 | P33: =P12/P$30*1000000 -> 3681.636727 | Q33: =Q12/Q$30*1000000 -> 3948.072144 | R33: =R12/R$30*1000000 -> 4126.156862
B34: Constant price GDP per capita (US$) | C34: =C14/C30*1000000 -> 2267.179337 | D34: =D14/D30*1000000 -> 2191.776196 | E34: 2056.540768 | F34: 2107.561608 | G34: 2136.81029 | H34: 2227.2688 | I34: 2272.858522 | J34: 2293.180042 | K34: 2342.517848 | L34: 2275.462276 | M34: 2332.279856 | N34: 2346.225856 | O34: =O14/O30*1000000 -> 2306.343517 | P34: =P14/P30*1000000 -> 2261.024752 | Q34: =Q14/Q30*1000000 -> 2286.385749 | R34: =R14/R30*1000000 -> 2368.487552
B35: Real GDI per capita | C35: =C16/C30*1000000 -> 2267.179337 | D35: =D16/D30*1000000 -> 2191.776196 | E35: 2056.540768 | F35: 2107.561608 | G35: 2136.81029 | H35: 2227.2688 | I35: 2272.858522 | J35: 2293.180042 | K35: 2342.517848 | L35: 2275.462276 | M35: 2332.279856 | N35: 2346.225856 | O35: =O16/O30*1000000 -> 2306.343517 | P35: =P16/P30*1000000 -> 2261.024752 | Q35: =Q16/Q30*1000000 -> 2286.385749 | R35: =R16/R30*1000000 -> 2368.487552
B36: Real GNI per capita (US$) | C36: =C20/C30*1000000 -> 2385.98564 | D36: =D20/D30*1000000 -> 2299.134475 | E36: 2083.945724 | F36: 2116.107708 | G36: 2196.841701 | H36: 2287.580832 | I36: 2322.433415 | J36: 2337.88356 | K36: 2383.159884 | L36: 2346.152299 | M36: 2444.778816 | N36: 2482.571434 | O36: =O20/O30*1000000 -> 2457.738507 | P36: =P20/P30*1000000 -> 2362.007165 | Q36: =Q20/Q30*1000000 -> 2429.9743 | R36: =R20/R30*1000000 -> 2473.54506
B37: Real GNDI per capita (US$) | C37: =C24/C30*1000000 -> 3306.842918 | D37: =D24/D30*1000000 -> 3213.03029 | E37: 2868.929232 | F37: 2930.908388 | G37: 3016.316528 | H37: 3120.724288 | I37: 3184.259364 | J37: 3304.04852 | K37: 3552.467199 | L37: 3298.069932 | M37: 3514.409668 | N37: 3401.11795 | O37: =O24/O30*1000000 -> 3331.980505 | P37: =P24/P30*1000000 -> 3225.708199 | Q37: =Q24/Q30*1000000 -> 3258.509103 | R37: =R24/R30*1000000 -> 3298.212248
B38: Annual changes
B39: Real GDI per capita | D39: =D35/C35-1 -> -0.03325856892 | E39: =E35/D35-1 -> -0.06170129442 | F39: 0.02480905822 | G39: 0.0138779725 | H39: 0.04233343064 | I39: 0.02046889098 | J39: 0.008940952396 | K39: 0.02151501625 | L39: -0.02862542635 | M39: 0.02496968689 | N39: 0.005979556676 | O39: -0.01699850812 | P39: -0.01964961605 | Q39: 0.01121659413 | R39: 0.03590898994
B40: Real GNI per capita | D40: =D36/C36-1 -> -0.0364005396 | E40: -0.09359554823 | F40: 0.01543321601 | G40: 0.03815211892 | H40: 0.04130435576 | I40: 0.01523556344 | J40: 0.006652567355 | K40: 0.01936637277 | L40: -0.01552878823 | M40: 0.04203755939 | N40: 0.0154585019 | O40: -0.01000290506 | P40: -0.03895098759 | Q40: 0.02877516009 | R40: 0.01793054358
B41: Real GNDI per capita | D41: -0.02836924238 | E41: -0.1070954912 | F41: 0.02160358463 | G41: 0.0291405013 | H41: 0.03461432502 | I41: 0.02035908023 | J41: 0.03761915778 | K41: 0.07518614752 | L41: -0.07161143323 | M41: 0.06559586073 | N41: -0.03223634369 | O41: -0.02032785868 | P41: -0.03189463594 | Q41: 0.01016858987 | R41: 0.01218445116
A42: Implicit Price deflators
B43: Gross Domestic Product (GDP) | C43: =C4/C14*100 -> 92.85299165 | D43: =D4/D14*100 -> 94.37487108 | E43: 94.90114405 | F43: 98.05044841 | G43: 96.92308783 | H43: 98.01785979 | I43: 99.21261545 | J43: 99.27910149 | K43: 98.93320521 | L43: 100 | M43: 102.162756 | N43: 103.8294506 | O43: =O4/O14*100 -> 107.3189344 | P43: =P4/P14*100 -> 112.5187913 | Q43: =Q4/Q14*100 -> 118.7061485 | R43: =R4/R14*100 -> 122.3759343
B44: Gross National Income (GNI) | C44: =C8/C20*100 -> 92.75827882 | D44: =D8/D20*100 -> 94.30796873 | E44: 94.88064209 | F44: 98.04293064 | G44: 96.8920039 | H44: 98.01176815 | I44: 99.20460679 | J44: 99.27238603 | K44: 98.92877284 | L44: 100 | M44: 102.2278095 | N44: 104.0295559 | O44: =O8/O20*100 -> 107.5606681 | P44: =P8/P20*100 -> 112.7497271 | Q44: =Q8/Q20*100 -> 119.1925595 | R44: =R8/R20*100 -> 122.7868001
B45: Gross National Disposable Income (GNDI) | C45: =C12/C24*100 -> 92.25497063 | D45: =D12/D24*100 -> 93.91947508 | E45: 94.45967873 | F45: 97.52752344 | G45: 96.59140869 | H45: 97.95171064 | I45: 99.10523084 | J45: 99.17165191 | K45: 98.84468337 | L45: 100 | M45: 102.6382823 | N45: 104.9595212 | O45: =O12/O24*100 -> 108.5268945 | P45: =P12/P24*100 -> 114.1342148 | Q45: =Q12/Q24*100 -> 121.1619185 | R45: =R12/R24*100 -> 125.10283
A46: 1) GDP, GNI and GNDI are at purchasers prices.
A47: 2) Refer to Balance of Payments tables for breakdown of primary and secondary Income flows
A48: 3) Changes in the terms of trade. Not currently estimated.
A49: 4) Primary, Secondary income and capital grants are deflated by an equal weighting of the RMI CPI and the RMI GDP implicit price deflator, as a proxy for the Gross Domestic Expenditure deflator.
A50: 5) Income comparisons between countries should be made at Purchasing Power Parity (PPP) rather than US$. However, these measures are currently not available for the FSM
A51: 6) 2000 and 2010 FSM Census and estimates by Graduate School consultants.

Sheet cerNApc
B1: Table 1b : FSM and States: Current and constant price GDP, GDP per capita, FY1981-FY2010
C2: GDP $'000 (old series) 3 | H2: GDP $'000 (new series) 4 | M2: Current price GDP US$' millions 1 | R2: Constant price GDP US$' millions 2 | W2: Real GDP annual growth | AB2: Population 3 | AG2: Current Price GDP per capita (1) | AL2: Constant price GDP per capita, US$ 2 | AQ2: Real per capita GDP growth (1) | AV2: US CPI | AW2: FSM Deflator, from 1995 | BB2: GDP Deflator linked US CPI
C3: FSM | D3: Chuuk | E3: Kosrae | F3: Pohnpei | G3: Yap | H3: FSM | I3: Chuuk | J3: Kosrae | K3: Pohnpei | L3: Yap | M3: FSM | N3: Chuuk | O3: Kosrae | P3: Pohnpei | Q3: Yap | R3: FSM | S3: Chuuk | T3: Kosrae | U3: Pohnpei | V3: Yap | W3: FSM | X3: Chuuk | Y3: Kosrae | Z3: Pohnpei | AA3: Yap | AB3: FSM | AC3: Chuuk | AD3: Kosrae | AE3: Pohnpei | AF3: Yap | AG3: FSM | AH3: Chuuk | AI3: Kosrae | AJ3: Pohnpei | AK3: Yap | AL3: FSM | AM3: Chuuk | AN3: Kosrae | AO3: Pohnpei | AP3: Yap | AQ3: FSM | AR3: Chuuk | AS3: Kosrae | AT3: Pohnpei | AU3: Yap | AW3: FSM | AX3: Chuuk | AY3: Kosrae | AZ3: Pohnpei | BA3: Yap | BB3: FSM | BC3: Chuuk | BD3: Kosrae | BE3: Pohnpei | BF3: Yap
B4: FY1980 | M4: =(AVERAGE(H$19:H$20)/AVERAGE(C$19:C$20)) -> 1.085248932 | N4: =(AVERAGE(I$19:I$20)/AVERAGE(D$19:D$20)) -> 1.262540935 | O4: =(AVERAGE(J$19:J$20)/AVERAGE(E$19:E$20)) -> 0.9442440119 | P4: =(AVERAGE(K$19:K$20)/AVERAGE(F$19:F$20)) -> 0.9609040842 | Q4: =(AVERAGE(L$19:L$20)/AVERAGE(G$19:G$20)) -> 1.197117033
B5: FY1981 | C5: 73.10594365 | D5: 26.87169894 | E5: 5.567545828 | F5: 28.47696499 | G5: 12.1897339 | M5: =SUM(N5:Q5) -> 81.13991175 | N5: =D5*N$4 -> 33.92661989 | O5: =E5*O$4 -> 5.257121809 | P5: =F5*P$4 -> 27.36363196 | Q5: =G5*Q$4 -> 14.59253809 | R5: =M5/BB5*100 -> 148.8402075 | S5: =N5/BC5*100 -> 58.74899463 | T5: =O5/BD5*100 -> 9.837835588 | U5: =P5/BE5*100 -> 52.19271801 | V5: =Q5/BF5*100 -> 27.12765286 | AB5: =SUM(AC5:AF5) -> 75372.55023 | AC5: 38520.33669 | AD5: 5626.219535 | AE5: 22901.01258 | AF5: 8324.981423 | AG5: =M5/AB5*1000000 -> 1076.518063 | AH5: =N5/AC5*1000000 -> 880.7456739 | AI5: =O5/AD5*1000000 -> 934.3968498 | AJ5: =P5/AE5*1000000 -> 1194.865592 | AK5: =Q5/AF5*1000000 -> 1752.861339 | AL5: =R5/AB5*1000000 -> 1974.726967 | AM5: =S5/AC5*1000000 -> 1525.142293 | AN5: =T5/AD5*1000000 -> 1748.569448 | AO5: =U5/AE5*1000000 -> 2279.057217 | AP5: =V5/AF5*1000000 -> 3258.584191 | AV5: 88.88333333 | BB5: =BB6*($AV5/$AV6) -> 54.51478004 | BC5: =BC6*($AV5/$AV6) -> 57.74842635 | BD5: =BD6*($AV5/$AV6) -> 53.43778885 | BE5: =BE6*($AV5/$AV6) -> 52.42806469 | BF5: =BF6*($AV5/$AV6) -> 53.7921145
B6: FY1982 | C6: 76.44258992 | D6: 27.91485307 | E6: 6.779523295 | F6: 28.60376807 | G6: 13.14444549 | M6: 84.86608611 | N6: 35.24364468 | O6: 6.401524275 | P6: 27.48547756 | Q6: 15.73543959 | R6: 144.9780414 | S6: 56.83593104 | T6: 11.15622426 | U6: 48.82269844 | V6: 27.24222543 | W6: =R6/R5-1 -> -0.02594840622 | X6: =S6/S5-1 -> -0.03256334181 | Y6: =T6/T5-1 -> 0.1340120659 | Z6: =U6/U5-1 -> -0.06456876925 | AA6: =V6/V5-1 -> 0.004223460824 | AB6: 77654.63572 | AC6: 39581.10165 | AD6: 5764.76894 | AE6: 23752.55332 | AF6: 8556.211814 | AG6: 1092.865678 | AH6: 890.4159616 | AI6: 1110.45635 | AJ6: 1157.158862 | AK6: 1839.066159 | AL6: 1866.959262 | AM6: 1435.936057 | AN6: 1935.242223 | AO6: 2055.471586 | AP6: 3183.911996 | AQ6: =AG6/AG5-1 -> 0.0151856396 | AR6: =AH6/AH5-1 -> 0.01097965959 | AS6: =AI6/AI5-1 -> 0.188420477 | AT6: =AJ6/AJ5-1 -> -0.0315572986 | AU6: =AK6/AK5-1 -> 0.0491794858 | AV6: 95.44166667 | BB6: 58.53720006 | BC6: 62.00944374 | BD6: 57.38074215 | BE6: 56.29651461 | BF6: 57.76121202
B7: FY1983 | C7: 80.65284686 | D7: 27.67355968 | E7: 7.632968544 | F7: 30.64392051 | G7: 14.70239813 | M7: 89.19274635 | N7: 34.93900191 | O7: 7.207384841 | P7: 29.44586837 | Q7: 17.60049123 | R7: 147.2025365 | S7: 54.43401408 | T7: 12.13470585 | U7: 50.53131041 | V7: 29.43785719 | W7: 0.01534366924 | X7: -0.04226053677 | Y7: 0.08770723596 | Z7: 0.03499626237 | AA7: 0.08059663699 | AB7: 80007.43004 | AC7: 40671.07773 | AD7: 5906.730217 | AE7: 24635.75735 | AF7: 8793.86474 | AG7: 1114.805791 | AH7: 859.0626032 | AI7: 1220.198752 | AJ7: 1195.249164 | AK7: 2001.451211 | AL7: 1839.860828 | AM7: 1338.396156 | AN7: 2054.386337 | AO7: 2051.136877 | AP7: 3347.544914 | AQ7: 0.02007576383 | AR7: -0.03521203546 | AS7: 0.09882639906 | AT7: 0.03291708934 | AU7: 0.08829755889 | AV7: 98.79166667 | BB7: 60.59185425 | BC7: 64.18597359 | BD7: 59.39480469 | BE7: 58.2725208 | BF7: 59.78862905
B8: FY1984 | C8: 80.6472862 | D8: 29.59655856 | E8: 8.25425052 | F8: 27.76441761 | G8: 15.0320595 | M8: 89.8349701 | N8: 37.36686671 | O8: 7.794026626 | P8: 26.67894228 | Q8: 17.99513448 | R8: 142.4122017 | S8: 55.91940813 | T8: 12.60461087 | U8: 43.97651582 | V8: 28.91029463 | W8: -0.03254247434 | X8: 0.02728797557 | Y8: 0.0387240553 | Z8: -0.1297174866 | AA8: -0.01792122835 | AB8: 82433.17736 | AC8: 41791.06934 | AD8: 6052.187385 | AE8: 25551.80204 | AF8: 9038.118592 | AG8: 1089.791428 | AH8: 894.1352136 | AI8: 1287.803257 | AJ8: 1044.111967 | AK8: 1991.026594 | AL8: 1727.607819 | AM8: 1338.070765 | AN8: 2082.65377 | AO8: 1721.07297 | AP8: 3198.707157 | AQ8: -0.02243831447 | AR8: 0.04082660604 | AS8: 0.05540450234 | AT8: -0.1264482767 | AU8: -0.005208528952 | AV8: 102.85 | BB8: 63.08095024 | BC8: 66.82271498 | BD8: 61.83472624 | BE8: 60.66633924 | BF8: 62.24472878
B9: FY1985 | C9: 97.4601737 | D9: 35.39376036 | E9: 8.32810293 | F9: 37.22499038 | G9: 16.51332003 | M9: 108.0878546 | N9: 44.68607129 | O9: 7.863761322 | P9: 35.76964529 | Q9: 19.76837669 | R9: 165.2555455 | S9: 64.49490825 | T9: 12.26521748 | U9: 56.86489169 | V9: 30.62991567 | W9: 0.1604029956 | X9: 0.1533546297 | Y9: -0.02692613017 | Z9: 0.293074056 | AA9: 0.05948127012 | AB9: 84934.19481 | AC9: 42941.90305 | AD9: 6201.226533 | AE9: 26501.90851 | AF9: 9289.156713 | AG9: 1272.607044 | AH9: 1040.616929 | AI9: 1268.097735 | AJ9: 1349.700731 | AK9: 2128.113164 | AL9: 1945.689199 | AM9: 1501.910807 | AN9: 1977.869606 | AO9: 2145.690438 | AP9: 3297.383887 | AQ9: 0.1677528478 | AR9: 0.163825016 | AS9: -0.01530165544 | AT9: 0.2926781552 | AU9: 0.06885220425 | AV9: 106.6416667 | BB9: 65.40649167 | BC9: 69.28620026 | BD9: 64.11432439 | BE9: 62.90286366 | BF9: 64.53944208
B10: FY1986 | C10: 107.8190567 | D10: 38.77320363 | E10: 10.38057664 | F10: 42.29247649 | G10: 16.3727999 | M10: 118.9937251 | N10: 48.95275675 | O10: 9.801797331 | P10: 40.63901339 | Q10: 19.60015765 | R10: 177.5724383 | S10: 68.96087474 | T10: 14.92186137 | U10: 63.05871132 | V10: 29.6419459 | W10: 0.07453240266 | X10: 0.06924525687 | Y10: 0.2165998191 | Z10: 0.1089216817 | AA10: -0.03225506028 | AB10: 87512.87489 | AC10: 44124.42818 | AD10: 6353.93587 | AE10: 27487.34331 | AF10: 9547.16754 | AG10: 1359.728214 | AH10: 1109.425295 | AI10: 1542.633972 | AJ10: 1478.462757 | AK10: 2052.981428 | AL10: 2029.10073 | AM10: 1562.872939 | AN10: 2348.443811 | AO10: 2294.099892 | AP10: 3104.789538 | AQ10: 0.06845881516 | AR10: 0.06612266612 | AS10: 0.2164945411 | AT10: 0.09540042745 | AU10: -0.03530438964 | AV10: 109.2583333 | BB10: 67.01137081 | BC10: 70.98627582 | BD10: 65.68749763 | BE10: 64.44631128 | BF10: 66.12304643
B11: FY1987 | C11: 113.1108397 | D11: 38.92661471 | E11: 10.92051993 | F11: 46.59072393 | G11: 16.67298114 | M11: 124.1868067 | N11: 49.14644451 | O11: 10.31163555 | P11: 44.76921691 | Q11: 19.95950972 | R11: 180.168814 | S11: 67.30857161 | T11: 15.26150979 | U11: 67.53580724 | V11: 29.34605161 | W11: 0.01462150164 | X11: -0.02396000836 | Y11: 0.02276179982 | Z11: 0.07099884904 | AA11: -0.009982282852 | AB11: 90171.68801 | AC11: 45339.51743 | AD11: 6510.405775 | AE11: 28509.42006 | AF11: 9812.344742 | AG11: 1377.22615 | AH11: 1083.964879 | AI11: 1583.86987 | AJ11: 1570.330677 | AK11: 2034.122347 | AL11: 1998.064115 | AM11: 1484.54539 | AN11: 2344.171825 | AO11: 2368.89446 | AP11: 2990.727739 | AQ11: 0.01286870066 | AR11: -0.02294919403 | AS11: 0.02673083755 | AT11: 0.06213745942 | AU11: -0.009186191553 | AV11: 112.3833333 | BB11: 68.92802584 | BC11: 73.01662083 | BD11: 67.56628731 | BE11: 66.28960064 | BF11: 68.01429366
B12: FY1988 | C12: 124.7260045 | D12: 44.52442653 | E12: 10.37823954 | F12: 51.94543717 | G12: 17.87790129 | M12: 137.3300245 | N12: 56.21391108 | O12: 9.799590542 | P12: 49.91458273 | Q12: 21.40194016 | R12: 191.3479634 | S12: 73.93945734 | T12: 13.92938881 | U12: 72.31630519 | V12: 30.22088233 | W12: 0.06204819291 | X12: 0.09851472965 | Y12: -0.08728631703 | Z12: 0.07078464214 | AA12: 0.02981084931 | AB12: 92913.18503 | AC12: 46588.06756 | AD12: 6670.728856 | AE12: 29569.50124 | AF12: 10084.88737 | AG12: 1478.046678 | AH12: 1206.616072 | AI12: 1469.043451 | AJ12: 1688.042768 | AK12: 2122.179393 | AL12: 2059.427446 | AM12: 1587.090026 | AN12: 2088.13596 | AO12: 2445.638315 | AP12: 2996.650456 | AQ12: 0.07320549979 | AR12: 0.1131505233 | AS12: -0.0724973821 | AT12: 0.07496006576 | AU12: 0.0432899458 | AV12: 117.0166667 | BB12: 71.76978636 | BC12: 76.02694569 | BD12: 70.35190616 | BE12: 69.02258432 | BF12: 70.81838288
B13: FY1989 | C13: 131.7717298 | D13: 45.45118364 | E13: 10.64631029 | F13: 57.23586415 | G13: 18.43837168 | M13: 144.5077591 | N13: 57.38397988 | O13: 10.05271474 | P13: 54.99817562 | Q13: 22.07288881 | R13: 192.2054991 | S13: 72.05090133 | T13: 13.64029573 | U13: 76.06298478 | V13: 29.7529112 | W13: 0.004481551242 | X13: -0.02554192421 | Y13: -0.02075418256 | Z13: 0.05180961023 | AA13: -0.01548502537 | AB13: 95740 | AC13: 47871 | AD13: 6835 | AE13: 30669 | AF13: 10365 | AG13: 1509.377053 | AH13: 1198.721144 | AI13: 1470.770262 | AJ13: 1793.282325 | AK13: 2129.559943 | AL13: 2007.577805 | AM13: 1505.105415 | AN13: 1995.654093 | AO13: 2480.126016 | AP13: 2870.517241 | AQ13: 0.02119714834 | AR13: -0.00654303243 | AS13: 0.001175466276 | AT13: 0.06234412951 | AU13: 0.00347781632 | AV13: 122.5833333 | BB13: 75.18398785 | BC13: 79.64366694 | BD13: 73.69865686 | BE13: 72.30609709 | BF13: 74.18732461
B14: FY1990 | C14: 143.9186187 | D14: 48.4124665 | E14: 11.40908279 | F14: 61.94383864 | G14: 22.15323075 | M14: 157.9377762 | N14: 61.12272071 | O14: 10.77295811 | P14: 59.52208754 | Q14: 26.52000988 | R14: 200.0845437 | S14: 73.09780056 | T14: 13.92285428 | U14: 78.40723051 | V14: 34.04841123 | W14: 0.04099281578 | X14: 0.01452999495 | Y14: 0.02071498737 | Z14: 0.03081979678 | AA14: 0.1443724281 | AB14: 97616.73536 | AC14: 48914.13737 | AD14: 6928.790436 | AE14: 31251.08145 | AF14: 10522.7261 | AG14: 1617.937494 | AH14: 1249.592122 | AI14: 1554.810787 | AJ14: 1904.640888 | AK14: 2520.260398 | AL14: 2049.695095 | AM14: 1494.410501 | AN14: 2009.420607 | AO14: 2508.944551 | AP14: 3235.702507 | AQ14: 0.07192400414 | AR14: 0.04243770802 | AS14: 0.05714048368 | AT14: 0.06209761953 | AU14: 0.1834653474 | AV14: 128.7 | BB14: 78.93552062 | BC14: 83.61772891 | BD14: 77.37607454 | BE14: 75.91402879 | BF14: 77.88912585
B15: FY1991 | C15: 160.1250062 | D15: 55.09180022 | E15: 12.54577504 | F15: 68.71137223 | G15: 23.77605868 | M15: 175.8896889 | N15: 69.55565294 | O15: 11.84627296 | P15: 66.02503821 | Q15: 28.46272483 | R15: 212.1272823 | S15: 79.18860435 | T15: 14.57483567 | U15: 82.79712288 | V15: 34.7879045 | W15: 0.06018825032 | X15: 0.08332403634 | Y15: 0.0468281413 | Z15: 0.05598836159 | AA15: 0.02171887744 | AB15: 99530.93605 | AC15: 49980.00533 | AD15: 7023.867872 | AE15: 31844.2105 | AF15: 10682.85235 | AG15: 1767.186122 | AH15: 1391.669578 | AI15: 1686.574004 | AJ15: 2073.376515 | AK15: 2664.337567 | AL15: 2131.269841 | AM15: 1584.40568 | AN15: 2075.044112 | AO15: 2600.068319 | AP15: 3256.424723 | AQ15: 0.09224622609 | AR15: 0.1136990655 | AS15: 0.08474549967 | AT15: 0.08859183271 | AU15: 0.05716757219 | AV15: 135.1916667 | BB15: 82.917052 | BC15: 87.83543228 | BD15: 81.27894699 | BE15: 79.74315521 | BF15: 81.81787676
B16: FY1992 | C16: 171.6205665 | D16: 58.21544313 | E16: 12.48588261 | F16: 72.08012026 | G16: 28.8391205 | M16: 189.0749842 | N16: 73.49937999 | O16: 11.78971989 | P16: 69.26208194 | Q16: 34.52380238 | R16: 221.3568475 | S16: 81.23004125 | T16: 14.0808269 | U16: 84.31500451 | V16: 40.96124592 | W16: 0.04350956232 | X16: 0.0257794277 | Y16: -0.03389463722 | Z16: 0.0183325408 | AA16: 0.1774565473 | AB16: 101483.3612 | AC16: 51069.09918 | AD16: 7120.249969 | AE16: 32448.59683 | AF16: 10845.41527 | AG16: 1863.113144 | AH16: 1439.214342 | AI16: 1655.801403 | AJ16: 2134.517012 | AK16: 3183.262376 | AL16: 2181.213203 | AM16: 1590.590838 | AN16: 1977.574799 | AO16: 2598.417582 | AP16: 3776.825959 | AQ16: 0.05428235323 | AR16: 0.0341638308 | AS16: -0.01824562699 | AT16: 0.02948837127 | AU16: 0.1947669154 | AV16: 139.2666667 | BB16: 85.41637015 | BC16: 90.48300217 | BD16: 83.72888874 | BE16: 82.14680452 | BF16: 84.28406315
B17: FY1993 | C17: 188.8297363 | D17: 61.01099303 | E17: 13.85402123 | F17: 84.34614509 | G17: 29.61857695 | M17: 206.615911 | N17: 77.02887616 | O17: 13.08157658 | P17: 81.0485553 | Q17: 35.45690298 | R17: 234.7702983 | S17: 82.62416067 | T17: 15.16370272 | U17: 95.75800833 | V17: 40.82966683 | W17: 0.06059650259 | X17: 0.01716260878 | Y17: 0.07690427767 | Z17: 0.1357172888 | AA17: -0.003212282441 | AB17: 103474.7857 | AC17: 52181.92502 | AD17: 7217.954629 | AE17: 33064.45409 | AF17: 11010.45194 | AG17: 1996.775443 | AH17: 1476.16011 | AI17: 1812.366142 | AJ17: 2451.229198 | AK17: 3220.294969 | AL17: 2268.864794 | AM17: 1583.386597 | AN17: 2100.830984 | AO17: 2896.101295 | AP17: 3708.264389 | AQ17: 0.07174137534 | AR17: 0.02567078866 | AS17: 0.09455526388 | AT17: 0.1483765109 | AU17: 0.01163353444 | AV17: 143.4916667 | BB17: 88.00768775 | BC17: 93.22802862 | BD17: 86.2690124 | BE17: 84.63893173 | BF17: 86.8410294
B18: FY1994 | C18: 196.264194 | D18: 60.25513558 | E18: 16.80408867 | F18: 88.58691809 | G18: 30.61805169 | M18: =SUM(N18:Q18) -> 213.7186579 | N18: 76.0745752 | O18: 15.86716011 | P18: 85.1235314 | Q18: 36.65339121 | R18: 236.6293587 | S18: 79.51331028 | T18: 17.92219411 | U18: 98.00004117 | V18: 41.12784921 | W18: 0.007918635404 | X18: -0.03765061418 | Y18: 0.1819141037 | Z18: 0.0234135283 | AA18: 0.007303081238 | AB18: 105506 | AC18: 53319 | AD18: 7317 | AE18: 33692 | AF18: 11178 | AG18: 2025.654066 | AH18: 1426.781733 | AI18: 2168.533566 | AJ18: 2526.52058 | AK18: 3279.065236 | AL18: 2242.804757 | AM18: 1491.275348 | AN18: 2449.391023 | AO18: 2908.703584 | AP18: 3679.356701 | AQ18: 0.01446262941 | AR18: -0.03345055641 | AS18: 0.1965206788 | AT18: 0.03071576585 | AU18: 0.01824996421 | AV18: 147.2583333 | BB18: 90.31789594 | BC18: 95.67527114 | BD18: 88.53358024 | BE18: 86.86070983 | BF18: 89.12061273
B19: FY1995 | C19: 205.8432112 | D19: 64.00950859 | E19: 16.41906426 | F19: 95.69011962 | G19: 29.72451869 | H19: 222.6266975 | I19: 79.44153581 | J19: 15.61858544 | K19: 91.77351709 | L19: 35.79305919 | M19: =H19 -> 222.6266975 | N19: =I19 -> 79.44153581 | O19: =J19 -> 15.61858544 | P19: =K19 -> 91.77351709 | Q19: =L19 -> 35.79305919 | R19: 239.7625468 | S19: 80.76549155 | T19: 17.15977469 | U19: 102.7713147 | V19: 39.06596581 | W19: 0.01324091025 | X19: 0.01574807124 | Y19: -0.04254051782 | Z19: 0.04868644424 | AA19: -0.05013350903 | AB19: 105753.675 | AC19: 53364.9011 | AD19: 7377.246175 | AE19: 33823.05231 | AF19: 11188.47543 | AG19: 2105.14384 | AH19: 1488.647672 | AI19: 2117.129492 | AJ19: 2713.342257 | AK19: 3199.100666 | AL19: 2267.179337 | AM19: 1513.457158 | AN19: 2326.040678 | AO19: 3038.499121 | AP19: 3491.625473 | AQ19: 0.0392415345 | AR19: 0.0433604793 | AS19: -0.0237045327 | AT19: 0.07394425266 | AU19: -0.024386392 | AV19: 151.3916667 | AW19: 92.85299165 | AX19: 98.36074081 | AY19: 91.01859274 | AZ19: 89.29876722 | BA19: 91.62210239 | BB19: =AW19 -> 92.85299165 | BC19: =AX19 -> 98.36074081 | BD19: =AY19 -> 91.01859274 | BE19: =AZ19 -> 89.29876722 | BF19: =BA19 -> 91.62210239
B20: FY1996 | C20: 201.3363504 | D20: 57.37266467 | E20: 17.40197767 | F20: 94.55885213 | G20: 32.0028559 | H20: 219.2644868 | I20: 73.80842668 | J20: 16.31673088 | K20: 91.03749687 | L20: 38.10183236 | M20: 219.2644868 | N20: 73.80842668 | O20: 16.31673088 | P20: 91.03749687 | Q20: 38.10183236 | R20: 232.3335484 | S20: 75.37091946 | T20: 17.45824959 | U20: 99.4933981 | V20: 40.01098126 | W20: -0.03098481584 | X20: -0.06679303238 | Y20: 0.01739387036 | Z20: -0.03189524839 | AA20: 0.02419024927 | AB20: 106002.4052 | AC20: 53410.84171 | AD20: 7437.9884 | AE20: 33954.61438 | AF20: 11198.96067 | AG20: 2068.48596 | AH20: 1381.89971 | AI20: 2193.702114 | AJ20: 2681.15243 | AK20: 3402.265038 | AL20: 2191.776196 | AM20: 1411.153935 | AN20: 2347.173544 | AO20: 2930.187838 | AP20: 3572.740581 | AQ20: -0.01741348016 | AR20: -0.07170801005 | AS20: 0.03616813364 | AT20: -0.0118635334 | AU20: 0.06350671435 | AV20: 155.625 | AW20: 94.37487108 | AX20: 97.92692886 | AY20: 93.46143663 | AZ20: 91.50104289 | BA20: 95.22843769 | BB20: 94.37487108 | BC20: 97.92692886 | BD20: 93.46143663 | BE20: 91.50104289 | BF20: 95.22843769
B21: FY1997 | H21: 207.3703631 | I21: 70.02192397 | J21: 15.32297673 | K21: 83.97101285 | L21: 38.05444959 | M21: 207.3703631 | N21: 70.02192397 | O21: 15.32297673 | P21: 83.97101285 | Q21: 38.05444959 | R21: 218.5119739 | S21: 72.26077183 | T21: 16.43686958 | U21: 90.24194029 | V21: 39.57239223 | W21: -0.05949022243 | X21: -0.04126455735 | Y21: -0.05850414742 | Z21: -0.09298564517 | AA21: -0.01096171626 | AB21: 106252.1966 | AC21: 53456.82188 | AD21: 7499.230761 | AE21: 34086.68819 | AF21: 11209.45574 | AG21: 1951.680717 | AH21: 1309.878169 | AI21: 2043.273132 | AJ21: 2463.454718 | AK21: 3394.852566 | AL21: 2056.540768 | AM21: 1351.759594 | AN21: 2191.807414 | AO21: 2647.424701 | AP21: 3530.268833 | AQ21: -0.05646895623 | AR21: -0.05211777693 | AS21: -0.06857311239 | AT21: -0.08119557457 | AU21: -0.002178687472 | AV21: 159.775 | AW21: 94.90114405 | AX21: 96.90171057 | AY21: 93.2232056 | AZ21: 93.05098338 | BA21: 96.16413727 | BB21: 94.90114405 | BC21: 96.90171057 | BD21: 93.2232056 | BE21: 93.05098338 | BF21: 96.16413727
B22: FY1998 | H22: 220.085753 | I22: 71.90360196 | J22: 13.92575358 | K22: 89.92207893 | L22: 44.3343185 | M22: 220.085753 | N22: 71.90360196 | O22: 13.92575358 | P22: 89.92207893 | Q22: 44.3343185 | R22: 224.4617506 | S22: 72.73971467 | T22: 14.39590313 | U22: 92.99223276 | V22: 44.33390004 | W22: 0.02722860701 | X22: 0.006627978483 | Y22: -0.124170022 | Z22: 0.03047687658 | AA22: 0.1203239819 | AB22: 106503.0554 | AC22: 53502.84162 | AD22: 7560.977374 | AE22: 34219.27573 | AF22: 11219.96065 | AG22: 2066.473607 | AH22: 1343.921178 | AI22: 1841.792786 | AJ22: 2627.819467 | AK22: 3951.379145 | AL22: 2107.561608 | AM22: 1359.548623 | AN22: 1903.97384 | AO22: 2717.539479 | AP22: 3951.341848 | AQ22: 0.0588174537 | AR22: 0.02598944696 | AS22: -0.09860666374 | AT22: 0.06672123827 | AU22: 0.1639324735 | AW22: 98.05044841 | AX22: 98.85054168 | AY22: 96.73414344 | AZ22: 96.69848358 | BA22: 100.0009439 | BB22: 98.05044841 | BC22: 98.85054168 | BD22: 96.73414344 | BE22: 96.69848358 | BF22: 100.0009439
B23: FY1999 | H23: 221.0962533 | I23: 74.72338418 | J23: 15.3139829 | K23: 90.57444035 | L23: 40.4844459 | M23: 221.0962533 | N23: 74.72338418 | O23: 15.3139829 | P23: 90.57444035 | Q23: 40.4844459 | R23: 228.1151563 | S23: 76.40618476 | T23: 15.55084 | U23: 95.08443469 | V23: 41.0736969 | W23: 0.01627629533 | X23: 0.05040534052 | Y23: 0.08022677455 | Z23: 0.02249867393 | AA23: -0.07353747672 | AB23: 106754.9878 | AC23: 53548.90099 | AD23: 7623.232391 | AE23: 34352.379 | AF23: 11230.4754 | AG23: 2071.062514 | AH23: 1395.423301 | AI23: 2008.856888 | AJ23: 2636.627884 | AK23: 3604.873745 | AL23: 2136.81029 | AM23: 1426.848793 | AN23: 2039.927317 | AO23: 2767.914114 | AP23: 3657.342672 | AQ23: 0.002220646321 | AR23: 0.03832227916 | AS23: 0.09070732825 | AT23: 0.003351987048 | AU23: -0.08769226823 | AW23: 96.92308783 | AX23: 97.79755974 | AY23: 98.4768855 | AZ23: 95.25685319 | BA23: 98.56538114 | BB23: 96.92308783 | BC23: 97.79755974 | BD23: 98.4768855 | BE23: 95.25685319 | BF23: 98.56538114
B24: FY2000 | H24: 233.6114344 | I24: 80.41348547 | J24: 16.16083314 | K24: 95.04424803 | L24: 41.99286772 | M24: 233.6114344 | N24: 80.41348547 | O24: 16.16083314 | P24: 95.04424803 | Q24: 41.99286772 | R24: 238.3355797 | S24: 80.77168495 | T24: 16.34829233 | U24: 98.16431762 | V24: 43.05128484 | W24: 0.04480378925 | X24: 0.05713542964 | Y24: 0.05128033755 | Z24: 0.03239103164 | AA24: 0.04814730812 | AB24: 107008 | AC24: 53595 | AD24: 7686 | AE24: 34486 | AF24: 11241 | AG24: 2183.121209 | AH24: 1500.391556 | AI24: 2102.632467 | AJ24: 2756.024126 | AK24: 3735.687903 | AL24: 2227.2688 | AM24: 1507.075006 | AN24: 2127.02216 | AO24: 2846.49764 | AP24: 3829.84475 | AQ24: 0.05410686289 | AR24: 0.07522323539 | AS24: 0.04668106483 | AT24: 0.04528369099 | AU24: 0.03628813876 | AW24: 98.01785979 | AX24: 99.55652841 | AY24: 98.85334089 | AZ24: 96.8215848 | BA24: 97.54149703 | BB24: 98.01785979 | BC24: 99.55652841 | BD24: 98.85334089 | BE24: 96.8215848 | BF24: 97.54149703
B25: FY2001 | H25: 240.3672645 | I25: 82.36981727 | J25: 17.41181987 | K25: 96.79069517 | L25: 43.79493215 | M25: 240.3672645 | N25: 82.36981727 | O25: 17.41181987 | P25: 96.79069517 | Q25: 43.79493215 | R25: 242.2748996 | S25: 81.99640415 | T25: 17.51456159 | U25: 98.08202198 | V25: 44.68191187 | W25: 0.016528459 | X25: 0.0151627294 | Y25: 0.07133890436 | Z25: -0.000838345779 | AA25: 0.03787638487 | AB25: 106594.8 | AC25: 53117.6 | AD25: 7580.76 | AE25: 34619.9 | AF25: 11276.54 | AG25: 2254.962385 | AH25: 1550.706682 | AI25: 2296.84357 | AJ25: 2795.81094 | AK25: 3883.720729 | AL25: 2272.858522 | AM25: 1543.67675 | AN25: 2310.396529 | AO25: 2833.111071 | AP25: 3962.37781 | AQ25: 0.03290755253 | AR25: 0.03353466337 | AS25: 0.09236569223 | AT25: 0.01443630818 | AU25: 0.03962665774 | AW25: 99.21261545 | AX25: 100.4554018 | AY25: 99.41339255 | AZ25: 98.6834215 | BA25: 98.01490205 | BB25: 99.21261545 | BC25: 100.4554018 | BD25: 99.41339255 | BE25: 98.6834215 | BF25: 98.01490205
B26: FY2002 | H26: 241.7381847 | I26: 80.7756054 | J26: 17.55916529 | K26: 100.8286228 | L26: 42.57479122 | M26: 241.7381847 | N26: 80.7756054 | O26: 17.55916529 | P26: 100.8286228 | Q26: 42.57479122 | R26: 243.4935259 | S26: 81.79515531 | T26: 17.60478549 | U26: 101.1341458 | V26: 42.95943936 | W26: 0.005029932332 | X26: -0.002454361762 | Y26: 0.005151365354 | Z26: 0.03111807584 | AA26: -0.03854966008 | AB26: 106181.6 | AC26: 52640.2 | AD26: 7475.52 | AE26: 34753.8 | AF26: 11312.08 | AG26: 2276.648541 | AH26: 1534.485154 | AI26: 2348.888811 | AJ26: 2901.225846 | AK26: 3763.65719 | AL26: 2293.180042 | AM26: 1553.85343 | AN26: 2354.991425 | AO26: 2910.016913 | AP26: 3797.660497 | AQ26: 0.009617081011 | AR26: -0.01046073287 | AS26: 0.02265946243 | AT26: 0.0377045904 | AU26: -0.03091456573 | AW26: 99.27910149 | AX26: 98.75353264 | AY26: 99.74086473 | AZ26: 99.69790327 | BA26: 99.10462487 | BB26: 99.27910149 | BC26: 98.75353264 | BD26: 99.74086473 | BE26: 99.69790327 | BF26: 99.10462487
B27: FY2003 | H27: 245.1212274 | I27: 82.01153205 | J27: 16.88031619 | K27: 100.7956207 | L27: 45.43375841 | M27: 245.1212274 | N27: 82.01153205 | O27: 16.88031619 | P27: 100.7956207 | Q27: 45.43375841 | R27: 247.7643647 | S27: 83.00252594 | T27: 17.10546557 | U27: 101.8690524 | V27: 45.78732078 | W27: 0.01753984536 | X27: 0.01476090638 | Y27: -0.02836273824 | Z27: 0.0072666522 | AA27: 0.06582677669 | AB27: 105768.4 | AC27: 52162.8 | AD27: 7370.28 | AE27: 34887.7 | AF27: 11347.62 | AG27: 2317.527989 | AH27: 1572.222581 | AI27: 2290.322239 | AJ27: 2889.144906 | AK27: 4003.813876 | AL27: 2342.517848 | AM27: 1591.220677 | AN27: 2320.870519 | AO27: 2919.913105 | AP27: 4034.971278 | AQ27: 0.01795597673 | AR27: 0.02459289167 | AS27: -0.02493373551 | AT27: -0.004164081406 | AU27: 0.06380939437 | AW27: 98.93320521 | AX27: 98.80606779 | AY27: 98.68375765 | AZ27: 98.94626319 | BA27: 99.22781599 | BB27: 98.93320521 | BC27: 98.80606779 | BD27: 98.68375765 | BE27: 98.94626319 | BF27: 99.22781599
B28: FY2004 | H28: 239.7317831 | I28: 78.10961759 | J28: 16.65756531 | K28: 102.2509917 | L28: 42.71360855 | M28: 239.7317831 | N28: 78.10961759 | O28: 16.65756531 | P28: 102.2509917 | Q28: 42.71360855 | R28: 239.7317831 | S28: 78.10961759 | T28: 16.65756531 | U28: 102.2509917 | V28: 42.71360855 | W28: -0.03242024572 | X28: -0.05894890908 | Y28: -0.02618462832 | Z28: 0.003749315861 | AA28: -0.06713020492 | AB28: 105355.2 | AC28: 51685.4 | AD28: 7265.04 | AE28: 35021.6 | AF28: 11383.16 | AG28: 2275.462276 | AH28: 1511.2511 | AI28: 2292.838761 | AJ28: 2919.655061 | AK28: 3752.350714 | AL28: 2275.462276 | AM28: 1511.2511 | AN28: 2292.838761 | AO28: 2919.655061 | AP28: 3752.350714 | AQ28: -0.01815111353 | AR28: -0.03878043867 | AS28: 0.001098763463 | AT28: 0.01056027175 | AU28: -0.06280590695 | AW28: 100 | AX28: 100 | AY28: 100 | AZ28: 100 | BA28: 100 | BB28: 100 | BC28: 100 | BD28: 100 | BE28: 100 | BF28: 100
B29: FY2005 | H29: 250.0475469 | I29: 78.75110181 | J29: 16.46571146 | K29: 108.460621 | L29: 46.37011267 | M29: 250.0475469 | N29: 78.75110181 | O29: 16.46571146 | P29: 108.460621 | Q29: 46.37011267 | R29: 244.7541127 | S29: 77.43892085 | T29: 16.30168162 | U29: 105.9294061 | V29: 45.08410406 | W29: 0.02094978588 | X29: -0.008586608876 | Y29: -0.02136468844 | Z29: 0.03597436445 | AA29: 0.0554974303 | AB29: 104942 | AC29: 51208 | AD29: 7159.8 | AE29: 35155.5 | AF29: 11418.7 | AG29: 2382.721379 | AH29: 1537.867166 | AI29: 2299.744611 | AJ29: 3085.167925 | AK29: 4060.892454 | AL29: 2332.279856 | AM29: 1512.242635 | AN29: 2276.834775 | AO29: 3013.167389 | AP29: 3948.269423 | AQ29: 0.04713728034 | AR29: 0.01761194144 | AS29: 0.003011921112 | AT29: 0.05668918438 | AU29: 0.0822262533 | AW29: 102.162756 | AX29: 101.6944722 | AY29: 101.0062142 | AZ29: 102.3895299 | BA29: 102.8524657 | BB29: 102.162756 | BC29: 101.6944722 | BD29: 101.0062142 | BE29: 102.3895299 | BF29: 102.8524657
B30: FY2006 | H30: 254.5170528 | I30: 80.12509017 | J30: 16.86640575 | K30: 111.7017018 | L30: 45.82385505 | M30: 254.5170528 | N30: 80.12509017 | O30: 16.86640575 | P30: 111.7017018 | Q30: 45.82385505 | R30: 245.1299235 | S30: 79.74955311 | T30: 16.34370698 | U30: 106.6038183 | V30: 42.43284503 | W30: 0.001535462581 | X30: 0.02983812573 | Y30: 0.002577976787 | Z30: 0.006366619273 | AA30: -0.05880695836 | AB30: 104478.4 | AC30: 50696.6 | AD30: 7051.04 | AE30: 35320.6 | AF30: 11410.16 | AG30: 2436.073416 | AH30: 1580.482521 | AI30: 2392.04511 | AJ30: 3162.508615 | AK30: 4016.057185 | AL30: 2346.225856 | AM30: 1573.074982 | AN30: 2317.914375 | AO30: 3018.176881 | AP30: 3718.865032 | AQ30: 0.0223912193 | AR30: 0.02771068686 | AS30: 0.04013510844 | AT30: 0.0250685511 | AU30: -0.01104074284 | AW30: 103.8294506 | AX30: 100.4708955 | AY30: 103.1981654 | AZ30: 104.7820834 | BA30: 107.9914746 | BB30: 103.8294506 | BC30: 100.4708955 | BD30: 103.1981654 | BE30: 104.7820834 | BF30: 107.9914746
B31: FY2007 | H31: 257.4515338 | I31: 76.95127528 | J31: 16.99127988 | K31: 116.7569757 | L31: 46.75200294 | M31: 257.4515338 | N31: 76.95127528 | O31: 16.99127988 | P31: 116.7569757 | Q31: 46.75200294 | R31: 239.8938596 | S31: 73.01448194 | T31: 16.13256301 | U31: 109.1572882 | V31: 41.58952642 | W31: -0.02136036178 | X31: -0.08445277625 | Y31: -0.01291897679 | Z31: 0.02395289345 | AA31: -0.01987419445 | AB31: 104014.8 | AC31: 50185.2 | AD31: 6942.28 | AE31: 35485.7 | AF31: 11401.62 | AG31: 2475.143286 | AH31: 1533.345992 | AI31: 2447.507142 | AJ31: 3290.254264 | AK31: 4100.470191 | AL31: 2306.343517 | AM31: 1454.900687 | AN31: 2323.813359 | AO31: 3076.092292 | AP31: 3647.685717 | AQ31: 0.01603805105 | AR31: -0.02982413815 | AS31: 0.02318603118 | AT31: 0.04039377095 | AU31: 0.02101887549 | AW31: 107.3189344 | AX31: 105.3917979 | AY31: 105.3228794 | AZ31: 106.9621439 | BA31: 112.4129245 | BB31: 107.3189344 | BC31: 105.3917979 | BD31: 105.3228794 | BE31: 106.9621439 | BF31: 112.4129245
B32: FY2008 | H32: 263.4423011 | I32: 74.06996785 | J32: 17.24748304 | K32: 125.1955669 | L32: 46.92928329 | M32: 263.4423011 | N32: 74.06996785 | O32: 17.24748304 | P32: 125.1955669 | Q32: 46.92928329 | R32: 234.1318263 | S32: 68.53739829 | T32: 15.43059217 | U32: 108.4754541 | V32: 41.6883817 | W32: -0.02401909461 | X32: -0.0613177487 | Y32: -0.04351266687 | Z32: -0.006246345108 | AA32: 0.002376927255 | AB32: 103551.2 | AC32: 49673.8 | AD32: 6833.52 | AE32: 35650.8 | AF32: 11393.08 | AG32: 2544.077723 | AH32: 1491.127473 | AI32: 2523.952962 | AJ32: 3511.718304 | AK32: 4119.104166 | AL32: 2261.024752 | AM32: 1379.749451 | AN32: 2258.073755 | AO32: 3042.721458 | AP32: 3659.096724 | AQ32: 0.02785068549 | AR32: -0.02753358969 | AS32: 0.03123415587 | AT32: 0.06730909601 | AU32: 0.004544350802 | AW32: 112.5187913 | AX32: 108.0723367 | AY32: 111.7746024 | AZ32: 115.4137292 | BA32: 112.571612 | BB32: 112.5187913 | BC32: 108.0723367 | BD32: 111.7746024 | BE32: 115.4137292 | BF32: 112.571612
B33: FY2009 | H33: 279.7880411 | I33: 78.42773343 | J33: 19.68194962 | K33: 130.7547055 | L33: 50.92365262 | M33: 279.7880411 | N33: 78.42773343 | O33: 19.68194962 | P33: 130.7547055 | Q33: 50.92365262 | R33: 235.6980195 | S33: 69.09443172 | T33: 16.16587682 | U33: 107.7308288 | V33: 42.70688218 | W33: 0.006689364958 | X33: 0.008127437605 | Y33: 0.0476510977 | Z33: -0.006864459216 | AA33: 0.02443127895 | AB33: 103087.6 | AC33: 49162.4 | AD33: 6724.76 | AE33: 35815.9 | AF33: 11384.54 | AG33: 2714.080463 | AH33: 1595.278779 | AI33: 2926.788408 | AJ33: 3650.744655 | AK33: 4473.05316 | AL33: 2286.385749 | AM33: 1405.432439 | AN33: 2403.933645 | AO33: 3007.905115 | AP33: 3751.305031 | AQ33: 0.06682293498 | AR33: 0.0698473524 | AS33: 0.1596049737 | AT33: 0.03958926622 | AU33: 0.08592863398 | AW33: 118.7061485 | AX33: 113.5080374 | AY33: 121.7499665 | AZ33: 121.3716695 | BA33: 119.2399211 | BB33: 118.7061485 | BC33: 113.5080374 | BD33: 121.7499665 | BE33: 121.3716695 | BF33: 119.2399211
B34: FY2010 | H34: 297.4514328 | I34: 85.45552613 | J34: 19.83618802 | K34: 141.2407124 | L34: 50.91900628 | M34: 297.4514328 | N34: 85.45552613 | O34: 19.83618802 | P34: 141.2407124 | Q34: 50.91900628 | R34: 243.0636665 | S34: 71.8495184 | T34: 15.86402616 | U34: 113.7914134 | V34: 41.55870854 | W34: 0.03125035585 | X34: 0.0398742217 | Y34: -0.01867208704 | Z34: 0.05625673417 | AA34: -0.02688497931 | AB34: 102624 | AC34: 48651 | AD34: 6616 | AE34: 35981 | AF34: 11376 | AG34: 2898.45877 | AH34: 1756.500917 | AI34: 2998.214634 | AJ34: 3925.424874 | AK34: 4476.002662 | AL34: 2368.487552 | AM34: 1476.835387 | AN34: 2397.827413 | AO34: 3162.541714 | AP34: 3653.191679 | AQ34: 0.06793398712 | AR34: 0.1010620469 | AS34: 0.02440430118 | AT34: 0.07523950476 | AU34: 0.000659393402 | AW34: 122.3759343 | AX34: 118.9368113 | AY34: 125.0388005 | AZ34: 124.1224695 | BA34: 122.5230717 | BB34: 122.3759343 | BC34: 118.9368113 | BD34: 125.0388005 | BE34: 124.1224695 | BF34: 122.5230717
B35: FY2011 | H35: 0 | I35: 0 | J35: 0 | K35: 0 | L35: 0 | M35: 0 | N35: 0 | O35: 0 | P35: 0 | Q35: 0 | AB35: =SUM(AC35:AF35) -> 0 | AC35: 0 | AD35: 0 | AE35: 0 | AF35: 0 | AW35: 0 | AX35: 0 | AY35: 0 | AZ35: 0 | BA35: 0 | BB35: 0 | BC35: 0 | BD35: 0 | BE35: 0 | BF35: 0
B36: FY2012 | H36: 0 | I36: 0 | J36: 0 | K36: 0 | L36: 0 | M36: 0 | N36: 0 | O36: 0 | P36: 0 | Q36: 0 | AB36: 0 | AC36: 0 | AD36: 0 | AE36: 0 | AF36: 0 | AW36: 0 | AX36: 0 | AY36: 0 | AZ36: 0 | BA36: 0 | BB36: 0 | BC36: 0 | BD36: 0 | BE36: 0 | BF36: 0
B37: FY2013 | H37: 0 | I37: 0 | J37: 0 | K37: 0 | L37: 0 | M37: 0 | N37: 0 | O37: 0 | P37: 0 | Q37: 0 | AB37: 0 | AC37: 0 | AD37: 0 | AE37: 0 | AF37: 0 | AW37: 0 | AX37: 0 | AY37: 0 | AZ37: 0 | BA37: 0 | BB37: 0 | BC37: 0 | BD37: 0 | BE37: 0 | BF37: 0
B38: FY2014 | H38: 0 | I38: 0 | J38: 0 | K38: 0 | L38: 0 | M38: 0 | N38: 0 | O38: 0 | P38: 0 | Q38: 0 | AB38: 0 | AC38: 0 | AD38: 0 | AE38: 0 | AF38: 0 | AW38: 0 | AX38: 0 | AY38: 0 | AZ38: 0 | BA38: 0 | BB38: 0 | BC38: 0 | BD38: 0 | BE38: 0 | BF38: 0
B39: FY2015 | H39: 0 | I39: 0 | J39: 0 | K39: 0 | L39: 0 | M39: 0 | N39: 0 | O39: 0 | P39: 0 | Q39: 0 | AB39: 0 | AC39: 0 | AD39: 0 | AE39: 0 | AF39: 0 | AW39: 0 | AX39: 0 | AY39: 0 | AZ39: 0 | BA39: 0 | BB39: 0 | BC39: 0 | BD39: 0 | BE39: 0 | BF39: 0
B40: FY2016 | H40: 0 | I40: 0 | J40: 0 | K40: 0 | L40: 0 | M40: 0 | N40: 0 | O40: 0 | P40: 0 | Q40: 0 | AB40: 0 | AC40: 0 | AD40: 0 | AE40: 0 | AF40: 0 | AW40: 0 | AX40: 0 | AY40: 0 | AZ40: 0 | BA40: 0 | BB40: 0 | BC40: 0 | BD40: 0 | BE40: 0 | BF40: 0
B41: FY2017 | H41: 0 | I41: 0 | J41: 0 | K41: 0 | L41: 0 | M41: 0 | N41: 0 | O41: 0 | P41: 0 | Q41: 0 | AB41: 0 | AC41: 0 | AD41: 0 | AE41: 0 | AF41: 0 | AW41: 0 | AX41: 0 | AY41: 0 | AZ41: 0 | BA41: 0 | BB41: 0 | BC41: 0 | BD41: 0 | BE41: 0 | BF41: 0
B42: FY2018 | H42: 0 | I42: 0 | J42: 0 | K42: 0 | L42: 0 | M42: 0 | N42: 0 | O42: 0 | P42: 0 | Q42: 0 | AB42: 0 | AC42: 0 | AD42: 0 | AE42: 0 | AF42: 0 | AW42: 0 | AX42: 0 | AY42: 0 | AZ42: 0 | BA42: 0 | BB42: 0 | BC42: 0 | BD42: 0 | BE42: 0 | BF42: 0
B43: FY2019 | H43: 0 | I43: 0 | J43: 0 | K43: 0 | L43: 0 | M43: 0 | N43: 0 | O43: 0 | P43: 0 | Q43: 0 | AB43: 0 | AC43: 0 | AD43: 0 | AE43: 0 | AF43: 0 | AW43: 0 | AX43: 0 | AY43: 0 | AZ43: 0 | BA43: 0 | BB43: 0 | BC43: 0 | BD43: 0 | BE43: 0 | BF43: 0
B44: FY2020 | H44: 0 | I44: 0 | J44: 0 | K44: 0 | L44: 0 | M44: 0 | N44: 0 | O44: 0 | P44: 0 | Q44: 0 | AB44: 0 | AC44: 0 | AD44: 0 | AE44: 0 | AF44: 0 | AW44: 0 | AX44: 0 | AY44: 0 | AZ44: 0 | BA44: 0 | BB44: 0 | BC44: 0 | BD44: 0 | BE44: 0 | BF44: 0
B45: FY2021 | H45: 0 | I45: 0 | J45: 0 | K45: 0 | L45: 0 | M45: 0 | N45: 0 | O45: 0 | P45: 0 | Q45: 0 | AB45: 0 | AC45: 0 | AD45: 0 | AE45: 0 | AF45: 0 | AW45: 0 | AX45: 0 | AY45: 0 | AZ45: 0 | BA45: 0 | BB45: 0 | BC45: 0 | BD45: 0 | BE45: 0 | BF45: 0
B46: FY2022 | H46: 0 | I46: 0 | J46: 0 | K46: 0 | L46: 0 | M46: 0 | N46: 0 | O46: 0 | P46: 0 | Q46: 0 | AB46: 0 | AC46: 0 | AD46: 0 | AE46: 0 | AF46: 0 | AW46: 0 | AX46: 0 | AY46: 0 | AZ46: 0 | BA46: 0 | BB46: 0 | BC46: 0 | BD46: 0 | BE46: 0 | BF46: 0
B47: FY2023 | H47: 0 | I47: 0 | J47: 0 | K47: 0 | L47: 0 | M47: 0 | N47: 0 | O47: 0 | P47: 0 | Q47: 0 | AB47: 0 | AC47: 0 | AD47: 0 | AE47: 0 | AF47: 0 | AW47: 0 | AX47: 0 | AY47: 0 | AZ47: 0 | BA47: 0 | BB47: 0 | BC47: 0 | BD47: 0 | BE47: 0 | BF47: 0
B48: 1 1981-1994 are old EMPAT estimates, linked via the average figures for 1995-1996. Details of the old estimates are available on request.
B49: 2 Constant price GDP is in 2000 prices. U.S. CPI used as deflator for 1981-1997
B50: 3 GDP estimates old series, EMPAT, 1981-1997
B51: 4 GDP estimates, new series from 1995
B52: 3 Estimates by Graduate School consultants. To be revised when 2010 Census results become available.

Sheet gdpFSM
A1: Table 1c : FSM: Constant price GDP by industry, FY1995-FY2010
B2: (constant prices of FY2004, US$ millions) | C2: FY1995 | D2: FY1996 | E2: FY1997 | F2: FY1998 | G2: FY1999 | H2: FY2000 | I2: FY2001 | J2: FY2002 | K2: FY2003 | L2: FY2004 | M2: FY2005 | N2: FY2006 | O2: FY2007 | P2: FY2008 | Q2: FY2009 | R2: FY2010
A3: A | B3: Agriculture, Hunting and Forestry | C3: 30.28019941 | D3: 30.40642832 | E3: 30.59405955 | F3: 30.76387851 | G3: 31.22094202 | H3: 31.80052206 | I3: 32.07389892 | J3: 32.322509 | K3: 32.70948751 | L3: 31.22960446 | M3: 32.36982962 | N3: 33.72609491 | O3: 34.11738468 | P3: 33.89654693 | Q3: 33.93643654 | R3: 34.2171273
A4: B | B4: Fisheries | C4: 26.50009859 | D4: 24.23508419 | E4: 19.4272009 | F4: 26.5777225 | G4: 21.759527 | H4: 24.75651469 | I4: 22.58254579 | J4: 23.42625142 | K4: 24.72670615 | L4: 21.4338993 | M4: 22.39521025 | N4: 21.43574637 | O4: 23.6052715 | P4: 23.79644005 | Q4: 23.24840451 | R4: 23.54341419
A5: C | B5: Mining and Quarrying | C5: 0 | D5: 0 | E5: 0 | F5: 0 | G5: 0 | H5: 0 | I5: 0 | J5: 0 | K5: 0 | L5: 0 | M5: 0 | N5: 0 | O5: 0 | P5: 0 | Q5: 0 | R5: 0
A6: D | B6: Manufacturing | C6: 3.599587668 | D6: 2.941786131 | E6: 3.279384568 | F6: 3.665383036 | G6: 3.444693564 | H6: 3.982614337 | I6: 4.672385258 | J6: 4.473502371 | K6: 4.150234778 | L6: 3.374887869 | M6: 1.353072677 | N6: 0.8852465497 | O6: 0.8980597443 | P6: 0.9618374786 | Q6: 0.9064225942 | R6: 1.020957866
A7: E | B7: Electricity, Gas and Water Supply | C7: 4.936875353 | D7: 5.083581346 | E7: 4.863715 | F7: 4.814924376 | G7: 4.800018805 | H7: 4.714350833 | I7: 4.771774883 | J7: 4.946546208 | K7: 5.131066434 | L7: 4.9628879 | M7: 4.922579037 | N7: 4.658620468 | O7: 4.549258068 | P7: 4.185359299 | Q7: 4.297903015 | R7: 4.343898801
A8: F | B8: Construction | C8: 10.70759398 | D8: 9.403143424 | E8: 6.470050274 | F8: 8.425054096 | G8: 8.812355176 | H8: 9.427391432 | I8: 9.090277204 | J8: 6.867114837 | K8: 6.226502614 | L8: 6.495582278 | M8: 8.08307884 | N8: 5.796248711 | O8: 5.10688913 | P8: 6.346499283 | Q8: 10.11061503 | R8: 12.44947574
A9: G | B9: Wholesale and Retail Trade and Repairs | C9: 27.60212092 | D9: 26.88397652 | E9: 25.32082194 | F9: 24.6753709 | G9: 25.08555112 | H9: 26.73815746 | I9: 28.47881256 | J9: 26.56340105 | K9: 28.27423958 | L9: 28.22158752 | M9: 28.19957471 | N9: 27.64533446 | O9: 27.34078896 | P9: 27.07676032 | Q9: 25.30477188 | R9: 26.1860772
A10: H | B10: Hotels and Restaurants | C10: 5.195831908 | D10: 5.110464922 | E10: 5.108441444 | F10: 5.32352759 | G10: 5.2704369 | H10: 5.54711134 | I10: 5.524175388 | J10: 5.037817079 | K10: 4.968339579 | L10: 4.811304872 | M10: 4.882553316 | N10: 4.903109108 | O10: 4.640752326 | P10: 4.343360439 | Q10: 3.869106 | R10: 3.781022357
A11: I | B11: Transport, Storage and Communications | C11: 17.10447061 | D11: 16.02630397 | E11: 14.9090692 | F11: 15.19663979 | G11: 15.58785721 | H11: 16.29887663 | I11: 16.90489699 | J11: 16.60022193 | K11: 16.61606147 | L11: 16.57196104 | M11: 16.43886639 | N11: 16.62274438 | O11: 16.40829297 | P11: 13.88362911 | Q11: 13.55169345 | R11: 14.02704367
A12: J | B12: Financial Intermediation | C12: 3.382595054 | D12: 2.775024564 | E12: 2.702629839 | F12: 2.119174665 | G12: 3.540211543 | H12: 4.23020968 | I12: 5.225868212 | J12: 6.506151897 | K12: 3.29411296 | L12: 3.058098867 | M12: 4.215531322 | N12: 4.795762047 | O12: 5.146396121 | P12: 4.645608858 | Q12: 3.741951909 | R12: 3.950088411
A13: K | B13: Real Estate, Renting, Business Activities | C13: 27.84798101 | D13: 27.95734301 | E13: 27.94955337 | F13: 27.92483851 | G13: 29.15807042 | H13: 29.51066096 | I13: 30.21230255 | J13: 30.13023678 | K13: 30.36421878 | L13: 30.06230594 | M13: 29.74431297 | N13: 29.34028072 | O13: 28.96624044 | P13: 28.71466741 | Q13: 28.66803259 | R13: 29.4831059
A14: L | B14: Public Administration | C14: 35.07000966 | D14: 33.22658995 | E14: 32.50083689 | F14: 31.13333058 | G14: 33.16199437 | H14: 32.37657327 | I14: 33.3346605 | J14: 35.63952266 | K14: 34.55565022 | L14: 31.99143996 | M14: 30.97681887 | N14: 32.81611111 | O14: 27.71669873 | P14: 25.43860148 | Q14: 25.30797238 | R14: 26.51285187
A15: M | B15: Education | C15: 25.63263144 | D15: 26.06896242 | E15: 24.65112306 | F15: 22.88735343 | G15: 23.86019259 | H15: 24.78186582 | I15: 26.74843454 | J15: 28.59922219 | K15: 29.66509358 | L15: 30.14301006 | M15: 31.37925598 | N15: 33.84901208 | O15: 33.70303035 | P15: 33.68949205 | Q15: 34.17426033 | R15: 33.53087785
A16: N | B16: Health and Social Work | C16: 8.644068671 | D16: 8.704607414 | E16: 7.722375596 | F16: 6.568730555 | G16: 6.359256505 | H16: 7.06358576 | I16: 7.886565669 | J16: 8.484097889 | K16: 8.51365557 | L16: 8.765096987 | M16: 9.115493912 | N16: 9.607046682 | O16: 10.22510892 | P16: 10.79650521 | Q16: 11.08200955 | R16: 11.79573804
A17: O | B17: Other Community, Social, Personal Services | C17: 2.777104435 | D17: 2.837275952 | E17: 2.75554636 | F17: 2.861157397 | G17: 3.030005284 | H17: 3.128434954 | I17: 3.124301467 | J17: 3.358713663 | K17: 3.30368398 | L17: 3.381998512 | M17: 3.215051082 | N17: 3.181355912 | O17: 3.172461344 | P17: 3.142892918 | Q17: 3.133019376 | R17: 3.369975294
B18: less intermediate FISIM | C18: -2.564555879 | D18: -2.332733761 | E18: -1.960752218 | F18: -1.944400074 | G18: -2.673280245 | H18: -3.205155184 | I18: -3.701544847 | J18: -4.782773678 | K18: -2.670241409 | L18: -2.354459968 | M18: -2.933673699 | N18: -3.393505173 | O18: -3.572204348 | P18: -3.534870878 | Q18: -3.079442462 | R18: -3.235743111
B19: GDP at basic prices | C19: 226.7166128 | D19: 219.3278384 | E19: 206.2940558 | F19: 210.9926859 | G19: 212.4178323 | H19: 221.151714 | I19: 226.9293551 | J19: 228.1725353 | K19: 229.8288118 | L19: 222.1492056 | M19: 224.3575553 | N19: 225.8692083 | O19: 222.0244289 | P19: 217.38333 | Q19: 218.2531567 | R19: 224.9759114
B20: Taxes on products | C20: 16.19554505 | D20: 16.50743444 | E20: 15.30598405 | F20: 17.30965372 | G20: 19.19826718 | H20: 20.9280255 | I20: 19.34521302 | J20: 17.67290094 | K20: 19.38014427 | L20: 18.71461255 | M20: 21.48973246 | N20: 20.2551051 | O20: 18.82498241 | P20: 17.63030931 | Q20: 18.24858235 | R20: 18.92138557
B21: less subsidies | C21: -3.149611112 | D21: -3.501724401 | E21: -3.088065896 | F21: -3.840588985 | G21: -3.500943102 | H21: -3.74415982 | I21: -3.999668517 | J21: -2.3519103 | K21: -1.444591336 | L21: -1.132035 | M21: -1.093175063 | N21: -0.9943899838 | O21: -0.9555517365 | P21: -0.8818129754 | Q21: -0.8037195234 | R21: -0.8336304509
B22: GDP at purchasers prices | C22: 239.7625468 | D22: 232.3335484 | E22: 218.5119739 | F22: 224.4617506 | G22: 228.1151563 | H22: 238.3355797 | I22: 242.2748996 | J22: 243.4935259 | K22: 247.7643647 | L22: 239.7317831 | M22: 244.7541127 | N22: 245.1299235 | O22: 239.8938596 | P22: 234.1318263 | Q22: 235.6980195 | R22: 243.0636665
A24: Table 1d : FSM: Constant price GDP by industry sector, annual % growth, FY1995-FY2010
C25: =C2 -> FY1995 | D25: FY1996 | E25: FY1997 | F25: FY1998 | G25: FY1999 | H25: FY2000 | I25: FY2001 | J25: FY2002 | K25: FY2003 | L25: FY2004 | M25: FY2005 | N25: FY2006 | O25: FY2007 | P25: FY2008 | Q25: FY2009 | R25: =R2 -> FY2010
A26: A | B26: Agriculture, Hunting and Forestry | D26: =IF(C3>0.1,D3/C3-1,"") -> 0.004168694637 | E26: =IF(D3>0.1,E3/D3-1,"") -> 0.006170775283 | F26: 0.005550716691 | G26: 0.01485714856 | H26: 0.01856382279 | I26: 0.008596615502 | J26: 0.007751165003 | K26: 0.01197241554 | L26: -0.04524323568 | M26: 0.03651103433 | N26: 0.04189905554 | O26: 0.01160198863 | P26: -0.006472880185 | Q26: 0.001176804375 | R26: 0.008271073633
A27: B | B27: Fisheries | D27: =IF(C4>0.1,D4/C4-1,"") -> -0.0854719236 | E27: -0.198385252 | F27: 0.3680675169 | G27: -0.181286997 | H27: 0.1377322078 | I27: -0.08781401326 | J27: 0.03736096188 | K27: 0.05551271118 | L27: -0.133168034 | M27: 0.04485002635 | N27: -0.0428423696 | O27: 0.1012106176 | P27: 0.008098553326 | Q27: -0.02303014825 | R27: 0.01268945904
A28: C | B28: Mining and Quarrying
A29: D | B29: Manufacturing | D29: -0.1827435799 | E29: 0.1147596806 | F29: 0.117704545 | G29: -0.060209116 | H29: 0.1561592529 | I29: 0.1731955099 | J29: -0.04256560104 | K29: -0.07226275205 | L29: -0.1868200116 | M29: -0.599076257 | N29: -0.3457509231 | O29: 0.01447415368 | P29: 0.071017251 | Q29: -0.05761356324 | R29: 0.1263596829
A30: E | B30: Electricity, Gas and Water Supply | D30: 0.02971636543 | E30: -0.04325028567 | F30: -0.010031555 | G30: -0.003095701981 | H30: -0.01784742423 | I30: 0.01218069094 | J30: 0.03662606242 | K30: 0.03730284092 | L30: -0.03277652629 | M30: -0.008122058054 | N30: -0.05362200718 | O30: -0.02347527587 | P30: -0.07999079475 | Q30: 0.02688985759 | R30: 0.01070191351
A31: F | B31: Construction | D31: -0.1218248056 | E31: -0.3119268757 | F31: 0.3021620759 | G31: 0.0459701595 | H31: 0.06979249514 | I31: -0.03575901461 | J31: -0.2445648595 | K31: -0.09328695359 | L31: 0.04321521736 | M31: 0.2443963441 | N31: -0.2829157273 | O31: -0.1189320224 | P31: 0.2427329283 | Q31: 0.5931011063 | R31: 0.2313272441
A32: G | B32: Wholesale and Retail Trade and Repairs | D32: -0.02601772527 | E32: -0.05814447071 | F32: -0.02549091957 | G32: 0.01662306197 | H32: 0.06587881321 | I32: 0.06510003953 | J32: -0.06725742191 | K32: 0.06440585407 | L32: -0.001862192084 | M32: -0.0007799988757 | N32: -0.01965420588 | O32: -0.01101616263 | P32: -0.009656950562 | Q32: -0.06544314826 | R32: 0.0348276337
A33: H | B33: Hotels and Restaurants | D33: -0.01642989748 | E33: -0.0003959479787 | F33: 0.04210406405 | G33: -0.009972840063 | H33: 0.05249554159 | I33: -0.004134755996 | J33: -0.08804179354 | K33: -0.01379119157 | L33: -0.03160707993 | M33: 0.01480854896 | N33: 0.004210049605 | O33: -0.05350824875 | P33: -0.06408268871 | Q33: -0.1091906707 | R33: -0.02276589038
A34: I | B34: Transport, Storage and Communications | D34: -0.06303420088 | E34: -0.06971256567 | F34: 0.01928829938 | G34: 0.02574367938 | H34: 0.0456136725 | I34: 0.03718172555 | J34: -0.01802288717 | K34: 0.0009541762056 | L34: -0.002654084596 | M34: -0.008031315815 | N34: 0.01118556388 | O34: -0.01290108333 | P34: -0.1538651134 | Q34: -0.02390842128 | R34: 0.03507681325
A35: J | B35: Financial Intermediation | D35: -0.1796166791 | E35: -0.02608795839 | F35: -0.2158842343 | G35: 0.6705614697 | H35: 0.1949030807 | I35: 0.2353686006 | J35: 0.2449896615 | K35: -0.4936925832 | L35: -0.07164723736 | M35: 0.378481045 | N35: 0.1376411845 | O35: 0.07311331782 | P35: -0.09730833993 | Q35: -0.1945185177 | R35: 0.05562244167
A36: K | B36: Real Estate, Renting, Business Activities | D36: 0.003927107044 | E36: -0.0002786258959 | F36: -0.0008842667835 | G36: 0.04416254417 | H36: 0.01209238257 | I36: 0.02377586831 | J36: -0.002716303215 | K36: 0.007765687333 | L36: -0.009943046418 | M36: -0.01057779697 | N36: -0.01358351271 | O36: -0.01274835392 | P36: -0.008685042384 | Q36: -0.001624076656 | R36: 0.02843143528
A37: L | B37: Public Administration | D37: -0.05256399198 | E37: -0.02184253834 | F37: -0.0420760336 | G37: 0.06516051287 | H37: -0.02368437471 | I37: 0.02959199009 | J37: 0.0691431116 | K37: -0.03041209192 | L37: -0.0742052382 | M37: -0.03171539311 | N37: 0.05937640833 | O37: -0.1553935615 | P37: -0.08219222909 | Q37: -0.005135073898 | R37: 0.04760869286
A38: M | B38: Education | D38: 0.01702248108 | E38: -0.05438802415 | F38: -0.0715492609 | G38: 0.04250553308 | H38: 0.03862807204 | I38: 0.07935515164 | J38: 0.06919237237 | K38: 0.03726924418 | L38: 0.01611039841 | M38: 0.04101268982 | N38: 0.07870664946 | O38: -0.004312732314 | P38: -0.0004016939522 | Q38: 0.01438930219 | R38: -0.0188265224
A39: N | B39: Health and Social Work | D39: 0.007003500899 | E39: -0.11284045 | F39: -0.1493899158 | G39: -0.03188957879 | H39: 0.1107565412 | I39: 0.1165102169 | J39: 0.07576583335 | K39: 0.003483891996 | L39: 0.02953389593 | M39: 0.03997638873 | N39: 0.05392497378 | O39: 0.06433425944 | P39: 0.05588168249 | Q39: 0.02644414486 | R39: 0.06440424751
A40: O | B40: Other Community, Social, Personal Services | D40: 0.02166699839 | E40: -0.0288056548 | F40: 0.0383267139 | G40: 0.05901384061 | H40: 0.03248498299 | I40: -0.001321263686 | J40: 0.07502867423 | K40: -0.01638415443 | L40: 0.02370521291 | M40: -0.04936354352 | N40: -0.01048044605 | O40: -0.002795841956 | P40: -0.009320342391 | Q40: -0.003141545741 | R40: 0.07563180748
B41: less intermediate FISIM
B42: GDP at basic prices | D42: -0.03259035304 | E42: -0.0594260295 | F42: 0.02277637166 | G42: 0.006754482516 | H42: 0.04111651873 | I42: 0.02612523745 | J42: 0.005478269677 | K42: 0.007258877579 | L42: -0.03341446244 | M42: 0.009940839853 | N42: 0.006737696295 | O42: -0.01702214939 | P42: -0.02090355102 | Q42: 0.004001349791 | R42: =IF(Q19>0.1,R19/Q19-1,"") -> 0.03080255421
B43: Taxes on products | D43: 0.01925772688 | E43: -0.0727823811 | F43: 0.1309076021 | G43: 0.1091075236 | H43: 0.09009971124 | I43: -0.07563123852 | J43: -0.0864457822 | K43: 0.09660232536 | L43: -0.03434090648 | M43: 0.1482862605 | N43: -0.05745196544 | O43: -0.07060554272 | P43: -0.06346210944 | Q43: 0.03506875743 | R43: 0.03686879376
B44: less subsidies
B45: GDP at purchasers prices | D45: -0.03098481584 | E45: -0.05949022243 | F45: 0.02722860701 | G45: =IF(F22>0.1,G22/F22-1,"") -> 0.01627629533 | H45: 0.04480378925 | I45: 0.016528459 | J45: 0.005029932332 | K45: 0.01753984536 | L45: -0.03242024572 | M45: 0.02094978588 | N45: 0.001535462581 | O45: -0.02136036178 | P45: -0.02401909461 | Q45: 0.006689364958 | R45: 0.03125035585
A46: Source: SBOC estimates
A47: Table 1e : FSM: Constant price GDP by industry sector, annual % growth, FY1995-FY2010
C48: =C2 -> FY1995 | D48: =D2 -> FY1996 | E48: FY1997 | F48: FY1998 | G48: FY1999 | H48: FY2000 | I48: FY2001 | J48: FY2002 | K48: FY2003 | L48: FY2004 | M48: FY2005 | N48: FY2006 | O48: FY2007 | P48: FY2008 | Q48: =Q2 -> FY2009 | R48: FY2010
A49: A | B49: Agriculture, Hunting and Forestry | E49: =(E3-D3)/(E$22-D$22)*((E$22-D$22)/D$22) -> 0.0008075942436 | F49: =(F3-E3)/(F$22-E$22)*((F$22-E$22)/E$22) -> 0.0007771608757 | G49: 0.002036264584 | H49: 0.002540734445 | I49: 0.001147024969 | J49: 0.001026148739 | K49: 0.001589276378 | L49: -0.00597294552 | M49: 0.004756253617 | N49: 0.005541338098 | O49: 0.001596254607 | P49: -0.0009205643846 | Q49: 0.0001703724152 | R49: 0.001190891489
A50: B | B50: Fisheries | D50: =IF(C28>0.1,D28/C28-1,"") ->  | E50: =(E4-D4)/(E$22-D$22)*((E$22-D$22)/D$22) -> -0.02069388307 | F50: 0.03272370602 | G50: -0.02146555253 | H50: 0.01313804721 | I50: -0.009121461899 | J50: 0.003482431047 | K50: 0.005340818504 | L50: -0.01329007442 | M50: 0.004009943679 | N50: -0.003920113392 | O50: 0.008850511182 | P50: 0.0007968880503 | Q50: -0.002340713566 | R50: 0.001251642578
A51: C | B51: Mining and Quarrying | E51: 0 | F51: 0 | G51: 0 | H51: 0 | I51: 0 | J51: 0 | K51: 0 | L51: 0 | M51: 0 | N51: 0 | O51: 0 | P51: 0 | Q51: 0 | R51: 0
A52: D | B52: Manufacturing | E52: 0.001453076575 | F52: 0.001766486575 | G52: -0.0009831941157 | H52: 0.002358110623 | I52: 0.002894116445 | J52: -0.0008208976132 | K52: -0.001327622948 | L52: -0.003129372177 | M52: -0.00843365517 | N52: -0.001911412731 | O52: 5.227103416e-05 | P52: 0.0002658581357 | Q52: -0.0002366824078 | R52: 0.0004859407464
A53: E | B53: Electricity, Gas and Water Supply | E53: -0.0009463392047 | F53: -0.0002232858167 | G53: -6.640583925e-05 | H53: -0.0003755470407 | I53: 0.000240937801 | J53: 0.0007213761105 | K53: 0.0007578034183 | L53: -0.000678784191 | M53: -0.0001681415085 | N53: -0.001078464282 | O53: -0.0004461405574 | P53: -0.001516915727 | Q53: 0.0004806852503 | R53: 0.0001951471057
A54: F | B54: Construction | E54: -0.01262449255 | F54: 0.008946895618 | G54: 0.001725465829 | H54: 0.002696165681 | I54: -0.00141445196 | J54: -0.009176197662 | K54: -0.002630920969 | L54: 0.001086030528 | M54: 0.006621969523 | N54: -0.009343377742 | O54: -0.002812221257 | P54: 0.005167327563 | Q54: 0.01607690764 | R54: 0.009923124156
A55: G | B55: Wholesale and Retail Trade and Repairs | E55: -0.006728062289 | F55: -0.002953847443 | G55: 0.001827394728 | H55: 0.007244614356 | I55: 0.007303379165 | J55: -0.007905942858 | K55: 0.007026217741 | L55: -0.0002125086277 | M55: -9.182264548e-05 | N55: -0.002264477769 | O55: -0.001242384023 | P55: -0.001100606109 | Q55: -0.00756833647 | R55: 0.003739129109
A56: H | B56: Hotels and Restaurants | E56: -8.709367502e-06 | F56: 0.0009843220115 | G56: -0.0002365244371 | H56: 0.001212871797 | I56: -9.623385605e-05 | J56: -0.002007464701 | K56: -0.0002853361302 | L56: -0.000633806667 | M56: 0.0002972006584 | N56: 8.398548011e-05 | O56: -0.00107027644 | P56: -0.001239681112 | Q56: -0.002025587239 | R56: -0.0003737139719
A57: I | B57: Transport, Storage and Communications | E57: -0.004808753517 | F57: 0.001316040422 | G57: 0.001742913532 | H57: 0.003116931927 | I57: 0.002542718793 | J57: -0.001257559291 | K57: 6.50511619e-05 | L57: -0.0001779934449 | M57: -0.0005551815076 | N57: 0.0007512764056 | O57: -0.0008748479473 | P57: -0.01052408703 | Q57: -0.001417729741 | R57: 0.002016776473
A58: J | B58: Financial Intermediation | E58: -0.0003115982424 | F58: -0.002670129068 | G58: 0.006330864276 | H58: 0.003024779885 | I58: 0.004177548874 | J58: 0.005284425612 | K58: -0.01319147573 | L58: -0.0009525748119 | M58: 0.004828030893 | N58: 0.002370667926 | O58: 0.001430400947 | P58: -0.002087536813 | Q58: -0.003859607483 | R58: 0.0008830642796
A59: K | B59: Real Estate, Renting, Business Activities | E59: -3.352783013e-05 | F59: -0.0001131052968 | G59: 0.005494173999 | H59: 0.001545669075 | I59: 0.002943922974 | J59: -0.000338729991 | K59: 0.0009609372454 | L59: -0.001218548265 | M59: -0.001326453107 | N59: -0.001650767984 | O59: -0.001525885854 | P59: -0.001048684724 | Q59: -0.0001991818958 | R59: 0.003458125422
A60: L | B60: Public Administration | E60: -0.003123754921 | F60: -0.006258267134 | G60: 0.009037904154 | H60: -0.003443090382 | I60: 0.004019908552 | J60: 0.009513417013 | K60: -0.004451339865 | L60: -0.01034939088 | M60: -0.004232317806 | N60: 0.007514857363 | O60: -0.02080289631 | P60: -0.009496271625 | Q60: -0.0005579296951 | R60: 0.005111962699
A61: M | B61: Education | E61: -0.006102602777 | F61: -0.008071729909 | G61: 0.004334097706 | H61: 0.004040385798 | I61: 0.008251259516 | J61: 0.007639205079 | K61: 0.004377411641 | L61: 0.00192891531 | M61: 0.005156787746 | N61: 0.01009076446 | O61: -0.0005955279802 | P61: -5.643455604e-05 | Q61: 0.00207049289 | R61: -0.00272968979
A62: N | B62: Health and Social Work | E62: -0.004227679664 | F62: -0.005279550679 | G62: -0.0009332282674 | H62: 0.003087603937 | I62: 0.003453030009 | J62: 0.00246633977 | K62: 0.0001213900066 | L62: 0.001014840927 | M62: 0.001461620649 | N62: 0.002008353465 | O62: 0.002521365915 | P62: 0.002381871261 | Q62: 0.001219417079 | R62: 0.003028147999
A63: O | B63: Other Community, Social, Personal Services | E63: -0.0003517769699 | F63: 0.0004833192209 | G63: 0.0007522345618 | H63: 0.0004314911454 | I63: -1.734314072e-05 | J63: 0.0009675463589 | K63: -0.0002260006016 | L63: 0.0003160847292 | M63: -0.0006963925624 | N63: -0.0001376694718 | O63: -3.628511856e-05 | P63: -0.0001232562851 | Q63: -4.217086594e-05 | R63: 0.001005336908
B64: less intermediate FISIM | E64: 0.001601066853 | F64: 7.483408578e-05 | G64: -0.003247235526 | H64: -0.002331607193 | I64: -0.002082734199 | J64: -0.004462818199 | K64: 0.008675927875 | L64: 0.001274523237 | M64: -0.002416090695 | N64: -0.001878748714 | O64: -0.000728997798 | P64: 0.0001556249482 | Q64: 0.001945179445 | R64: -0.0006631394232
B65: GDP at basic prices | E65: =SUM(E49:E64) -> -0.05609944273 | F65: =SUM(F49:F64) -> 0.02150284948 | G65: 0.006349172649 | H65: 0.03828716127 | I65: 0.02424162204 | J65: 0.005131279414 | K65: 0.006802137733 | L65: -0.03099560427 | M65: 0.009211751764 | N65: 0.006176211106 | O65: -0.0156846596 | P65: -0.01934646841 | Q65: 0.00371511535 | R65: 0.02852274578
B66: Taxes on products | D66: =IF(C44>0.1,D44/C44-1,"") ->  | E66: -0.005171230726 | F66: 0.009169610404 | G66: 0.008413965621 | H66: 0.007582829465 | I66: -0.006641108686 | J66: -0.006902539527 | K66: 0.007011452648 | L66: -0.002686147876 | M66: 0.01157593656 | N66: -0.005044358002 | O66: -0.005834141618 | P66: -0.004980006974 | Q66: 0.002640704813 | R66: 0.002854513672
B67: less subsidies | E67: 0.001780451029 | F67: -0.003443852872 | G67: 0.00151315706 | H67: -0.001066201482 | I67: -0.001072054358 | J67: 0.006801192445 | K67: 0.003726254981 | L67: 0.001261506417 | M67: 0.0001620975583 | N67: 0.0004036094772 | O67: 0.000158439438 | P67: 0.0003073807777 | Q67: 0.0003335447948 | R67: -0.0001269036011
B68: GDP at purchasers prices | E68: =SUM(E65:E67) -> -0.05949022243 | F68: =SUM(F65:F67) -> 0.02722860701 | G68: 0.01627629533 | H68: 0.04480378925 | I68: 0.016528459 | J68: 0.005029932332 | K68: 0.01753984536 | L68: -0.03242024572 | M68: 0.02094978588 | N68: 0.001535462581 | O68: -0.02136036178 | P68: -0.02401909461 | Q68: 0.006689364958 | R68: 0.03125035585
A70: Table 1f : FSM Constant price GDP by industry, contribution to change, FY1995-FY2010
B71: (US$ millions) | C71: =C2 -> FY1995 | D71: FY1996 | E71: FY1997 | F71: FY1998 | G71: FY1999 | H71: FY2000 | I71: FY2001 | J71: FY2002 | K71: FY2003 | L71: FY2004 | M71: FY2005 | N71: FY2006 | O71: FY2007 | P71: FY2008 | Q71: FY2009 | R71: =R2 -> FY2010
A72: A | B72: Agriculture, Hunting and Forestry | C72: 27.62313319 | D72: 28.50183966 | E72: 29.42664457 | F72: 30.05753039 | G72: 31.05718555 | H72: 31.90639419 | I72: 32.79020907 | J72: 32.8660998 | K72: 32.68092865 | L72: 31.22960446 | M72: 32.9147969 | N72: 34.78573803 | O72: 36.70212478 | P72: 37.989802 | Q72: 40.27818252 | R72: 41.87153643
A73: B | B73: Fisheries | C73: 25.83090399 | D73: 23.04124145 | E73: 18.62997047 | F73: 25.99467245 | G73: 21.54496609 | H73: 24.68959743 | I73: 23.24636255 | J73: 23.84711713 | K73: 24.52574787 | L73: 21.4338993 | M73: 22.9159846 | N73: 22.03351194 | O73: 27.25848398 | P73: 30.32283383 | Q73: 28.48706544 | R73: 30.08639692
A74: C | B74: Mining and Quarrying | C74: 0 | D74: 0 | E74: 0 | F74: 0 | G74: 0 | H74: 0 | I74: 0 | J74: 0 | K74: 0 | L74: 0 | M74: 0 | N74: 0 | O74: 0 | P74: 0 | Q74: 0 | R74: 0
A75: D | B75: Manufacturing | C75: 3.13835506 | D75: 2.632127069 | E75: 3.011158606 | F75: 3.429963832 | G75: 3.294533615 | H75: 3.879064201 | I75: 4.610838516 | J75: 4.407538162 | K75: 4.079035767 | L75: 3.374887869 | M75: 1.408366069 | N75: 0.9619269584 | O75: 1.011364874 | P75: 1.155205253 | Q75: 1.178235882 | R75: 1.380449229
A76: E | B76: Electricity, Gas and Water Supply | C76: 2.851646863 | D76: 5.48890752 | E76: 5.727553727 | F76: 6.696170787 | G76: 5.793671021 | H76: 6.276170879 | I76: 6.52349044 | J76: 5.504255709 | K76: 6.281160884 | L76: 4.9628879 | M76: 4.732708069 | N76: 3.62376636 | O76: 1.679577066 | P76: 1.340155785 | Q76: 5.195893211 | R76: 4.083216394
A77: F | B77: Construction | C77: 9.484239483 | D77: 8.546979084 | E77: 6.022042988 | F77: 7.958623412 | G77: 8.474148219 | H77: 9.192568079 | I77: 8.977496628 | J77: 6.775705213 | K77: 6.124380077 | L77: 6.495582278 | M77: 7.077131334 | N77: 5.80446336 | O77: 5.635231851 | P77: 7.493647379 | Q77: 12.95463301 | R77: 16.63269461
A78: G | B78: Wholesale and Retail Trade and Repairs | C78: 23.14786696 | D78: 23.21828491 | E78: 22.62707079 | F78: 22.72809518 | G78: 23.62261622 | H78: 25.32870104 | I78: 27.15452652 | J78: 25.65428354 | K78: 27.48420134 | L78: 28.22158752 | M78: 30.26130937 | N78: 32.035627 | O78: 33.31480877 | P78: 37.44752673 | Q78: 35.63561342 | R78: 37.36248808
A79: H | B79: Hotels and Restaurants | C79: 4.545978629 | D79: 4.596272751 | E79: 4.716867187 | F79: 4.994543378 | G79: 5.039636959 | H79: 5.40272073 | I79: 5.451637039 | J79: 4.963576067 | K79: 4.883428383 | L79: 4.811304872 | M79: 5.082125857 | N79: 5.32778658 | O79: 5.226239403 | P79: 5.215113227 | Q79: 5.027167549 | R79: 5.121648159
A80: I | B80: Transport, Storage and Communications | C80: 15.42336711 | D80: 14.84195944 | E80: 13.88099306 | F80: 14.38389442 | G80: 14.9619229 | H80: 15.90142268 | I80: 16.65062623 | J80: 16.30302138 | K80: 16.35086347 | L80: 16.57196104 | M80: 16.70905281 | N80: 17.49919608 | O80: 17.74397805 | P80: 16.04441165 | Q80: 16.99058954 | R80: 18.26257911
A81: J | B81: Financial Intermediation | C81: 2.953233274 | D81: 2.49200351 | E81: 2.488592083 | F81: 1.968737021 | G81: 3.31713334 | H81: 4.101922917 | I81: 5.145017291 | J81: 6.408534444 | K81: 3.237034608 | L81: 3.058098867 | M81: 4.362299589 | N81: 5.216393021 | O81: 5.800268743 | P81: 5.574316451 | Q81: 4.854660647 | R81: 5.341468685
A82: K | B82: Real Estate, Renting, Business Activities | C82: 25.16056263 | D82: 26.02363554 | E82: 26.68025348 | F82: 27.09045684 | G82: 28.5829329 | H82: 29.4717849 | I82: 30.40736209 | J82: 30.4152953 | K82: 30.40105425 | L82: 30.06230594 | M82: 29.83778332 | N82: 29.8026238 | O82: 29.57155142 | P82: 29.67254819 | Q82: 30.91865877 | R82: 32.57563732
A83: L | B83: Public Administration | C83: 35.72364352 | D83: 34.12043354 | E83: 31.98629826 | F83: 32.45623013 | G83: 32.2069829 | H83: 31.34490022 | I83: 32.5067961 | J83: 35.02464535 | K83: 34.05541333 | L83: 31.99143996 | M83: 34.05144212 | N83: 35.27190493 | O83: 31.72958321 | P83: 30.17910761 | Q83: 31.32619432 | R83: 31.41970451
A84: M | B84: Education | C84: 26.54313169 | D84: 27.23441143 | E84: 23.90491216 | F84: 23.05907901 | G84: 22.96947354 | H84: 24.60014313 | I84: 26.38825295 | J84: 28.54568147 | K84: 29.39293164 | L84: 30.14301006 | M84: 30.06497025 | N84: 31.16888885 | O84: 31.09898856 | P84: 31.45664589 | Q84: 32.87397411 | R84: 34.47978087
A85: N | B85: Health and Social Work | C85: 9.23202476 | D85: 9.421575608 | E85: 7.813008584 | F85: 6.920688814 | G85: 6.658899737 | H85: 7.237444628 | I85: 7.914494936 | J85: 8.433128714 | K85: 8.486854733 | L85: 8.765096987 | M85: 9.092041428 | N85: 10.09176564 | O85: 10.83880866 | P85: 11.38327864 | Q85: 12.24562992 | R85: 13.81121429
A86: O | B86: Other Community, Social, Personal Services | C86: 2.319859418 | D86: 2.391352684 | E86: 2.374020293 | F86: 2.444447532 | G86: 2.597969207 | H86: 2.899819754 | I86: 2.940852721 | J86: 3.210349532 | K86: 3.173235697 | L86: 3.381998512 | M86: 3.391682012 | N86: 3.535283074 | O86: 3.623107073 | P86: 3.736464881 | Q86: 3.94158265 | R86: 4.404546475
B87: less intermediate FISIM | C87: -2.243672618 | D87: -2.097924673 | E87: -1.810409803 | F87: -1.824620006 | G87: -2.556747491 | H87: -3.121819408 | I87: -3.652786448 | J87: -4.712249097 | K87: -2.624432302 | L87: -2.354459968 | M87: -3.053558442 | N87: -3.687451943 | O87: -4.022897166 | P87: -4.244385437 | Q87: -4.001182104 | R87: -4.383219371
B88: GDP at basic prices | C88: 211.734274 | D88: 210.4530995 | E88: 197.4789765 | F88: 208.3585132 | G88: 207.5653247 | H88: 219.1108354 | I88: 227.0551766 | J88: 227.6469827 | K88: 228.5318384 | L88: 222.1492056 | M88: 228.8481353 | N88: 233.4714237 | O88: 237.2112193 | P88: 244.7666721 | Q88: 257.9068989 | R88: 272.4501417
B89: Taxes on products | C89: 14.06316757 | D89: 14.68291617 | E89: 14.04965927 | F89: 16.40054177 | G89: 18.33974764 | H89: 20.25701899 | I89: 18.98510182 | J89: 17.329541 | K89: 19.017283 | L89: 18.71461255 | M89: 22.43215565 | N89: 22.16649208 | O89: 21.3499578 | P89: 21.69341248 | Q89: 24.25974472 | R89: 26.1726806
B90: less subsidies | C90: -3.170744 | D90: -5.8715289 | E90: -4.1582726 | F90: -4.673302 | G90: -4.808819 | H90: -5.75642 | I90: -5.673014 | J90: -3.238339 | K90: -2.427894 | L90: -1.132035 | M90: -1.232744 | N90: -1.120863 | O90: -1.109643251 | P90: -3.017783471 | Q90: -2.378602471 | R90: -1.171389471
B91: GDP at purchasers prices | C91: 222.6266975 | D91: 219.2644868 | E91: 207.3703631 | F91: 220.085753 | G91: 221.0962533 | H91: 233.6114344 | I91: 240.3672645 | J91: 241.7381847 | K91: 245.1212274 | L91: 239.7317831 | M91: 250.0475469 | N91: 254.5170528 | O91: 257.4515338 | P91: 263.4423011 | Q91: 279.7880411 | R91: 297.4514328
A92: Source: SBOC estimates
A93: Table 1g : FSM: Implicit GDP price deflators by industry, FY1995-FY2010
B94: (FY2004=100) | C94: =C2 -> FY1995 | D94: FY1996 | E94: FY1997 | F94: FY1998 | G94: FY1999 | H94: FY2000 | I94: FY2001 | J94: FY2002 | K94: FY2003 | L94: FY2004 | M94: FY2005 | N94: FY2006 | O94: FY2007 | P94: FY2008 | Q94: FY2009 | R94: =R2 -> FY2010
A95: A | B95: Agriculture, Hunting and Forestry | C95: =IF(C72<>0,C72/C3*100,0) -> 91.22507027 | D95: 93.73623024 | E95: 96.18417759 | F95: 97.70396923 | G95: 99.47549156 | H95: 100.3329258 | I95: 102.2333117 | J95: 101.6817717 | K95: 99.91268936 | L95: 100 | M95: 101.6835655 | N95: 103.1419087 | O95: 107.5760206 | P95: 112.0757288 | Q95: 118.6871299 | R95: 122.3701103
A96: B | B96: Fisheries | C96: =IF(C73<>0,C73/C4*100,0) -> 97.47474677 | D96: 95.07390719 | E96: 95.8963186 | F96: 97.80624525 | G96: 99.01394497 | H96: 99.72969835 | I96: 102.9395125 | J96: 101.796556 | K96: 99.18728247 | L96: 100 | M96: 102.3253827 | N96: 102.7886389 | O96: 115.476257 | P96: 127.4259249 | Q96: 122.5334213 | R96: 127.791138
A97: C | B97: Mining and Quarrying | C97: =IF(C74<>0,C74/C5*100,0) -> 0 | D97: 0 | E97: 0 | F97: 0 | G97: 0 | H97: 0 | I97: 0 | J97: 0 | K97: 0 | L97: 0 | M97: 0 | N97: 0 | O97: 0 | P97: 0 | Q97: 0 | R97: 0
A98: D | B98: Manufacturing | C98: =IF(C75<>0,C75/C6*100,0) -> 87.1865155 | D98: 89.47377383 | E98: 91.82084455 | F98: 93.57722777 | G98: 95.64083289 | H98: 97.39994568 | I98: 98.68275541 | J98: 98.52544599 | K98: 98.28445822 | L98: 100 | M98: 104.0865057 | N98: 108.6620398 | O98: 112.6166583 | P98: 120.1039966 | Q98: 129.9874793 | R98: 135.2111851
A99: E | B99: Electricity, Gas and Water Supply | C99: =IF(C76<>0,C76/C7*100,0) -> 57.76218071 | D99: 107.9732406 | E99: 117.7608829 | F99: 139.0711518 | G99: 120.7010067 | H99: 133.1290585 | I99: 136.7099371 | J99: 111.2747254 | K99: 122.4143356 | L99: 100 | M99: 96.14285589 | N99: 77.78625421 | O99: 36.91980189 | P99: 32.0200893 | Q99: 120.8936822 | R99: 93.99888398
A100: F | B100: Construction | C100: =IF(C77<>0,C77/C8*100,0) -> 88.57488901 | D100: 90.89491352 | E100: 93.07567535 | F100: 94.4637663 | G100: 96.16212749 | H100: 97.50913755 | I100: 98.75932742 | J100: 98.66887876 | K100: 98.35987322 | L100: 100 | M100: 87.55489677 | N100: 100.1417235 | O100: 110.3456862 | P100: 118.0752891 | Q100: 128.1290304 | R100: 133.6015665
A101: G | B101: Wholesale and Retail Trade and Repairs | C101: =IF(C78<>0,C78/C9*100,0) -> 83.86263875 | D101: 86.36477155 | E101: 89.36151777 | F101: 92.10842372 | G101: 94.16821702 | H101: 94.72867038 | I101: 95.34992535 | J101: 96.57755604 | K101: 97.20580198 | L101: 100 | M101: 107.3112261 | N101: 115.880772 | O101: 121.85021 | P101: 138.3013562 | Q101: 140.8256656 | R101: 142.6807375
A102: H | B102: Hotels and Restaurants | C102: =IF(C79<>0,C79/C10*100,0) -> 87.49279633 | D102: 89.93844632 | E102: 92.33476079 | F102: 93.82018398 | G102: 95.62085751 | H102: 97.39701258 | I102: 98.68689273 | J102: 98.52632577 | K102: 98.29095426 | L102: 100 | M102: 104.0874626 | N102: 108.6613914 | O102: 112.6162104 | P102: 120.0709289 | Q102: 129.9309853 | R102: 135.4567013
A103: I | B103: Transport, Storage and Communications | C103: =IF(C80<>0,C80/C11*100,0) -> 90.17155497 | D103: 92.60999584 | E103: 93.1043573 | F103: 94.65180868 | G103: 95.98447491 | H103: 97.56146415 | I103: 98.49587519 | J103: 98.20965915 | K103: 98.40396591 | L103: 100 | M103: 101.6435831 | N103: 105.2726053 | O103: 108.1403049 | P103: 115.5635283 | Q103: 125.3761355 | R103: 130.1954962
A104: J | B104: Financial Intermediation | C104: =IF(C81<>0,C81/C12*100,0) -> 87.30673422 | D104: 89.80113339 | E104: 92.08038955 | F104: 92.90112104 | G104: 93.6987324 | H104: 96.96736635 | I104: 98.45287102 | J104: 98.49961307 | K104: 98.26726184 | L104: 100 | M104: 103.4816078 | N104: 108.7708892 | O104: 112.7054468 | P104: 119.9910845 | Q104: 129.7360513 | R104: 135.2240287
A105: K | B105: Real Estate, Renting, Business Activities | C105: =IF(C82<>0,C82/C13*100,0) -> 90.34968324 | D105: 93.08336465 | E105: 95.45860404 | F105: 97.01204479 | G105: 98.02751856 | H105: 99.86826435 | I105: 100.6456295 | J105: 100.9460879 | K105: 100.1213121 | L105: 100 | M105: 100.3142461 | N105: 101.5757964 | O105: 102.0897119 | P105: 103.3358589 | Q105: 107.8506475 | R105: 110.4891643
A106: L | B106: Public Administration | C106: =IF(C83<>0,C83/C14*100,0) -> 101.8637972 | D106: 102.6901454 | E106: 98.416845 | F106: 104.2491424 | G106: 97.12016275 | H106: 96.81351994 | I106: 97.51650565 | J106: 98.27473193 | K106: 98.5523731 | L106: 100 | M106: 109.9255616 | N106: 107.4835004 | O106: 114.4782195 | P106: 118.6350894 | Q106: 123.7799451 | R106: 118.5074494
A107: M | B107: Education | C107: =IF(C84<>0,C84/C15*100,0) -> 103.5521139 | D107: 104.4706383 | E107: 96.97291318 | F107: 100.7503077 | G107: 96.26692431 | H107: 99.266711 | I107: 98.65344795 | J107: 99.81278962 | K107: 99.08255154 | L107: 100 | M107: 95.81160966 | N107: 92.08212275 | O107: 92.2735678 | P107: 93.37227717 | Q107: 96.19512989 | R107: 102.8299379
A108: N | B108: Health and Social Work | C108: =IF(C85<>0,C85/C16*100,0) -> 106.8018443 | D108: 108.2366517 | E108: 101.1736413 | F108: 105.3580864 | G108: 104.7119224 | H108: 102.4613401 | I108: 100.3541373 | J108: 99.39923872 | K108: 99.68520177 | L108: 100 | M108: 99.74271846 | N108: 105.0454523 | O108: 106.0018896 | P108: 105.434846 | Q108: 110.5000845 | R108: 117.0864785
A109: O | B109: Other Community, Social, Personal Services | C109: =IF(C86<>0,C86/C17*100,0) -> 83.53518829 | D109: 84.28340158 | E109: 86.15424974 | F109: 85.43561898 | G109: 85.74140848 | H109: 92.69234605 | I109: 94.12832765 | J109: 95.58270973 | K109: 96.05142975 | L109: 100 | M109: 105.4938763 | N109: 111.1250414 | O109: 114.2049242 | P109: 118.8861657 | Q109: 125.8077968 | R109: 130.6996666
B110: less intermediate FISIM | C110: =IF(C87<>0,C87/C18*100,0) -> 87.48776491 | D110: 89.93416688 | E110: 92.33241133 | F110: 93.83974168 | G110: 95.64083289 | H110: 97.39994568 | I110: 98.68275541 | J110: 98.52544599 | K110: 98.28445822 | L110: 100 | M110: 104.0865057 | N110: 108.6620398 | O110: 112.6166583 | P110: 120.0718664 | Q110: 129.93203 | R110: 135.4625265
B111: GDP at basic prices | C111: =IF(C88<>0,C88/C19*100,0) -> 93.39160079 | D111: 95.95366511 | E111: 95.7269349 | F111: 98.75153366 | G111: 97.71558371 | H111: 99.07715901 | I111: 100.0554452 | J111: 99.76966879 | K111: 99.43567849 | L111: 100 | M111: 102.0015283 | N111: 103.3657599 | O111: 106.8401439 | P111: 112.5967995 | Q111: 118.1686913 | R111: 121.1019171
B112: Taxes on products less Subsidies | C112: =IF((C89+C90)<>0,(C89+C90)/(C20+C90)*100,0) -> 83.62832971 | D112: 82.84567068 | E112: 88.73019997 | F112: 92.80558208 | G112: 94.03368687 | H112: 95.57722145 | I112: 97.36610625 | J112: 97.62126522 | K112: 97.8595097 | L112: 100 | M112: 104.6523361 | N112: 109.989353 | O112: 114.2530457 | P112: 127.8056183 | Q112: 137.8775676 | R112: 140.8523753
B113: GDP at purchasers prices | C113: =IF(C91<>0,C91/C22*100,0) -> 92.85299165 | D113: 94.37487108 | E113: 94.90114405 | F113: 98.05044841 | G113: 96.92308783 | H113: 98.01785979 | I113: 99.21261545 | J113: 99.27910149 | K113: 98.93320521 | L113: 100 | M113: 102.162756 | N113: 103.8294506 | O113: 107.3189344 | P113: 112.5187913 | Q113: 118.7061485 | R113: 122.3759343
A114: Source: SBOC estimates
A115: Table 1h : FSM: Share of GDP by industry, current prices, FY1995-FY2010
C116: =C2 -> FY1995 | D116: FY1996 | E116: FY1997 | F116: FY1998 | G116: FY1999 | H116: FY2000 | I116: FY2001 | J116: FY2002 | K116: FY2003 | L116: FY2004 | M116: FY2005 | N116: FY2006 | O116: FY2007 | P116: FY2008 | Q116: FY2009 | R116: =R2 -> FY2010
A117: A | B117: Agriculture, Hunting and Forestry | C117: =IF(C72/C$91<>0,C72/C$91,"~") -> 0.1240782597 | D117: =IF(D72/D$91<>0,D72/D$91,"~") -> 0.1299883993 | E117: 0.1419038098 | F117: 0.1365719043 | G117: 0.1404690721 | H117: 0.1365789063 | I117: 0.1364171163 | J117: 0.1359574196 | K117: 0.1333255753 | L117: 0.1302689366 | M117: 0.1316341524 | N117: 0.1366735064 | O117: 0.1425593557 | P117: 0.1442053985 | Q117: 0.1439596287 | R117: =IF(R72/R$91<>0,R72/R$91,"~") -> 0.1407676407
A118: B | B118: Fisheries | C118: =IF(C73/C$91<>0,C73/C$91,"~") -> 0.1160278811 | D118: 0.1050842377 | E118: 0.08983911776 | F118: 0.1181115638 | G118: 0.09744609311 | H118: 0.1056865966 | I118: 0.09671184885 | J118: 0.09864853233 | K118: 0.1000555853 | L118: 0.08940783329 | M118: 0.09164650835 | N118: 0.08656988483 | O118: 0.1058781184 | P118: 0.1151023723 | Q118: 0.1018165942 | R118: =IF(R73/R$91<>0,R73/R$91,"~") -> 0.1011472583
A119: C | B119: Mining and Quarrying | C119: ~ | D119: ~ | E119: ~ | F119: ~ | G119: ~ | H119: ~ | I119: ~ | J119: ~ | K119: ~ | L119: ~ | M119: ~ | N119: ~ | O119: ~ | P119: ~ | Q119: ~ | R119: =IF(R74/R$91<>0,R74/R$91,"~") -> ~
A120: D | B120: Manufacturing | C120: 0.01409693938 | D120: 0.01200434739 | E120: 0.01452067962 | F120: 0.01558467 | G120: 0.01490090205 | H120: 0.01660477028 | I120: 0.01918247281 | J120: 0.01823269322 | K120: 0.01664089157 | L120: 0.01407776568 | M120: 0.005632393062 | N120: 0.003779420467 | O120: 0.003928369969 | P120: 0.004385040854 | Q120: 0.004211173135 | R120: =IF(R75/R$91<>0,R75/R$91,"~") -> 0.004640923112
A121: E | B121: Electricity, Gas and Water Supply | C121: 0.01280909655 | D121: 0.02503327192 | E121: 0.02761992428 | F121: 0.03042528059 | G121: 0.02620429308 | H121: 0.02686585482 | I121: 0.02713967917 | J121: 0.02276949219 | K121: 0.02562471211 | L121: 0.02070183534 | M121: 0.01892723255 | N121: 0.01423781362 | O121: 0.006523857291 | P121: 0.005087094137 | Q121: 0.0185708195 | R121: =IF(R76/R$91<>0,R76/R$91,"~") -> 0.01372733813
A122: F | B122: Construction | C122: 0.04260153696 | D122: 0.03898022525 | E122: 0.02904003685 | F122: 0.03616146572 | G122: 0.03832786893 | H122: 0.0393498208 | I122: 0.03734908182 | J122: 0.02802910604 | K122: 0.02498510693 | L122: 0.02709520696 | M122: 0.02830314242 | N122: 0.02280579355 | O122: 0.02188851536 | P122: 0.02844511815 | Q122: 0.04630159657 | R122: =IF(R77/R$91<>0,R77/R$91,"~") -> 0.05591734573
A123: G | B123: Wholesale and Retail Trade and Repairs | C123: 0.1039761503 | D123: 0.1058916802 | E123: 0.1091142941 | F123: 0.1032692706 | G123: 0.1068431322 | H123: 0.1084223515 | I123: 0.1129709846 | J123: 0.1061242499 | K123: 0.1121249336 | L123: 0.11772151 | M123: 0.1210222205 | N123: 0.1258682931 | O123: 0.129402254 | P123: 0.1421469771 | Q123: 0.1273664638 | R123: =IF(R78/R$91<>0,R78/R$91,"~") -> 0.125608701
A124: H | B124: Hotels and Restaurants | C124: 0.02041973707 | D124: 0.02096223067 | E124: 0.02274610082 | F124: 0.02269362424 | G124: 0.02279385961 | H124: 0.02312695329 | I124: 0.02268044716 | J124: 0.02053285902 | K124: 0.01992250298 | L124: 0.02006953275 | M124: 0.02032463793 | N124: 0.0209329258 | O124: 0.02029989616 | P124: 0.01979603581 | Q124: 0.01796777135 | R124: =IF(R79/R$91<>0,R79/R$91,"~") -> 0.01721843499
A125: I | B125: Transport, Storage and Communications | C125: 0.06927905451 | D125: 0.06768975522 | E125: 0.06693817212 | F125: 0.06535586346 | G125: 0.06767153523 | H125: 0.06806782691 | I125: 0.06927160515 | J125: 0.06744081991 | K125: 0.06670521211 | L125: 0.06912709204 | M125: 0.06682350224 | N125: 0.06875451327 | O125: 0.06892162491 | P125: 0.06090294378 | Q125: 0.06072664677 | R125: =IF(R80/R$91<>0,R80/R$91,"~") -> 0.06139684364
A126: J | B126: Financial Intermediation | C126: 0.01326540485 | D126: 0.01136528558 | E126: 0.01200071238 | F126: 0.008945317879 | G126: 0.01500311873 | H126: 0.01755874206 | I126: 0.02140481693 | J126: 0.02651022821 | K126: 0.01320585182 | L126: 0.01275633471 | M126: 0.01744588036 | N126: 0.02049525941 | O126: 0.02252955598 | P126: 0.02115953447 | Q126: 0.01735120853 | R126: =IF(R81/R$91<>0,R81/R$91,"~") -> 0.01795744816
A127: K | B127: Real Estate, Renting, Business Activities | C127: 0.1130168255 | D127: 0.1186860486 | E127: 0.1286599159 | F127: 0.1230904612 | G127: 0.1292782327 | H127: 0.1261572876 | I127: 0.1265037573 | J127: 0.1258191598 | K127: 0.1240245676 | L127: 0.1253997511 | M127: 0.1193284385 | N127: 0.1170948016 | O127: 0.1148625956 | P127: 0.1126339546 | Q127: 0.110507435 | R127: =IF(R82/R$91<>0,R82/R$91,"~") -> 0.1095158191
A128: L | B128: Public Administration | C128: 0.1604643285 | D128: 0.1556131321 | E128: 0.1542472019 | F128: 0.1474708367 | G128: 0.1456695101 | H128: 0.1341753682 | I128: 0.1352380332 | J128: 0.1448866897 | K128: 0.1389329423 | L128: 0.1334468027 | M128: 0.1361798687 | N128: 0.1385836609 | O128: 0.1232448793 | P128: 0.1145568023 | Q128: 0.1119640217 | R128: =IF(R83/R$91<>0,R83/R$91,"~") -> 0.1056296963
A129: M | B129: Education | C129: 0.1192270827 | D129: 0.1242080367 | E129: 0.1152764156 | F129: 0.1047731564 | G129: 0.103889022 | H129: 0.1053036774 | I129: 0.1097830564 | J129: 0.1180851155 | K129: 0.1199118165 | L129: 0.1257363945 | M129: 0.1202370134 | N129: 0.1224628704 | O129: 0.120795507 | P129: 0.1194062068 | Q129: 0.1174959944 | R129: =IF(R84/R$91<>0,R84/R$91,"~") -> 0.1159173467
A130: N | B130: Health and Social Work | C130: 0.04146863275 | D130: 0.04296899943 | E130: 0.03767659209 | F130: 0.03144541944 | G130: 0.03011765074 | H130: 0.03098069513 | I130: 0.03292667558 | J130: 0.03488538115 | K130: 0.0346230917 | L130: 0.03656209816 | M130: 0.03636125025 | N130: 0.03965064632 | O130: 0.04210038488 | P130: 0.04320976013 | Q130: 0.0437675244 | R130: =IF(R85/R$91<>0,R85/R$91,"~") -> 0.04643182974
A131: O | B131: Other Community, Social, Personal Services | C131: 0.01042040081 | D131: 0.01090624715 | E131: 0.01144821399 | F131: 0.01110679587 | G131: 0.01175039906 | H131: 0.01241300436 | I131: 0.01223483043 | J131: 0.01328027484 | K131: 0.01294557689 | L131: 0.01410742651 | M131: 0.01356414831 | N131: 0.01389016192 | O131: 0.01407296752 | P131: 0.0141832381 | Q131: 0.01408774526 | R131: =IF(R86/R$91<>0,R86/R$91,"~") -> 0.01480761559
B132: less intermediate FISIM | C132: -0.01007818309 | D132: -0.009568009412 | E132: -0.008730320839 | F132: -0.008290495781 | G132: -0.01156395666 | H132: -0.01336329883 | I132: -0.01519668852 | J132: -0.01949319303 | K132: -0.01070667086 | L132: -0.009821225778 | M132: -0.01221191121 | N132: -0.0144880349 | O132: -0.01562584268 | P132: -0.01611125252 | Q132: -0.0143007617 | R132: =IF(R87/R$91<>0,R87/R$91,"~") -> -0.01473591614
B133: GDP at basic prices | C133: 0.9510731476 | D133: 0.9598138878 | E133: 0.9523008664 | F133: 0.9467151344 | G133: 0.938800733 | H133: 0.9379285563 | I133: 0.9446177172 | J133: 0.9417088284 | K133: 0.9323216958 | L133: 0.9266572946 | M133: 0.9152184778 | N133: 0.9173115166 | O133: 0.9213820394 | P133: 0.9291092246 | Q133: 0.9217938617 | R133: =IF(R88/R$91<>0,R88/R$91,"~") -> 0.9159483251
B134: Taxes on products | C134: =IF(C89/C$91<>0,C89/C$91,"~") -> 0.06316927721 | D134: 0.06696440628 | E134: 0.06775152945 | F134: 0.07451887071 | G134: 0.08294915614 | H134: 0.08671244644 | I134: 0.07898372461 | J134: 0.07168723063 | K134: 0.07758317467 | L134: 0.07806479518 | M134: 0.08971156056 | N134: 0.08709236509 | O134: 0.08292806604 | P134: 0.0823459725 | Q134: 0.08670758272 | R134: =IF(R89/R$91<>0,R89/R$91,"~") -> 0.08798976137
B135: less subsidies | C135: -0.01424242481 | D135: -0.02677829404 | E135: -0.02005239581 | F135: -0.0212340051 | G135: -0.02174988914 | H135: -0.02464100276 | I135: -0.02360144179 | J135: -0.01339605906 | K135: -0.009904870443 | L135: -0.004722089767 | M135: -0.004930038367 | N135: -0.004403881735 | O135: -0.00431010542 | P135: -0.01145519705 | Q135: -0.008501444385 | R135: =IF(R90/R$91<>0,R90/R$91,"~") -> -0.003938086497
B136: GDP at purchasers prices | C136: 1 | D136: 1 | E136: 1 | F136: 1 | G136: 1 | H136: 1 | I136: 1 | J136: 1 | K136: 1 | L136: 1 | M136: 1 | N136: 1 | O136: 1 | P136: 1 | Q136: 1 | R136: =IF(R91/R$91<>0,R91/R$91,"~") -> 1
A138: Table 1i : FSM: Constant price GDP by institutional sector, FY1995-FY2010
B139: (constant prices of FY2004, US$ millions) | C139: =C2 -> FY1995 | D139: FY1996 | E139: FY1997 | F139: FY1998 | G139: FY1999 | H139: FY2000 | I139: FY2001 | J139: FY2002 | K139: FY2003 | L139: FY2004 | M139: FY2005 | N139: FY2006 | O139: FY2007 | P139: FY2008 | Q139: FY2009 | R139: =R2 -> FY2010
A140: 1.1 | B140: Private Enterprise | C140: 61.50913755 | D140: 57.78612587 | E140: 52.03367513 | F140: 54.13694327 | G140: 55.43543406 | H140: 60.12880308 | I140: 60.89344654 | J140: 57.65745711 | K140: 58.68737206 | L140: 57.78724475 | M140: 55.38889602 | N140: 52.56784333 | O140: 52.28605717 | P140: 51.30996259 | Q140: 48.95651603 | R140: 53.56088493
A141: 1.2 | B141: Public Enterprise | C141: 19.41098745 | D141: 17.24597735 | E141: 13.0463237 | F141: 20.45127784 | G141: 16.15042506 | H141: 19.18497239 | I141: 19.25919262 | J141: 18.64532557 | K141: 19.58759546 | L141: 16.72713489 | M141: 17.38780068 | N141: 16.35093893 | O141: 17.52695992 | P141: 16.89072394 | Q141: 19.98828515 | R141: 20.38969026
A142: 2 | B142: Finance (Banks) | C142: 3.04550528 | D142: 2.589091366 | E142: 2.364832369 | F142: 1.719591264 | G142: 3.047693555 | H142: 3.699004116 | I142: 4.941753227 | J142: 6.260975465 | K142: 3.125461345 | L142: 2.8383955 | M142: 4.003245639 | N142: 4.585652228 | O142: 4.798713911 | P142: 4.283584619 | Q142: 3.453284767 | R142: 3.605024116
A143: 3 | B143: Government | C143: 71.71659467 | D143: 70.31827485 | E143: 66.64434333 | F143: 61.91277249 | G143: 64.92284711 | H143: 65.42503677 | I143: 69.35316889 | J143: 73.75975055 | K143: 73.9894642 | L143: 71.9806371 | M143: 74.03979646 | N143: 77.82750429 | O143: 72.53189149 | P143: 70.41089135 | Q143: 70.89722474 | R143: 72.19962449
A144: 4 | B144: NGOs | C144: 3.091772999 | D144: 2.821055727 | E144: 2.890482277 | F144: 3.05343448 | G144: 3.205838869 | H144: 2.811858646 | I144: 2.818167597 | J144: 2.993338834 | K144: 2.863979801 | L144: 2.856123853 | M144: 2.72235524 | N144: 2.677099593 | O144: 2.691573357 | P144: 2.858480092 | Q144: 2.829021011 | R144: 2.946608887
A145: 5 | B145: Households | C145: 70.50717074 | D145: 70.90004697 | E145: 71.27515119 | F145: 71.66306658 | G145: 72.32887386 | H145: 73.10719423 | I145: 73.36517105 | J145: 73.63846144 | K145: 74.24518034 | L145: 72.31412947 | M145: 73.74913492 | N145: 75.25367515 | O145: 75.76143743 | P145: 75.16455824 | Q145: 75.20826745 | R145: 75.50982181
B146: GDP at basic prices | C146: 229.2811687 | D146: 221.6605721 | E146: 208.254808 | F146: 212.9370859 | G146: 215.0911125 | H146: 224.3568692 | I146: 230.6308999 | J146: 232.955309 | K146: 232.4990532 | L146: 224.5036656 | M146: 227.291229 | N146: 229.2627135 | O146: 225.5966333 | P146: 220.9182008 | Q146: 221.3325992 | R146: 228.2116545
B147: Taxes on Products less Subsidies | C147: 13.04593394 | D147: 13.00571004 | E147: 12.21791816 | F147: 13.46906474 | G147: 15.69732407 | H147: 17.18386568 | I147: 15.3455445 | J147: 15.32099064 | K147: 17.93555294 | L147: 17.58257755 | M147: 20.3965574 | N147: 19.26071511 | O147: 17.86943067 | P147: 16.74849634 | Q147: 17.44486283 | R147: 18.08775512
B148: Less intermediate FISIM | C148: -2.564555879 | D148: -2.332733761 | E148: -1.960752218 | F148: -1.944400074 | G148: -2.673280245 | H148: -3.205155184 | I148: -3.701544847 | J148: -4.782773678 | K148: -2.670241409 | L148: -2.354459968 | M148: -2.933673699 | N148: -3.393505173 | O148: -3.572204348 | P148: -3.534870878 | Q148: -3.079442462 | R148: -3.235743111
B149: Real GDP at purchasers prices | C149: 239.7625468 | D149: 232.3335484 | E149: 218.5119739 | F149: 224.4617506 | G149: 228.1151563 | H149: 238.3355797 | I149: 242.2748996 | J149: 243.4935259 | K149: 247.7643647 | L149: 239.7317831 | M149: 244.7541127 | N149: 245.1299235 | O149: 239.8938596 | P149: 234.1318263 | Q149: 235.6980195 | R149: 243.0636665
A151: Table 1j : FSM: Constant price GDP by institutional sector, annual % growth, FY1995-FY2010
C152: =C2 -> FY1995 | D152: FY1996 | E152: FY1997 | F152: FY1998 | G152: FY1999 | H152: FY2000 | I152: FY2001 | J152: FY2002 | K152: FY2003 | L152: FY2004 | M152: FY2005 | N152: FY2006 | O152: FY2007 | P152: FY2008 | Q152: FY2009 | R152: =R2 -> FY2010
A153: 1.1 | B153: Private Enterprise | D153: =D140/C140-1 -> -0.06052778215 | E153: =E140/D140-1 -> -0.0995472642 | F153: 0.04042128743 | G153: 0.02398529932 | H153: 0.08466370099 | I153: 0.01271675845 | J153: -0.05314183395 | K153: 0.01786264945 | L153: -0.01533766594 | M153: -0.04150308149 | N153: -0.0509317372 | O153: -0.005360428411 | P153: -0.01866835304 | Q153: -0.0458672437 | R153: 0.09405017497
A154: 1.2 | B154: Public Enterprise | D154: =D141/C141-1 -> -0.1115352896 | E154: -0.2435149696 | F154: 0.5675893314 | G154: -0.210297509 | H154: 0.1878927225 | I154: 0.003868665202 | J154: -0.03187397654 | K154: 0.05053652091 | L154: -0.1460342884 | M154: 0.03949664975 | N154: -0.059631564 | O154: 0.07192375884 | P154: -0.03630041861 | Q154: 0.183388304 | R154: 0.02008201823
A155: 2 | B155: Finance (Banks) | D155: -0.1498647587 | E155: -0.08661687278 | F155: -0.2728485593 | G155: 0.7723360306 | H155: 0.2137060533 | I155: 0.3359685666 | J155: 0.2669542928 | K155: -0.5008028122 | L155: -0.09184751096 | M155: 0.4103903558 | N155: 0.1454836003 | O155: 0.0464626781 | P155: -0.1073473646 | Q155: -0.193832952 | R155: 0.04394058374
A156: 3 | B156: Government | D156: -0.01949785584 | E156: -0.05224717942 | F156: -0.07099733601 | G156: 0.04861799111 | H156: 0.007735176202 | I156: 0.06004019734 | J156: 0.06353828855 | K156: 0.003114349583 | L156: -0.02715017772 | M156: 0.02860712891 | N156: 0.05115772876 | O156: -0.06804294758 | P156: -0.02924231111 | Q156: 0.006907076087 | R156: 0.01837025016
A157: 4 | B157: NGOs | D157: -0.08756052638 | E157: 0.02461013043 | F157: 0.05637543771 | G157: 0.04991244751 | H157: -0.1228945804 | I157: 0.002243694168 | J157: 0.06215784948 | K157: -0.04321563322 | L157: -0.002743017895 | M157: -0.04683571867 | N157: -0.01662371084 | O157: 0.005406509118 | P157: 0.06201084396 | Q157: -0.01030585512 | R157: 0.04156486519
A158: 5 | B158: Households | D158: 0.005572145672 | E158: 0.00529060613 | F158: 0.005442505407 | G158: 0.009290800758 | H158: 0.01076085288 | I158: 0.003528747454 | J158: 0.003725069787 | K158: 0.008239157822 | L158: -0.02600910745 | M158: 0.01984405353 | N158: 0.02040078467 | O158: 0.006747342061 | P158: -0.007878403809 | Q158: 0.0005815136682 | R158: 0.004009590503
B159: GDP at basic prices | D159: -0.03323690564 | E159: -0.06047879426 | F159: 0.0224834086 | G159: 0.01011578875 | H159: 0.04307828719 | I159: 0.02796451353 | J159: 0.01007848053 | K159: -0.001958554929 | L159: -0.03438890408 | M159: 0.01241656077 | N159: 0.008673825876 | O159: -0.01599073908 | P159: -0.02073804196 | Q159: 0.001875799841 | R159: 0.0310801724
B160: Taxes on Products less Subsidies | D160: -0.003083252255 | E160: -0.0605727697 | F160: 0.1024025996 | G160: 0.1654353423 | H160: 0.09470031989 | I160: -0.1069794899 | J160: -0.001600064053 | K160: 0.1706523 | L160: -0.01968020653 | M160: 0.1600436478 | N160: -0.05568794111 | O160: -0.07223430868 | P160: -0.06272915759 | Q160: 0.04157785144 | R160: 0.03685281438
B161: Less intermediate FISIM | D161: -0.09039464486 | E161: -0.1594616366 | F161: -0.008339729852 | G161: 0.3748612133 | H161: 0.198959664 | I161: 0.1548722712 | J161: 0.2921020481 | K161: -0.4416960558 | L161: -0.1182595099 | M161: 0.2460070413 | N161: 0.1567425425 | O161: 0.05265917253 | P161: -0.01045110129 | Q161: -0.1288387699 | R161: 0.05075615168
B162: Real GDP at purchasers prices | D162: -0.03098481584 | E162: -0.05949022243 | F162: 0.02722860701 | G162: 0.01627629533 | H162: 0.04480378925 | I162: 0.016528459 | J162: 0.005029932332 | K162: 0.01753984536 | L162: -0.03242024572 | M162: 0.02094978588 | N162: 0.001535462581 | O162: -0.02136036178 | P162: -0.02401909461 | Q162: 0.006689364958 | R162: 0.03125035585
A163: Source: SBOC estimates
A164: Table 1k : FSM: Current price GDP by institutional sector, FY1995-FY2010
B165: (US$ millions) | C165: =C2 -> FY1995 | D165: FY1996 | E165: FY1997 | F165: FY1998 | G165: FY1999 | H165: FY2000 | I165: FY2001 | J165: FY2002 | K165: FY2003 | L165: FY2004 | M165: FY2005 | N165: FY2006 | O165: FY2007 | P165: FY2008 | Q165: FY2009 | R165: =R2 -> FY2010
A166: 1.1 | B166: Private Enterprise | C166: 52.81181584 | D166: 51.00976587 | E166: 47.29169229 | F166: 50.29214289 | G166: 52.61050692 | H166: 57.78207691 | I166: 59.34475255 | J166: 56.34013319 | K166: 57.38482131 | L166: 57.78724475 | M166: 58.5503729 | N166: 59.0114754 | O166: 61.27950966 | P166: 65.4713519 | Q166: 63.51439749 | R166: 72.36226041
A167: 1.2 | B167: Public Enterprise | C167: 17.45528393 | D167: 16.99425116 | E167: 13.33433867 | F167: 21.8531701 | G167: 16.76923607 | H167: 20.18568336 | I167: 20.30854443 | J167: 18.64491396 | K167: 20.08295585 | L167: 16.72713489 | M167: 17.84504553 | N167: 16.56452687 | O167: 18.02579777 | P167: 20.57592036 | Q167: 28.37991969 | R167: 28.15047538
A168: 2 | B168: Finance (Banks) | C168: 2.6644445 | D168: 2.32847775 | E168: 2.18350675 | F168: 1.61366 | G168: 2.9148395 | H168: 3.602828 | I168: 4.87665825 | J168: 6.168654 | K168: 3.07184275 | L168: 2.8383955 | M168: 4.1668385 | N168: 4.98286325 | O168: 5.40415125 | P168: 5.14338 | Q168: 4.486923 | R168: 4.88345675
A169: 3 | B169: Government | C169: 74.33466901 | D169: 73.57702794 | E169: 65.59684933 | F169: 64.00615352 | G169: 63.37503725 | H169: 64.41196877 | I169: 68.03334891 | J169: 73.03488755 | K169: 73.30772687 | L169: 71.9806371 | M169: 74.04440562 | N169: 77.30639348 | O169: 73.9117176 | P169: 72.9550264 | Q169: 76.17136295 | R169: 79.44892176
A170: 4 | B170: NGOs | C170: 2.355392704 | D170: 2.132716208 | E170: 2.256512455 | F170: 2.309164196 | G170: 2.368188192 | H170: 2.430532612 | I170: 2.520991647 | J170: 2.749777287 | K170: 2.700646229 | L170: 2.856123853 | M170: 2.940745919 | N170: 3.014901733 | O170: 3.101717716 | P170: 3.364354941 | Q170: 3.46704329 | R170: 3.732932724
A171: 5 | B171: Households | C171: 64.3563406 | D171: 66.50878526 | E171: 68.62648679 | F171: 70.1088425 | G171: 72.08426425 | H171: 73.81956513 | I171: 75.62366729 | J171: 75.42086584 | K171: 74.60827768 | L171: 72.31412947 | M171: 74.35428525 | N171: 76.27871489 | O171: 79.51122245 | P171: 81.50102391 | Q171: 85.88843457 | R171: 88.25531406
B172: GDP at basic prices | C172: 213.9779466 | D172: 212.5510242 | E172: 199.2893863 | F172: 210.1831332 | G172: 210.1220722 | H172: 222.2326548 | I172: 230.7079631 | J172: 232.3592318 | K172: 231.1562707 | L172: 224.5036656 | M172: 231.9016937 | N172: 237.1588756 | O172: 241.2341164 | P172: 249.0110575 | Q172: 261.908081 | R172: 276.8333611
B173: Taxes on Products less Subsidies | C173: 10.89242357 | D173: 8.811387275 | E173: 9.891386665 | F173: 11.72723977 | G173: 13.53092864 | H173: 14.50059899 | I173: 13.31208782 | J173: 14.091202 | K173: 16.589389 | L173: 17.58257755 | M173: 21.19941165 | N173: 21.04562908 | O173: 20.24031455 | P173: 18.67562901 | Q173: 21.88114225 | R173: 25.00129112
B174: Less intermediate FISIM | C174: -2.243672618 | D174: -2.097924673 | E174: -1.810409803 | F174: -1.824620006 | G174: -2.556747491 | H174: -3.121819408 | I174: -3.652786448 | J174: -4.712249097 | K174: -2.624432302 | L174: -2.354459968 | M174: -3.053558442 | N174: -3.687451943 | O174: -4.022897166 | P174: -4.244385437 | Q174: -4.001182104 | R174: -4.383219371
B175: GDP at purchasers prices | C175: 222.6266975 | D175: 219.2644868 | E175: 207.3703631 | F175: 220.085753 | G175: 221.0962533 | H175: 233.6114344 | I175: 240.3672645 | J175: 241.7381847 | K175: 245.1212274 | L175: 239.7317831 | M175: 250.0475469 | N175: 254.5170528 | O175: 257.4515338 | P175: 263.4423011 | Q175: 279.7880411 | R175: 297.4514328
A176: Source: SBOC estimates
A177: Table 1l : FSM: Implicit GDP price deflators by institutional sector, FY1995-FY2010
B178: (FY2004=100) | C178: =C2 -> FY1995 | D178: FY1996 | E178: FY1997 | F178: FY1998 | G178: FY1999 | H178: FY2000 | I178: FY2001 | J178: FY2002 | K178: FY2003 | L178: FY2004 | M178: FY2005 | N178: FY2006 | O178: FY2007 | P178: FY2008 | Q178: FY2009 | R178: =R2 -> FY2010
A179: 1.1 | B179: Private Enterprise | C179: =C140/C166*100 -> 116.4685148 | D179: 113.2844366 | E179: 110.0270949 | F179: 107.6449325 | G179: 105.3695113 | H179: 104.0613392 | I179: 102.6096562 | J179: 102.3381626 | K179: 102.2698524 | L179: 100 | M179: 94.60041547 | N179: 89.08071349 | O179: 85.32388307 | P179: 78.37009792 | Q179: 77.07939927 | R179: =R140/R166*100 -> 74.01770568
A180: 1.2 | B180: Public Enterprise | C180: =C141/C167*100 -> 111.2040774 | D180: 101.4812432 | E180: 97.84005057 | F180: 93.58494783 | G180: 96.30984375 | H180: 95.04247167 | I180: 94.83295414 | J180: 100.0022076 | K180: 97.53342883 | L180: 100 | M180: 97.43769298 | N180: 98.71057027 | O180: 97.23264482 | P180: 82.08976144 | Q180: 70.43108426 | R180: =R141/R167*100 -> 72.43106906
A181: 2 | B181: Finance (Banks) | C181: =C142/C168*100 -> 114.301697 | D181: 111.1924461 | E181: 108.3043306 | F181: 106.5646582 | G181: 104.5578515 | H181: 102.6694618 | I181: 101.3348275 | J181: 101.4966225 | K181: 101.7454863 | L181: 100 | M181: 96.07393325 | N181: 92.02845829 | O181: 88.79680988 | P181: 83.283456 | Q181: 76.9633169 | R181: =R142/R168*100 -> 73.82115375
A182: 3 | B182: Government | C182: =C143/C169*100 -> 96.47799018 | D182: 95.57096395 | E182: 101.5968663 | F182: 96.7294066 | G182: 102.4423021 | H182: 101.5727947 | I182: 101.9399603 | J182: 100.9924887 | K182: 100.9299665 | L182: 100 | M182: 99.99377514 | N182: 100.674085 | O182: 98.13314295 | P182: 96.51273507 | Q182: 93.07595662 | R182: =R143/R169*100 -> 90.87552467
A183: 4 | B183: NGOs | C183: =C144/C170*100 -> 131.263589 | D183: 132.2752514 | E183: 128.0951173 | F183: 132.2311547 | G183: 135.3709506 | H183: 115.6889906 | I183: 111.7880577 | J183: 108.8575009 | K183: 106.047944 | L183: 100 | M183: 92.57362978 | N183: 88.79558374 | O183: 86.77686376 | P183: 84.96368968 | Q183: 81.59751043 | R183: =R144/R170*100 -> 78.93549402
A184: 5 | B184: Households | C184: =C145/C171*100 -> 109.5574579 | D184: 106.6025288 | E184: 103.8595366 | F184: 102.2168731 | G184: 100.3393384 | H184: 99.03498361 | I184: 97.01350606 | J184: 97.63672243 | K184: 99.51332835 | L184: 100 | M184: 99.18612582 | N184: 98.65619164 | O184: 95.28395502 | P184: 92.22529317 | Q184: 87.56506954 | R184: =R145/R171*100 -> 85.55838548
B185: GDP at basic prices | C185: =C146/C172*100 -> 107.1517754 | D185: 104.285817 | E185: 104.498695 | F185: 101.3102634 | G185: 102.364835 | H185: 100.9558516 | I185: 99.9665971 | J185: 100.2565326 | K185: 100.5808982 | L185: 100 | M185: 98.01188828 | N185: 96.67051798 | O185: 93.51771491 | P185: 88.71822924 | Q185: 84.50773963 | R185: =R146/R172*100 -> 82.43647139
B186: Taxes on Products less Subsidies | C186: =C147/C173*100 -> 119.7707182 | D186: 147.6011623 | E186: 123.520782 | F186: 114.8528128 | G186: 116.0106929 | H186: 118.5045231 | I186: 115.2752649 | J186: 108.7273509 | K186: 108.1146083 | L186: 100 | M186: 96.21284654 | N186: 91.51883766 | O186: 88.28632889 | P186: 89.68102938 | Q186: 79.72555835 | R186: =R147/R173*100 -> 72.34728412
B187: Less intermediate FISIM | C187: =C148/C174*100 -> 114.301697 | D187: 111.1924461 | E187: 108.3043306 | F187: 106.5646582 | G187: 104.5578515 | H187: 102.6694618 | I187: 101.3348275 | J187: 101.4966225 | K187: 101.7454863 | L187: 100 | M187: 96.07393325 | N187: 92.02845829 | O187: 88.79680988 | P187: 83.283456 | Q187: 76.9633169 | R187: =R148/R174*100 -> 73.82115375
B188: GDP at purchasers prices | C188: =C149/C175*100 -> 107.6971223 | D188: 105.9604096 | E188: 105.3728077 | F188: 101.9883148 | G188: 103.1745916 | H188: 102.0222235 | I188: 100.7936335 | J188: 100.7261332 | K188: 101.078298 | L188: 100 | M188: 97.88302891 | N188: 96.31178767 | O188: 93.18020213 | P188: 88.87404389 | Q188: 84.24163469 | R188: =R149/R175*100 -> 81.7154129
A190: Table 1m : FSM: Share of GDP by institutional sector, current prices, FY1995-FY2010
C191: =C2 -> FY1995 | D191: FY1996 | E191: FY1997 | F191: FY1998 | G191: FY1999 | H191: FY2000 | I191: FY2001 | J191: FY2002 | K191: FY2003 | L191: FY2004 | M191: FY2005 | N191: FY2006 | O191: FY2007 | P191: FY2008 | Q191: FY2009 | R191: =R2 -> FY2010
A192: 1.1 | B192: Private Enterprise | C192: =C140/C$149 -> 0.2565418927 | D192: =D140/D$149 -> 0.2487205411 | E192: =E140/E$149 -> 0.2381273401 | F192: 0.2411856057 | G192: 0.2430151286 | H192: 0.2522863063 | I192: 0.2513403025 | J192: 0.2367925672 | K192: 0.2368676873 | L192: 0.2410495763 | M192: 0.2263042505 | N192: 0.2144489036 | O192: 0.2179549625 | P192: 0.2191498841 | Q192: =Q140/Q$149 -> 0.207708644 | R192: 0.2203574302
A193: 1.2 | B193: Public Enterprise | C193: =C141/C$149 -> 0.08095921451 | D193: 0.07422938902 | E193: =E141/E$149 -> 0.05970530339 | F193: 0.09111252936 | G193: 0.07079943882 | H193: 0.08049562894 | I193: 0.07949314047 | J193: 0.07657421485 | K193: 0.07905735547 | L193: 0.06977437315 | M193: 0.07104191423 | N193: 0.06670315358 | O193: 0.07306131115 | P193: 0.07214193903 | Q193: =Q141/Q$149 -> 0.0848046377 | R193: 0.08388621201
A194: 2 | B194: Finance (Banks) | C194: 0.01270217272 | D194: 0.01114385496 | E194: =E142/E$149 -> 0.01082243836 | F194: 0.007660954525 | G194: 0.01336032907 | H194: 0.01552015071 | I194: 0.0203972976 | J194: 0.02571310855 | K194: 0.01261465243 | L194: 0.01183987981 | M194: 0.01635619355 | N194: 0.01870702754 | O194: 0.02000348787 | P194: 0.01829561016 | Q194: =Q142/Q$149 -> 0.01465131007 | R194: 0.01483160428
A195: 3 | B195: Government | C195: 0.2991150855 | D195: 0.3026608741 | E195: =E143/E$149 -> 0.3049917225 | F195: 0.2758277182 | G195: 0.2846055832 | H195: 0.2745080564 | I195: 0.2862581679 | J195: 0.3029228406 | K195: 0.2986283531 | L195: 0.3002548771 | M195: 0.3025068533 | N195: 0.3174949153 | O195: 0.3023499293 | P195: 0.3007318248 | Q195: =Q143/Q$149 -> 0.3007968624 | R195: 0.2970399712
A196: 4 | B196: NGOs | C196: 0.0128951458 | D196: 0.01214226592 | E196: =E144/E$149 -> 0.01322802693 | F196: 0.01360336214 | G196: 0.01405359872 | H196: 0.0117978971 | I196: 0.01163210717 | J196: 0.01229329947 | K196: 0.01155928862 | L196: 0.0119138306 | M196: 0.01112281714 | N196: 0.01092114563 | O196: 0.01121985098 | P196: 0.01220884891 | Q196: =Q144/Q$149 -> 0.0120027356 | R196: 0.0121227863
A197: 5 | B197: Households | C197: 0.2940708284 | D197: 0.3051649125 | E197: =E145/E$149 -> 0.3261841898 | F197: 0.3192662732 | G197: 0.3170717589 | H197: 0.3067405811 | I197: 0.3028178783 | J197: 0.3024247201 | K197: 0.2996604472 | L197: 0.3016459834 | M197: 0.3013192878 | N197: 0.3069950583 | O197: 0.3158123245 | P197: 0.3210352024 | Q197: =Q145/Q$149 -> 0.3190873967 | R197: 0.3106586142
B198: GDP at basic prices | C198: 0.9562843396 | D198: 0.9540618376 | E198: =E146/E$149 -> 0.9530590212 | F198: 0.9486564431 | G198: 0.9429058374 | H198: 0.9413486206 | I198: 0.9519388939 | J198: 0.9567207509 | K198: 0.9383877841 | L198: 0.9364785204 | M198: 0.9286513166 | N198: 0.935270204 | O198: 0.9404018663 | P198: 0.9435633093 | Q198: =Q146/Q$149 -> 0.9390515864 | R198: 0.9388966182
B199: Taxes on Products less Subsidies | C199: 0.05441189259 | D199: 0.05597861405 | E199: =E147/E$149 -> 0.05591418144 | F199: 0.06000605761 | G199: 0.06881315703 | H199: 0.07209945617 | I199: 0.06333939061 | J199: 0.06292155237 | K199: 0.07238955834 | L199: 0.07334270542 | M199: 0.0833348914 | N199: 0.07857349621 | O199: 0.07448890397 | P199: 0.071534471 | Q199: =Q147/Q$149 -> 0.07401361652 | R199: 0.07441570919
B200: Less intermediate FISIM | C200: -0.01069623222 | D200: -0.01004045166 | E200: =E148/E$149 -> -0.008973202623 | F200: -0.008662500709 | G200: -0.01171899442 | H200: -0.01344807681 | I200: -0.01527828451 | J200: -0.01964230326 | K200: -0.01077734246 | L200: -0.009821225778 | M200: -0.01198620798 | N200: -0.01384370021 | O200: -0.01489077025 | P200: -0.01509778032 | Q200: =Q148/Q$149 -> -0.01306520296 | R200: -0.01331232741
B201: GDP at purchasers prices | C201: 1 | D201: 1 | E201: =E149/E$149 -> 1 | F201: 1 | G201: 1 | H201: 1 | I201: 1 | J201: 1 | K201: 1 | L201: 1 | M201: 1 | N201: 1 | O201: 1 | P201: 1 | Q201: =Q149/Q$149 -> 1 | R201: 1
A202: Source: SBOC estimates
A203: Table 1n : FSM: GDP by income component, current prices, FY1995-FY2010
B204: (US$ millions) | C204: =C2 -> FY1995 | D204: FY1996 | E204: FY1997 | F204: =F2 -> FY1998 | G204: FY1999 | H204: FY2000 | I204: FY2001 | J204: FY2002 | K204: FY2003 | L204: FY2004 | M204: FY2005 | N204: FY2006 | O204: FY2007 | P204: FY2008 | Q204: FY2009 | R204: =R2 -> FY2010
B205: Compensation of employees | C205: 115.2748206 | D205: 115.9801953 | E205: 106.5054053 | F205: 108.2405843 | G205: 108.6506699 | H205: 112.5219848 | I205: 116.7472704 | J205: 121.5609509 | K205: 121.3489002 | L205: 120.0990638 | M205: 120.8828043 | N205: 124.338254 | O205: 122.5893963 | P205: 122.9580214 | Q205: 128.9390453 | R205: 137.2056428
... 39 more rows

Sheet gdp_C
A1: Table 2a : Chuuk: Constant price GDP by industry, FY1995-FY2010
B2: (constant prices of FY2004, US$ millions) | C2: FY1995 | D2: FY1996 | E2: FY1997 | F2: FY1998 | G2: FY1999 | H2: FY2000 | I2: FY2001 | J2: FY2002 | K2: FY2003 | L2: FY2004 | M2: FY2005 | N2: FY2006 | O2: FY2007 | P2: FY2008 | Q2: FY2009 | R2: FY2010
A3: A | B3: Agriculture, Hunting and Forestry | C3: 13.58574432 | D3: 13.59786445 | E3: 13.6171948 | F3: 13.64198863 | G3: 13.68515974 | H3: 13.72276949 | I3: 13.6559652 | J3: 13.5894273 | K3: 13.52986928 | L3: 13.44573028 | M3: 13.38094813 | N3: 13.31865287 | O3: 13.52708366 | P3: 13.1555939 | Q3: 13.07137175 | R3: 12.98328828
A4: B | B4: Fisheries | C4: 11.06563954 | D4: 10.46004132 | E4: 10.34347601 | F4: 10.30582022 | G4: 10.20833647 | H4: 10.25125833 | I4: 10.06653696 | J4: 9.973683419 | K4: 10.09579175 | L4: 9.601631092 | M4: 9.77203198 | N4: 9.50770013 | O4: 9.766566323 | P4: 9.432072237 | Q4: 9.354950606 | R4: 9.239488697
A5: C | B5: Mining and Quarrying | C5: 0 | D5: 0 | E5: 0 | F5: 0 | G5: 0 | H5: 0 | I5: 0 | J5: 0 | K5: 0 | L5: 0 | M5: 0 | N5: 0 | O5: 0 | P5: 0 | Q5: 0 | R5: 0
A6: D | B6: Manufacturing | C6: 0.6531482591 | D6: 0.4228081446 | E6: 0.4139467783 | F6: 0.563606197 | G6: 0.6025801216 | H6: 0.5163963701 | I6: 0.4476990483 | J6: 0.3701244124 | K6: 0.3398587696 | L6: 0.1851167514 | M6: 0.1450022581 | N6: 0.1218882877 | O6: 0.1954753793 | P6: 0.1734665983 | Q6: 0.1341383058 | R6: 0.127885705
A7: E | B7: Electricity, Gas and Water Supply | C7: 0 | D7: 0.4516121846 | E7: 0.6375564856 | F7: 0.6605709745 | G7: 0.685356157 | H7: 0.6841538818 | I7: 0.6851237444 | J7: 1.0024736 | K7: 1.046729527 | L7: 0.9519113962 | M7: 1.061060944 | N7: 0.968933425 | O7: 0.9224857368 | P7: 0.7848923231 | Q7: 0.8385067129 | R7: 0.7126345489
A8: F | B8: Construction | C8: 3.169405017 | D8: 1.523448824 | E8: 0.3550693043 | F8: 0.5536985159 | G8: 1.061453076 | H8: 1.878524953 | I8: 1.265275097 | J8: 0.7028520294 | K8: 0.5564516576 | L8: 0.7205388401 | M8: 0.3891069484 | N8: 0.3659534338 | O8: 0.4473233475 | P8: 0.7383221518 | Q8: 1.068856825 | R8: 2.923077198
A9: G | B9: Wholesale and Retail Trade and Repairs | C9: 7.651716619 | D9: 6.839878453 | E9: 6.513755006 | F9: 6.448615303 | G9: 7.108266451 | H9: 7.912098059 | I9: 8.054984732 | J9: 7.607029147 | K9: 9.003295179 | L9: 8.161967496 | M9: 7.845611648 | N9: 7.437129165 | O9: 6.644601363 | P9: 6.104798381 | Q9: 5.867658702 | R9: 6.101309687
A10: H | B10: Hotels and Restaurants | C10: 1.626437466 | D10: 1.577524256 | E10: 1.544075731 | F10: 1.761535976 | G10: 1.694952642 | H10: 1.750983755 | I10: 1.584851416 | J10: 1.306414134 | K10: 1.337179833 | L10: 1.181227644 | M10: 1.142793667 | N10: 1.114260759 | O10: 1.137601139 | P10: 1.097115107 | Q10: 0.9610730227 | R10: 0.8369522401
A11: I | B11: Transport, Storage and Communications | C11: 5.228419582 | D11: 4.545593974 | E11: 4.024078697 | F11: 3.979614873 | G11: 4.028868649 | H11: 4.565983698 | I11: 4.617211545 | J11: 4.709108052 | K11: 4.630234902 | L11: 4.295492982 | M11: 4.434439496 | N11: 4.696983133 | O11: 4.328133957 | P11: 3.406301132 | Q11: 3.299018722 | R11: 3.437872267
A12: J | B12: Financial Intermediation | C12: 0.960738054 | D12: 0.707354361 | E12: 0.6797891058 | F12: 0.5134978592 | G12: 0.7542688492 | H12: 1.139562695 | I12: 1.467498968 | J12: 1.727101847 | K12: 1.237399012 | L12: 1.052041017 | M12: 1.335131403 | N12: 1.477130966 | O12: 1.457792646 | P12: 1.273726165 | Q12: 1.029072373 | R12: 1.048237452
A13: K | B13: Real Estate, Renting, Business Activities | C13: 11.23017394 | D13: 11.2574602 | E13: 11.23321825 | F13: 11.36323028 | G13: 11.47641923 | H13: 11.59550932 | I13: 11.74453166 | J13: 11.52597619 | K13: 11.68517058 | L13: 11.52340404 | M13: 11.29421258 | N13: 11.43122707 | O13: 11.32284278 | P13: 11.19603425 | Q13: 11.08928167 | R13: 11.21801772
A14: L | B14: Public Administration | C14: 7.493160796 | D14: 7.002676005 | E14: 6.531327215 | F14: 6.676951623 | G14: 7.533193958 | H14: 7.969134339 | I14: 9.587734598 | J14: 10.9957463 | K14: 9.983804527 | L14: 8.980158679 | M14: 8.053053995 | N14: 10.01743739 | O14: 5.620428983 | P14: 3.76098366 | Q14: 3.56025015 | R14: 4.037288929
A15: M | B15: Education | C15: 10.36296006 | D15: 10.19965281 | E15: 9.789375531 | F15: 9.166664015 | G15: 9.88776313 | H15: 9.672651574 | I15: 10.34404104 | J15: 10.8624568 | K15: 10.32221543 | L15: 9.78156469 | M15: 10.16255366 | N15: 11.20399828 | O15: 10.19289862 | P15: 9.992018512 | Q15: 10.96191748 | R15: 10.55472559
A16: N | B16: Health and Social Work | C16: 3.20413095 | D16: 3.037352845 | E16: 2.785421636 | F16: 2.519457042 | G16: 2.456724231 | H16: 2.673231347 | I16: 3.346427101 | J16: 3.458755004 | K16: 3.056112501 | L16: 3.063655001 | M16: 3.126997425 | N16: 3.248128055 | O16: 3.39857924 | P16: 3.77390581 | Q16: 3.950106043 | R16: 4.088123142
A17: O | B17: Other Community, Social, Personal Services | C17: 0.6406354752 | D17: 0.5943048271 | E17: 0.6000818773 | F17: 0.6683687396 | G17: 0.6754364328 | H17: 0.6833907852 | I17: 0.5844629947 | J17: 0.6878014092 | K17: 0.6899092565 | L17: 0.6905278139 | M17: 0.5558411233 | N17: 0.5100330977 | O17: 0.4647389622 | P17: 0.4958910823 | Q17: 0.4620662951 | R17: 0.4336676989
B18: less intermediate FISIM | C18: -0.706033644 | D18: -0.6928943956 | E18: -0.59163782 | F18: -0.490010492 | G18: -0.5673520254 | H18: -0.8277649869 | I18: -1.185457886 | J18: -1.349174067 | K18: -1.022042678 | L18: -0.8606829329 | M18: -0.997254074 | N18: -1.134889884 | O18: -1.119906541 | P18: -1.063622515 | Q18: -0.9224128183 | R18: -0.9559071289
B19: GDP at basic prices | C19: 76.16627644 | D19: 71.52467825 | E19: 68.47672861 | F19: 68.33360976 | G19: 71.2914271 | H19: 74.18788362 | I19: 76.26688621 | J19: 77.16977557 | K19: 76.49197954 | L19: 72.77428479 | M19: 71.70153118 | N19: 74.28456618 | O19: 68.3066456 | P19: 64.3214988 | Q19: 64.72585583 | R19: 66.78666202
B20: Taxes on products | C20: 5.073836058 | D20: 4.284159226 | E20: 4.179886786 | F20: 4.80207794 | G20: 5.492455556 | H20: 6.819426411 | I20: 6.081556599 | J20: 4.962637656 | K20: 6.650747658 | L20: 5.4603428 | M20: 5.883860552 | N20: 5.594162762 | O20: 4.83190837 | P20: 4.322692753 | Q20: 4.483352656 | R20: 5.160403478
B21: less subsidies | C21: -0.4746209474 | D21: -0.4379180199 | E21: -0.3958435666 | F21: -0.3959730327 | G21: -0.3776979035 | H21: -0.2356250786 | I21: -0.3520386536 | J21: -0.3372579103 | K21: -0.1402012495 | L21: -0.12501 | M21: -0.1464708844 | N21: -0.1291758377 | O21: -0.1240720277 | P21: -0.1067932622 | Q21: -0.1147767728 | R21: -0.09754709466
B22: GDP at purchasers prices | C22: 80.76549155 | D22: 75.37091946 | E22: 72.26077183 | F22: 72.73971467 | G22: 76.40618476 | H22: 80.77168495 | I22: 81.99640415 | J22: 81.79515531 | K22: 83.00252594 | L22: 78.10961759 | M22: 77.43892085 | N22: 79.74955311 | O22: 73.01448194 | P22: 68.53739829 | Q22: 69.09443172 | R22: 71.8495184
A24: Table 2b : Chuuk: Constant price GDP by industry sector, annual % growth, FY1995-FY2010
C25: =C2 -> FY1995 | D25: FY1996 | E25: FY1997 | F25: FY1998 | G25: FY1999 | H25: FY2000 | I25: FY2001 | J25: FY2002 | K25: FY2003 | L25: FY2004 | M25: FY2005 | N25: FY2006 | O25: FY2007 | P25: FY2008 | Q25: FY2009 | R25: =R2 -> FY2010
A26: A | B26: Agriculture, Hunting and Forestry | D26: =IF(C3>0.1,D3/C3-1,"") -> 0.0008921209824 | E26: =IF(D3>0.1,E3/D3-1,"") -> 0.001421572688 | F26: 0.0018207739 | G26: 0.003164575387 | H26: 0.002748214802 | I26: -0.004868135361 | J26: -0.004872442 | K26: -0.004382672719 | L26: -0.006218759711 | M26: -0.004818046052 | N26: -0.004655519163 | O26: 0.0156495401 | P26: -0.02746266442 | Q26: -0.006402003036 | R26: -0.00673865588
A27: B | B27: Fisheries | D27: =IF(C4>0.1,D4/C4-1,"") -> -0.05472781071 | E27: -0.01114386671 | F27: -0.00364053523 | G27: -0.009459096958 | H27: 0.004204589361 | I27: -0.01801938546 | J27: -0.009223980142 | K27: 0.01224305287 | L27: -0.04894719225 | M27: 0.01774707716 | N27: -0.02704983473 | O27: 0.02722700435 | P27: -0.03424889312 | Q27: -0.008176531024 | R27: -0.0123423322
A28: C | B28: Mining and Quarrying
A29: D | B29: Manufacturing | D29: -0.3526613005 | E29: -0.02095836241 | F29: 0.3615426585 | G29: 0.06915098678 | H29: -0.1430245513 | I29: -0.1330321548 | J29: -0.1732740693 | K29: -0.08177153903 | L29: -0.4553127124 | M29: -0.216698343 | N29: -0.1594042101 | O29: 0.6037256982 | P29: -0.1125910643 | Q29: -0.226719685 | R29: -0.04661308871
A30: E | B30: Electricity, Gas and Water Supply | E30: 0.4117344644 | F30: 0.03609796067 | G30: 0.03752084706 | H30: -0.001754234219 | I30: 0.001417608893 | J30: 0.4632007835 | K30: 0.04414672652 | L30: -0.09058513088 | M30: 0.1146635584 | N30: -0.08682585074 | O30: -0.04793692424 | P30: -0.1491550581 | Q30: 0.06830795535 | R30: -0.1501146766
A31: F | B31: Construction | D31: -0.5193265563 | E31: -0.7669305994 | F31: 0.5594096959 | G31: 0.9170235165 | H31: 0.7697673078 | I31: -0.3264528665 | J31: -0.4445065495 | K31: -0.2082947274 | L31: 0.2948812898 | M31: -0.4599778295 | N31: -0.05950424334 | O31: 0.2223504581 | P31: 0.6505334587 | Q31: 0.4476835379 | R31: 1.734769643
A32: G | B32: Wholesale and Retail Trade and Repairs | D32: -0.106098828 | E32: -0.04767971378 | F32: -0.01000033051 | G32: 0.1022934562 | H32: 0.1130840569 | I32: 0.01805926478 | J32: -0.05561222034 | K32: 0.1835494521 | L32: -0.0934466399 | M32: -0.03875975352 | N32: -0.05206509075 | O32: -0.1065636732 | P32: -0.08123933294 | Q32: -0.03884480118 | R32: 0.03982013906
A33: H | B33: Hotels and Restaurants | D33: -0.03007383364 | E33: -0.02120317619 | F33: 0.1408352196 | G33: -0.03779845261 | H33: 0.03305762772 | I33: -0.09487942944 | J33: -0.1756866786 | K33: 0.02354972883 | L33: -0.116627685 | M33: -0.03253731613 | N33: -0.02496768173 | O33: 0.02094696427 | P33: -0.0355889519 | Q33: -0.1239998275 | R33: -0.1291481289
A34: I | B34: Transport, Storage and Communications | D34: -0.1305988544 | E34: -0.1147298418 | F34: -0.01104944195 | G34: 0.01237651834 | H34: 0.1333165948 | I34: 0.01121945452 | J34: 0.01990303148 | K34: -0.01674906355 | L34: -0.07229480291 | M34: 0.03234704716 | N34: 0.05920559673 | O34: -0.0785289546 | P34: -0.2129862047 | Q34: -0.03149528078 | R34: 0.04208934727
A35: J | B35: Financial Intermediation | D35: -0.263738583 | E35: -0.03896951341 | F35: -0.2446218176 | G35: 0.4688841165 | H35: 0.5108176561 | I35: 0.287773788 | J35: 0.1769015749 | K35: -0.2835402187 | L35: -0.1497964624 | M35: 0.2690868332 | N35: 0.1063562459 | O35: -0.01309181186 | P35: -0.1262638282 | Q35: -0.1920772292 | R35: 0.018623646
A36: K | B36: Real Estate, Renting, Business Activities | D36: 0.002429727578 | E36: -0.002153412123 | F36: 0.01157388979 | G36: 0.009960983391 | H36: 0.01037693823 | I36: 0.01285172829 | J36: -0.01860912602 | K36: 0.01381179261 | L36: -0.01384374665 | M36: -0.01988921521 | N36: 0.01213139011 | O36: -0.009481422443 | P36: -0.01119935471 | Q36: -0.009534856555 | R36: 0.01160905206
A37: L | B37: Public Administration | D37: -0.06545766256 | E37: -0.06730980972 | F37: 0.02229629642 | G37: 0.1282385112 | H37: 0.05786926274 | I37: 0.2031086679 | J37: 0.146855515 | K37: -0.09203029484 | L37: -0.1005273937 | M37: -0.1032392319 | N37: 0.2439302404 | O37: -0.4389354519 | P37: -0.3308369038 | Q37: -0.0533726091 | R37: 0.1339902421
A38: M | B38: Education | D38: -0.01575874624 | E38: -0.04022463139 | F38: -0.06361095393 | G38: 0.0786653807 | H38: -0.02175533059 | I38: 0.06941110831 | J38: 0.05011733376 | K38: -0.04973473074 | L38: -0.05237739392 | M38: 0.03894969644 | N38: 0.1024786336 | O38: -0.09024453875 | P38: -0.01970784934 | Q38: 0.09706737067 | R38: -0.03714604528
A39: N | B39: Health and Social Work | D39: -0.05205096412 | E39: -0.08294433414 | F39: -0.09548450055 | G39: -0.02489933737 | H39: 0.08812837582 | I39: 0.2518284675 | J39: 0.0335665172 | K39: -0.1164125536 | L39: 0.002468004761 | M39: 0.02067544265 | N39: 0.03873704203 | O39: 0.04631935122 | P39: 0.110436316 | Q39: 0.04668909114 | R39: 0.03494009971
A40: O | B40: Other Community, Social, Personal Services | D40: -0.07231982911 | E40: 0.009720685242 | F40: 0.1137959083 | G40: 0.01057454183 | H40: 0.01177661145 | I40: -0.1447602056 | J40: 0.1768091659 | K40: 0.003064616142 | L40: 0.0008965778858 | M40: -0.1950489002 | N40: -0.08241208445 | O40: -0.08880626699 | P40: 0.06703143611 | Q40: -0.06821011382 | R40: -0.06146000373
B41: less intermediate FISIM
B42: GDP at basic prices | D42: -0.0609403322 | E42: -0.04261395809 | F42: -0.002090036284 | G42: 0.04328495674 | H42: 0.04062839854 | I42: 0.02802347888 | J42: 0.01183855019 | K42: -0.008783180034 | L42: -0.04860241257 | M42: -0.01474083333 | N42: 0.03602482341 | O42: -0.08047325157 | P42: -0.05834200711 | Q42: 0.006286498958 | R42: 0.03183899482
B43: Taxes on products | D43: =IF(C20>0.1,D20/C20-1,"") -> -0.1556370412 | E43: -0.02433906739 | F43: 0.1488535901 | G43: 0.1437664329 | H43: 0.2415988334 | I43: -0.1082011547 | J43: -0.1839856169 | K43: 0.3401638641 | L43: -0.1789881257 | M43: 0.07756248409 | N43: -0.04923600526 | O43: -0.1362588872 | P43: -0.1053860252 | Q43: 0.03716662571 | R43: 0.1510144024
B44: less subsidies
B45: GDP at purchasers prices | D45: -0.06679303238 | E45: -0.04126455735 | F45: 0.006627978483 | G45: 0.05040534052 | H45: 0.05713542964 | I45: 0.0151627294 | J45: -0.002454361762 | K45: 0.01476090638 | L45: -0.05894890908 | M45: -0.008586608876 | N45: 0.02983812573 | O45: -0.08445277625 | P45: -0.0613177487 | Q45: 0.008127437605 | R45: 0.0398742217
A46: Source: SBOC estimates
A47: Table 2c : Chuuk: Current price GDP by industry, FY1995-FY2010
B48: (US$ millions) | C48: =C25 -> FY1995 | D48: FY1996 | E48: FY1997 | F48: FY1998 | G48: FY1999 | H48: FY2000 | I48: FY2001 | J48: FY2002 | K48: FY2003 | L48: FY2004 | M48: FY2005 | N48: FY2006 | O48: FY2007 | P48: FY2008 | Q48: FY2009 | R48: =R25 -> FY2010
A49: A | B49: Agriculture, Hunting and Forestry | C49: 13.0090385 | D49: 13.38584945 | E49: 13.76234184 | F49: 14.01247981 | G49: 14.32661972 | H49: 14.30342201 | I49: 14.50328746 | J49: 14.1536943 | K49: 13.62965168 | L49: 13.44573028 | M49: 13.62764581 | N49: 13.43110678 | O49: 13.80584414 | P49: 13.67469299 | Q49: 14.08134843 | R49: 14.67153775
A50: B | B50: Fisheries | C50: 10.86134487 | D50: 10.47502749 | E50: 10.6322106 | F50: 10.75370499 | G50: 10.87272096 | H50: 10.91027393 | I50: 11.03513776 | J50: 10.77648891 | K50: 10.44150551 | L50: 9.601631092 | M50: 9.940004165 | N50: 9.495202974 | O50: 9.992816841 | P50: 9.907692714 | Q50: 10.34486764 | R50: 10.79850861
A51: C | B51: Mining and Quarrying | C51: 0 | D51: 0 | E51: 0 | F51: 0 | G51: 0 | H51: 0 | I51: 0 | J51: 0 | K51: 0 | L51: 0 | M51: 0 | N51: 0 | O51: 0 | P51: 0 | Q51: 0 | R51: 0
A52: D | B52: Manufacturing | C52: 0.5605810767 | D52: 0.3667052033 | E52: 0.3654307998 | F52: 0.5192644589 | G52: 0.5763126472 | H52: 0.502969784 | I52: 0.4418017568 | J52: 0.364666728 | K52: 0.3340283504 | L52: 0.1851167514 | M52: 0.1509277836 | N52: 0.1324462997 | O52: 0.22013784 | P52: 0.2082845821 | Q52: 0.1742886237 | R52: 0.1732372071
A53: E | B53: Electricity, Gas and Water Supply | C53: 0 | D53: 0.2933503 | E53: 1.3323138 | F53: 1.5202374 | G53: 1.1828252 | H53: 1.959650349 | I53: 1.764359239 | J53: 1.088961099 | K53: 1.390974564 | L53: 0.9519113962 | M53: 0.9614886546 | N53: 0.5603104704 | O53: 0.5506995004 | P53: 0.4037128777 | Q53: 1.2030326 | R53: 0.4097512
A54: F | B54: Construction | C54: 2.772111786 | D54: 1.36890237 | E54: 0.3265117052 | F54: 0.5181200011 | G54: 1.009093546 | H54: 1.827844826 | I54: 1.24735267 | J54: 0.6922907789 | K54: 0.5463776016 | L54: 0.7205388401 | M54: 0.4050078259 | N54: 0.397652466 | O54: 0.5037606059 | P54: 0.7788248043 | Q54: 1.273880443 | R54: 3.825843821
A55: G | B55: Wholesale and Retail Trade and Repairs | C55: 6.351686639 | D55: 5.873182311 | E55: 5.710914123 | F55: 5.816559746 | G55: 6.59517949 | H55: 7.393587269 | I55: 7.718949978 | J55: 7.347920005 | K55: 8.744043747 | L55: 8.161967496 | M55: 8.46703357 | N55: 8.71303722 | O55: 8.145897788 | P55: 8.563538019 | Q55: 8.368491505 | R55: 8.735299742
A56: H | B56: Hotels and Restaurants | C56: 1.422933786 | D56: 1.418733297 | E56: 1.425682355 | F56: 1.653020809 | G56: 1.621066824 | H56: 1.705457227 | I56: 1.563975046 | J56: 1.287150352 | K56: 1.314239954 | L56: 1.181227644 | M56: 1.189493995 | N56: 1.210778469 | O56: 1.281128388 | P56: 1.317326585 | Q56: 1.248741688 | R56: 1.13375665
A57: I | B57: Transport, Storage and Communications | C57: 4.900040606 | D57: 4.356379273 | E57: 3.740741308 | F57: 3.759495176 | G57: 3.833505072 | H57: 4.446319661 | I57: 4.511398875 | J57: 4.566996665 | K57: 4.549525458 | L57: 4.295492982 | M57: 4.30745369 | N57: 4.641304105 | O57: 4.438856295 | P57: 3.908239577 | Q57: 4.121014185 | R57: 4.506102427
A58: J | B58: Financial Intermediation | C58: 0.8405282501 | D58: 0.6361532515 | E58: 0.6276656733 | F58: 0.4818650646 | G58: 0.7213890096 | H58: 1.109933446 | I58: 1.448168417 | J58: 1.701634797 | K58: 1.213847839 | L58: 1.052041017 | M58: 1.364560515 | N58: 1.602356918 | O58: 1.640576721 | P58: 1.520831585 | Q58: 1.328967725 | R58: 1.409628307
A59: K | B59: Real Estate, Renting, Business Activities | C59: 10.52395013 | D59: 10.84700081 | E59: 11.11824143 | F59: 11.42621808 | G59: 11.75835992 | H59: 11.89072825 | I59: 12.26125268 | J59: 11.95371535 | K59: 11.75549669 | L59: 11.52340404 | M59: 11.21877427 | N59: 11.33587726 | O59: 11.25687316 | P59: 11.17911294 | Q59: 11.13368141 | R59: 11.36868428
A60: L | B60: Public Administration | C60: 8.675915251 | D60: 8.120068423 | E60: 6.517125923 | F60: 6.742390394 | G60: 7.360475003 | H60: 7.889760753 | I60: 9.263403159 | J60: 10.41967163 | K60: 9.819562403 | L60: 8.980158679 | M60: 9.433792089 | N60: 10.89945836 | O60: 8.069667785 | P60: 6.036293103 | Q60: 5.73042012 | R60: 5.632348767
A61: M | B61: Education | C61: 11.81752599 | D61: 11.38615407 | E61: 9.253786785 | F61: 8.870877943 | G61: 8.743235483 | H61: 9.283259705 | I61: 9.879697167 | J61: 10.27284006 | K61: 10.07945525 | L61: 9.78156469 | M61: 9.219491666 | N61: 9.416179014 | O61: 9.101857512 | P61: 8.766895785 | Q61: 10.16984873 | R61: 11.52863979
A62: N | B62: Health and Social Work | C62: 3.842419983 | D62: 3.599647276 | E62: 2.763617504 | F62: 2.537549547 | G62: 2.440550481 | H62: 2.65040683 | I62: 3.207326074 | J62: 3.203951299 | K62: 3.00091277 | L62: 3.063655001 | M62: 3.209670495 | N62: 3.315029721 | O62: 3.60816758 | P62: 3.634313238 | Q62: 4.079506442 | R62: 4.785042015
A63: O | B63: Other Community, Social, Personal Services | C63: 0.5328488515 | D63: 0.5072254478 | E63: 0.5115876823 | F63: 0.5851960655 | G63: 0.5896192076 | H63: 0.6425915345 | I63: 0.5725916294 | J63: 0.6724080588 | K63: 0.6730963427 | L63: 0.6905278139 | M63: 0.6057691535 | N63: 0.5602445711 | O63: 0.531078211 | P63: 0.6007001849 | Q63: 0.579374569 | R63: 0.554293519
B64: less intermediate FISIM | C64: -0.6176930546 | D64: -0.6231488021 | E64: -0.5462734656 | F64: -0.4598245799 | G64: -0.5426202026 | H64: -0.8062426476 | I64: -1.169842506 | J64: -1.329279767 | K64: -1.004509109 | L64: -0.8606829329 | M64: -1.038006919 | N64: -1.233194498 | O64: -1.261201324 | P64: -1.277111404 | Q64: -1.1985097 | R64: -1.294895948
B65: GDP at basic prices | C65: 75.49323266 | D65: 72.01123018 | E65: 67.54189807 | F65: 68.73715491 | G65: 71.08833237 | H65: 75.70996293 | I65: 78.2488594 | J65: 77.17311026 | K65: 76.48820905 | L65: 72.77428479 | M65: 73.06310676 | N65: 74.47779013 | O65: 71.88616104 | P65: 69.22334758 | Q65: 72.63895442 | R65: 78.23777813
B66: Taxes on products | C66: 4.3635384 | D66: 3.817649055 | E66: 3.838953708 | F66: 4.55647175 | G66: 5.25676354 | H66: 6.60281612 | I66: 5.96255144 | J66: 4.860595 | K66: 6.523323 | L66: 5.4603428 | M66: 6.15711106 | N66: 6.12730004 | O66: 5.46375424 | P66: 5.23109327 | Q66: 5.88091501 | R66: 7.217748
B67: less subsidies | C67: -0.4152352587 | D67: -2.020452554 | E67: -1.3589278 | F67: -1.390024698 | G67: -1.621711729 | H67: -1.899293584 | I67: -1.841593577 | J67: -1.258099862 | K67: -1 | L67: -0.12501 | M67: -0.4691160071 | N67: -0.48 | O67: -0.39864 | P67: -0.384473 | Q67: -0.092136 | R67: 0
B68: GDP at purchasers prices | C68: 79.44153581 | D68: 73.80842668 | E68: 70.02192397 | F68: 71.90360196 | G68: 74.72338418 | H68: 80.41348547 | I68: 82.36981727 | J68: 80.7756054 | K68: 82.01153205 | L68: 78.10961759 | M68: 78.75110181 | N68: 80.12509017 | O68: 76.95127528 | P68: 74.06996785 | Q68: 78.42773343 | R68: 85.45552613
A70: Table 2d : Chuuk: Implicit GDP price deflators by industry, FY1995-FY2010
B71: (FY2004=100) | C71: =C2 -> FY1995 | D71: FY1996 | E71: FY1997 | F71: FY1998 | G71: FY1999 | H71: FY2000 | I71: FY2001 | J71: FY2002 | K71: FY2003 | L71: FY2004 | M71: FY2005 | N71: FY2006 | O71: FY2007 | P71: FY2008 | Q71: FY2009 | R71: =R2 -> FY2010
A72: A | B72: Agriculture, Hunting and Forestry | C72: =IF(C49<>0,C49/C3*100,0) -> 95.75506641 | D72: =IF(D49<>0,D49/D3*100,0) -> 98.44082139 | E72: 101.06591 | F72: 102.715815 | G72: 104.6872671 | H72: 104.2313071 | I72: 106.2047776 | J72: 104.1522501 | K72: 100.7374971 | L72: 100 | M72: 101.8436487 | N72: 100.844334 | O72: 102.0607581 | P72: 103.945843 | Q72: 107.7266311 | R72: =IF(R49<>0,R49/R3*100,0) -> 113.0032503
A73: B | B73: Fisheries | C73: =IF(C50<>0,C50/C4*100,0) -> 98.1537925 | D73: 100.1432707 | E73: 102.7914658 | F73: 104.3459401 | G73: 106.5082543 | H73: 106.4286313 | I73: 109.6219862 | J73: 108.0492378 | K73: 103.4243353 | L73: 100 | M73: 101.7189074 | N73: 99.86855752 | O73: 102.316582 | P73: 105.0425873 | Q73: 110.5817452 | R73: =IF(R50<>0,R50/R4*100,0) -> 116.8734436
A74: C | B74: Mining and Quarrying | C74: 0 | D74: 0 | E74: 0 | F74: 0 | G74: 0 | H74: 0 | I74: 0 | J74: 0 | K74: 0 | L74: 0 | M74: 0 | N74: 0 | O74: 0 | P74: 0 | Q74: 0 | R74: =IF(R51<>0,R51/R5*100,0) -> 0
A75: D | B75: Manufacturing | C75: 85.82753899 | D75: 86.73087499 | E75: 88.27965791 | F75: 92.13249636 | G75: 95.64083289 | H75: 97.39994568 | I75: 98.68275541 | J75: 98.52544599 | K75: 98.28445822 | L75: 100 | M75: 104.0865057 | N75: 108.6620398 | O75: 112.6166583 | P75: 120.0718664 | Q75: 129.93203 | R75: =IF(R52<>0,R52/R6*100,0) -> 135.4625265
A76: E | B76: Electricity, Gas and Water Supply | C76: 0 | D76: 64.95624121 | E76: 208.9718841 | F76: 230.139903 | G76: 172.5854781 | H76: 286.434149 | I76: 257.5241705 | J76: 108.6274092 | K76: 132.887678 | L76: 100 | M76: 90.61578035 | N76: 57.82755099 | O76: 59.69734582 | P76: 51.43544736 | Q76: 143.4732223 | R76: =IF(R53<>0,R53/R7*100,0) -> 57.49808238
A77: F | B77: Construction | C77: 87.46473773 | D77: 89.85548764 | E77: 91.95717604 | F77: 93.57438864 | G77: 95.06718377 | H77: 97.30213186 | I77: 98.58351538 | J77: 98.49737212 | K77: 98.18959009 | L77: 100 | M77: 104.0865057 | N77: 108.6620398 | O77: 112.6166583 | P77: 105.4857696 | Q77: 119.1815792 | R77: =IF(R54<>0,R54/R8*100,0) -> 130.8841184
A78: G | B78: Wholesale and Retail Trade and Repairs | C78: 83.00995652 | D78: 85.86676431 | E78: 87.67468408 | F78: 90.19858485 | G78: 92.78182712 | H78: 93.44660815 | I78: 95.82823847 | J78: 96.59381952 | K78: 97.12048281 | L78: 100 | M78: 107.9206307 | N78: 117.1559217 | O78: 122.5942286 | P78: 140.2755256 | Q78: 142.6206249 | R78: =IF(R55<>0,R55/R9*100,0) -> 143.1708959
A79: H | B79: Hotels and Restaurants | C79: 87.48776491 | D79: 89.93416688 | E79: 92.33241133 | F79: 93.83974168 | G79: 95.64083289 | H79: 97.39994568 | I79: 98.68275541 | J79: 98.52544599 | K79: 98.28445822 | L79: 100 | M79: 104.0865057 | N79: 108.6620398 | O79: 112.6166583 | P79: 120.0718664 | Q79: 129.93203 | R79: =IF(R56<>0,R56/R10*100,0) -> 135.4625265
A80: I | B80: Transport, Storage and Communications | C80: 93.71934539 | D80: 95.83740425 | E80: 92.9589501 | F80: 94.46881913 | G80: 95.15090727 | H80: 97.37922768 | I80: 97.70829928 | J80: 96.98220162 | K80: 98.25690391 | L80: 100 | M80: 97.13637301 | N80: 98.81457894 | O80: 102.5582003 | P80: 114.7355863 | Q80: 124.9163625 | R80: =IF(R57<>0,R57/R11*100,0) -> 131.0724215
A81: J | B81: Financial Intermediation | C81: 87.48776491 | D81: 89.93416688 | E81: 92.33241133 | F81: 93.83974168 | G81: 95.64083289 | H81: 97.39994568 | I81: 98.68275541 | J81: 98.52544599 | K81: 98.09671967 | L81: 100 | M81: 102.2042109 | N81: 108.4776472 | O81: 112.5384139 | P81: 119.4001997 | Q81: 129.1422994 | R81: =IF(R58<>0,R58/R12*100,0) -> 134.4760487
A82: K | B82: Real Estate, Renting, Business Activities | C82: 93.71137251 | D82: 96.35388992 | E82: 98.97645701 | F82: 100.5543125 | G82: 102.4566957 | H82: 102.5459764 | I82: 104.3996733 | J82: 103.7110883 | K82: 100.6018407 | L82: 100 | M82: 99.33206224 | N82: 99.16588298 | O82: 99.41737577 | P82: 99.84886334 | Q82: 100.4003843 | R82: =IF(R59<>0,R59/R13*100,0) -> 101.3430765
A83: L | B83: Public Administration | C83: 115.7844531 | D83: 115.9566488 | E83: 99.78256651 | F83: 100.9800696 | G83: 97.70722809 | H83: 99.00398736 | I83: 96.61722552 | J83: 94.76093158 | K83: 98.35491447 | L83: 100 | M83: 117.1455214 | N83: 108.8048563 | O83: 143.5774353 | P83: 160.4977221 | Q83: 160.9555475 | R83: =IF(R60<>0,R60/R14*100,0) -> 139.5081914
A84: M | B84: Education | C84: 114.0362012 | D84: 111.6327613 | E84: 94.52887731 | F84: 96.77324191 | G84: 88.42480719 | H84: 95.97430067 | I84: 95.51100124 | J84: 94.5719762 | K84: 97.64817749 | L84: 100 | M84: 90.72022614 | N84: 84.04302446 | O84: 89.2960663 | P84: 87.73898662 | Q84: 92.77435957 | R84: =IF(R61<>0,R61/R15*100,0) -> 109.227281
A85: N | B85: Health and Social Work | C85: 119.9208161 | D85: 118.5126477 | E85: 99.21720536 | F85: 100.7181113 | G85: 99.34165381 | H85: 99.14618249 | I85: 95.84329728 | J85: 92.63308027 | K85: 98.19379257 | L85: 100 | M85: 102.6438484 | N85: 102.0596991 | O85: 106.1669399 | P85: 96.30111139 | Q85: 103.2758715 | R85: =IF(R62<>0,R62/R16*100,0) -> 117.0474041
A86: O | B86: Other Community, Social, Personal Services | C86: 83.17504605 | D86: 85.34769106 | E86: 85.25297992 | F86: 87.55587012 | G86: 87.29455193 | H86: 94.02987988 | I86: 97.96884227 | J86: 97.7619484 | K86: 97.56302532 | L86: 100 | M86: 108.9824283 | N86: 109.8447481 | O86: 114.2745184 | P86: 121.1355087 | Q86: 125.3877582 | R86: =IF(R63<>0,R63/R17*100,0) -> 127.8152651
B87: less intermediate FISIM | C87: 87.48776491 | D87: 89.93416688 | E87: 92.33241133 | F87: 93.83974168 | G87: 95.64083289 | H87: 97.39994568 | I87: 98.68275541 | J87: 98.52544599 | K87: 98.28445822 | L87: 100 | M87: 104.0865057 | N87: 108.6620398 | O87: 112.6166583 | P87: 120.0718664 | Q87: 129.93203 | R87: =IF(R64<>0,R64/R18*100,0) -> 135.4625265
B88: GDP at basic prices | C88: 99.11634938 | D88: 100.6802574 | E88: 98.63482009 | F88: 100.5905515 | G88: 99.7151204 | H88: 102.0516549 | I88: 102.5987336 | J88: 100.0043212 | K88: 99.99507075 | L88: 100 | M88: 101.8989491 | N88: 100.2601132 | O88: 105.2403619 | P88: 107.620856 | Q88: 112.2255604 | R88: =IF(R65<>0,R65/R19*100,0) -> 117.1458129
B89: Taxes on products less Subsidies | C89: =IF((C66+C67)<>0,(C66+C67)/(C20+C67)*100,0) -> 84.75298296 | D89: =IF((D66+D67)<>0,(D66+D67)/(D20+D67)*100,0) -> 79.39175703 | E89: 87.91428447 | F89: 92.80180663 | G89: 93.91093736 | H89: 95.59747067 | I89: 97.19325008 | J89: 97.24546861 | K89: 97.74499473 | L89: 100 | M89: 105.0464155 | N89: 110.4247225 | O89: 114.2523713 | P89: 123.0662729 | Q89: 131.8263129 | R89: =IF((R66+R67)<>0,(R66+R67)/(R20+R67)*100,0) -> 139.8679005
B90: GDP at purchasers prices | C90: =IF(C68<>0,C68/C22*100,0) -> 98.36074081 | D90: 97.92692886 | E90: 96.90171057 | F90: 98.85054168 | G90: 97.79755974 | H90: 99.55652841 | I90: 100.4554018 | J90: 98.75353264 | K90: 98.80606779 | L90: 100 | M90: 101.6944722 | N90: 100.4708955 | O90: 105.3917979 | P90: 108.0723367 | Q90: 113.5080374 | R90: =IF(R68<>0,R68/R22*100,0) -> 118.9368113
A91: Source: SBOC estimates
A92: Table 2e : Chuuk: Share of GDP by industry, current prices, FY1995-FY2010
C93: =C2 -> FY1995 | D93: FY1996 | E93: FY1997 | F93: FY1998 | G93: FY1999 | H93: FY2000 | I93: FY2001 | J93: FY2002 | K93: FY2003 | L93: FY2004 | M93: FY2005 | N93: FY2006 | O93: FY2007 | P93: FY2008 | Q93: FY2009 | R93: =R2 -> FY2010
A94: A | B94: Agriculture, Hunting and Forestry | C94: =IF(C49/C$68<>0,C49/C$68,"~") -> 0.1637561304 | D94: =IF(D49/D$68<>0,D49/D$68,"~") -> 0.1813593658 | E94: 0.1965433261 | F94: 0.1948786908 | G94: 0.1917287323 | H94: 0.1778734242 | I94: 0.1760752657 | J94: 0.1752223859 | K94: 0.166191892 | L94: 0.1721392409 | M94: 0.1730470494 | N94: 0.1676267291 | O94: 0.1794102058 | P94: 0.1846185895 | Q94: 0.1795455232 | R94: =IF(R49/R$68<>0,R49/R$68,"~") -> 0.1716862375
A95: B | B95: Fisheries | C95: =IF(C50/C$68<>0,C50/C$68,"~") -> 0.1367212349 | D95: 0.1419218369 | E95: 0.1518411663 | F95: 0.1495572502 | G95: 0.1455062706 | H95: 0.1356771674 | I95: 0.1339706475 | J95: 0.1334126666 | K95: 0.1273175278 | L95: 0.1229250813 | M95: 0.1262205091 | N95: 0.1185047399 | O95: 0.1298590154 | P95: 0.1337612666 | Q95: 0.1319031826 | R95: =IF(R50/R$68<>0,R50/R$68,"~") -> 0.1263640761
A96: C | B96: Mining and Quarrying | C96: ~ | D96: ~ | E96: ~ | F96: ~ | G96: ~ | H96: ~ | I96: ~ | J96: ~ | K96: ~ | L96: ~ | M96: ~ | N96: ~ | O96: ~ | P96: ~ | Q96: ~ | R96: =IF(R51/R$68<>0,R51/R$68,"~") -> ~
A97: D | B97: Manufacturing | C97: 0.007056523657 | D97: 0.004968337896 | E97: 0.005218805469 | F97: 0.007221675197 | G97: 0.007712614378 | H97: 0.00625479397 | I97: 0.005363636481 | J97: 0.004514565087 | K97: 0.004072943671 | L97: 0.002369961051 | M97: 0.00191651647 | N97: 0.00165299408 | O97: 0.002860743233 | P97: 0.002811997739 | Q97: 0.002222283063 | R97: =IF(R52/R$68<>0,R52/R$68,"~") -> 0.002027220649
A98: E | B98: Electricity, Gas and Water Supply | C98: ~ | D98: 0.003974482497 | E98: 0.01902709501 | F98: 0.0211427155 | G98: 0.01582938478 | H98: 0.02436967304 | I98: 0.02141997273 | J98: 0.01348131151 | K98: 0.01696071917 | L98: 0.0121868654 | M98: 0.01220920892 | N98: 0.006992946519 | O98: 0.007156470097 | P98: 0.005450425988 | Q98: 0.01533937738 | R98: =IF(R53/R$68<>0,R53/R$68,"~") -> 0.004794905825
A99: F | B99: Construction | C99: 0.03489499237 | D99: 0.01854669489 | E99: 0.004662992484 | F99: 0.00720575864 | G99: 0.01350438765 | H99: 0.02273057579 | I99: 0.01514332205 | J99: 0.008570542746 | K99: 0.006662204545 | L99: 0.009224713452 | M99: 0.005142884564 | N99: 0.004962895706 | O99: 0.006546488074 | P99: 0.01051471773 | Q99: 0.01624272929 | R99: =IF(R54/R$68<>0,R54/R$68,"~") -> 0.04476999902
A100: G | B100: Wholesale and Retail Trade and Repairs | C100: 0.07995422765 | D100: 0.07957333024 | E100: 0.08155894325 | F100: 0.08089385771 | G100: 0.08826125264 | H100: 0.09194461881 | I100: 0.09371090327 | J100: 0.09096706819 | K100: 0.1066196854 | L100: 0.1044937582 | M100: 0.1075163823 | N100: 0.1087429318 | O100: 0.105857866 | P100: 0.1156141722 | Q100: 0.1067032176 | R100: =IF(R55/R$68<>0,R55/R$68,"~") -> 0.1022204196
A101: H | B101: Hotels and Restaurants | C101: 0.01791171044 | D101: 0.01922183361 | E101: 0.02036051389 | F101: 0.02298940198 | G101: 0.02169423724 | H101: 0.02120859725 | I101: 0.01898723462 | J101: 0.01593488957 | K101: 0.01602506283 | L101: 0.01512269143 | M101: 0.01510447433 | N101: 0.01511110274 | O101: 0.01664856603 | P101: 0.01778489478 | Q101: 0.01592219529 | R101: =IF(R56/R$68<>0,R56/R$68,"~") -> 0.0132672128
A102: I | B102: Transport, Storage and Communications | C102: 0.06168109109 | D102: 0.05902279006 | E102: 0.05342242965 | F102: 0.05228521345 | G102: 0.05130261583 | H102: 0.05529320904 | I102: 0.05477004836 | J102: 0.05653930593 | K102: 0.05547421618 | L102: 0.05499313804 | M102: 0.05469705935 | N102: 0.05792572708 | O102: 0.05768398612 | P102: 0.05276415922 | Q102: 0.0525453689 | R102: =IF(R57/R$68<>0,R57/R$68,"~") -> 0.05273038071
A103: J | B103: Financial Intermediation | C103: 0.01058046325 | D103: 0.008618978619 | E103: 0.008963845003 | F103: 0.006701542779 | G103: 0.009654126583 | H103: 0.01380282722 | I103: 0.01758129938 | J103: 0.02106619677 | K103: 0.01480094091 | L103: 0.01346877695 | M103: 0.01732751014 | N103: 0.01999819175 | O103: 0.02131968204 | P103: 0.02053236459 | Q103: 0.01694512472 | R103: =IF(R58/R$68<>0,R58/R$68,"~") -> 0.0164954611
A104: K | B104: Real Estate, Renting, Business Activities | C104: 0.1324741525 | D104: 0.1469615503 | E104: 0.1587822899 | F104: 0.1589102322 | G104: 0.1573585037 | H104: 0.1478698278 | I104: 0.1488561355 | J104: 0.1479867008 | K104: 0.1433395573 | L104: 0.1475286193 | M104: 0.1424586324 | N104: 0.1414772481 | O104: 0.1462857258 | P104: 0.1509263911 | Q104: 0.1419610248 | R104: =IF(R59/R$68<>0,R59/R$68,"~") -> 0.133036268
A105: L | B105: Public Administration | C105: 0.1092113233 | D105: 0.1100154656 | E105: 0.09307264858 | F105: 0.09376985589 | G105: 0.09850296643 | H105: 0.09811489587 | I105: 0.1124611352 | J105: 0.1289952774 | K105: 0.1197339223 | L105: 0.1149686678 | M105: 0.1197925092 | N105: 0.1360305284 | O105: 0.1048672391 | P105: 0.08149447446 | Q105: 0.07306624671 | R105: =IF(R60/R$68<>0,R60/R$68,"~") -> 0.06590970792
A106: M | B106: Education | C106: 0.1487575217 | D106: 0.154266316 | E106: 0.132155563 | F106: 0.1233718159 | G106: 0.1170080234 | H106: 0.1154440658 | I106: 0.1199431721 | J106: 0.1271775062 | K106: 0.1229029015 | L106: 0.1252286849 | M106: 0.1170712721 | N106: 0.1175184826 | O106: 0.1182807884 | P106: 0.1183596542 | Q106: 0.129671588 | R106: =IF(R61/R$68<>0,R61/R$68,"~") -> 0.1349080663
A107: N | B107: Health and Social Work | C107: 0.04836789652 | D107: 0.04877013965 | E107: 0.03946788873 | F107: 0.03529099347 | G107: 0.03266113423 | H107: 0.03295973075 | I107: 0.03893812298 | J107: 0.03966483795 | K107: 0.03659135118 | L107: 0.03922250673 | M107: 0.04075715033 | N107: 0.04137317928 | O107: 0.04688899003 | P107: 0.04906594864 | Q107: 0.05201612062 | R107: =IF(R62/R$68<>0,R62/R$68,"~") -> 0.05599452993
A108: O | B108: Other Community, Social, Personal Services | C108: 0.006707433915 | D108: 0.006872188863 | E108: 0.007306107192 | F108: 0.008138619618 | G108: 0.00789069197 | H108: 0.007991091677 | I108: 0.006951473833 | J108: 0.008324395162 | K108: 0.008207337747 | L108: 0.008840496667 | M108: 0.007692199087 | N108: 0.006992124064 | O108: 0.006901486806 | P108: 0.008109902061 | Q108: 0.00738736852 | R108: =IF(R63/R$68<>0,R63/R$68,"~") -> 0.006486339084
B109: less intermediate FISIM | C109: -0.007775442007 | D109: -0.008442786686 | E109: -0.007801463236 | F109: -0.006395014538 | G109: -0.007261718785 | H109: -0.01002621193 | I109: -0.01420232003 | J109: -0.01645645069 | K109: -0.01224838854 | L109: -0.01101891111 | M109: -0.01318085582 | N109: -0.01539086565 | O109: -0.01638960913 | P109: -0.01724195975 | Q109: -0.01528170773 | R109: =IF(R64/R$68<>0,R64/R$68,"~") -> -0.0151528638
B110: GDP at basic prices | C110: 0.9502992597 | D110: 0.9756505242 | E110: 0.9645821513 | F110: 0.9559626087 | G110: 0.9513532229 | H110: 0.9415082867 | I110: 0.9499700497 | J110: 0.9554011992 | K110: 0.9326518739 | L110: 0.9316942911 | M110: 0.9277725019 | N110: 0.9295189556 | O110: 0.9341776439 | P110: 0.9345669991 | Q110: 0.9261896429 | R110: =IF(R65/R$68<>0,R65/R$68,"~") -> 0.9155379608
B111: Taxes on products | C111: =IF(C66/C$68<>0,C66/C$68,"~") -> 0.05492766921 | D111: 0.05172375604 | E111: 0.05482502464 | F111: 0.06336917241 | G111: 0.07034964486 | H111: 0.08211080618 | I111: 0.0723875764 | J111: 0.06017404606 | K111: 0.07954153321 | L111: 0.069906152 | M111: 0.07818444337 | N111: 0.07647167731 | O111: 0.07100277702 | P111: 0.0706236741 | Q111: 0.0749851456 | R111: =IF(R66/R$68<>0,R66/R$68,"~") -> 0.08446203922
B112: less subsidies | C112: -0.005226928891 | D112: -0.02737428022 | E112: -0.01940717597 | F112: -0.01933178116 | G112: -0.02170286781 | H112: -0.0236190929 | I112: -0.02235762611 | J112: -0.01557524522 | K112: -0.01219340713 | L112: -0.001600443119 | M112: -0.005956945317 | N112: -0.005990632884 | O112: -0.005180420969 | P112: -0.00519067324 | Q112: -0.001174788509 | R112: =IF(R67/R$68<>0,R67/R$68,"~") -> ~
B113: GDP at purchasers prices | C113: 1 | D113: 1 | E113: 1 | F113: 1 | G113: 1 | H113: 1 | I113: 1 | J113: 1 | K113: 1 | L113: 1 | M113: 1 | N113: 1 | O113: 1 | P113: 1 | Q113: 1 | R113: =IF(R68/R$68<>0,R68/R$68,"~") -> 1
A115: Table 2f : Chuuk: Constant price GDP by institutional sector, FY1995-FY2010
B116: (constant prices of FY2004, US$ millions) | C116: =C2 -> FY1995 | D116: FY1996 | E116: FY1997 | F116: FY1998 | G116: FY1999 | H116: FY2000 | I116: FY2001 | J116: FY2002 | K116: FY2003 | L116: FY2004 | M116: FY2005 | N116: FY2006 | O116: FY2007 | P116: FY2008 | Q116: FY2009 | R116: =R2 -> FY2010
A117: 1.1 | B117: Private Enterprise | C117: 17.05466473 | D117: 13.53931842 | E117: 11.40975729 | F117: 11.96085495 | G117: 13.35433449 | H117: 15.51513786 | I117: 14.82696723 | J117: 13.42585591 | K117: 14.99648918 | L117: 13.83381999 | M117: 12.52722883 | N117: 12.37653399 | O117: 11.57349778 | P117: 10.6168277 | Q117: 9.54624465 | R117: 11.91482069
A118: 1.2 | B118: Public Enterprise | C118: 2.208130921 | D118: 1.991859586 | E118: 2.318461475 | F118: 2.541264918 | G118: 2.396103085 | H118: 2.533692001 | I118: 2.351118852 | J118: 2.631110186 | K118: 2.470033512 | L118: 2.185152758 | M118: 2.446823022 | N118: 2.353834188 | O118: 2.207268568 | P118: 2.195920446 | Q118: 3.192162369 | R118: 3.044431601
A119: 2 | B119: Finance (Banks) | C119: 0.7502110477 | D119: 0.6783143215 | E119: 0.4873361663 | F119: 0.3231750134 | G119: 0.5630284195 | H119: 0.8390861092 | I119: 1.328885134 | J119: 1.589441346 | K119: 1.145642922 | L119: 0.9319321747 | M119: 1.221268254 | N119: 1.374146725 | O119: 1.331246682 | P119: 1.138845147 | Q119: 0.9097762949 | R119: 0.9364509385
A120: 3 | B120: Government | C120: 21.72571613 | D120: 20.8072193 | E120: 19.53805579 | F120: 18.58459068 | G120: 20.01422764 | H120: 20.61850534 | I120: 23.77822186 | J120: 25.76512874 | K120: 23.72455846 | L120: 22.1151998 | M120: 22.01854856 | N120: 25.13818922 | O120: 19.75039387 | P120: 17.62993216 | Q120: 18.43757115 | R120: 18.52593626
A121: 4 | B121: NGOs | C121: 0.9217863628 | D121: 0.9038914592 | E121: 0.9444532405 | F121: 0.9595644924 | G121: 0.9842196928 | H121: 0.899119485 | I121: 0.7563579215 | J121: 0.8891778719 | K121: 0.8812245815 | L121: 0.8959381688 | M121: 0.7456209794 | N121: 0.8144169417 | O121: 0.7897617413 | P121: 0.7969197027 | Q121: 0.7861827606 | R121: 0.819984245
A122: 5 | B122: Households | C122: 34.2118009 | D122: 34.29696956 | E122: 34.37030247 | F122: 34.4541702 | G122: 34.5468658 | H122: 34.61010781 | I122: 34.41079309 | J122: 34.21823558 | K122: 34.29607356 | L122: 33.67292484 | M122: 33.73929561 | N122: 33.362335 | O122: 33.77438351 | P122: 33.00667616 | Q122: 32.77633143 | R122: 32.50094542
B123: GDP at basic prices | C123: 76.87231008 | D123: 72.21757265 | E123: 69.06836643 | F123: 68.82362025 | G123: 71.85877913 | H123: 75.0156486 | I123: 77.45234409 | J123: 78.51894963 | K123: 77.51402221 | L123: 73.63496772 | M123: 72.69878526 | N123: 75.41945607 | O123: 69.42655214 | P123: 65.38512131 | Q123: 65.64826865 | R123: 67.74256915
B124: Taxes on Products less Subsidies | C124: 4.59921511 | D124: 3.846241206 | E124: 3.784043219 | F124: 4.406104907 | G124: 5.114757653 | H124: 6.583801332 | I124: 5.729517945 | J124: 4.625379746 | K124: 6.510546408 | L124: 5.3353328 | M124: 5.737389667 | N124: 5.464986925 | O124: 4.707836342 | P124: 4.21589949 | Q124: 4.368575883 | R124: 5.062856384
B125: Less intermediate FISIM | C125: -0.706033644 | D125: -0.6928943956 | E125: -0.59163782 | F125: -0.490010492 | G125: -0.5673520254 | H125: -0.8277649869 | I125: -1.185457886 | J125: -1.349174067 | K125: -1.022042678 | L125: -0.8606829329 | M125: -0.997254074 | N125: -1.134889884 | O125: -1.119906541 | P125: -1.063622515 | Q125: -0.9224128183 | R125: -0.9559071289
B126: Real GDP at purchasers prices | C126: 80.76549155 | D126: 75.37091946 | E126: 72.26077183 | F126: 72.73971467 | G126: 76.40618476 | H126: 80.77168495 | I126: 81.99640415 | J126: 81.79515531 | K126: 83.00252594 | L126: 78.10961759 | M126: 77.43892085 | N126: 79.74955311 | O126: 73.01448194 | P126: 68.53739829 | Q126: 69.09443172 | R126: 71.8495184
A128: Table 2g : Chuuk: Constant price GDP by institutional sector, annual % growth, FY1995-FY2010
C129: =C2 -> FY1995 | D129: FY1996 | E129: FY1997 | F129: FY1998 | G129: FY1999 | H129: FY2000 | I129: FY2001 | J129: FY2002 | K129: FY2003 | L129: FY2004 | M129: FY2005 | N129: FY2006 | O129: FY2007 | P129: FY2008 | Q129: FY2009 | R129: =R2 -> FY2010
A130: 1.1 | B130: Private Enterprise | D130: =D117/C117-1 -> -0.2061222758 | E130: =E117/D117-1 -> -0.1572871736 | F130: 0.04830055944 | G130: 0.1165033391 | H130: 0.1618053954 | I130: -0.04435478678 | J130: -0.09449749916 | K130: 0.1169857088 | L130: -0.07752942568 | M130: -0.09444904983 | N130: -0.01202938344 | O130: -0.06488377256 | P130: -0.08266041005 | Q130: -0.1008383186 | R130: 0.2481159999
A131: 1.2 | B131: Public Enterprise | D131: =D118/C118-1 -> -0.097943167 | E131: 0.1639683298 | F131: 0.0960996959 | G131: -0.05712188127 | H131: 0.05742195183 | I131: -0.07205814614 | J131: 0.1190885495 | K131: -0.06122004129 | L131: -0.115334773 | M131: 0.1197491862 | N131: -0.03800390696 | O131: -0.0622667563 | P131: -0.005141251157 | Q131: 0.4536785134 | R131: -0.04627921499
A132: 2 | B132: Finance (Banks) | D132: -0.09583533375 | E132: -0.281548169 | F132: -0.3368540328 | G132: 0.7421780653 | H132: 0.4903086242 | I132: 0.5837291535 | J132: 0.1960712823 | K132: -0.2792166093 | L132: -0.1865421971 | M132: 0.3104690315 | N132: 0.1251800909 | O132: -0.03121940481 | P132: -0.1445273353 | Q132: -0.2011413514 | R132: 0.02932000281
A133: 3 | B133: Government | D133: -0.04227694134 | E133: -0.06099630586 | F133: -0.04880040866 | G133: 0.07692593171 | H133: 0.03019240686 | I133: 0.1532466329 | J133: 0.08355994375 | K133: -0.0791989165 | L133: -0.06783513649 | M133: -0.004370353325 | N133: 0.1416823932 | O133: -0.2143271062 | P133: -0.1073630088 | Q133: 0.04581066935 | R133: 0.004792665405
A134: 4 | B134: NGOs | D134: -0.01941328732 | E134: 0.04487461505 | F134: 0.016 | G134: 0.02569415665 | H134: -0.08646464646 | I134: -0.1587793012 | J134: 0.1756046267 | K134: -0.008944543828 | L134: 0.0166967509 | M134: -0.1677762983 | N134: 0.09226666667 | O134: -0.0302734375 | P134: 0.009063444109 | Q134: -0.01347305389 | R134: 0.04299443601
A135: 5 | B135: Households | D135: 0.002489452748 | E135: 0.002138174532 | F135: 0.002440121958 | G135: 0.002690403162 | H135: 0.001830614704 | I135: -0.005758858432 | J135: -0.005595846372 | K135: 0.00227475132 | L135: -0.01816968122 | M135: 0.001971042734 | N135: -0.01117274672 | O135: 0.01235070935 | P135: -0.02273046231 | Q135: -0.006978731425 | R135: -0.008401977733
B136: GDP at basic prices | D136: -0.06055154882 | E136: -0.04360720115 | F136: -0.003543535023 | G136: 0.04410054084 | H136: 0.04393157681 | I136: 0.03248249576 | J136: 0.01377112022 | K136: -0.01279853367 | L136: -0.05004326162 | M136: -0.01271383 | N136: 0.03742388266 | O136: -0.07946098046 | P136: -0.05821160213 | Q136: 0.004024575219 | R136: 0.03190183903
B137: Taxes on Products less Subsidies | D137: -0.1637179141 | E137: -0.01617110927 | F137: 0.1643907461 | G137: 0.1608342879 | H137: 0.2872166737 | I137: -0.129755341 | J137: -0.192710488 | K137: 0.4075701381 | L137: -0.180509213 | M137: 0.0753574111 | N137: -0.04747851518 | O137: -0.1385457263 | P137: -0.1044931931 | Q137: 0.03621442907 | R137: 0.1589260479
B138: Less intermediate FISIM | D138: -0.01860994648 | E138: -0.146135654 | F138: -0.1717728728 | G138: 0.1578364845 | H138: 0.4589971478 | I138: 0.4321189037 | J138: 0.138103752 | K138: -0.2424678897 | L138: -0.1578796551 | M138: 0.1586776453 | N138: 0.1380147885 | O138: -0.01320246389 | P138: -0.0502577892 | Q138: -0.1327629815 | R138: 0.03631162735
B139: Real GDP at purchasers prices | D139: -0.06679303238 | E139: -0.04126455735 | F139: 0.006627978483 | G139: 0.05040534052 | H139: 0.05713542964 | I139: 0.0151627294 | J139: -0.002454361762 | K139: 0.01476090638 | L139: -0.05894890908 | M139: -0.008586608876 | N139: 0.02983812573 | O139: -0.08445277625 | P139: -0.0613177487 | Q139: 0.008127437605 | R139: 0.0398742217
A140: Source: SBOC estimates
A141: Table 2h : Chuuk: Current price GDP by institutional sector, FY1995-FY2010
B142: (US$ millions) | C142: =C2 -> FY1995 | D142: FY1996 | E142: FY1997 | F142: FY1998 | G142: FY1999 | H142: FY2000 | I142: FY2001 | J142: FY2002 | K142: FY2003 | L142: FY2004 | M142: FY2005 | N142: FY2006 | O142: FY2007 | P142: FY2008 | Q142: FY2009 | R142: =R2 -> FY2010
A143: 1.1 | B143: Private Enterprise | C143: 14.57811577 | D143: 11.89826783 | E143: 10.23151109 | F143: 10.98923119 | G143: 12.56897099 | H143: 14.79894391 | I143: 14.40172891 | J143: 13.08094502 | K143: 14.634422 | L143: 13.83381999 | M143: 13.33996531 | N143: 14.08029526 | O143: 13.69665622 | P143: 13.70638408 | Q143: 12.38770154 | R143: 16.08293918
A144: 1.2 | B144: Public Enterprise | C144: 2.095721097 | D144: 1.701817023 | E144: 2.894555805 | F144: 3.279099121 | G144: 2.820227225 | H144: 3.765367272 | I144: 3.403170261 | J144: 2.686645554 | K144: 2.789861174 | L144: 2.185152758 | M144: 2.403879979 | N144: 2.065171889 | O144: 1.997578992 | P144: 2.375195137 | Q144: 5.025874269 | R144: 4.078887822
A145: 2 | B145: Finance (Banks) | C145: 0.6563428777 | D145: 0.6100363339 | E145: 0.4499692337 | F145: 0.3032665977 | G145: 0.5384850698 | H145: 0.8172694147 | I145: 1.311380466 | J145: 1.566004175 | K145: 1.12598894 | L145: 0.9319321747 | M145: 1.271175451 | N145: 1.493175862 | O145: 1.499205528 | P145: 1.367432623 | Q145: 1.182090808 | R145: 1.268540101
A146: 3 | B146: Government | C146: 25.28926961 | D146: 23.92643377 | E146: 19.03108464 | F146: 18.4687498 | G146: 18.78467177 | H146: 20.17456841 | I146: 22.8089242 | J146: 24.27777021 | K146: 23.26314571 | L146: 22.1151998 | M146: 22.17509433 | N146: 23.87910312 | O146: 20.9321374 | P146: 18.24952545 | Q146: 19.69183799 | R146: 21.55412454
A147: 4 | B147: NGOs | C147: 0.721852561 | D147: 0.7290906505 | E147: 0.7389161457 | F147: 0.7623368742 | G147: 0.7492978441 | H147: 0.7943838353 | I147: 0.7309087584 | J147: 0.858199645 | K147: 0.84999591 | L147: 0.8959381688 | M147: 0.8613997054 | N147: 0.9038430299 | O147: 0.9146053913 | P147: 0.9734105471 | Q147: 0.9506139203 | R147: 0.9825953667
A148: 5 | B148: Households | C148: 32.7696238 | D148: 33.76873338 | E148: 34.74213461 | F148: 35.3942959 | G148: 36.16929967 | H148: 36.16567274 | I148: 36.76258931 | J148: 36.03282542 | K148: 34.82930442 | L148: 33.67292484 | M148: 34.04959891 | N148: 33.28939547 | O148: 34.10717883 | P148: 33.82851114 | Q148: 34.59934559 | R148: 35.56558707
B149: GDP at basic prices | C149: 76.11092572 | D149: 72.63437898 | E149: 68.08817153 | F149: 69.19697949 | G149: 71.63095257 | H149: 76.51620558 | I149: 79.41870191 | J149: 78.50239003 | K149: 77.49271816 | L149: 73.63496772 | M149: 74.10111368 | N149: 75.71098463 | O149: 73.14736236 | P149: 70.50045898 | Q149: 73.83746412 | R149: 79.53267408
B150: Taxes on Products less Subsidies | C150: 3.948303141 | D150: 1.797196501 | E150: 2.480025908 | F150: 3.166447052 | G150: 3.635051811 | H150: 4.703522536 | I150: 4.120957863 | J150: 3.602495138 | K150: 5.523323 | L150: 5.3353328 | M150: 5.687995053 | N150: 5.64730004 | O150: 5.06511424 | P150: 4.84662027 | Q150: 5.78877901 | R150: 7.217748
B151: Less intermediate FISIM | C151: -0.6176930546 | D151: -0.6231488021 | E151: -0.5462734656 | F151: -0.4598245799 | G151: -0.5426202026 | H151: -0.8062426476 | I151: -1.169842506 | J151: -1.329279767 | K151: -1.004509109 | L151: -0.8606829329 | M151: -1.038006919 | N151: -1.233194498 | O151: -1.261201324 | P151: -1.277111404 | Q151: -1.1985097 | R151: -1.294895948
B152: GDP at purchasers prices | C152: 79.44153581 | D152: 73.80842668 | E152: 70.02192397 | F152: 71.90360196 | G152: 74.72338418 | H152: 80.41348547 | I152: 82.36981727 | J152: 80.7756054 | K152: 82.01153205 | L152: 78.10961759 | M152: 78.75110181 | N152: 80.12509017 | O152: 76.95127528 | P152: 74.06996785 | Q152: 78.42773343 | R152: 85.45552613
A154: Table 2i : Chuuk: Implicit GDP price deflators by institutional sector, FY1995-FY2010
B155: (FY2004=100) | C155: =C2 -> FY1995 | D155: FY1996 | E155: FY1997 | F155: FY1998 | G155: FY1999 | H155: FY2000 | I155: FY2001 | J155: FY2002 | K155: FY2003 | L155: FY2004 | M155: FY2005 | N155: FY2006 | O155: FY2007 | P155: FY2008 | Q155: FY2009 | R155: =R2 -> FY2010
A156: 1.1 | B156: Private Enterprise | C156: =C143/C117*100 -> 85.47875908 | D156: 87.87937074 | E156: 89.67334564 | F156: 91.87663622 | G156: 94.11903674 | H156: 95.38390209 | I156: 97.13199388 | J156: 97.43099518 | K156: 97.58565372 | L156: 100 | M156: 106.4877595 | N156: 113.7660614 | O156: 118.3450024 | P156: 129.1005606 | Q156: 129.7651799 | R156: =R143/R117*100 -> 134.9826372
A157: 1.2 | B157: Public Enterprise | C157: =C144/C118*100 -> 94.90927723 | D157: 85.43860396 | E157: 124.8481304 | F157: 129.0341317 | G157: 117.7005799 | H157: 148.6118783 | I157: 144.7468408 | J157: 102.1107199 | K157: 112.9483127 | L157: 100 | M157: 98.24494689 | N157: 87.73650665 | O157: 90.50004249 | P157: 108.1639884 | Q157: 157.4441926 | R157: =R144/R118*100 -> 133.9786324
A158: 2 | B158: Finance (Banks) | C158: =C145/C119*100 -> 87.48776491 | D158: 89.93416688 | E158: 92.33241133 | F158: 93.83974168 | G158: 95.64083289 | H158: 97.39994568 | I158: 98.68275541 | J158: 98.52544599 | K158: 98.28445822 | L158: 100 | M158: 104.0865057 | N158: 108.6620398 | O158: 112.6166583 | P158: 120.0718664 | Q158: 129.93203 | R158: =R145/R119*100 -> 135.4625265
A159: 3 | B159: Government | C159: =C146/C120*100 -> 116.4024673 | D159: 114.9910203 | E159: 97.40521189 | F159: 99.37668318 | G159: 93.85659098 | H159: 97.84690053 | I159: 95.92359067 | J159: 94.22724202 | K159: 98.0551261 | L159: 100 | M159: 100.7109722 | N159: 94.99134134 | O159: 105.9833922 | P159: 103.5144395 | Q159: 106.8027769 | R159: =R146/R120*100 -> 116.3456693
A160: 4 | B160: NGOs | C160: =C147/C121*100 -> 78.31018012 | D160: 80.6613054 | E160: 78.23745147 | F160: 79.4461321 | G160: 76.13115746 | H160: 88.3513091 | I160: 96.63530157 | J160: 96.51608211 | K160: 96.45621875 | L160: 100 | M160: 115.5278257 | N160: 110.9803816 | O160: 115.8077612 | P160: 122.1466283 | Q160: 120.9151317 | R160: =R147/R121*100 -> 119.8310056
A161: 5 | B161: Households | C161: =C148/C122*100 -> 95.78456247 | D161: 98.45981674 | E161: 101.0818414 | F161: 102.7286268 | G161: 104.6963272 | H161: 104.4945394 | I161: 106.8344726 | J161: 105.3029907 | K161: 101.5547869 | L161: 100 | M161: 100.9197089 | N161: 99.7813716 | O161: 100.9853483 | P161: 102.4899053 | Q161: 105.5619835 | R161: =R148/R122*100 -> 109.4293923
B162: GDP at basic prices | C162: =C149/C123*100 -> 99.00954666 | D162: 100.5771536 | E162: 98.58083382 | F162: 100.5424871 | G162: 99.68295237 | H162: 102.0003253 | I162: 102.538797 | J162: 99.97891005 | K162: 99.97251587 | L162: 100 | M162: 101.9289572 | N162: 100.3865429 | O162: 105.3593475 | P162: 107.8233971 | Q162: 112.474351 | R162: =R149/R123*100 -> 117.4042778
B163: Taxes on Products less Subsidies | C163: =C150/C124*100 -> 85.84732496 | D163: 46.7260477 | E163: 65.53904815 | F163: 71.86499456 | G163: 71.06987384 | H163: 71.44083332 | I163: 71.92503632 | J163: 77.88539182 | K163: 84.83655063 | L163: 100 | M163: 99.13907513 | N163: 103.3360211 | O163: 107.5890042 | P163: 114.960527 | Q163: 132.5095217 | R163: =R150/R124*100 -> 142.562764
B164: Less intermediate FISIM | C164: =C151/C125*100 -> 87.48776491 | D164: 89.93416688 | E164: 92.33241133 | F164: 93.83974168 | G164: 95.64083289 | H164: 97.39994568 | I164: 98.68275541 | J164: 98.52544599 | K164: 98.28445822 | L164: 100 | M164: 104.0865057 | N164: 108.6620398 | O164: 112.6166583 | P164: 120.0718664 | Q164: 129.93203 | R164: =R151/R125*100 -> 135.4625265
B165: GDP at purchasers prices | C165: =C152/C126*100 -> 98.36074081 | D165: 97.92692886 | E165: 96.90171057 | F165: 98.85054168 | G165: 97.79755974 | H165: 99.55652841 | I165: 100.4554018 | J165: 98.75353264 | K165: 98.80606779 | L165: 100 | M165: 101.6944722 | N165: 100.4708955 | O165: 105.3917979 | P165: 108.0723367 | Q165: 113.5080374 | R165: =R152/R126*100 -> 118.9368113
A167: Table 2j : Chuuk: Share of GDP by institutional sector, current prices, FY1995-FY2010
C168: =C2 -> FY1995 | D168: FY1996 | E168: FY1997 | F168: FY1998 | G168: FY1999 | H168: FY2000 | I168: FY2001 | J168: FY2002 | K168: FY2003 | L168: FY2004 | M168: FY2005 | N168: FY2006 | O168: FY2007 | P168: FY2008 | Q168: FY2009 | R168: =R2 -> FY2010
A169: 1.1 | B169: Private Enterprise | C169: =C143/C$152 -> 0.1835074766 | D169: =D143/D$152 -> 0.1612047345 | E169: =E143/E$152 -> 0.1461186799 | F169: 0.152832833 | G169: 0.1682066615 | H169: 0.1840355983 | I169: 0.1748423073 | J169: 0.1619417763 | K169: 0.1784434656 | L169: 0.1771077674 | M169: 0.1693940148 | N169: 0.1757289163 | O169: 0.1779912831 | P169: 0.185046443 | Q169: =Q143/Q$152 -> 0.1579505234 | R169: 0.1882024476
A170: 1.2 | B170: Public Enterprise | C170: =C144/C$152 -> 0.02638067198 | D170: 0.02305721852 | E170: =E144/E$152 -> 0.04133785022 | F170: 0.04560410092 | G170: 0.03774223098 | H170: 0.04682507231 | I170: 0.04131574373 | J170: 0.0332606056 | K170: 0.03401791314 | L170: 0.02797546352 | M170: 0.03052503296 | N170: 0.02577434714 | O170: 0.02595901087 | P170: 0.03206691195 | Q170: =Q144/Q$152 -> 0.06408287031 | R170: 0.04773111823
A171: 2 | B171: Finance (Banks) | C171: 0.00826196109 | D171: 0.008265131251 | E171: =E145/E$152 -> 0.006426119251 | F171: 0.004217682973 | G171: 0.007206379579 | H171: 0.01016333778 | I171: 0.01592064314 | J171: 0.01938709301 | K171: 0.01372964157 | L171: 0.011931081 | M171: 0.01614168465 | N171: 0.01863555921 | O171: 0.01948252999 | P171: 0.0184613638 | Q171: =Q145/Q$152 -> 0.01507235715 | R171: 0.01484444785
A172: 3 | B172: Government | C172: 0.3183381257 | D172: 0.3241694051 | E172: =E146/E$152 -> 0.271787514 | F172: 0.2568543063 | G172: 0.2513894677 | H172: 0.2508853869 | I172: 0.276908763 | J172: 0.3005581957 | K172: 0.2836570069 | L172: 0.2831303043 | M172: 0.2815845597 | N172: 0.2980227925 | O172: 0.2720180702 | P172: 0.2463822515 | Q172: =Q146/Q$152 -> 0.2510825843 | R172: 0.2522262224
A173: 4 | B173: NGOs | C173: 0.009086588693 | D173: 0.009878149193 | E173: =E147/E$152 -> 0.01055263986 | F173: 0.01060220703 | G173: 0.01002762191 | H173: 0.009878739003 | I173: 0.008873502244 | J173: 0.01062449041 | K173: 0.01036434619 | L173: 0.011470267 | M173: 0.01093825592 | N173: 0.01128039953 | O173: 0.01188551311 | P173: 0.01314177089 | Q173: =Q147/Q$152 -> 0.01212088988 | R173: 0.01149832446
A174: 5 | B174: Households | C174: 0.4124998777 | D174: 0.4575186723 | E174: =E148/E$152 -> 0.4961608114 | F174: 0.492246493 | G174: 0.4840425801 | H174: 0.4497463644 | I174: 0.4463114103 | J174: 0.4460854888 | K174: 0.424687889 | L174: 0.4310983189 | M174: 0.4323698097 | N174: 0.4154678066 | O174: 0.4432308458 | P174: 0.4567102177 | Q174: =Q148/Q$152 -> 0.4411621256 | R174: 0.416188264
B175: GDP at basic prices | C175: 0.9580747017 | D175: 0.9840933109 | E175: =E149/E$152 -> 0.9723836146 | F175: 0.9623576233 | G175: 0.9586149417 | H175: 0.9515344987 | I175: 0.9641723697 | J175: 0.9718576498 | K175: 0.9449002625 | L175: 0.9427132022 | M175: 0.9409533578 | N175: 0.9449098212 | O175: 0.9505672531 | P175: 0.9518089589 | Q175: =Q149/Q$152 -> 0.9414713506 | R175: 0.9306908246
B176: Taxes on Products less Subsidies | C176: 0.04970074032 | D176: 0.02434947582 | E176: =E150/E$152 -> 0.03541784868 | F176: 0.04403739125 | G176: 0.04864677705 | H176: 0.05849171328 | I176: 0.05002995029 | J176: 0.04459880085 | K176: 0.06734812607 | L176: 0.06830570888 | M176: 0.07222749805 | N176: 0.07048104442 | O176: 0.06582235605 | P176: 0.06543300086 | Q176: =Q150/Q$152 -> 0.07381035709 | R176: 0.08446203922
B177: Less intermediate FISIM | C177: -0.007775442007 | D177: -0.008442786686 | E177: =E151/E$152 -> -0.007801463236 | F177: -0.006395014538 | G177: -0.007261718785 | H177: -0.01002621193 | I177: -0.01420232003 | J177: -0.01645645069 | K177: -0.01224838854 | L177: -0.01101891111 | M177: -0.01318085582 | N177: -0.01539086565 | O177: -0.01638960913 | P177: -0.01724195975 | Q177: =Q151/Q$152 -> -0.01528170773 | R177: -0.0151528638
B178: GDP at purchasers prices | C178: 1 | D178: 1 | E178: =E152/E$152 -> 1 | F178: 1 | G178: 1 | H178: 1 | I178: 1 | J178: 1 | K178: 1 | L178: 1 | M178: 1 | N178: 1 | O178: 1 | P178: 1 | Q178: =Q152/Q$152 -> 1 | R178: 1
A179: Source: SBOC estimates
A180: Table 2k : Chuuk: GDP by income component, current prices, FY1995-FY2010
B181: (US$ millions) | C181: =C2 -> FY1995 | D181: FY1996 | E181: FY1997 | F181: FY1998 | G181: FY1999 | H181: FY2000 | I181: FY2001 | J181: FY2002 | K181: FY2003 | L181: FY2004 | M181: FY2005 | N181: FY2006 | O181: FY2007 | P181: FY2008 | Q181: FY2009 | R181: =R2 -> FY2010
B182: Compensation of employees | C182: 33.5932458 | D182: 31.91484017 | E182: 26.82661407 | F182: 26.50036921 | G182: 27.17934917 | H182: 30.05238108 | I182: 32.60968119 | J182: 34.10361734 | K182: 33.30868808 | L182: 31.9302577 | M182: 31.60432398 | N182: 33.49786477 | O182: 30.61803568 | P182: 27.55519518 | Q182: 29.17086438 | R182: 32.58742258
B183: Operating surplus (Gross before depreciation) | C183: 9.748056122 | D183: 6.950805437 | E183: 6.519422847 | F183: 7.302314374 | G183: 8.282303727 | H183: 10.29815176 | I183: 10.0464314 | J183: 8.365947273 | K183: 9.354725655 | L183: 8.031785185 | M183: 8.447190787 | N183: 8.923724395 | O183: 8.42214785 | P183: 9.116752661 | Q183: 10.06725414 | R183: 11.37966443
B184: Household mixed income | C184: 2.937015459 | D184: 3.024424713 | E184: 3.098036255 | F184: 3.151974008 | G184: 3.224547659 | H184: 3.196193061 | I184: 3.301443054 | J184: 3.281363315 | K184: 3.474426637 | L184: 3.014743721 | M184: 3.370946188 | N184: 3.20144703 | O184: 3.933578342 | P184: 3.481030335 | Q184: 3.654145838 | R184: 3.81863478
B185: Taxes on Products less Subsidies | C185: 3.948303141 | D185: 1.797196501 | E185: 2.480025908 | F185: 3.166447052 | G185: 3.635051811 | H185: 4.703522536 | I185: 4.120957863 | J185: 3.602495138 | K185: 5.523323 | L185: 5.3353328 | M185: 5.687995053 | N185: 5.64730004 | O185: 5.06511424 | P185: 4.84662027 | Q185: 5.78877901 | R185: 7.217748
B186: Less intermediate FISIM | C186: -0.6176930546 | D186: -0.6231488021 | E186: -0.5462734656 | F186: -0.4598245799 | G186: -0.5426202026 | H186: -0.8062426476 | I186: -1.169842506 | J186: -1.329279767 | K186: -1.004509109 | L186: -0.8606829329 | M186: -1.038006919 | N186: -1.233194498 | O186: -1.261201324 | P186: -1.277111404 | Q186: -1.1985097 | R186: -1.294895948
B187: Total Monetary | C187: 49.60892746 | D187: 43.06411802 | E187: 38.37782562 | F187: 39.66128007 | G187: 41.77863217 | H187: 47.44400579 | I187: 48.90867101 | J187: 48.0241433 | K187: 50.65665426 | L187: 47.45143647 | M187: 48.07244909 | N187: 50.03714174 | O187: 46.77767479 | P187: 43.72248704 | Q187: 47.48253368 | R187: 53.70857384
B188: Percentage Monetary | C188: 0.6244709013 | D188: 0.5834580136 | E188: 0.5480829923 | F188: 0.5515896142 | G188: 0.5591105465 | H188: 0.5900006139 | I188: 0.5937693275 | J188: 0.594537708 | K188: 0.6176772095 | L188: 0.6074980001 | M188: 0.6104352572 | N188: 0.6244878056 | O188: 0.607886934 | P188: 0.590286297 | Q188: 0.6054303956 | R188: 0.6284973748
B189: Household subsistence | C189: 19.94940988 | D189: 20.52490525 | E189: 21.09037666 | F189: 21.45313053 | G189: 21.88370917 | H189: 21.8432286 | I189: 22.16339474 | J189: 21.5868979 | K189: 20.58617353 | L189: 20.02159955 | M189: 20.1917999 | N189: 19.72301384 | O189: 19.86191987 | P189: 20.08984584 | Q189: 20.74240868 | R189: 21.59981
B190: Home Ownership | C190: 9.883198464 | D190: 10.21940341 | E190: 10.5537217 | F190: 10.78919136 | G190: 11.06104285 | H190: 11.12625107 | I190: 11.29775151 | J190: 11.1645642 | K190: 10.76870426 | L190: 10.63658157 | M190: 10.48685282 | N190: 10.3649346 | O190: 10.31168061 | P190: 10.25763497 | Q190: 10.20279107 | R190: 10.14714229
B191: Total Non-Monetary | C191: 29.83260834 | D191: 30.74430866 | E191: 31.64409836 | F191: 32.2423219 | G191: 32.94475202 | H191: 32.96947968 | I191: 33.46114626 | J191: 32.7514621 | K191: 31.35487779 | L191: 30.65818111 | M191: 30.67865272 | N191: 30.08794844 | O191: 30.17360048 | P191: 30.34748081 | Q191: 30.94519975 | R191: 31.74695229
B192: Percentage Non-Monetary | C192: 0.3755290987 | D192: 0.4165419864 | E192: 0.4519170077 | F192: 0.4484103858 | G192: 0.4408894535 | H192: 0.4099993861 | I192: 0.4062306725 | J192: 0.405462292 | K192: 0.3823227905 | L192: 0.3925019999 | M192: 0.3895647428 | N192: 0.3755121944 | O192: 0.392113066 | P192: 0.409713703 | Q192: 0.3945696044 | R192: 0.3715026252
B193: GDP at purchasers prices | C193: 79.44153581 | D193: 73.80842668 | E193: 70.02192397 | F193: 71.90360196 | G193: 74.72338418 | H193: 80.41348547 | I193: 82.36981727 | J193: 80.7756054 | K193: 82.01153205 | L193: 78.10961759 | M193: 78.75110181 | N193: 80.12509017 | O193: 76.95127528 | P193: 74.06996785 | Q193: 78.42773343 | R193: 85.45552613
A195: Table 2l : Chuuk: Current price GDP by institutional sector and income components, FY1995-FY2010
B196: (US$ millions) | C196: =C2 -> FY1995 | D196: FY1996 | E196: FY1997 | F196: FY1998 | G196: FY1999 | H196: FY2000 | I196: FY2001 | J196: FY2002 | K196: FY2003 | L196: FY2004 | M196: FY2005 | N196: FY2006 | O196: FY2007 | P196: FY2008 | Q196: FY2009 | R196: =R2 -> FY2010
A197: 1 | B197: Productive Enterprises | C197: 16.25860161 | D197: 11.5796323 | E197: 11.7671391 | F197: 12.87830562 | G197: 13.76748648 | H197: 16.6650176 | I197: 15.96330559 | J197: 14.50949072 | K197: 16.42428317 | L197: 15.89396274 | M197: 15.27472928 | N197: 15.66546715 | O197: 15.29559521 | P197: 15.69710622 | Q197: 17.32143981 | R197: 20.161827
A198: 1.1 | B198: Private Sector | C198: 14.57811577 | D198: 11.89826783 | E198: 10.23151109 | F198: 10.98923119 | G198: 12.56897099 | H198: 14.79894391 | I198: 14.40172891 | J198: 13.08094502 | K198: 14.634422 | L198: 13.83381999 | M198: 13.33996531 | N198: 14.08029526 | O198: 13.69665622 | P198: 13.70638408 | Q198: 12.38770154 | R198: 16.08293918
B199: Compensation | C199: 6.062817773 | D199: 5.37687483 | E199: 4.922544092 | F199: 4.957378193 | G199: 5.288925988 | H199: 6.54455291 | I199: 6.359200906 | J199: 6.351263024 | K199: 6.627178 | L199: 6.617499542 | M199: 6.309606195 | N199: 6.26875283 | O199: 6.307998405 | P199: 6.030014987 | Q199: 6.133009519 | R199: 7.541426102
B200: Operating Surplus | C200: 8.515298 | D200: 6.521393 | E200: 5.308967 | F200: 6.031853 | G200: 7.280045 | H200: 8.254391 | I200: 8.042528 | J200: 6.729682 | K200: 8.007244 | L200: 7.216320444 | M200: 7.030359113 | N200: 7.811542431 | O200: 7.388657818 | P200: 7.676369097 | Q200: 6.254692024 | R200: 8.541513077
A201: 1.2 | B201: Public Enterprises | C201: 1.680485839 | D201: -0.3186355316 | E201: 1.535628005 | F201: 1.889074423 | G201: 1.198515496 | H201: 1.866073688 | I201: 1.561576685 | J201: 1.428545692 | K201: 1.789861174 | L201: 2.060142758 | M201: 1.934763971 | N201: 1.585171889 | O201: 1.598938992 | P201: 1.990722137 | Q201: 4.933738269 | R201: 4.078887822
B202: Compensation | C202: 0.8248963294 | D202: 1.131211129 | E202: 1.47083455 | F202: 1.750832171 | G202: 1.794366751 | H202: 1.856982371 | I202: 1.810846999 | J202: 1.777906413 | K202: 1.62103647 | L202: 1.507265862 | M202: 1.442725551 | N202: 1.563275572 | O202: 1.587090845 | P202: 1.492774385 | Q202: 1.621530611 | R202: 1.639632316
B203: Operating Surplus | C203: 1.270824768 | D203: 0.5706058934 | E203: 1.423721255 | F203: 1.528266949 | G203: 1.025860474 | H203: 1.908384901 | I203: 1.592323262 | J203: 0.9087391408 | K203: 1.168824704 | L203: 0.6778868953 | M203: 0.9611544276 | N203: 0.5018963171 | O203: 0.4104881464 | P203: 0.8824207514 | Q203: 3.404343658 | R203: 2.439255505
B204: less Subsidies | C204: -0.4152352587 | D204: -2.020452554 | E204: -1.3589278 | F204: -1.390024698 | G204: -1.621711729 | H204: -1.899293584 | I204: -1.841593577 | J204: -1.258099862 | K204: -1 | L204: -0.12501 | M204: -0.4691160071 | N204: -0.48 | O204: -0.39864 | P204: -0.384473 | Q204: -0.092136 | R204: 0
A205: 2 | B205: Financial Enterprises | C205: 0.6563428777 | D205: 0.6100363339 | E205: 0.4499692337 | F205: 0.3032665977 | G205: 0.5384850698 | H205: 0.8172694147 | I205: 1.311380466 | J205: 1.566004175 | K205: 1.12598894 | L205: 0.9319321747 | M205: 1.271175451 | N205: 1.493175862 | O205: 1.499205528 | P205: 1.367432623 | Q205: 1.182090808 | R205: 1.268540101
B206: Compensation | C206: 0.6944095237 | D206: 0.7512297899 | E206: 0.6632346412 | F206: 0.5610721732 | G206: 0.5620868174 | H206: 0.6818935511 | I206: 0.899800324 | J206: 0.8384780419 | K206: 0.947331988 | L206: 0.7943543294 | M206: 0.815498204 | N206: 0.8828902152 | O206: 0.8762036416 | P206: 0.8094698109 | Q206: 0.7738723461 | R206: 0.8696442571
B207: Operating Surplus | C207: -0.03806664596 | D207: -0.141193456 | E207: -0.2132654076 | F207: -0.2578055755 | G207: -0.02360174755 | H207: 0.1353758635 | I207: 0.411580142 | J207: 0.7275261326 | K207: 0.1786569515 | L207: 0.1375778453 | M207: 0.455677247 | N207: 0.6102856468 | O207: 0.6230018865 | P207: 0.557962812 | Q207: 0.4082184624 | R207: 0.398895844
... 14 more rows

Sheet gdp_K
A1: Table 3a : Kosrae: Constant price GDP by industry, FY1995-FY2010
B2: (constant prices of FY2004, US$ millions) | C2: FY1995 | D2: FY1996 | E2: FY1997 | F2: FY1998 | G2: FY1999 | H2: FY2000 | I2: FY2001 | J2: FY2002 | K2: FY2003 | L2: FY2004 | M2: FY2005 | N2: FY2006 | O2: FY2007 | P2: FY2008 | Q2: FY2009 | R2: FY2010
A3: A | B3: Agriculture, Hunting and Forestry | C3: 1.163267287 | D3: 1.158897887 | E3: 1.155372063 | F3: 1.153035518 | G3: 1.141869775 | H3: 1.138230252 | I3: 1.111661835 | J3: 1.0712586 | K3: 1.043052871 | L3: 1.005278474 | M3: 0.9762385289 | N3: 0.9440640825 | O3: 0.9404590558 | P3: 0.9018767057 | Q3: 0.8831464838 | R3: 0.8533045105
A4: B | B4: Fisheries | C4: 1.397805891 | D4: 0.8924413702 | E4: 1.031083733 | F4: 1.109248609 | G4: 1.012576977 | H4: 0.9422092102 | I4: 0.8290597843 | J4: 0.8164578562 | K4: 0.7994861209 | L4: 0.7823094286 | M4: 0.7903702338 | N4: 0.8041167662 | O4: 0.8661471321 | P4: 0.8487851806 | Q4: 0.9651847162 | R4: 1.000207521
A5: C | B5: Mining and Quarrying | C5: 0 | D5: 0 | E5: 0 | F5: 0 | G5: 0 | H5: 0 | I5: 0 | J5: 0 | K5: 0 | L5: 0 | M5: 0 | N5: 0 | O5: 0 | P5: 0 | Q5: 0 | R5: 0
A6: D | B6: Manufacturing | C6: 0.114231741 | D6: 0.1221602161 | E6: 0.1893000395 | F6: 0.3138866206 | G6: 0.3400037374 | H6: 0.4654501197 | I6: 0.3089689182 | J6: 0.317698201 | K6: 0.319404188 | L6: 0.2937859414 | M6: 0.2495594333 | N6: 0.2282937702 | O6: 0.2391004271 | P6: 0.2303593008 | Q6: 0.1817104209 | R6: 0.2255896725
A7: E | B7: Electricity, Gas and Water Supply | C7: 0.7289729226 | D7: 0.6116471733 | E7: 0.5796330729 | F7: 0.5738823919 | G7: 0.5533815875 | H7: 0.4919310635 | I7: 0.4936692848 | J7: 0.3717192766 | K7: 0.4830572034 | L7: 0.444166 | M7: 0.4170133001 | N7: 0.3890306049 | O7: 0.3784185235 | P7: 0.3660871663 | Q7: 0.3570165045 | R7: 0.3855920534
A8: F | B8: Construction | C8: 1.224116042 | D8: 1.734257254 | E8: 1.195174924 | F8: 0.99330024 | G8: 1.304254315 | H8: 1.193233805 | I8: 1.13487564 | J8: 0.9040812648 | K8: 1.201132863 | L8: 1.214082287 | M8: 1.091075463 | N8: 1.033686266 | O8: 0.9132721872 | P8: 1.072899074 | Q8: 1.756372839 | R8: 1.371116302
A9: G | B9: Wholesale and Retail Trade and Repairs | C9: 2.180888295 | D9: 2.123532384 | E9: 1.514560467 | F9: 1.076063526 | G9: 1.345709802 | H9: 1.302987312 | I9: 3.106803179 | J9: 2.025400306 | K9: 1.868843502 | L9: 1.988700565 | M9: 1.730326939 | N9: 1.93662358 | O9: 1.801102728 | P9: 1.679294849 | Q9: 1.788329017 | R9: 1.975732113
A10: H | B10: Hotels and Restaurants | C10: 0.2176211928 | D10: 0.3243049469 | E10: 0.3374972863 | F10: 0.2663309735 | G10: 0.2842186734 | H10: 0.3168904544 | I10: 0.3375735617 | J10: 0.3054638428 | K10: 0.2867355074 | L10: 0.2686287489 | M10: 0.2584693907 | N10: 0.2399796238 | O10: 0.2499087441 | P10: 0.2428319845 | Q10: 0.2140291614 | R10: 0.2345440771
A11: I | B11: Transport, Storage and Communications | C11: 0.9832508258 | D11: 0.9615296512 | E11: 0.9462698212 | F11: 0.9275489023 | G11: 1.113154478 | H11: 1.08602081 | I11: 1.061136832 | J11: 1.026496111 | K11: 0.9816221648 | L11: 0.9373534119 | M11: 0.8930013628 | N11: 0.8793818997 | O11: 0.7742719894 | P11: 0.6867777822 | Q11: 0.7226211229 | R11: 0.6963476041
A12: J | B12: Financial Intermediation | C12: 0.2137764402 | D12: 0.2075636356 | E12: 0.2262542169 | F12: 0.1514073632 | G12: 0.2130944882 | H12: 0.3590130051 | I12: 0.4549921665 | J12: 0.7402356334 | K12: 0.2528291756 | L12: 0.1773542485 | M12: 0.2455230439 | N12: 0.2730256862 | O12: 0.2806284055 | P12: 0.2583381184 | Q12: 0.2090781219 | R12: 0.2829758793
A13: K | B13: Real Estate, Renting, Business Activities | C13: 1.618539348 | D13: 1.711522206 | E13: 1.78286633 | F13: 1.81385326 | G13: 1.960011867 | H13: 2.060199148 | I13: 2.103360958 | J13: 2.070551719 | K13: 2.003835592 | L13: 2.014237811 | M13: 1.950520188 | N13: 1.827041959 | O13: 1.807225897 | P13: 1.720058342 | Q13: 1.692727841 | R13: 1.735640095
A14: L | B14: Public Administration | C14: 3.673133946 | D14: 3.648304146 | E14: 3.640576816 | F14: 2.848040286 | G14: 2.839934088 | H14: 3.306628279 | I14: 3.271345682 | J14: 3.705320238 | K14: 3.37811233 | L14: 3.045820162 | M14: 3.070402136 | N14: 3.045259129 | O14: 2.767212208 | P14: 2.426134085 | Q14: 2.310763948 | R14: 2.314188882
A15: M | B15: Education | C15: 2.041547252 | D15: 2.230964936 | E15: 2.251834216 | F15: 1.740078964 | G15: 1.684540896 | H15: 1.689811366 | I15: 1.864953442 | J15: 2.294358248 | K15: 2.296460106 | L15: 2.40077393 | M15: 2.453052258 | N15: 2.614575178 | O15: 2.911029761 | P15: 2.903484463 | Q15: 2.871364428 | R15: 2.747781208
A16: N | B16: Health and Social Work | C16: 0.781756817 | D16: 0.7984293238 | E16: 0.7625679248 | F16: 0.591541044 | G16: 0.6100326242 | H16: 0.7766867437 | I16: 0.8089843419 | J16: 1.042294991 | K16: 1.01268622 | L16: 1.058882376 | M16: 1.093997932 | N16: 1.078843739 | O16: 1.12929395 | P16: 1.142470749 | Q16: 1.15839367 | R16: 1.20217602
A17: O | B17: Other Community, Social, Personal Services | C17: 0.1050852229 | D17: 0.1029115154 | E17: 0.07150349446 | F17: 0.06513389702 | G17: 0.04638480283 | H17: 0.1411159898 | I17: 0.2057793828 | J17: 0.2489994211 | K17: 0.2285998159 | L17: 0.1112477366 | M17: 0.1187491997 | N17: 0.1556311062 | O17: 0.1991191657 | P17: 0.1583576428 | Q17: 0.1401859668 | R17: 0.1095599058
B18: less intermediate FISIM | C18: -0.1658977236 | D18: -0.1647030334 | E18: -0.1410348642 | F18: -0.1930606394 | G18: -0.1368034455 | H18: -0.285515988 | I18: -0.2590721393 | J18: -0.4979419903 | K18: -0.1764514865 | L18: -0.1228758063 | M18: -0.1602074765 | N18: -0.1824538622 | O18: -0.1911557756 | P18: -0.1947443553 | Q18: -0.1694918164 | R18: -0.2213741465
B19: GDP at basic prices | C19: 16.2780955 | D19: 16.46376361 | E19: 15.54345954 | F19: 13.43029096 | G19: 14.31236467 | H19: 14.98489157 | I19: 16.83409287 | J19: 16.44239372 | K19: 15.97940617 | L19: 15.61974531 | M19: 15.17809193 | N19: 15.26709953 | O19: 15.0660344 | P19: 14.44301109 | Q19: 15.08143243 | R19: 14.9133817
B20: Taxes on products | C20: 1.354729743 | D20: 1.40197247 | E20: 1.256847666 | F20: 1.342057906 | G20: 1.615708892 | H20: 1.639428937 | I20: 1.607837699 | J20: 1.406505411 | K20: 1.36946839 | L20: 1.261632 | M20: 1.336447762 | N20: 1.272637125 | O20: 1.257210934 | P20: 1.172049726 | Q20: 1.264342402 | R20: 1.144941481
B21: less subsidies | C21: -0.4730505463 | D21: -0.4074864904 | E21: -0.3634376212 | F21: -0.376445735 | G21: -0.377233557 | H21: -0.2760281815 | I21: -0.9273689795 | J21: -0.2441136351 | K21: -0.2434089931 | L21: -0.223812 | M21: -0.2128580741 | N21: -0.1960296775 | O21: -0.1906823273 | P21: -0.1844686466 | Q21: -0.1798980064 | R21: -0.1942970166
B22: GDP at purchasers prices | C22: 17.15977469 | D22: 17.45824959 | E22: 16.43686958 | F22: 14.39590313 | G22: 15.55084 | H22: 16.34829233 | I22: 17.51456159 | J22: 17.60478549 | K22: 17.10546557 | L22: 16.65756531 | M22: 16.30168162 | N22: 16.34370698 | O22: 16.13256301 | P22: 15.43059217 | Q22: 16.16587682 | R22: 15.86402616
A24: Table 3b : Kosrae: Constant price GDP by industry sector, annual % growth, FY1995-FY2010
C25: =C2 -> FY1995 | D25: FY1996 | E25: FY1997 | F25: FY1998 | G25: FY1999 | H25: FY2000 | I25: FY2001 | J25: FY2002 | K25: FY2003 | L25: FY2004 | M25: FY2005 | N25: FY2006 | O25: FY2007 | P25: FY2008 | Q25: FY2009 | R25: =R2 -> FY2010
A26: A | B26: Agriculture, Hunting and Forestry | D26: =IF(C3>0.1,D3/C3-1,"") -> -0.003756143717 | E26: =IF(D3>0.1,E3/D3-1,"") -> -0.003042394832 | F26: -0.002022331185 | G26: -0.009683779835 | H26: -0.003187336749 | I26: -0.02334186527 | J26: -0.03634489701 | K26: -0.02632952362 | L26: -0.03621522807 | M26: -0.02888746303 | N26: -0.03295756671 | O26: -0.003818624998 | P26: -0.04102501844 | Q26: -0.02076805146 | R26: -0.03379051366
A27: B | B27: Fisheries | D27: =IF(C4>0.1,D4/C4-1,"") -> -0.3615412727 | E27: 0.1553517878 | F27: 0.07580846641 | G27: -0.08715055531 | H27: -0.0694937454 | I27: -0.1200894925 | J27: -0.01520026459 | K27: -0.02078703169 | L27: -0.02148466605 | M27: 0.01030385787 | N27: 0.0173925229 | O27: 0.07714099319 | P27: -0.02004503731 | Q27: 0.1371366258 | R27: 0.0362861166
A28: C | B28: Mining and Quarrying
A29: D | B29: Manufacturing | D29: 0.0694069354 | E29: 0.5496046543 | F29: 0.6581434501 | G29: 0.08320557538 | H29: 0.3689558922 | I29: -0.336193278 | J29: 0.02825294808 | K29: 0.005369835103 | L29: -0.08020635778 | M29: -0.1505399064 | N29: -0.08521282028 | O29: 0.04733662636 | P29: -0.03655838831 | Q29: -0.2111869574 | R29: 0.2414790047
A30: E | B30: Electricity, Gas and Water Supply | D30: -0.1609466493 | E30: -0.05234079674 | F30: -0.009921243735 | G30: -0.03572300638 | H30: -0.11104548 | I30: 0.003533465252 | J30: -0.2470277411 | K30: 0.2995215311 | L30: -0.08051055474 | M30: -0.061131874 | N30: -0.0671026443 | O30: -0.02727826882 | P30: -0.03258655804 | Q30: -0.02477732794 | R30: 0.08003985387
A31: F | B31: Construction | D31: 0.4167425269 | E31: -0.3108433476 | F31: -0.1689080649 | G31: 0.3130514444 | H31: -0.08512182683 | I31: -0.04890756948 | J31: -0.203365344 | K31: 0.3285673646 | L31: 0.01078100835 | M31: -0.1013167108 | N31: -0.05259874187 | O31: -0.1164899671 | P31: 0.1747856648 | Q31: 0.6370345375 | R31: -0.2193478108
A32: G | B32: Wholesale and Retail Trade and Repairs | D32: -0.0262993344 | E32: -0.2867730777 | F32: -0.2895209206 | G32: 0.2505858342 | H32: -0.03174717925 | I32: 1.384369479 | J32: -0.3480757586 | K32: -0.07729672177 | L32: 0.06413434986 | M32: -0.129920829 | N32: 0.119224082 | O32: -0.06997790019 | P32: -0.06762961222 | Q32: 0.06492854318 | R32: 0.1047922913
A33: H | B33: Hotels and Restaurants | D33: 0.4902268609 | E33: 0.04067881003 | F33: -0.2108648445 | G33: 0.06716342337 | H33: 0.1149529713 | I33: 0.06526895017 | J33: -0.0951191756 | K33: -0.06131113678 | L33: -0.06314794649 | M33: -0.03781932584 | N33: -0.07153561543 | O33: 0.04137484752 | P33: -0.02831737514 | Q33: -0.1186121472 | R33: 0.09585103071
A34: I | B34: Transport, Storage and Communications | D34: -0.02209118361 | E34: -0.01587036863 | F34: -0.01978391205 | G34: 0.2001032775 | H34: -0.02437547412 | I34: -0.02291298439 | J34: -0.0326449143 | K34: -0.0437156512 | L34: -0.04509754818 | M34: -0.04731625077 | N34: -0.01525133526 | O34: -0.1195270341 | P34: -0.1130019016 | Q34: 0.05219059442 | R34: -0.03635863659
A35: J | B35: Financial Intermediation | D35: -0.02906215751 | E35: 0.09004747509 | F35: -0.3308086575 | G35: 0.4074248687 | H35: 0.6847596953 | I35: 0.2673417399 | J35: 0.626919512 | K35: -0.6584477102 | L35: -0.2985214301 | M35: 0.3843651674 | N35: 0.1120165415 | O35: 0.02784616872 | P35: -0.07942990341 | Q35: -0.1906803253 | R35: 0.3534456726
A36: K | B36: Real Estate, Renting, Business Activities | D36: 0.05744862371 | E36: 0.04168460319 | F36: 0.01738040029 | G36: 0.08057906888 | H36: 0.05111565013 | I36: 0.0209503098 | J36: -0.01559848274 | K36: -0.032221425 | L36: 0.005191154025 | M36: -0.03163361483 | N36: -0.06330528105 | O36: -0.01084598075 | P36: -0.04823279451 | Q36: -0.01588928702 | R36: 0.025350947
A37: L | B37: Public Administration | D37: -0.006759840604 | E37: -0.002118060796 | F37: -0.2176953187 | G37: -0.002846237017 | H37: 0.1643327544 | I37: -0.01067026408 | J37: 0.1326593392 | K37: -0.08830759225 | L37: -0.09836622808 | M37: 0.008070724232 | N37: -0.008188831854 | O37: -0.09130484789 | P37: -0.1232569451 | Q37: -0.04755307505 | R37: 0.001482165256
A38: M | B38: Education | D38: 0.09278143487 | E38: 0.00935437404 | F38: -0.2272615137 | G38: -0.03191698112 | H38: 0.003128727975 | I38: 0.1036459331 | J38: 0.2302496117 | K38: 0.0009160985008 | L38: 0.04542374737 | M38: 0.02177561481 | N38: 0.06584569055 | O38: 0.1133853732 | P38: -0.00259196847 | Q38: -0.01106258213 | R38: -0.0430398939
A39: N | B39: Health and Social Work | D39: 0.02132697332 | E39: -0.04491493219 | F39: -0.2242775696 | G39: 0.0312600121 | H39: 0.2731888639 | I39: 0.04158381541 | J39: 0.288399462 | K39: -0.02840728465 | L39: 0.04561744234 | M39: 0.03316284867 | N39: -0.01385212196 | O39: 0.04676322411 | P39: 0.01166817385 | Q39: 0.01393726808 | R39: 0.03779574424
A40: O | B40: Other Community, Social, Personal Services | D40: -0.02068518781 | E40: -0.3051944264 | I40: 0.4582286752 | J40: 0.2100309452 | K40: -0.08192631559 | L40: -0.5133515916 | M40: 0.06743025431 | N40: 0.3105865683 | O40: 0.2794303823 | P40: -0.2047091889 | Q40: -0.1147508619 | R40: -0.218467381
B41: less intermediate FISIM
B42: GDP at basic prices | D42: 0.0114060096 | E42: -0.05589876619 | F42: -0.1359522684 | G42: 0.06567793015 | H42: 0.04698922361 | I42: 0.123404383 | J42: -0.02326820659 | K42: -0.02815815945 | L42: -0.02250777387 | M42: -0.02827532535 | N42: 0.005864215136 | O42: -0.0131698316 | P42: -0.04135284015 | Q42: 0.0442027867 | R42: -0.01114288902
B43: Taxes on products | D43: =IF(C20>0.1,D20/C20-1,"") -> 0.03487243651 | E43: -0.1035147318 | F43: 0.06779679255 | G43: 0.2039040074 | H43: 0.01468089058 | I43: -0.01926965972 | J43: -0.1252192856 | K43: -0.02633265423 | L43: -0.07874324901 | M43: 0.05930077989 | N43: -0.04774644997 | O43: -0.01212143753 | P43: -0.06773820216 | Q43: 0.07874467628 | R43: -0.09443717219
B44: less subsidies
B45: GDP at purchasers prices | D45: 0.01739387036 | E45: -0.05850414742 | F45: -0.124170022 | G45: 0.08022677455 | H45: 0.05128033755 | I45: 0.07133890436 | J45: 0.005151365354 | K45: -0.02836273824 | L45: -0.02618462832 | M45: -0.02136468844 | N45: 0.002577976787 | O45: -0.01291897679 | P45: -0.04351266687 | Q45: 0.0476510977 | R45: -0.01867208704
A46: Source: SBOC estimates
A47: Table 3c : Kosrae: Current price GDP by industry, FY1995-FY2010
B48: (US$ millions) | C48: =C2 -> FY1995 | D48: FY1996 | E48: FY1997 | F48: FY1998 | G48: FY1999 | H48: FY2000 | I48: FY2001 | J48: FY2002 | K48: FY2003 | L48: FY2004 | M48: FY2005 | N48: FY2006 | O48: FY2007 | P48: FY2008 | Q48: FY2009 | R48: =R2 -> FY2010
A49: A | B49: Agriculture, Hunting and Forestry | C49: 1.017349752 | D49: 1.041869673 | E49: 1.066399032 | F49: 1.08161675 | G49: 1.09170143 | H49: 1.082498815 | I49: 1.054215533 | J49: 1.012466652 | K49: 1.001182478 | L49: 1.005278474 | M49: 0.985032368 | N49: 0.9557503051 | O49: 0.9990775779 | P49: 1.051135342 | Q49: 1.14610374 | R49: 1.139014199
A50: B | B50: Fisheries | C50: 1.356268693 | D50: 0.7609275059 | E50: 0.912384928 | F50: 0.967683615 | G50: 0.9141160937 | H50: 0.8784099383 | I50: 0.8176434777 | J50: 0.8054608625 | K50: 0.7982769857 | L50: 0.7823094286 | M50: 0.8097099725 | N50: 0.8237928717 | O50: 0.90884604 | P50: 1.0942216 | Q50: 1.447739264 | R50: 1.517499337
A51: C | B51: Mining and Quarrying | C51: 0 | D51: 0 | E51: 0 | F51: 0 | G51: 0 | H51: 0 | I51: 0 | J51: 0 | K51: 0 | L51: 0 | M51: 0 | N51: 0 | O51: 0 | P51: 0 | Q51: 0 | R51: 0
A52: D | B52: Manufacturing | C52: 0.09993879706 | D52: 0.1098637726 | E52: 0.1747852911 | F52: 0.2945503939 | G52: 0.3251824063 | H52: 0.4533481638 | I52: 0.3048990419 | J52: 0.3130135695 | K52: 0.3139246757 | L52: 0.2937859414 | M52: 0.2597576937 | N52: 0.2480686674 | O52: 0.269266911 | P52: 0.2766966505 | Q52: 0.2361455848 | R52: 0.3049662768
A53: E | B53: Electricity, Gas and Water Supply | C53: 0.997037 | D53: 1.138714 | E53: 0.774639 | F53: 0.888129 | G53: 0.7855726498 | H53: 0.9381519991 | I53: 1.159857 | J53: 0.793282 | K53: 0.808336 | L53: 0.444166 | M53: 0.243981 | N53: 0.06268 | O53: 0.083462 | P53: 0.093791 | Q53: 0.179054 | R53: 0.245338
A54: F | B54: Construction | C54: 1.113370022 | D54: 1.59191495 | E54: 1.119703639 | F54: 0.9578370552 | G54: 1.280542461 | H54: 1.169162279 | I54: 1.12893299 | J54: 0.8986994176 | K54: 1.17896797 | L54: 1.214082287 | M54: 0.9492449751 | N54: 0.9397384025 | O54: 0.8520233097 | P54: 1.209008551 | Q54: 2.179406691 | R54: 1.743128303
A55: G | B55: Wholesale and Retail Trade and Repairs | C55: 1.78061107 | D55: 1.802733588 | E55: 1.406676677 | F55: 1.130689804 | G55: 1.363208782 | H55: 1.369330072 | I55: 2.880305401 | J55: 1.965435122 | K55: 1.839204185 | L55: 1.988700565 | M55: 1.800919537 | N55: 2.180624245 | O55: 2.104295673 | P55: 2.102912118 | Q55: 2.497397936 | R55: 2.871351244
A56: H | B56: Hotels and Restaurants | C56: 0.1903919175 | D56: 0.2916609522 | E56: 0.3116193826 | F56: 0.2499242975 | G56: 0.2718291065 | H56: 0.3086511305 | I56: 0.3331268922 | J56: 0.3009596135 | K56: 0.2818164399 | L56: 0.2686287489 | M56: 0.2690317571 | N56: 0.2607667544 | O56: 0.2814388765 | P56: 0.2915728959 | Q56: 0.2780924342 | R56: 0.3177193327
A57: I | B57: Transport, Storage and Communications | C57: 0.8602241709 | D57: 0.8647436812 | E57: 0.8737137436 | F57: 0.8704094939 | G57: 1.064630214 | H57: 1.057801742 | I57: 1.04757298 | J57: 1.011878566 | K57: 0.9605700875 | L57: 0.9373534119 | M57: 0.925065853 | N57: 0.9549114393 | O57: 0.8731493942 | P57: 0.8372470391 | Q57: 0.9811369373 | R57: 0.9762561963
A58: J | B58: Financial Intermediation | C58: 0.1870282294 | D58: 0.1866706264 | E58: 0.2089059742 | F58: 0.1420802785 | G58: 0.2038053434 | H58: 0.349678472 | I58: 0.4489988068 | J58: 0.7293204592 | K58: 0.2484917854 | L58: 0.1773542485 | M58: 0.2555563571 | N58: 0.2966752798 | O58: 0.3160343326 | P58: 0.3101914003 | Q58: 0.2716594481 | R58: 0.3833262756
A59: K | B59: Real Estate, Renting, Business Activities | C59: 1.451477458 | D59: 1.576265924 | E59: 1.684775989 | F59: 1.741980183 | G59: 1.915845876 | H59: 2.04195875 | I59: 2.093439763 | J59: 2.059801463 | K59: 1.992320425 | L59: 2.014237811 | M59: 1.976526807 | N59: 1.872360011 | O59: 1.872056263 | P59: 1.807851465 | Q59: 1.924721384 | R59: 2.044184322
A60: L | B60: Public Administration | C60: 3.497716309 | D60: 3.484134633 | E60: 3.490570448 | F60: 2.800024565 | G60: 2.886917771 | H60: 3.294710986 | I60: 3.303338159 | J60: 3.726073334 | K60: 3.373589593 | L60: 3.045820162 | M60: 3.341716493 | N60: 3.359577443 | O60: 3.094352376 | P60: 2.695300193 | Q60: 2.621140328 | R60: 2.213353638
A61: M | B61: Education | C61: 1.917995869 | D61: 2.119489411 | E61: 2.141251821 | F61: 1.723710097 | G61: 1.7913528 | H61: 1.715899513 | I61: 1.938275648 | J61: 2.344293564 | K61: 2.3005082 | L61: 2.40077393 | M61: 2.346258067 | N61: 2.490981866 | O61: 2.789069566 | P61: 2.693976803 | Q61: 2.767303084 | R61: 2.913213422
A62: N | B62: Health and Social Work | C62: 0.7293613348 | D62: 0.7543787442 | E62: 0.7221600902 | F62: 0.581127961 | G62: 0.6468401823 | H62: 0.784702353 | I62: 0.8280494887 | J62: 1.049319798 | K62: 1.015422661 | L62: 1.058882376 | M62: 1.04315155 | N62: 1.05294212 | O62: 1.11990457 | P62: 1.095528542 | Q62: 1.213001001 | R62: 1.522752272
A63: O | B63: Other Community, Social, Personal Services | C63: 0.0919367128 | D63: 0.09255261396 | E63: 0.06602090062 | F63: 0.06112148071 | G63: 0.04436281176 | H63: 0.1374468974 | I63: 0.203068765 | J63: 0.2453277901 | K63: 0.2246780906 | L63: 0.1112477366 | M63: 0.1236018926 | N63: 0.1691119346 | O63: 0.2242413505 | P63: 0.1901429772 | Q63: 0.1821464724 | R63: 0.1484126164
B64: less intermediate FISIM | C64: -0.1451402104 | D64: -0.1481243009 | E64: -0.1302208909 | F64: -0.1811676053 | G64: -0.1308399547 | H64: -0.2780924172 | I64: -0.2556595255 | J64: -0.4905995667 | K64: -0.1734243875 | L64: -0.1228758063 | M64: -0.1667543642 | N64: -0.1982580885 | O64: -0.2152732467 | P64: -0.233833182 | Q64: -0.2202241577 | R64: -0.2998790119
B65: GDP at basic prices | C65: 15.14556713 | D65: 15.66779577 | E65: 14.82338602 | F65: 13.30971737 | G65: 14.45506797 | H65: 15.30365869 | I65: 17.28606442 | J65: 16.76473264 | K65: 16.16386519 | L65: 15.61974531 | M65: 15.16279996 | N65: 15.46972325 | O65: 15.57194499 | P65: 15.51574339 | Q65: 17.70482415 | R65: 18.04063642
B66: Taxes on products | C66: 1.159465 | D66: 1.2439875 | E66: 1.1461635 | F66: 1.27923771 | G66: 1.52781135 | H66: 1.58235875 | I66: 1.57285041 | J66: 1.377046 | K66: 1.342429 | L66: 1.261632 | M66: 1.39838811 | N66: 1.3988255 | O66: 1.42935089 | P66: 1.74401665 | Q66: 1.98604447 | R66: 1.795551595
B67: less subsidies | C67: -0.6864466821 | D67: -0.5950523962 | E67: -0.6465727978 | F67: -0.6632014995 | G67: -0.6688964215 | H67: -0.7251843013 | I67: -1.447094966 | J67: -0.5826133593 | K67: -0.625978 | L67: -0.223812 | M67: -0.09547660586 | N67: -0.002143 | O67: -0.010016 | P67: -0.012277 | Q67: -0.008919 | R67: 0
B68: GDP at purchasers prices | C68: 15.61858544 | D68: 16.31673088 | E68: 15.32297673 | F68: 13.92575358 | G68: 15.3139829 | H68: 16.16083314 | I68: 17.41181987 | J68: 17.55916529 | K68: 16.88031619 | L68: 16.65756531 | M68: 16.46571146 | N68: 16.86640575 | O68: 16.99127988 | P68: 17.24748304 | Q68: 19.68194962 | R68: 19.83618802
A70: Table 3d : Kosrae: Implicit GDP price deflators by industry, FY1995-FY2010
B71: (FY2004=100) | C71: =C2 -> FY1995 | D71: FY1996 | E71: FY1997 | F71: FY1998 | G71: FY1999 | H71: FY2000 | I71: FY2001 | J71: FY2002 | K71: FY2003 | L71: FY2004 | M71: FY2005 | N71: FY2006 | O71: FY2007 | P71: FY2008 | Q71: FY2009 | R71: =R2 -> FY2010
A72: A | B72: Agriculture, Hunting and Forestry | C72: =IF(C49<>0,C49/C3*100,0) -> 87.45623332 | D72: =IF(D49<>0,D49/D3*100,0) -> 89.90176652 | E72: 92.29918798 | F72: 93.8060219 | G72: 95.606474 | H72: 95.10367634 | I72: 94.83239421 | J72: 94.51188089 | K72: 95.98578416 | L72: 100 | M72: 100.900788 | N72: 101.2378633 | O72: 106.2329691 | P72: 116.5497828 | Q72: 129.7750442 | R72: =IF(R49<>0,R49/R3*100,0) -> 133.4827351
A73: B | B73: Fisheries | C73: =IF(C50<>0,C50/C4*100,0) -> 97.02840017 | D73: 85.26358496 | E73: 88.48795682 | F73: 87.2377578 | G73: 90.27620759 | H73: 93.22875735 | I73: 98.62298149 | J73: 98.65308495 | K73: 99.84876095 | L73: 100 | M73: 102.4469214 | N73: 102.4469214 | O73: 104.9297523 | P73: 128.9161999 | Q73: 149.9960825 | R73: =IF(R50<>0,R50/R4*100,0) -> 151.7184489
A74: C | B74: Mining and Quarrying | C74: 0 | D74: 0 | E74: 0 | F74: 0 | G74: 0 | H74: 0 | I74: 0 | J74: 0 | K74: 0 | L74: 0 | M74: 0 | N74: 0 | O74: 0 | P74: 0 | Q74: 0 | R74: =IF(R51<>0,R51/R5*100,0) -> 0
A75: D | B75: Manufacturing | C75: 87.48776491 | D75: 89.93416688 | E75: 92.33241133 | F75: 93.83974168 | G75: 95.64083289 | H75: 97.39994568 | I75: 98.68275541 | J75: 98.52544599 | K75: 98.28445822 | L75: 100 | M75: 104.0865057 | N75: 108.6620398 | O75: 112.6166583 | P75: 120.1152502 | Q75: 129.9570953 | R75: =IF(R52<>0,R52/R6*100,0) -> 135.1862758
A76: E | B76: Electricity, Gas and Water Supply | C76: 136.7728442 | D76: 186.1717097 | E76: 133.6429952 | F76: 154.7580153 | G76: 141.9585811 | H76: 190.7080216 | I76: 234.9461544 | J76: 213.4088948 | K76: 167.3375315 | L76: 100 | M76: 58.50676704 | N76: 16.11184293 | O76: 22.05547425 | P76: 25.61985468 | Q76: 50.15286345 | R76: =IF(R53<>0,R53/R7*100,0) -> 63.62631124
A77: F | B77: Construction | C77: 90.95298028 | D77: 91.79231897 | E77: 93.68533563 | F77: 96.42976177 | G77: 98.18196084 | H77: 97.98266474 | I77: 99.47636119 | J77: 99.40471643 | K77: 98.15466765 | L77: 100 | M77: 87.00085442 | N77: 90.91137545 | O77: 93.29346953 | P77: 112.6861399 | Q77: 124.0856522 | R77: =IF(R54<>0,R54/R8*100,0) -> 127.132053
A78: G | B78: Wholesale and Retail Trade and Repairs | C78: 81.64613817 | D78: 84.89315264 | E78: 92.87689118 | F78: 105.0764919 | G78: 101.3003531 | H78: 105.0915891 | I78: 92.70961936 | J78: 97.0393416 | K78: 98.41402895 | L78: 100 | M78: 104.079726 | N78: 112.599282 | O78: 116.8337397 | P78: 125.2259018 | Q78: 139.6498022 | R78: =IF(R55<>0,R55/R9*100,0) -> 145.3310004
A79: H | B79: Hotels and Restaurants | C79: 87.48776491 | D79: 89.93416688 | E79: 92.33241133 | F79: 93.83974168 | G79: 95.64083289 | H79: 97.39994568 | I79: 98.68275541 | J79: 98.52544599 | K79: 98.28445822 | L79: 100 | M79: 104.0865057 | N79: 108.6620398 | O79: 112.6166583 | P79: 120.0718664 | Q79: 129.93203 | R79: =IF(R56<>0,R56/R10*100,0) -> 135.4625265
A80: I | B80: Transport, Storage and Communications | C80: 87.48776491 | D80: 89.93416688 | E80: 92.33241133 | F80: 93.83974168 | G80: 95.64083289 | H80: 97.40160899 | I80: 98.7217622 | J80: 98.57597664 | K80: 97.85537877 | L80: 100 | M80: 103.5906429 | N80: 108.588935 | O80: 112.7703709 | P80: 121.9094532 | Q80: 135.7747381 | R80: =IF(R57<>0,R57/R11*100,0) -> 140.1966763
A81: J | B81: Financial Intermediation | C81: 87.48776491 | D81: 89.93416688 | E81: 92.33241133 | F81: 93.83974168 | G81: 95.64083289 | H81: 97.39994568 | I81: 98.68275541 | J81: 98.52544599 | K81: 98.28445822 | L81: 100 | M81: 104.0865057 | N81: 108.6620398 | O81: 112.6166583 | P81: 120.0718664 | Q81: 129.93203 | R81: =IF(R58<>0,R58/R12*100,0) -> 135.4625265
A82: K | B82: Real Estate, Renting, Business Activities | C82: 89.6782312 | D82: 92.09731071 | E82: 94.4981663 | F82: 96.03754732 | G82: 97.74664678 | H82: 99.11462938 | I82: 99.52831704 | J82: 99.48080235 | K82: 99.42534376 | L82: 100 | M82: 101.3333171 | N82: 102.4804056 | O82: 103.5872862 | P82: 105.1040782 | Q82: 113.7053067 | R82: =IF(R59<>0,R59/R13*100,0) -> 117.7769705
A83: L | B83: Public Administration | C83: 95.22430601 | D83: 95.50011439 | E83: 95.87959888 | F83: 98.31407862 | G83: 101.6543934 | H83: 99.63959381 | I83: 100.9779607 | J83: 100.5600891 | K83: 99.86611646 | L83: 100 | M83: 108.8364437 | N83: 110.3215622 | O83: 111.8220123 | P83: 111.0944448 | Q83: 113.4317649 | R83: =IF(R60<>0,R60/R14*100,0) -> 95.64273924
A84: M | B84: Education | C84: 93.94814971 | D84: 95.00325965 | E84: 95.08923019 | F84: 99.05930321 | G84: 106.340713 | H84: 101.5438497 | I84: 103.9315837 | J84: 102.1764394 | K84: 100.1762754 | L84: 100 | M84: 95.64647713 | N84: 95.27291038 | O84: 95.8104106 | P84: 92.78426792 | Q84: 96.37589212 | R84: =IF(R61<>0,R61/R15*100,0) -> 106.0205745
A85: N | B85: Health and Social Work | C85: 93.29772622 | D85: 94.48284547 | E85: 94.70108389 | F85: 98.23966856 | G85: 106.0337032 | H85: 101.032026 | I85: 102.3566769 | J85: 100.673975 | K85: 100.270216 | L85: 100 | M85: 95.35224155 | N85: 97.59913157 | O85: 99.16856192 | P85: 95.89116773 | Q85: 104.7140564 | R85: =IF(R62<>0,R62/R16*100,0) -> 126.6663322
A86: O | B86: Other Community, Social, Personal Services | C86: 87.48776491 | D86: 89.93416688 | E86: 92.33241133 | F86: 93.83974168 | G86: 95.64083289 | H86: 97.39994568 | I86: 98.68275541 | J86: 98.52544599 | K86: 98.28445822 | L86: 100 | M86: 104.0865057 | N86: 108.6620398 | O86: 112.6166583 | P86: 120.0718664 | Q86: 129.93203 | R86: =IF(R63<>0,R63/R17*100,0) -> 135.4625265
B87: less intermediate FISIM | C87: 87.48776491 | D87: 89.93416688 | E87: 92.33241133 | F87: 93.83974168 | G87: 95.64083289 | H87: 97.39994568 | I87: 98.68275541 | J87: 98.52544599 | K87: 98.28445822 | L87: 100 | M87: 104.0865057 | N87: 108.6620398 | O87: 112.6166583 | P87: 120.0718664 | Q87: 129.93203 | R87: =IF(R64<>0,R64/R18*100,0) -> 135.4625265
B88: GDP at basic prices | C88: 93.04262361 | D88: 95.16533487 | E88: 95.36735363 | F88: 99.10222655 | G88: 100.9970631 | H88: 102.1272568 | I88: 102.6848584 | J88: 101.9604136 | K88: 101.1543546 | L88: 100 | M88: 99.8992497 | N88: 101.327192 | O88: 103.3579546 | P88: 107.4273453 | Q88: 117.3948445 | R88: =IF(R65<>0,R65/R19*100,0) -> 120.9694541
B89: Taxes on products less Subsidies | C89: =IF((C66+C67)<>0,(C66+C67)/(C20+C67)*100,0) -> 70.78113235 | D89: =IF((D66+D67)<>0,(D66+D67)/(D20+D67)*100,0) -> 80.42123685 | E89: 81.86322728 | F89: 90.74617318 | G89: 90.71647826 | H89: 93.75766783 | I89: 78.23398393 | J89: 96.42436032 | K89: 96.36318225 | L89: 100 | M89: 104.9912803 | N89: 109.9322281 | O89: 113.8021693 | P89: 149.317156 | Q89: 157.4867465 | R89: =IF((R66+R67)<>0,(R66+R67)/(R20+R67)*100,0) -> 156.8247483
B90: GDP at purchasers prices | C90: =IF(C68<>0,C68/C22*100,0) -> 91.01859274 | D90: 93.46143663 | E90: 93.2232056 | F90: 96.73414344 | G90: 98.4768855 | H90: 98.85334089 | I90: 99.41339255 | J90: 99.74086473 | K90: 98.68375765 | L90: 100 | M90: 101.0062142 | N90: 103.1981654 | O90: 105.3228794 | P90: 111.7746024 | Q90: 121.7499665 | R90: =IF(R68<>0,R68/R22*100,0) -> 125.0388005
A91: Source: SBOC estimates
A92: Table 3e : Kosrae: Share of GDP by industry, current prices, FY1995-FY2010
C93: =C2 -> FY1995 | D93: FY1996 | E93: FY1997 | F93: FY1998 | G93: FY1999 | H93: FY2000 | I93: FY2001 | J93: FY2002 | K93: FY2003 | L93: FY2004 | M93: FY2005 | N93: FY2006 | O93: FY2007 | P93: FY2008 | Q93: FY2009 | R93: =R2 -> FY2010
A94: A | B94: Agriculture, Hunting and Forestry | C94: =IF(C49/C$68<>0,C49/C$68,"~") -> 0.06513712499 | D94: =IF(D49/D$68<>0,D49/D$68,"~") -> 0.0638528441 | E94: 0.0695947694 | F94: 0.07767024915 | G94: 0.07128788356 | H94: 0.06698285944 | I94: 0.06054597059 | J94: 0.05766029509 | K94: 0.05931064717 | L94: 0.06034966424 | M94: 0.05982324968 | N94: 0.05666591443 | O94: 0.05879943034 | P94: 0.06094427455 | Q94: 0.05823120993 | R94: =IF(R49/R$68<>0,R49/R$68,"~") -> 0.05742102254
A95: B | B95: Fisheries | C95: =IF(C50/C$68<>0,C50/C$68,"~") -> 0.08683684565 | D95: 0.04663480152 | E95: 0.05954358244 | F95: 0.06948877915 | G95: 0.05969159686 | H95: 0.05435424836 | I95: 0.04695910502 | J95: 0.04587125011 | K95: 0.0472904048 | L95: 0.04696421199 | M95: 0.04917552298 | N95: 0.04884223016 | O95: 0.05348896882 | P95: 0.06344239315 | Q95: 0.07355670002 | R95: =IF(R50/R$68<>0,R50/R$68,"~") -> 0.07650156048
A96: C | B96: Mining and Quarrying | C96: ~ | D96: ~ | E96: ~ | F96: ~ | G96: ~ | H96: ~ | I96: ~ | J96: ~ | K96: ~ | L96: ~ | M96: ~ | N96: ~ | O96: ~ | P96: ~ | Q96: ~ | R96: =IF(R51/R$68<>0,R51/R$68,"~") -> ~
A97: D | B97: Manufacturing | C97: 0.006398709885 | D97: 0.006733197566 | E97: 0.01140674519 | F97: 0.02115148686 | G97: 0.02123434566 | H97: 0.02805227675 | I97: 0.01751103815 | J97: 0.01782622149 | K97: 0.01859708504 | L97: 0.0176367876 | M97: 0.01577567385 | N97: 0.01470785602 | O97: 0.01584735893 | P97: 0.01604272634 | Q97: 0.01199807892 | R97: =IF(R52/R$68<>0,R52/R$68,"~") -> 0.01537423806
A98: E | B98: Electricity, Gas and Water Supply | C98: 0.06383657493 | D98: 0.06978812168 | E98: 0.05055408057 | F98: 0.06377601003 | G98: 0.05129773586 | H98: 0.05805096747 | I98: 0.06661319776 | J98: 0.04517766005 | K98: 0.0478863068 | L98: 0.02666452099 | M98: 0.01481751946 | N98: 0.003716263021 | O98: 0.004912049037 | P98: 0.005437952874 | Q98: 0.009097371119 | R98: =IF(R53/R$68<>0,R53/R$68,"~") -> 0.01236820299
A99: F | B99: Construction | C99: 0.07128494613 | D99: 0.09756335153 | E99: 0.07307350645 | F99: 0.0687817036 | G99: 0.08361916484 | H99: 0.07234542108 | I99: 0.06483716229 | J99: 0.05118121522 | K99: 0.06984276579 | L99: 0.0728847382 | M99: 0.05764980015 | N99: 0.05571657746 | O99: 0.05014473986 | P99: 0.0700976802 | Q99: 0.1107312402 | R99: =IF(R54/R$68<>0,R54/R$68,"~") -> 0.08787617367
A100: G | B100: Wholesale and Retail Trade and Repairs | C100: 0.1140059115 | D100: 0.1104837484 | E100: 0.09180178902 | F100: 0.08119415564 | G100: 0.08901725899 | H100: 0.08473140338 | I100: 0.1654224213 | J100: 0.1119321499 | K100: 0.108955553 | L100: 0.119387229 | M100: 0.1093739278 | N100: 0.1292880224 | O100: 0.1238456247 | P100: 0.1219257391 | Q100: 0.1268877314 | R100: =IF(R55/R$68<>0,R55/R$68,"~") -> 0.1447531774
A101: H | B101: Hotels and Restaurants | C101: 0.01219008714 | D101: 0.01787496248 | E101: 0.02033673927 | F101: 0.01794691369 | G101: 0.01775038592 | H101: 0.01909871402 | I101: 0.01913222712 | J101: 0.01713974489 | K101: 0.016694974 | L101: 0.01612653133 | M101: 0.01633890875 | N101: 0.01546071867 | O101: 0.01656372436 | P101: 0.01690524322 | Q101: 0.01412931339 | R101: =IF(R56/R$68<>0,R56/R$68,"~") -> 0.01601715674
A102: I | B102: Transport, Storage and Communications | C102: 0.05507695777 | D102: 0.05299736128 | E102: 0.05701984407 | F102: 0.06250358294 | G102: 0.0695201386 | H102: 0.06545465405 | I102: 0.06016447377 | J102: 0.05762680344 | K102: 0.05690474495 | L102: 0.05627193376 | M102: 0.05618134723 | N102: 0.05661617853 | O102: 0.05138808849 | P102: 0.04854314319 | Q102: 0.04984958078 | R102: =IF(R57/R$68<>0,R57/R$68,"~") -> 0.04921591766
A103: J | B103: Financial Intermediation | C103: 0.01197472269 | D103: 0.01144044281 | E103: 0.01363351116 | F103: 0.01020269946 | G103: 0.01330844789 | H103: 0.02163740377 | I103: 0.02578701194 | J103: 0.04153503013 | K103: 0.01472080159 | L103: 0.01064706908 | M103: 0.01552051715 | N103: 0.01758971557 | O103: 0.01859979559 | P103: 0.01798473432 | Q103: 0.01380246639 | R103: =IF(R58/R$68<>0,R58/R$68,"~") -> 0.01932459378
A104: K | B104: Real Estate, Renting, Business Activities | C104: 0.09293270915 | D104: 0.09660427297 | E104: 0.1099509592 | F104: 0.1250905506 | G104: 0.12510435 | H104: 0.1263523193 | I104: 0.1202309569 | J104: 0.1173063428 | K104: 0.1180262504 | L104: 0.120920301 | M104: 0.1200389556 | N104: 0.1110112041 | O104: 0.110177472 | P104: 0.1048182776 | Q104: 0.09779119554 | R104: =IF(R59/R$68<>0,R59/R$68,"~") -> 0.1030532842
A105: L | B105: Public Administration | C105: 0.2239457806 | D105: 0.213531415 | E105: 0.2277997618 | F105: 0.2010680822 | G105: 0.1885151492 | H105: 0.2038701196 | I105: 0.1897181446 | J105: 0.2122010513 | K105: 0.1998534598 | L105: 0.1828490601 | M105: 0.2029500214 | N105: 0.1991875147 | O105: 0.1821141431 | P105: 0.1562720883 | Q105: 0.1331748317 | R105: =IF(R60/R$68<>0,R60/R$68,"~") -> 0.1115816021
A106: M | B106: Education | C106: 0.1228021498 | D106: 0.1298966948 | E106: 0.1397412434 | F106: 0.1237785867 | G106: 0.1169749772 | H106: 0.1061764266 | I106: 0.1113195325 | J106: 0.1335082577 | K106: 0.136283478 | L106: 0.1441251398 | M106: 0.1424935735 | N106: 0.1476889566 | O106: 0.1641471146 | P106: 0.1561953588 | Q106: 0.1406010653 | R106: =IF(R61/R$68<>0,R61/R$68,"~") -> 0.1468635717
A107: N | B107: Health and Social Work | C107: 0.04669829655 | D107: 0.04623344896 | E107: 0.04712922972 | F107: 0.04173044983 | G107: 0.04223853366 | H107: 0.04855581059 | I107: 0.04755674565 | J107: 0.05975909341 | K107: 0.0601542441 | L107: 0.06356765564 | M107: 0.06335295943 | N107: 0.06242836414 | O107: 0.06591054812 | P107: 0.06351816893 | Q107: 0.06163012426 | R107: =IF(R62/R$68<>0,R62/R$68,"~") -> 0.07676637619
A108: O | B108: Other Community, Social, Personal Services | C108: 0.005886366158 | D108: 0.005672252283 | E108: 0.004308621086 | F108: 0.004389096817 | G108: 0.002896882676 | H108: 0.008504938834 | I108: 0.01166269618 | J108: 0.01397149501 | K108: 0.0133100641 | L108: 0.006678511204 | M108: 0.007506623253 | N108: 0.01002655439 | O108: 0.01319743728 | P108: 0.01102438986 | Q108: 0.00925449338 | R108: =IF(R63/R$68<>0,R63/R$68,"~") -> 0.007481912164
B109: less intermediate FISIM | C109: -0.009292788452 | D109: -0.009078062392 | E109: -0.008498406886 | F109: -0.01300953692 | G109: -0.008543822699 | H109: -0.01720780202 | I109: -0.01468310191 | J109: -0.02793980003 | K109: -0.01027376416 | L109: -0.007376576586 | M109: -0.01012737072 | N109: -0.01175461396 | O109: -0.01266963102 | P109: -0.01355752497 | Q109: -0.01118914345 | R109: =IF(R64/R$68<>0,R64/R$68,"~") -> -0.01511777422
B110: GDP at basic prices | C110: 0.9697143945 | D110: 0.9602288529 | E110: 0.9673959759 | F110: 0.9557628097 | G110: 0.9439130281 | H110: 0.9469597612 | I110: 0.9927775818 | J110: 0.9547568106 | K110: 0.9575570154 | L110: 0.9376967774 | M110: 0.9208712295 | N110: 0.9171914562 | O110: 0.9164668642 | P110: 0.8995946455 | Q110: 0.899546259 | R110: =IF(R65/R$68<>0,R65/R$68,"~") -> 0.9094810155
B111: Taxes on products | C111: =IF(C66/C$68<>0,C66/C$68,"~") -> 0.07423623632 | D111: 0.07623999619 | E111: 0.07480031592 | F111: 0.09186129158 | G111: 0.09976577353 | H111: 0.09791319148 | I111: 0.09033233873 | J111: 0.07842320393 | K111: 0.0795262947 | L111: 0.0757392798 | M111: 0.08492728135 | N111: 0.08293560113 | O111: 0.08412261464 | P111: 0.1011171685 | Q111: 0.1009068974 | R111: =IF(R66/R$68<>0,R66/R$68,"~") -> 0.09051898448
B112: less subsidies | C112: -0.04395063077 | D112: -0.0364688491 | E112: -0.04219629184 | F112: -0.04762410133 | G112: -0.04367880164 | H112: -0.0448729527 | I112: -0.08310992055 | J112: -0.03318001453 | K112: -0.03708331011 | L112: -0.01343605718 | M112: -0.005798510807 | N112: -0.0001270573015 | O112: -0.0005894788426 | P112: -0.000711814006 | Q112: -0.0004531563272 | R112: =IF(R67/R$68<>0,R67/R$68,"~") -> ~
B113: GDP at purchasers prices | C113: 1 | D113: 1 | E113: 1 | F113: 1 | G113: 1 | H113: 1 | I113: 1 | J113: 1 | K113: 1 | L113: 1 | M113: 1 | N113: 1 | O113: 1 | P113: 1 | Q113: 1 | R113: =IF(R68/R$68<>0,R68/R$68,"~") -> 1
A115: Table 3f : Kosrae: Constant price GDP by institutional sector, FY1995-FY2010
B116: (constant prices of FY2004, US$ millions) | C116: =C2 -> FY1995 | D116: FY1996 | E116: FY1997 | F116: FY1998 | G116: FY1999 | H116: FY2000 | I116: FY2001 | J116: FY2002 | K116: FY2003 | L116: FY2004 | M116: FY2005 | N116: FY2006 | O116: FY2007 | P116: FY2008 | Q116: FY2009 | R116: =R2 -> FY2010
A117: 1.1 | B117: Private Enterprise | C117: 3.761799504 | D117: 4.306244051 | E117: 3.332835068 | F117: 3.087984512 | G117: 3.600601679 | H117: 4.236442045 | I117: 4.354165611 | J117: 3.985419636 | K117: 4.113257901 | L117: 4.048885283 | M117: 3.620033357 | N117: 3.592791963 | O117: 3.46169217 | P117: 3.574474278 | Q117: 4.268148741 | R117: 3.998410494
A118: 1.2 | B118: Public Enterprise | C118: 2.093443805 | D118: 1.478459625 | E118: 1.632873769 | F118: 1.439915017 | G118: 1.724138841 | H118: 1.410019665 | I118: 2.880923407 | J118: 1.708149065 | K118: 1.513880488 | L118: 1.418814408 | M118: 1.22908149 | N118: 1.288856872 | O118: 1.149749974 | P118: 0.9829686362 | Q118: 1.090211953 | R118: 1.283655887
A119: 2 | B119: Finance (Banks) | C119: 0.2116847191 | D119: 0.2055288139 | E119: 0.2246025759 | F119: 0.1495222344 | G119: 0.2107346175 | H119: 0.3561947284 | I119: 0.4533231819 | J119: 0.7371399865 | K119: 0.2504014869 | L119: 0.1716373968 | M119: 0.243161577 | N119: 0.2707791965 | O119: 0.2769616563 | P119: 0.253625583 | Q119: 0.2044726235 | R119: 0.275935944
A120: 3 | B120: Government | C120: 7.224317557 | D120: 7.470533016 | E120: 7.297259179 | F120: 5.725891075 | G120: 5.67240822 | H120: 5.974080936 | I120: 6.165263411 | J120: 7.314390076 | K120: 7.11480637 | L120: 6.983241 | M120: 7.15403923 | N120: 7.222856346 | O120: 7.228606417 | P120: 6.751829847 | Q120: 6.639148617 | R120: 6.557278771
A121: 4 | B121: NGOs | C121: 0.01081704541 | D121: 0.001541653898 | E121: 0.001524162871 | F121: 0.001558334976 | G121: 0.001551790295 | H121: 0.003236889256 | I121: 0.006970270175 | J121: 0.006913514157 | K121: 0.00856009149 | L121: 0.01250702248 | M121: 0.02189487814 | N121: 0.02713569643 | O121: 0.06339193945 | P121: 0.07012359368 | Q121: 0.06129937136 | R121: 0.05905511091
A122: 5 | B122: Households | C122: 3.141930591 | D122: 3.166159486 | E122: 3.195399649 | F122: 3.218480422 | G122: 3.239732964 | H122: 3.290433294 | I122: 3.232519127 | J122: 3.188323431 | K122: 3.154951322 | L122: 3.107536009 | M122: 3.070088877 | N122: 3.047133318 | O122: 3.076788018 | P122: 3.004733504 | Q122: 2.987642936 | R122: 2.960419638
B123: GDP at basic prices | C123: 16.44399322 | D123: 16.62846665 | E123: 15.6844944 | F123: 13.62335159 | G123: 14.44916811 | H123: 15.27040756 | I123: 17.09316501 | J123: 16.94033571 | K123: 16.15585766 | L123: 15.74262112 | M123: 15.33829941 | N123: 15.44955339 | O123: 15.25719017 | P123: 14.63775544 | Q123: 15.25092424 | R123: 15.13475584
B124: Taxes on Products less Subsidies | C124: 0.8816791968 | D124: 0.9944859796 | E124: 0.8934100446 | F124: 0.9656121712 | G124: 1.238475335 | H124: 1.363400755 | I124: 0.6804687197 | J124: 1.162391776 | K124: 1.126059397 | L124: 1.03782 | M124: 1.123589687 | N124: 1.076607448 | O124: 1.066528607 | P124: 0.987581079 | Q124: 1.084444395 | R124: 0.9506444641
B125: Less intermediate FISIM | C125: -0.1658977236 | D125: -0.1647030334 | E125: -0.1410348642 | F125: -0.1930606394 | G125: -0.1368034455 | H125: -0.285515988 | I125: -0.2590721393 | J125: -0.4979419903 | K125: -0.1764514865 | L125: -0.1228758063 | M125: -0.1602074765 | N125: -0.1824538622 | O125: -0.1911557756 | P125: -0.1947443553 | Q125: -0.1694918164 | R125: -0.2213741465
B126: Real GDP at purchasers prices | C126: 17.15977469 | D126: 17.45824959 | E126: 16.43686958 | F126: 14.39590313 | G126: 15.55084 | H126: 16.34829233 | I126: 17.51456159 | J126: 17.60478549 | K126: 17.10546557 | L126: 16.65756531 | M126: 16.30168162 | N126: 16.34370698 | O126: 16.13256301 | P126: 15.43059217 | Q126: 16.16587682 | R126: 15.86402616
A128: Table 3g : Kosrae: Constant price GDP by institutional sector, annual % growth, FY1995-FY2010
C129: =C2 -> FY1995 | D129: FY1996 | E129: FY1997 | F129: FY1998 | G129: FY1999 | H129: FY2000 | I129: FY2001 | J129: FY2002 | K129: FY2003 | L129: FY2004 | M129: FY2005 | N129: FY2006 | O129: FY2007 | P129: FY2008 | Q129: FY2009 | R129: =R2 -> FY2010
A130: 1.1 | B130: Private Enterprise | D130: =D117/C117-1 -> 0.1447298151 | E130: =E117/D117-1 -> -0.2260459397 | F130: -0.07346614846 | G130: 0.1660038013 | H130: 0.1765928093 | I130: 0.02778831037 | J130: -0.08468809139 | K130: 0.03207648805 | L130: -0.01565003206 | M130: -0.1059185174 | N130: -0.007525177665 | O130: -0.03648967004 | P130: 0.03258005117 | Q130: 0.1940633529 | R130: -0.06319794918
A131: 1.2 | B131: Public Enterprise | D131: -0.2937667487 | E131: =E118/D118-1 -> 0.1044425844 | F131: -0.118171261 | G131: 0.1973893049 | H131: -0.1821890259 | I131: 1.043179594 | J131: -0.4070827915 | K131: -0.1137304585 | L131: -0.06279629112 | M131: -0.1337263826 | N131: 0.04863418901 | O131: -0.1079304466 | P131: -0.1450587879 | Q131: 0.1091014638 | R131: 0.1774369954
A132: 2 | B132: Finance (Banks) | D132: -0.02908053689 | E132: =E119/D119-1 -> 0.09280334796 | F132: -0.3342808568 | G132: 0.409386493 | H132: 0.6902525676 | I132: 0.2726835795 | J132: 0.6260805005 | K132: -0.6603067375 | L132: -0.3145512076 | M132: 0.4167167613 | N132: 0.1135772348 | O132: 0.02283210782 | P132: -0.08425741528 | Q132: -0.1938012677 | R132: 0.3495006777
A133: 3 | B133: Government | D133: 0.03408148342 | E133: =E120/D120-1 -> -0.02319430708 | F133: -0.2153367539 | G133: -0.009340529606 | H133: 0.05318247646 | I133: 0.03200198932 | J133: 0.1863872781 | K133: -0.02728644553 | L133: -0.01849177104 | M133: 0.02445830389 | N133: 0.009619337261 | O133: 0.0007960937444 | P133: -0.06595691369 | Q133: -0.01668899142 | R133: -0.0123313773
A134: 4 | B134: NGOs | D134: -0.8574792063 | E134: =E121/D121-1 -> -0.01134562486 | F134: 0.02242024475 | G134: -0.004199790393 | H134: 1.085906366 | I134: 1.153385434 | J134: -0.008142585158 | K134: 0.2381679269 | L134: 0.4610851412 | M134: 0.7506067626 | N134: 0.239362752 | O134: 1.336108809 | P134: 0.1061910124 | Q134: -0.125838136 | R134: -0.03661147578
A135: 5 | B135: Households | D135: 0.007711467206 | E135: =E122/D122-1 -> 0.009235214795 | F135: 0.007223125678 | G135: 0.006603284647 | H135: 0.01564953984 | I135: -0.01760077247 | J135: -0.0136722148 | K135: -0.0104669771 | L135: -0.01502885743 | M135: -0.01205042579 | N135: -0.007477164357 | O135: 0.009731999799 | P135: -0.0234187451 | Q135: -0.005687881616 | R135: -0.009111964828
B136: GDP at basic prices | D136: 0.01121828627 | E136: =E123/D123-1 -> -0.05676844788 | F136: -0.131412767 | G136: 0.06061772037 | H136: 0.05683645174 | I136: 0.1193653439 | J136: -0.008940959707 | K136: -0.04630829409 | L136: -0.02557812465 | M136: -0.02568325232 | N136: 0.007253345315 | O136: -0.01245105355 | P136: -0.04059952883 | Q136: 0.04188953709 | R136: -0.007617138206
B137: Taxes on Products less Subsidies | D137: 0.1279453833 | E137: =E124/D124-1 -> -0.10163636 | F137: 0.08081633632 | G137: 0.2825804929 | H137: 0.1008703342 | I137: -0.500903372 | J137: 0.708222204 | K137: -0.03125656891 | L137: -0.07836122821 | M137: 0.08264408807 | N137: -0.0418144098 | O137: -0.009361667706 | P137: -0.07402288807 | Q137: 0.09808138129 | R137: -0.1233810897
B138: Less intermediate FISIM | D138: -0.007201365851 | E138: =E125/D125-1 -> -0.1437020846 | F138: 0.3688859168 | G138: -0.2913964961 | H138: 1.087052609 | I138: -0.0926177511 | J138: 0.9220206068 | K138: -0.6456384682 | L138: -0.3036283868 | M138: 0.3038162791 | N138: 0.1388598472 | O138: 0.04769377424 | P138: 0.01877306452 | Q138: -0.129670197 | R138: 0.3061052223
B139: Real GDP at purchasers prices | D139: 0.01739387036 | E139: =E126/D126-1 -> -0.05850414742 | F139: -0.124170022 | G139: 0.08022677455 | H139: 0.05128033755 | I139: 0.07133890436 | J139: 0.005151365354 | K139: -0.02836273824 | L139: -0.02618462832 | M139: -0.02136468844 | N139: 0.002577976787 | O139: -0.01291897679 | P139: -0.04351266687 | Q139: 0.0476510977 | R139: -0.01867208704
A140: Source: SBOC estimates
A141: Table 3h : Kosrae: Current price GDP by institutional sector, FY1995-FY2010
B142: (US$ millions) | C142: =C2 -> FY1995 | D142: FY1996 | E142: FY1997 | F142: FY1998 | G142: FY1999 | H142: FY2000 | I142: FY2001 | J142: FY2002 | K142: FY2003 | L142: FY2004 | M142: FY2005 | N142: FY2006 | O142: FY2007 | P142: FY2008 | Q142: FY2009 | R142: =R2 -> FY2010
A143: 1.1 | B143: Private Enterprise | C143: 3.163714953 | D143: 3.765737141 | E143: 3.08553346 | F143: 2.939337105 | G143: 3.487273049 | H143: 4.163416829 | I143: 4.311091387 | J143: 3.936749177 | K143: 4.051364445 | L143: 4.048885283 | M143: 3.761188123 | N143: 3.887776492 | O143: 3.870522733 | P143: 4.269219819 | Q143: 5.536446813 | R143: 5.407162838
A144: 1.2 | B144: Public Enterprise | C144: 2.376056867 | D144: 1.930632366 | E144: 1.764017803 | F144: 1.764865998 | G144: 1.943492265 | H144: 1.900711766 | I144: 3.314426442 | J144: 2.065328364 | K144: 1.814326683 | L144: 1.418814408 | M144: 1.095895195 | N144: 1.132923678 | O144: 1.055982981 | P144: 0.9445967436 | Q144: 1.312240127 | R144: 1.668109209
A145: 2 | B145: Finance (Banks) | C145: 0.1851982294 | D145: 0.1848406264 | E145: 0.2073809742 | F145: 0.1403112785 | G145: 0.2015483434 | H145: 0.346933472 | I145: 0.4473518068 | J145: 0.7262704592 | K145: 0.2461057448 | L145: 0.1716373968 | M145: 0.2530983886 | N145: 0.2942341983 | O145: 0.3119049622 | P145: 0.3045329711 | Q145: 0.2656754305 | R145: 0.3737898014
A146: 3 | B146: Government | C146: 6.824297312 | D146: 7.103257126 | E146: 6.963184988 | F146: 5.643170853 | G146: 5.87270615 | H146: 5.998013737 | I146: 6.29616592 | J146: 7.39655438 | K146: 7.103962512 | L146: 6.983241 | M146: 7.098795259 | N146: 7.245490396 | O146: 7.302238882 | P146: 6.753106 | Q146: 6.927414619 | R146: 6.970852689
A147: 4 | B147: NGOs | C147: 0.009463591261 | D147: 0.001386473589 | E147: 0.001407296332 | F147: 0.001462337516 | G147: 0.001484145163 | H147: 0.003152728377 | I147: 0.006878454668 | J147: 0.006811570656 | K147: 0.008413239545 | L147: 0.01250702248 | M147: 0.02278961358 | N147: 0.02948620126 | O147: 0.07138988386 | P147: 0.08419870769 | Q147: 0.07964751759 | R147: 0.0799975453
A148: 5 | B148: Households | C148: 2.731976384 | D148: 2.830066341 | E148: 2.932082394 | F148: 3.001737402 | G148: 3.079403976 | H148: 3.169522579 | I148: 3.165809936 | J148: 3.123618261 | K148: 3.113116953 | L148: 3.107536009 | M148: 3.097787744 | N148: 3.078070375 | O148: 3.175178799 | P148: 3.393922335 | Q148: 3.803623797 | R148: 3.840603353
B149: GDP at basic prices | C149: 15.29070734 | D149: 15.81592007 | E149: 14.95360692 | F149: 13.49088497 | G149: 14.58590793 | H149: 15.58175111 | I149: 17.54172395 | J149: 17.25533221 | K149: 16.33728958 | L149: 15.74262112 | M149: 15.32955432 | N149: 15.66798134 | O149: 15.78721824 | P149: 15.74957658 | Q149: 17.9250483 | R149: 18.34051544
B150: Taxes on Products less Subsidies | C150: 0.4730183179 | D150: 0.6489351038 | E150: 0.4995907022 | F150: 0.6160362105 | G150: 0.8589149285 | H150: 0.8571744487 | I150: 0.1257554443 | J150: 0.7944326407 | K150: 0.716451 | L150: 1.03782 | M150: 1.302911504 | N150: 1.3966825 | O150: 1.41933489 | P150: 1.73173965 | Q150: 1.97712547 | R150: 1.795551595
B151: Less intermediate FISIM | C151: -0.1451402104 | D151: -0.1481243009 | E151: -0.1302208909 | F151: -0.1811676053 | G151: -0.1308399547 | H151: -0.2780924172 | I151: -0.2556595255 | J151: -0.4905995667 | K151: -0.1734243875 | L151: -0.1228758063 | M151: -0.1667543642 | N151: -0.1982580885 | O151: -0.2152732467 | P151: -0.233833182 | Q151: -0.2202241577 | R151: -0.2998790119
B152: GDP at purchasers prices | C152: 15.61858544 | D152: 16.31673088 | E152: 15.32297673 | F152: 13.92575358 | G152: 15.3139829 | H152: 16.16083314 | I152: 17.41181987 | J152: 17.55916529 | K152: 16.88031619 | L152: 16.65756531 | M152: 16.46571146 | N152: 16.86640575 | O152: 16.99127988 | P152: 17.24748304 | Q152: 19.68194962 | R152: 19.83618802
A154: Table 3i : Kosrae: Implicit GDP price deflators by institutional sector, FY1995-FY2010
B155: (FY2004=100) | C155: =C2 -> FY1995 | D155: FY1996 | E155: FY1997 | F155: FY1998 | G155: FY1999 | H155: FY2000 | I155: FY2001 | J155: FY2002 | K155: FY2003 | L155: FY2004 | M155: FY2005 | N155: FY2006 | O155: FY2007 | P155: FY2008 | Q155: FY2009 | R155: =R2 -> FY2010
A156: 1.1 | B156: Private Enterprise | C156: =C143/C117*100 -> 84.10110505 | D156: 87.44829825 | E156: 92.57984261 | F156: 95.18626449 | G156: 96.85250855 | H156: 98.27626071 | I156: 99.01073529 | J156: 98.77878709 | K156: 98.49526925 | L156: 100 | M156: 103.899267 | N156: 108.2104539 | O156: 111.8101363 | P156: 119.4362999 | Q156: 129.7154141 | R156: =R143/R117*100 -> 135.2328093
A157: 1.2 | B157: Public Enterprise | C157: =C144/C118*100 -> 113.4999115 | D157: 130.5840439 | E157: 108.0314864 | F157: 122.5673722 | G157: 112.7224919 | H157: 134.8003729 | I157: 115.0473641 | J157: 120.910312 | K157: 119.8460973 | L157: 100 | M157: 89.16375392 | N157: 87.90143444 | O157: 91.84457534 | P157: 96.09632584 | Q157: 120.3655971 | R157: =R144/R118*100 -> 129.9498741
A158: 2 | B158: Finance (Banks) | C158: =C145/C119*100 -> 87.48776491 | D158: 89.93416688 | E158: 92.33241133 | F158: 93.83974168 | G158: 95.64083289 | H158: 97.39994568 | I158: 98.68275541 | J158: 98.52544599 | K158: 98.28445822 | L158: 100 | M158: 104.0865057 | N158: 108.6620398 | O158: 112.6166583 | P158: 120.0718664 | Q158: 129.93203 | R158: =R145/R119*100 -> 135.4625265
A159: 3 | B159: Government | C159: =C146/C120*100 -> 94.4628646 | D159: 95.08367223 | E159: 95.42192236 | F159: 98.55533016 | G159: 103.5310916 | H159: 100.4006106 | I159: 102.1232265 | J159: 101.1233241 | K159: 99.84758745 | L159: 100 | M159: 99.22779329 | N159: 100.313367 | O159: 101.018626 | P159: 100.0189008 | Q159: 104.3419122 | R159: =R146/R120*100 -> 106.3070968
A160: 4 | B160: NGOs | C160: =C147/C121*100 -> 87.48776491 | D160: 89.93416688 | E160: 92.33241133 | F160: 93.83974168 | G160: 95.64083289 | H160: 97.39994568 | I160: 98.68275541 | J160: 98.52544599 | K160: 98.28445822 | L160: 100 | M160: 104.0865057 | N160: 108.6620398 | O160: 112.6166583 | P160: 120.0718664 | Q160: 129.93203 | R160: =R147/R121*100 -> 135.4625265
A161: 5 | B161: Households | C161: =C148/C122*100 -> 86.95215585 | D161: 89.38483213 | E161: 91.75948914 | F161: 93.26567227 | G161: 95.05116656 | H161: 96.32538622 | I161: 97.9363095 | J161: 97.97055816 | K161: 98.67400905 | L161: 100 | M161: 100.9022171 | N161: 101.015284 | O161: 103.1978407 | P161: 112.9525241 | Q161: 127.3118602 | R161: =R148/R122*100 -> 129.7317212
B162: GDP at basic prices | C162: =C149/C123*100 -> 92.98658258 | D162: 95.11352076 | E162: 95.34006345 | F162: 99.02765029 | G162: 100.9463508 | H162: 102.0388687 | I162: 102.6242006 | J162: 101.8594466 | K162: 101.1230101 | L162: 100 | M162: 99.9429853 | N162: 101.413814 | O162: 103.473956 | P162: 107.5955712 | Q162: 117.5341771 | R162: =R149/R123*100 -> 121.1814424
B163: Taxes on Products less Subsidies | C163: =C150/C124*100 -> 53.64970838 | D163: 65.25331851 | E163: 55.91953048 | F163: 63.79747779 | G163: 69.35260675 | H163: 62.87032227 | I163: 18.48070906 | J163: 68.34465428 | K163: 63.62461888 | L163: 100 | M163: 115.9597243 | N163: 129.7299682 | O163: 133.0798706 | P163: 175.3516432 | Q163: 182.3169061 | R163: =R150/R124*100 -> 188.8772999
B164: Less intermediate FISIM | C164: =C151/C125*100 -> 87.48776491 | D164: 89.93416688 | E164: 92.33241133 | F164: 93.83974168 | G164: 95.64083289 | H164: 97.39994568 | I164: 98.68275541 | J164: 98.52544599 | K164: 98.28445822 | L164: 100 | M164: 104.0865057 | N164: 108.6620398 | O164: 112.6166583 | P164: 120.0718664 | Q164: 129.93203 | R164: =R151/R125*100 -> 135.4625265
B165: GDP at purchasers prices | C165: =C152/C126*100 -> 91.01859274 | D165: 93.46143663 | E165: 93.2232056 | F165: 96.73414344 | G165: 98.4768855 | H165: 98.85334089 | I165: 99.41339255 | J165: 99.74086473 | K165: 98.68375765 | L165: 100 | M165: 101.0062142 | N165: 103.1981654 | O165: 105.3228794 | P165: 111.7746024 | Q165: 121.7499665 | R165: =R152/R126*100 -> 125.0388005
A167: Table 3j : Kosrae: Share of GDP by institutional sector, current prices, FY1995-FY2010
C168: =C2 -> FY1995 | D168: FY1996 | E168: FY1997 | F168: FY1998 | G168: FY1999 | H168: FY2000 | I168: FY2001 | J168: FY2002 | K168: FY2003 | L168: FY2004 | M168: FY2005 | N168: FY2006 | O168: FY2007 | P168: FY2008 | Q168: FY2009 | R168: =R2 -> FY2010
A169: 1.1 | B169: Private Enterprise | C169: =C143/C$152 -> 0.2025609146 | D169: 0.2307899278 | E169: =E143/E$152 -> 0.2013664522 | F169: 0.211072032 | G169: 0.2277182279 | H169: 0.257623898 | I169: 0.2475956804 | J169: 0.224199107 | K169: 0.2400052463 | L169: 0.2430658507 | M169: 0.2284254847 | N169: 0.2305041482 | O169: 0.2277946546 | P169: 0.2475271208 | Q169: =Q143/Q$152 -> 0.2812956501 | R169: 0.272590824
A170: 1.2 | B170: Public Enterprise | C170: 0.1521300937 | D170: 0.1183222534 | E170: =E144/E$152 -> 0.1151223966 | F170: 0.1267339672 | G170: 0.1269096536 | H170: 0.1176122388 | I170: 0.1903549696 | J170: 0.1176211016 | K170: 0.1074817949 | L170: 0.08517537718 | M170: 0.06655620061 | N170: 0.06717042709 | O170: 0.0621485249 | P170: 0.05476722262 | Q170: =Q144/Q$152 -> 0.06667226331 | R170: 0.08409424268
A171: 2 | B171: Finance (Banks) | C171: 0.01185755458 | D171: 0.01132828799 | E171: =E145/E$152 -> 0.01353398742 | F171: 0.01007566863 | G171: 0.01316106624 | H171: 0.02146754866 | I171: 0.02569242103 | J171: 0.04136133167 | K171: 0.01457945112 | L171: 0.01030387056 | M171: 0.01537123915 | N171: 0.01744498518 | O171: 0.01835676678 | P171: 0.01765666157 | Q171: =Q145/Q$152 -> 0.01349843058 | R171: 0.01884383234
A172: 3 | B172: Government | C172: 0.4369344033 | D172: 0.4353358022 | E172: =E146/E$152 -> 0.4544276946 | F172: 0.4052327094 | G172: 0.3834865291 | H172: 0.3711450817 | I172: 0.3616029782 | J172: 0.4212361043 | K172: 0.4208429767 | L172: 0.41922339 | M172: 0.4311259355 | N172: 0.4295811747 | O172: 0.4297639101 | P172: 0.3915415358 | Q172: =Q146/Q$152 -> 0.3519679073 | R172: 0.3514209828
A173: 4 | B173: NGOs | C173: 0.0006059185895 | D173: 8.497251071e-05 | E173: =E147/E$152 -> 9.184222861e-05 | F173: 0.0001050095786 | G173: 9.691438033e-05 | H173: 0.0001950845201 | I173: 0.0003950451315 | J173: 0.0003879210968 | K173: 0.000498405329 | L173: 0.0007508313639 | M173: 0.001384064918 | N173: 0.001748220794 | O173: 0.004201560115 | P173: 0.004881796809 | Q173: =Q147/Q$152 -> 0.004046729066 | R173: 0.004032909207
A174: 5 | B174: Households | C174: 0.1749182981 | D174: 0.1734456713 | E174: =E148/E$152 -> 0.1913520099 | F174: 0.2155529599 | G174: 0.2010844596 | H174: 0.1961237116 | I174: 0.1818195893 | J174: 0.1778910449 | K174: 0.1844229053 | L174: 0.1865540342 | M174: 0.1881356752 | N174: 0.1824971141 | O174: 0.1868710786 | P174: 0.1967778328 | Q174: =Q148/Q$152 -> 0.193254422 | R174: 0.1936159987
B175: GDP at basic prices | C175: 0.9790071829 | D175: 0.9693069153 | E175: =E149/E$152 -> 0.9758943828 | F175: 0.9687723467 | G175: 0.9524568508 | H175: 0.9641675632 | I175: 1.007460684 | J175: 0.9826966106 | K175: 0.9678307796 | L175: 0.945073354 | M175: 0.9309986002 | N175: 0.9289460701 | O175: 0.9291364952 | P175: 0.9131521704 | Q175: =Q149/Q$152 -> 0.9107354024 | R175: 0.9245987897
B176: Taxes on Products less Subsidies | C176: 0.03028560555 | D176: 0.03977114709 | E176: =E150/E$152 -> 0.03260402408 | F176: 0.04423719025 | G176: 0.05608697188 | H176: 0.05304023878 | I176: 0.007222418178 | J176: 0.0452431894 | K176: 0.0424429846 | L176: 0.06230322262 | M176: 0.07912877054 | N176: 0.08280854383 | O176: 0.0835331358 | P176: 0.1004053545 | Q176: =Q150/Q$152 -> 0.100453741 | R176: 0.09051898448
B177: Less intermediate FISIM | C177: -0.009292788452 | D177: -0.009078062392 | E177: =E151/E$152 -> -0.008498406886 | F177: -0.01300953692 | G177: -0.008543822699 | H177: -0.01720780202 | I177: -0.01468310191 | J177: -0.02793980003 | K177: -0.01027376416 | L177: -0.007376576586 | M177: -0.01012737072 | N177: -0.01175461396 | O177: -0.01266963102 | P177: -0.01355752497 | Q177: =Q151/Q$152 -> -0.01118914345 | R177: -0.01511777422
B178: GDP at purchasers prices | C178: 1 | D178: 1 | E178: =E152/E$152 -> 1 | F178: 1 | G178: 1 | H178: 1 | I178: 1 | J178: 1 | K178: 1 | L178: 1 | M178: 1 | N178: 1 | O178: 1 | P178: 1 | Q178: =Q152/Q$152 -> 1 | R178: 1
A179: Source: SBOC estimates
A180: Table 3k : Kosrae: GDP by income component, current prices, FY1995-FY2010
B181: (US$ millions) | C181: =C2 -> FY1995 | D181: FY1996 | E181: FY1997 | F181: FY1998 | G181: FY1999 | H181: FY2000 | I181: FY2001 | J181: FY2002 | K181: FY2003 | L181: FY2004 | M181: FY2005 | N181: FY2006 | O181: FY2007 | P181: FY2008 | Q181: FY2009 | R181: =R2 -> FY2010
B182: Compensation of employees | C182: 9.673912083 | D182: 9.980904546 | E182: 9.740051213 | F182: 8.894297549 | G182: 9.230217798 | H182: 9.637220064 | I182: 9.642865147 | J182: 10.70293208 | K182: 10.52515464 | L182: 10.31777888 | M182: 10.2453666 | N182: 10.51039076 | O182: 10.59089121 | P182: 10.07673772 | Q182: 10.90821533 | R182: 10.67753454
B183: Operating surplus (Gross before depreciation) | C183: 2.884818869 | D183: 3.004949188 | E183: 2.281473308 | F183: 1.594850023 | G183: 2.276286155 | H183: 2.775008468 | I183: 4.733048864 | J183: 3.42878187 | K183: 2.699017981 | L183: 2.317306233 | M183: 1.986399974 | N183: 2.079520202 | O183: 2.021148233 | P183: 2.278916522 | Q183: 3.213209173 | R183: 3.822377547
B184: Household mixed income | C184: 0.4773910116 | D184: 0.4844706146 | E184: 0.4948448544 | F184: 0.4947516143 | G184: 0.4933596963 | H184: 0.5137563588 | I184: 0.4955273123 | J184: 0.4800171946 | K184: 0.4813706091 | L184: 0.4744664636 | M184: 0.4727334165 | N184: 0.4808527256 | O184: 0.5608656834 | P184: 0.6056335114 | Q184: 0.7228194977 | R184: 0.740125371
B185: Taxes on Products less Subsidies | C185: 0.4730183179 | D185: 0.6489351038 | E185: 0.4995907022 | F185: 0.6160362105 | G185: 0.8589149285 | H185: 0.8571744487 | I185: 0.1257554443 | J185: 0.7944326407 | K185: 0.716451 | L185: 1.03782 | M185: 1.302911504 | N185: 1.3966825 | O185: 1.41933489 | P185: 1.73173965 | Q185: 1.97712547 | R185: 1.795551595
B186: Less intermediate FISIM | C186: -0.1451402104 | D186: -0.1481243009 | E186: -0.1302208909 | F186: -0.1811676053 | G186: -0.1308399547 | H186: -0.2780924172 | I186: -0.2556595255 | J186: -0.4905995667 | K186: -0.1734243875 | L186: -0.1228758063 | M186: -0.1667543642 | N186: -0.1982580885 | O186: -0.2152732467 | P186: -0.233833182 | Q186: -0.2202241577 | R186: -0.2998790119
B187: Total Monetary | C187: 13.36400007 | D187: 13.97113515 | E187: 12.88573919 | F187: 11.41876779 | G187: 12.72793862 | H187: 13.50506692 | I187: 14.74153724 | J187: 14.91556422 | K187: 14.24856985 | L187: 14.02449577 | M187: 13.84065714 | N187: 14.2691881 | O187: 14.37696677 | P187: 14.45919422 | Q187: 16.60114532 | R187: 16.73571004
B188: Percentage Monetary | C188: 0.8556472748 | D188: 0.8562459757 | E188: 0.8409422932 | F188: 0.8199748564 | G188: 0.8311318293 | H188: 0.8356665033 | I188: 0.8466396595 | J188: 0.8494460856 | K188: 0.8440937768 | L188: 0.841929508 | M188: 0.8405744973 | N188: 0.8460123818 | O188: 0.8461379523 | P188: 0.8383364798 | Q188: 0.8434705728 | R188: 0.8436958765
B189: Household subsistence | C189: 1.120367375 | D189: 1.161178721 | E189: 1.20195927 | F189: 1.23163947 | G189: 1.265614276 | H189: 1.297106185 | I189: 1.32009957 | J189: 1.302100694 | K189: 1.299136977 | L189: 1.309562161 | M189: 1.310936507 | N189: 1.293355594 | O189: 1.32093458 | P189: 1.505624404 | Q189: 1.703111055 | R189: 1.699885873
B190: Home Ownership | C190: 1.134217998 | D190: 1.184417005 | E190: 1.235278269 | F190: 1.275346318 | G190: 1.320430004 | H190: 1.358660035 | I190: 1.350183054 | J190: 1.341500372 | K190: 1.332609367 | L190: 1.323507384 | M190: 1.314117821 | N190: 1.303862056 | O190: 1.293378536 | P190: 1.28266442 | Q190: 1.377693244 | R190: 1.400592108
B191: Total Non-Monetary | C191: 2.254585373 | D191: 2.345595727 | E191: 2.437237539 | F191: 2.506985788 | G191: 2.58604428 | H191: 2.65576622 | I191: 2.670282624 | J191: 2.643601066 | K191: 2.631746344 | L191: 2.633069545 | M191: 2.625054328 | N191: 2.59721765 | O191: 2.614313116 | P191: 2.788288824 | Q191: 3.080804299 | R191: 3.100477982
B192: Percentage Non-Monetary | C192: 0.1443527252 | D192: 0.1437540243 | E192: 0.1590577068 | F192: 0.1800251436 | G192: 0.1688681707 | H192: 0.1643334967 | I192: 0.1533603405 | J192: 0.1505539144 | K192: 0.1559062232 | L192: 0.158070492 | M192: 0.1594255027 | N192: 0.1539876182 | O192: 0.1538620477 | P192: 0.1616635202 | Q192: 0.1565294272 | R192: 0.1563041235
B193: GDP at purchasers prices | C193: 15.61858544 | D193: 16.31673088 | E193: 15.32297673 | F193: 13.92575358 | G193: 15.3139829 | H193: 16.16083314 | I193: 17.41181987 | J193: 17.55916529 | K193: 16.88031619 | L193: 16.65756531 | M193: 16.46571146 | N193: 16.86640575 | O193: 16.99127988 | P193: 17.24748304 | Q193: 19.68194962 | R193: 19.83618802
A195: Table 3l : Kosrae: Current price GDP by institutional sector and income components, FY1995-FY2010
B196: (US$ millions) | C196: =C2 -> FY1995 | D196: FY1996 | E196: FY1997 | F196: FY1998 | G196: FY1999 | H196: FY2000 | I196: FY2001 | J196: FY2002 | K196: FY2003 | L196: FY2004 | M196: FY2005 | N196: FY2006 | O196: FY2007 | P196: FY2008 | Q196: FY2009 | R196: =R2 -> FY2010
A197: 1 | B197: Productive Enterprises | C197: 4.853325138 | D197: 5.101317111 | E197: 4.202978466 | F197: 4.041001603 | G197: 4.761868893 | H197: 5.338944294 | I197: 6.178422863 | J197: 5.419464181 | K197: 5.239713127 | L197: 5.243887692 | M197: 4.761606712 | N197: 5.01855717 | O197: 4.916489714 | P197: 5.201539563 | Q197: 6.83976794 | R197: 7.075272047
A198: 1.1 | B198: Private Sector | C198: 3.163714953 | D198: 3.765737141 | E198: 3.08553346 | F198: 2.939337105 | G198: 3.487273049 | H198: 4.163416829 | I198: 4.311091387 | J198: 3.936749177 | K198: 4.051364445 | L198: 4.048885283 | M198: 3.761188123 | N198: 3.887776492 | O198: 3.870522733 | P198: 4.269219819 | Q198: 5.536446813 | R198: 5.407162838
B199: Compensation | C199: 1.378252953 | D199: 1.616441141 | E199: 1.56503446 | F199: 1.642040105 | G199: 1.739561049 | H199: 2.027898829 | I199: 1.957630387 | J199: 1.948342177 | K199: 2.190217097 | L199: 2.17904572 | M199: 2.040915507 | N199: 2.197605579 | O199: 2.191342611 | P199: 2.211397082 | Q199: 2.925237111 | R199: 2.549441616
B200: Operating Surplus | C200: 1.785462 | D200: 2.149296 | E200: 1.520499 | F200: 1.297297 | G200: 1.747712 | H200: 2.135518 | I200: 2.353461 | J200: 1.988407 | K200: 1.861147348 | L200: 1.869839563 | M200: 1.720272616 | N200: 1.690170912 | O200: 1.679180123 | P200: 2.057822737 | Q200: 2.611209702 | R200: 2.857721222
A201: 1.2 | B201: Public Enterprises | C201: 1.689610185 | D201: 1.33557997 | E201: 1.117445005 | F201: 1.101664498 | G201: 1.274595844 | H201: 1.175527465 | I201: 1.867331476 | J201: 1.482715004 | K201: 1.188348683 | L201: 1.195002408 | M201: 1.000418589 | N201: 1.130780678 | O201: 1.045966981 | P201: 0.9323197436 | Q201: 1.303321127 | R201: 1.668109209
B202: Compensation | C202: 1.287395171 | D202: 1.066035502 | E202: 1.002407912 | F202: 1.353951839 | G202: 1.415392681 | H202: 1.305961356 | I202: 1.082262745 | J202: 0.9914943781 | K202: 0.9778958485 | L202: 0.9775004502 | M202: 0.9200613827 | N202: 0.8676506096 | O202: 0.8500333649 | P202: 0.8433856912 | Q202: 0.7754956691 | R202: 0.7934291354
B203: Operating Surplus | C203: 1.088661696 | D203: 0.8645968641 | E203: 0.7616098911 | F203: 0.4109141584 | G203: 0.5280995844 | H203: 0.5947504097 | I203: 2.232163697 | J203: 1.073833985 | K203: 0.836430834 | L203: 0.4413139583 | M203: 0.1758338126 | N203: 0.2652730683 | O203: 0.205949616 | P203: 0.1012110524 | Q203: 0.5367444582 | R203: 0.8746800737
B204: less Subsidies | C204: -0.6864466821 | D204: -0.5950523962 | E204: -0.6465727978 | F204: -0.6632014995 | G204: -0.6688964215 | H204: -0.7251843013 | I204: -1.447094966 | J204: -0.5826133593 | K204: -0.625978 | L204: -0.223812 | M204: -0.09547660586 | N204: -0.002143 | O204: -0.010016 | P204: -0.012277 | Q204: -0.008919 | R204: 0
A205: 2 | B205: Financial Enterprises | C205: 0.1851982294 | D205: 0.1848406264 | E205: 0.2073809742 | F205: 0.1403112785 | G205: 0.2015483434 | H205: 0.346933472 | I205: 0.4473518068 | J205: 0.7262704592 | K205: 0.2461057448 | L205: 0.1716373968 | M205: 0.2530983886 | N205: 0.2942341983 | O205: 0.3119049622 | P205: 0.3045329711 | Q205: 0.2656754305 | R205: 0.3737898014
B206: Compensation | C206: 0.1745030555 | D206: 0.1937843025 | E206: 0.2080165569 | F206: 0.2536724136 | G206: 0.2010737732 | H206: 0.3021934132 | I206: 0.2999276402 | J206: 0.359729575 | K206: 0.2446659461 | L206: 0.1654846851 | M206: 0.1628048428 | N206: 0.1701579768 | O206: 0.175886468 | P206: 0.1846502382 | Q206: 0.2004204175 | R206: 0.2838135503
B207: Operating Surplus | C207: 0.0106951739 | D207: -0.008943676052 | E207: -0.0006355826305 | F207: -0.1133611351 | G207: 0.0004745702175 | H207: 0.0447400587 | I207: 0.1474241666 | J207: 0.3665408842 | K207: 0.001439798732 | L207: 0.006152711736 | M207: 0.09029354581 | N207: 0.1240762216 | O207: 0.1360184942 | P207: 0.1198827329 | Q207: 0.06525501296 | R207: 0.08997625107
... 14 more rows

Sheet gdp_P
A1: Table 4a : Pohnpei: Constant price GDP by industry, FY1995-FY2010
B2: (constant prices of FY2004, US$ millions) | C2: FY1995 | D2: FY1996 | E2: FY1997 | F2: FY1998 | G2: FY1999 | H2: FY2000 | I2: FY2001 | J2: FY2002 | K2: FY2003 | L2: FY2004 | M2: FY2005 | N2: FY2006 | O2: FY2007 | P2: FY2008 | Q2: FY2009 | R2: FY2010
A3: A | B3: Agriculture, Hunting and Forestry | C3: 7.376832181 | D3: 7.469303574 | E3: 7.633641357 | F3: 7.764126377 | G3: 8.060435596 | H3: 8.410576773 | I3: 8.724928456 | J3: 9.071835646 | K3: 9.422455753 | L3: 9.916208518 | M3: 10.22405067 | N3: 10.72966786 | O3: 10.91154272 | P3: 11.1049566 | Q3: 11.35526786 | R3: 11.63257375
A4: B | B4: Fisheries | C4: 9.372325376 | D4: 8.473629853 | E4: 3.552966233 | F4: 7.993728833 | G4: 6.038796156 | H4: 8.641071218 | I4: 6.018232945 | J4: 7.607567468 | K4: 7.271422385 | L4: 5.370988044 | M4: 5.946295803 | N4: 5.908999588 | O4: 7.695881388 | P4: 7.976806382 | Q4: 7.743134601 | R4: 8.456366303
A5: C | B5: Mining and Quarrying | C5: 0 | D5: 0 | E5: 0 | F5: 0 | G5: 0 | H5: 0 | I5: 0 | J5: 0 | K5: 0 | L5: 0 | M5: 0 | N5: 0 | O5: 0 | P5: 0 | Q5: 0 | R5: 0
A6: D | B6: Manufacturing | C6: 0.9719738754 | D6: 0.5750570113 | E6: 1.019775342 | F6: 0.9858069665 | G6: 0.7097814008 | H6: 0.7155654432 | I6: 0.7366939791 | J6: 0.7416590587 | K6: 0.6317061057 | L6: 0.3049922022 | M6: 0.5724852488 | N6: 0.4705968619 | O6: 0.3988069723 | P6: 0.4836122152 | Q6: 0.5369970891 | R6: 0.6152540698
A7: E | B7: Electricity, Gas and Water Supply | C7: 3.003324921 | D7: 3.036693841 | E7: 2.779313192 | F7: 2.691008809 | G7: 2.739203437 | H7: 2.709119343 | I7: 2.696138928 | J7: 2.657367004 | K7: 2.690037337 | L7: 2.748233162 | M7: 2.687928859 | N7: 2.627885051 | O7: 2.578692889 | P7: 2.376356278 | Q7: 2.425764887 | R7: 2.538518459
A8: F | B8: Construction | C8: 5.287965006 | D8: 4.864138512 | E8: 3.541295289 | F8: 3.791450643 | G8: 4.540274636 | H8: 4.441516552 | I8: 4.81091891 | J8: 3.758748247 | K8: 2.947026806 | L8: 2.788199427 | M8: 3.147569851 | N8: 2.798347898 | O8: 2.67040982 | P8: 3.379253746 | Q8: 4.328725298 | R8: 5.891918743
A9: G | B9: Wholesale and Retail Trade and Repairs | C9: 13.5077674 | D9: 13.19858554 | E9: 12.74808941 | F9: 12.68756422 | G9: 12.27649466 | H9: 12.87241891 | I9: 12.6627847 | J9: 12.46703901 | K9: 12.83417235 | L9: 13.71291743 | M9: 13.92217986 | N9: 13.74884487 | O9: 14.34676184 | P9: 14.44845843 | Q9: 13.02364683 | R9: 13.60428781
A10: H | B10: Hotels and Restaurants | C10: 2.301488627 | D10: 2.176671425 | E10: 2.141990852 | F10: 2.014606413 | G10: 1.806638343 | H10: 1.754136879 | I10: 1.964287576 | J10: 1.898208624 | K10: 1.876834751 | L10: 1.859587162 | M10: 1.866335935 | N10: 1.894650354 | O10: 1.77174172 | P10: 1.699544588 | Q10: 1.558247907 | R10: 1.574171304
A11: I | B11: Transport, Storage and Communications | C11: 7.996654041 | D11: 7.649488996 | E11: 7.184208259 | F11: 7.383819363 | G11: 7.695190043 | H11: 7.710733301 | I11: 8.153289832 | J11: 7.874640099 | K11: 7.758635098 | L11: 8.133079171 | M11: 7.933800865 | N11: 8.127150854 | O11: 8.340316293 | P11: 7.001378502 | Q11: 7.11835654 | R11: 7.403411495
A12: J | B12: Financial Intermediation | C12: 1.918023019 | D12: 1.639505791 | E12: 1.583017036 | F12: 1.279023742 | G12: 2.23395166 | H12: 2.326763522 | I12: 2.809191518 | J12: 3.306406526 | K12: 1.601112637 | L12: 1.56640681 | M12: 2.217304706 | N12: 2.576083374 | O12: 2.83761109 | P12: 2.652205749 | Q12: 2.096863491 | R12: 2.190980105
A13: K | B13: Real Estate, Renting, Business Activities | C13: 11.72912166 | D13: 11.70128517 | E13: 11.61546331 | F13: 11.32757422 | G13: 12.04825452 | H13: 11.98299803 | I13: 12.25751822 | J13: 12.41005849 | K13: 12.50045013 | L13: 12.43217438 | M13: 12.54963542 | N13: 12.25933701 | O13: 11.98340039 | P13: 11.9135165 | Q13: 11.99251862 | R13: 12.74059475
A14: L | B14: Public Administration | C14: 19.88888042 | D14: 18.80990175 | E14: 18.42112663 | F14: 18.16201963 | G14: 18.85673004 | H14: 18.04085458 | I14: 17.82027037 | J14: 18.13229633 | K14: 18.25529038 | L14: 17.1753321 | M14: 16.94962928 | N14: 16.90814723 | O14: 16.48190312 | P14: 16.53869094 | Q14: 16.60091438 | R14: 16.9447638
A15: M | B15: Education | C15: 10.69435116 | D15: 10.83632735 | E15: 9.774119211 | F15: 9.121339037 | G15: 9.612570791 | H15: 10.14449897 | I15: 10.64306933 | J15: 11.72199321 | K15: 13.07876576 | L15: 14.04013094 | M15: 14.77279002 | N15: 15.47940722 | O15: 15.93711604 | P15: 16.09308239 | Q15: 15.66244987 | R15: 15.79048301
A16: N | B16: Health and Social Work | C16: 3.554229078 | D16: 3.675593799 | E16: 2.94288235 | F16: 2.483863375 | G16: 2.408365805 | H16: 2.756609465 | I16: 2.888581836 | J16: 3.122575541 | K16: 3.507917129 | L16: 3.688721917 | M16: 3.91229066 | N16: 4.277018494 | O16: 4.571383987 | P16: 4.661865293 | Q16: 4.677942835 | R16: 5.123536872
A17: O | B17: Other Community, Social, Personal Services | C17: 1.765682931 | D17: 1.840456617 | E17: 1.789420962 | F17: 1.847742763 | G17: 2.036911694 | H17: 1.97803963 | I17: 1.961134769 | J17: 2.067362179 | K17: 2.019770524 | L17: 2.102934317 | M17: 2.066431644 | N17: 2.087101612 | O17: 2.072002866 | P17: 2.033675874 | Q17: 2.036084049 | R17: 2.335489001
B18: less intermediate FISIM | C18: -1.484108025 | D18: -1.311322855 | E18: -1.104069833 | F18: -1.101347263 | G18: -1.716682077 | H18: -1.820131378 | I18: -1.956761632 | J18: -2.454993903 | K18: -1.335518339 | L18: -1.222769884 | M18: -1.544579885 | N18: -1.808652982 | O18: -1.929329866 | P18: -1.974808629 | Q18: -1.706118046 | R18: -1.758813374
B19: GDP at basic prices | C19: 97.88451168 | D19: 94.63531637 | E19: 85.62323959 | F19: 88.43232713 | G19: 89.3469167 | H19: 92.66477124 | I19: 92.19027975 | J19: 94.38276352 | K19: 95.0600788 | L19: 94.61713569 | M19: 97.22414894 | N19: 98.08458529 | O19: 100.6682413 | P19: 100.3885949 | Q19: 99.45079621 | R19: 105.0835361
B20: Taxes on products | C20: 6.524203089 | D20: 7.019817418 | E20: 6.460525774 | F20: 7.041074782 | G20: 7.814931161 | H20: 8.26907042 | I20: 7.90564119 | J20: 7.995384977 | K20: 7.49957934 | L20: 8.049356 | M20: 9.131611444 | N20: 8.843211094 | O20: 8.795227752 | P20: 8.356658979 | Q20: 8.477443731 | R20: 8.934473645
B21: less subsidies | C21: -1.637400059 | D21: -2.161735693 | E21: -1.84182508 | F21: -2.481169151 | G21: -2.077413178 | H21: -2.769524043 | I21: -2.013898963 | J21: -1.244002726 | K21: -0.6906057012 | L21: -0.4155 | M21: -0.4263542475 | N21: -0.323978057 | O21: -0.3061807885 | P21: -0.2697996987 | Q21: -0.1974111327 | R21: -0.2265963409
B22: GDP at purchasers prices | C22: 102.7713147 | D22: 99.4933981 | E22: 90.24194029 | F22: 92.99223276 | G22: 95.08443469 | H22: 98.16431762 | I22: 98.08202198 | J22: 101.1341458 | K22: 101.8690524 | L22: 102.2509917 | M22: 105.9294061 | N22: 106.6038183 | O22: 109.1572882 | P22: 108.4754541 | Q22: 107.7308288 | R22: 113.7914134
A24: Table 4b : Pohnpei: Constant price GDP by industry sector, annual % growth, FY1995-FY2010
C25: =C2 -> FY1995 | D25: FY1996 | E25: FY1997 | F25: FY1998 | G25: FY1999 | H25: FY2000 | I25: FY2001 | J25: FY2002 | K25: FY2003 | L25: FY2004 | M25: FY2005 | N25: FY2006 | O25: FY2007 | P25: FY2008 | Q25: FY2009 | R25: =R2 -> FY2010
A26: A | B26: Agriculture, Hunting and Forestry | D26: =IF(C3>0.1,D3/C3-1,"") -> 0.01253537977 | E26: =IF(D3>0.1,E3/D3-1,"") -> 0.02200175435 | F26: 0.01709341769 | G26: 0.03816388407 | H26: 0.04343948574 | I26: 0.03737575813 | J26: 0.0397604624 | K26: 0.03864930107 | L26: 0.05240170693 | M26: 0.03104433987 | N26: 0.04945370587 | O26: 0.01695065147 | P26: 0.01772562163 | Q26: 0.02254049911 | R26: 0.02442090199
A27: B | B27: Fisheries | D27: =IF(C4>0.1,D4/C4-1,"") -> -0.09588821208 | E27: -0.5807031585 | F27: 1.249874698 | G27: -0.2445582928 | H27: 0.4309261307 | I27: -0.3035316116 | J27: 0.2640865745 | K27: -0.04418561979 | L27: -0.2613566151 | M27: 0.1071139528 | N27: -0.006272176151 | O27: 0.3024000548 | P27: 0.03650329054 | Q27: -0.02929390155 | R27: 0.09211149469
A28: C | B28: Mining and Quarrying
A29: D | B29: Manufacturing | D29: -0.4083616589 | E29: 0.7733465058 | F29: -0.033309665 | G29: -0.2799996096 | H29: 0.008149047575 | I29: 0.02952704906 | J29: 0.006739677123 | K29: -0.1482526933 | L29: -0.5171928853 | M29: 0.8770488053 | N29: -0.1779755673 | O29: -0.1525507188 | P29: 0.2126473425 | Q29: 0.1103877698 | R29: 0.1457307355
A30: E | B30: Electricity, Gas and Water Supply | D30: 0.01111065921 | E30: -0.08475686459 | F30: -0.03177201599 | G30: 0.01790950195 | H30: -0.01098278907 | I30: -0.004791378285 | J30: -0.01438053608 | K30: 0.01229424949 | L30: 0.02163383517 | M30: -0.02194293528 | N30: -0.02233831765 | O30: -0.01871929738 | P30: -0.0784647958 | Q30: 0.02079175149 | R30: 0.04648165716
A31: F | B31: Construction | D31: -0.08014926218 | E31: -0.2719583786 | F31: 0.07063950699 | G31: 0.1975032946 | H31: -0.02175156611 | I31: 0.08317032104 | J31: -0.2187047179 | K31: -0.2159552563 | L31: -0.05389410718 | M31: 0.1288897849 | N31: -0.1109497073 | O31: -0.04571914645 | P31: 0.2654438732 | Q31: 0.2809707774 | R31: 0.3611209622
A32: G | B32: Wholesale and Retail Trade and Repairs | D32: -0.02288919046 | E32: -0.0341321522 | F32: -0.004747785067 | G32: -0.03239940754 | H32: 0.04854189014 | I32: -0.01628553354 | J32: -0.01545834508 | K32: 0.0294483193 | L32: 0.0684691658 | M32: 0.01526024196 | N32: -0.01245027694 | O32: 0.04348852377 | P32: 0.007088470495 | Q32: -0.09861339935 | R32: 0.04458359384
A33: H | B33: Hotels and Restaurants | D33: -0.05423324763 | E33: -0.01593284684 | F33: -0.05947011341 | G33: -0.1032301244 | H33: -0.02906030661 | I33: 0.119802907 | J33: -0.03364016182 | K33: -0.01126002333 | L33: -0.009189721312 | M33: 0.003629177789 | N33: 0.01517112692 | O33: -0.06487140712 | P33: -0.04074924148 | Q33: -0.08313796657 | R33: 0.01021878258
A34: I | B34: Transport, Storage and Communications | D34: -0.04341378823 | E34: -0.0608250743 | F34: 0.02778470454 | G34: 0.0421693252 | H34: 0.002019866678 | I34: 0.05739486947 | J34: -0.03417635562 | K34: -0.0147314671 | L34: 0.04826159087 | M34: -0.02450219668 | N34: 0.02437041106 | O34: 0.0262288031 | P34: -0.1605380113 | Q34: 0.01670785803 | R34: 0.04004505161
A35: J | B35: Financial Intermediation | D35: -0.1452105762 | E35: -0.03445474556 | F35: -0.1920341265 | G35: 0.7466068737 | H35: 0.04154604778 | I35: 0.2073386449 | J35: 0.176995767 | K35: -0.5157544529 | L35: -0.02167606861 | M35: 0.4155356656 | N35: 0.1618084638 | O35: 0.1015214485 | P35: -0.06533853109 | Q35: -0.2093888299 | R35: 0.04488447377
A36: K | B36: Real Estate, Renting, Business Activities | D36: -0.002373280525 | E36: -0.007334396078 | F36: -0.02478498503 | G36: 0.06362176825 | H36: -0.005416261575 | I36: 0.02290914157 | J36: 0.01244462857 | K36: 0.007283740121 | L36: -0.005461863246 | M36: 0.009448149178 | N36: -0.02313201935 | O36: -0.02250828184 | P36: -0.005831724914 | Q36: 0.006631301246 | R36: 0.06237856787
A37: L | B37: Public Administration | D37: -0.05425034754 | E37: -0.02066864187 | F37: -0.01406575185 | G37: 0.03825072445 | H37: -0.04326706995 | I37: -0.01222692673 | J37: 0.01750960824 | K37: 0.006783148171 | L37: -0.05915864693 | M37: -0.01314110367 | N37: -0.002447372092 | O37: -0.02520939177 | P37: 0.003445464421 | Q37: 0.003762295474 | R37: 0.02071267999
A38: M | B38: Education | D38: 0.01327581183 | E38: -0.09802289181 | F38: -0.06678659835 | G38: 0.05385522367 | H38: 0.0553367246 | I38: 0.04914686871 | J38: 0.1013733771 | K38: 0.1157458904 | L38: 0.07350580359 | M38: 0.05218320846 | N38: 0.04783234584 | O38: 0.02956888508 | P38: 0.009786360171 | Q38: -0.02675885906 | R38: 0.008174528204
A39: N | B39: Health and Social Work | D39: 0.03414656703 | E39: -0.1993450553 | F39: -0.1559759856 | G39: -0.03039521838 | H39: 0.1445974937 | I39: 0.04787488881 | J39: 0.08100643078 | K39: 0.123405049 | L39: 0.05154192121 | M39: 0.06060872795 | N39: 0.09322615956 | O39: 0.06882492888 | P39: 0.01979297868 | Q39: 0.00344873585 | R39: 0.09525427159
A40: O | B40: Other Community, Social, Personal Services | D40: 0.04234830858 | E40: -0.0277298873 | F40: 0.03259255493 | G40: 0.1023783908 | H40: -0.02890260966 | I40: -0.008546270301 | J40: 0.05416629823 | K40: -0.02302047299 | L40: 0.04117487193 | M40: -0.0173579708 | N40: 0.01000273449 | O40: -0.007234312573 | P40: -0.01849755737 | Q40: 0.001184148595 | R40: 0.1470494073
B41: less intermediate FISIM
B42: GDP at basic prices | D42: -0.03319417188 | E42: -0.09522953086 | F42: 0.03280753628 | G42: 0.0103422538 | H42: 0.03713451633 | I42: -0.005120516511 | J42: 0.02378215773 | K42: 0.007176260259 | L42: -0.004659612244 | M42: 0.02755328858 | N42: 0.008850027153 | O42: 0.02634110108 | P42: -0.00277790102 | Q42: -0.009341685188 | R42: 0.05663845949
B43: Taxes on products | D43: =IF(C20>0.1,D20/C20-1,"") -> 0.07596549681 | E43: -0.0796732466 | F43: 0.08986095374 | G43: 0.109906002 | H43: 0.05811174149 | I43: -0.04395043364 | J43: 0.01135186705 | K43: -0.0620114777 | L43: 0.07330766633 | M43: 0.1344524262 | N43: -0.03158263485 | O43: -0.0054260089 | P43: -0.04986440209 | Q43: 0.01445371326 | R43: 0.05391128836
B44: less subsidies
B45: GDP at purchasers prices | D45: -0.03189524839 | E45: -0.09298564517 | F45: 0.03047687658 | G45: 0.02249867393 | H45: 0.03239103164 | I45: -0.000838345779 | J45: 0.03111807584 | K45: 0.0072666522 | L45: 0.003749315861 | M45: 0.03597436445 | N45: 0.006366619273 | O45: 0.02395289345 | P45: -0.006246345108 | Q45: -0.006864459216 | R45: 0.05625673417
A46: Source: SBOC estimates
A47: Table 4c : Pohnpei: Current price GDP by industry, FY1995-FY2010
B48: (US$ millions) | C48: =C2 -> FY1995 | D48: FY1996 | E48: FY1997 | F48: FY1998 | G48: FY1999 | H48: FY2000 | I48: FY2001 | J48: FY2002 | K48: FY2003 | L48: FY2004 | M48: FY2005 | N48: FY2006 | O48: FY2007 | P48: FY2008 | Q48: FY2009 | R48: =R2 -> FY2010
A49: A | B49: Agriculture, Hunting and Forestry | C49: 5.896196426 | D49: 6.133240858 | E49: 6.437386536 | F49: 6.652962522 | G49: 7.036923047 | H49: 7.857482886 | I49: 8.520223831 | J49: 9.052399043 | K49: 9.199063264 | L49: 9.916208518 | M49: 10.31385949 | N49: 10.98842418 | O49: 11.53110085 | P49: 12.71088982 | Q49: 14.52975487 | R49: 15.47727835
A50: B | B50: Fisheries | C50: 9.168092094 | D50: 7.532025732 | E50: 2.624599042 | F50: 6.906332851 | G50: 5.21833323 | H50: 8.156721718 | I50: 5.905792247 | J50: 7.383736366 | K50: 6.88120759 | L50: 5.370988044 | M50: 6.073056117 | N50: 6.257371424 | O50: 9.591073763 | P50: 11.66468527 | Q50: 10.37869322 | R50: 12.04988028
A51: C | B51: Mining and Quarrying | C51: 0 | D51: 0 | E51: 0 | F51: 0 | G51: 0 | H51: 0 | I51: 0 | J51: 0 | K51: 0 | L51: 0 | M51: 0 | N51: 0 | O51: 0 | P51: 0 | Q51: 0 | R51: 0
A52: D | B52: Manufacturing | C52: 0.8503582191 | D52: 0.5171727322 | E52: 0.941583163 | F52: 0.9250787108 | G52: 0.6788408434 | H52: 0.696960353 | I52: 0.7269899176 | J52: 0.7307228953 | K52: 0.6208689235 | L52: 0.3049922022 | M52: 0.5958798911 | N52: 0.5113601495 | O52: 0.4491230855 | P52: 0.580891315 | Q52: 0.6981882781 | R52: 0.8314958102
A53: E | B53: Electricity, Gas and Water Supply | C53: 1.340916519 | D53: 2.626358111 | E53: 2.912533243 | F53: 3.002593419 | G53: 3.043540089 | H53: 2.847424351 | I53: 2.926716158 | J53: 2.828997192 | K53: 3.228924225 | L53: 2.748233162 | M53: 2.526355856 | N53: 2.330473734 | O53: 1.094494291 | P53: 1.623621952 | Q53: 2.615129524 | R53: 2.099812142
A54: F | B54: Construction | C54: 4.626179424 | D54: 4.374522447 | E54: 3.269331694 | F54: 3.556645917 | G54: 4.339063722 | H54: 4.325036139 | I54: 4.745716613 | J54: 3.70289939 | K54: 2.896833745 | L54: 2.788199427 | M54: 3.276195472 | N54: 3.040741907 | O54: 3.007326304 | P54: 4.057533042 | Q54: 5.624400653 | R54: 7.981341992
A55: G | B55: Wholesale and Retail Trade and Repairs | C55: 11.40341401 | D55: 11.44892591 | E55: 11.3934035 | F55: 11.63723847 | G55: 11.49069431 | H55: 12.10182833 | I55: 12.07103672 | J55: 12.01800523 | K55: 12.45434528 | L55: 13.71291743 | M55: 14.96832384 | N55: 15.94956836 | O55: 17.61949248 | P55: 20.0887397 | Q55: 18.27380897 | R55: 19.35176406
A56: H | B56: Hotels and Restaurants | C56: 2.01352096 | D56: 1.957571312 | E56: 1.977751805 | F56: 1.890501454 | G56: 1.727883958 | H56: 1.708528367 | I56: 1.938413104 | J56: 1.870218513 | K56: 1.844636866 | L56: 1.859587162 | M56: 1.942603859 | N56: 2.058765722 | O56: 1.995276319 | P56: 2.040674907 | Q56: 2.024663138 | R56: 2.13241222
A57: I | B57: Transport, Storage and Communications | C57: 7.00502462 | D57: 6.898323167 | E57: 6.639481539 | F57: 6.939876982 | G57: 7.370196211 | H57: 7.519656793 | I57: 8.054368298 | J57: 7.770048782 | K57: 7.62920527 | L57: 8.133079171 | M57: 8.237269208 | N57: 8.777610741 | O57: 9.302735272 | P57: 8.18234196 | Q57: 8.985648262 | R57: 9.693771241
A58: J | B58: Financial Intermediation | C58: 1.671911934 | D58: 1.470784162 | E58: 1.454826585 | F58: 1.180341565 | G58: 2.067815508 | H58: 2.247967394 | I58: 2.76017414 | J58: 3.255971046 | K58: 1.575401488 | L58: 1.56640681 | M58: 2.307546437 | N58: 2.80716862 | O58: 3.201332834 | P58: 3.189355328 | Q58: 2.725290769 | R58: 2.96887676
A59: K | B59: Real Estate, Renting, Business Activities | C59: 10.32480555 | D59: 10.6448369 | E59: 10.81433738 | F59: 10.71410765 | G59: 11.39653088 | H59: 11.74824132 | I59: 11.97481037 | J59: 12.29613234 | K59: 12.49976425 | L59: 12.43217438 | M59: 12.72018094 | N59: 12.76896733 | O59: 12.55446725 | P59: 12.70243716 | Q59: 13.79120072 | R59: 15.19822426
A60: L | B60: Public Administration | C60: 19.87880677 | D60: 18.7811081 | E60: 18.41119705 | F60: 19.59062126 | G60: 18.68008172 | H60: 17.36636308 | I60: 17.44173383 | J60: 18.10739607 | K60: 17.94767692 | L60: 17.1753321 | M60: 17.41381209 | N60: 17.45179039 | O60: 16.8282584 | P60: 17.71647398 | Q60: 19.10861687 | R60: 19.66556663
A61: M | B61: Education | C61: 10.04290561 | D61: 10.5751128 | E61: 9.51597472 | F61: 9.327166726 | G61: 9.522906629 | H61: 10.42828852 | I61: 10.98177266 | J61: 12.2630361 | K61: 13.22711963 | L61: 14.04013094 | M61: 14.54612299 | N61: 14.89160292 | O61: 15.04044466 | P61: 15.67316045 | Q61: 15.56503544 | R61: 15.73573822
A62: N | B62: Health and Social Work | C62: 3.441009833 | D62: 3.704828429 | E62: 3.011173299 | F62: 2.725206049 | G62: 2.601857651 | H62: 2.93247766 | I62: 3.041641336 | J62: 3.317495428 | K62: 3.509382296 | L62: 3.688721917 | M62: 3.891739756 | N62: 4.214307952 | O62: 4.667183213 | P62: 5.063478411 | Q62: 5.195711479 | R62: 5.482927659
A63: O | B63: Other Community, Social, Personal Services | C63: 1.456201382 | D63: 1.516507922 | E63: 1.521930001 | F63: 1.54641719 | G63: 1.716141406 | H63: 1.818725505 | I63: 1.816154142 | J63: 1.946855032 | K63: 1.927859957 | L63: 2.102934317 | M63: 2.159451899 | N63: 2.326435977 | O63: 2.365795296 | P63: 2.390252405 | Q63: 2.559240708 | R63: 3.102575814
B64: less intermediate FISIM | C64: -1.29841294 | D64: -1.179327285 | E64: -1.0194143 | F64: -1.033501426 | G64: -1.641849037 | H64: -1.772806973 | I64: -1.930986296 | J64: -2.418793692 | K64: -1.312606964 | L64: -1.222769884 | M64: -1.60769923 | N64: -1.965319223 | O64: -2.172746824 | P64: -2.371189578 | Q64: -2.216793811 | R64: -2.382533034
B65: GDP at basic prices | C65: 87.82093041 | D65: 87.00199129 | E65: 79.90609525 | F65: 85.56158933 | G65: 85.24896017 | H65: 89.98289543 | I65: 90.97455707 | J65: 94.12511973 | K65: 94.12968273 | L65: 94.61713569 | M65: 99.36469861 | N65: 102.4092702 | O65: 107.0753572 | P65: 115.3133461 | Q65: 119.8585891 | R65: 129.3891324
B66: Taxes on products | C66: 5.71482267 | D66: 6.22733687 | E66: 5.907077058 | F66: 6.66021931 | G66: 7.43044675 | H66: 7.97607512 | I66: 7.76158197 | J66: 7.840093 | K66: 7.358634 | L66: 8.049356 | M66: 9.51886468 | N66: 9.68700261 | O66: 9.98353154 | P66: 10.16077878 | Q66: 11.13541538 | R66: 12.159382
B67: less subsidies | C67: -1.762235989 | D67: -2.191831284 | E67: -1.842159454 | F67: -2.299729718 | G67: -2.104966567 | H67: -2.914722529 | I67: -1.945443874 | J67: -1.136589907 | K67: -0.692696 | L67: -0.4155 | M67: -0.4229422962 | N67: -0.394571 | O67: -0.301913 | P67: -0.278558 | Q67: -0.239299 | R67: -0.307802
B68: GDP at purchasers prices | C68: 91.77351709 | D68: 91.03749687 | E68: 83.97101285 | F68: 89.92207893 | G68: 90.57444035 | H68: 95.04424803 | I68: 96.79069517 | J68: 100.8286228 | K68: 100.7956207 | L68: 102.2509917 | M68: 108.460621 | N68: 111.7017018 | O68: 116.7569757 | P68: 125.1955669 | Q68: 130.7547055 | R68: 141.2407124
A70: Table 4d : Pohnpei: Implicit GDP price deflators by industry, FY1995-FY2010
B71: (FY2004=100) | C71: =C2 -> FY1995 | D71: FY1996 | E71: FY1997 | F71: FY1998 | G71: =G2 -> FY1999 | H71: FY2000 | I71: FY2001 | J71: FY2002 | K71: FY2003 | L71: FY2004 | M71: FY2005 | N71: FY2006 | O71: FY2007 | P71: FY2008 | Q71: FY2009 | R71: =R2 -> FY2010
A72: A | B72: Agriculture, Hunting and Forestry | C72: =IF(C49<>0,C49/C3*100,0) -> 79.92856936 | D72: =IF(D49<>0,D49/D3*100,0) -> 82.11261997 | E72: 84.32917183 | F72: 85.6884883 | G72: 87.30201939 | H72: 93.42382929 | I72: 97.65379595 | J72: 99.78574785 | K72: 97.62914791 | L72: 100 | M72: 100.8784075 | N72: 102.4115967 | O72: 105.6780067 | P72: 114.4614093 | Q72: 127.9560733 | R72: =IF(R49<>0,R49/R3*100,0) -> 133.0511948
A73: B | B73: Fisheries | C73: =IF(C50<>0,C50/C4*100,0) -> 97.82088997 | D73: 88.88783039 | E73: 73.87064412 | F73: 86.3968868 | G73: 86.41346876 | H73: 94.39479796 | I73: 98.1316659 | J73: 97.05778353 | K73: 94.63358372 | L73: 100 | M73: 102.1317526 | N73: 105.8956145 | O73: 124.6260601 | P73: 146.2325235 | Q73: 134.0373602 | R73: =IF(R50<>0,R50/R4*100,0) -> 142.4947767
A74: C | B74: Mining and Quarrying | C74: 0 | D74: 0 | E74: 0 | F74: 0 | G74: 0 | H74: 0 | I74: 0 | J74: 0 | K74: 0 | L74: 0 | M74: 0 | N74: 0 | O74: 0 | P74: 0 | Q74: 0 | R74: =IF(R51<>0,R51/R5*100,0) -> 0
A75: D | B75: Manufacturing | C75: 87.48776491 | D75: 89.93416688 | E75: 92.33241133 | F75: 93.83974168 | G75: 95.64083289 | H75: 97.39994568 | I75: 98.68275541 | J75: 98.52544599 | K75: 98.28445822 | L75: 100 | M75: 104.0865057 | N75: 108.6620398 | O75: 112.6166583 | P75: 120.115104 | Q75: 130.0171439 | R75: =IF(R52<>0,R52/R6*100,0) -> 135.1467387
A76: E | B76: Electricity, Gas and Water Supply | C76: 44.64773389 | D76: 86.4874185 | E76: 104.7932723 | F76: 111.5787287 | G76: 111.1104071 | H76: 105.1051648 | I76: 108.5521272 | J76: 106.4586558 | K76: 120.0326918 | L76: 100 | M76: 93.98894048 | N76: 88.68248378 | O76: 42.44376272 | P76: 68.32401215 | Q76: 107.8063887 | R76: =IF(R53<>0,R53/R7*100,0) -> 82.71801744
A77: F | B77: Construction | C77: 87.48506124 | D77: 89.93416688 | E77: 92.32022261 | F77: 93.80699507 | G77: 95.56830962 | H77: 97.37746305 | I77: 98.64470182 | J77: 98.51416342 | K77: 98.29682374 | L77: 100 | M77: 104.0865057 | N77: 108.6620398 | O77: 112.6166583 | P77: 120.0718664 | Q77: 129.93203 | R77: =IF(R54<>0,R54/R8*100,0) -> 135.4625265
A78: G | B78: Wholesale and Retail Trade and Repairs | C78: 84.42116061 | D78: 86.74358227 | E78: 89.37342006 | F78: 91.72161233 | G78: 93.59914725 | H78: 94.01363031 | I78: 95.3268732 | J78: 96.39823237 | K78: 97.04050199 | L78: 100 | M78: 107.5142254 | N78: 116.0066064 | O78: 122.8116329 | P78: 139.0372529 | Q78: 140.3125346 | R78: =IF(R55<>0,R55/R9*100,0) -> 142.2475349
A79: H | B79: Hotels and Restaurants | C79: 87.48776491 | D79: 89.93416688 | E79: 92.33241133 | F79: 93.83974168 | G79: 95.64083289 | H79: 97.39994568 | I79: 98.68275541 | J79: 98.52544599 | K79: 98.28445822 | L79: 100 | M79: 104.0865057 | N79: 108.6620398 | O79: 112.6166583 | P79: 120.0718664 | Q79: 129.93203 | R79: =IF(R56<>0,R56/R10*100,0) -> 135.4625265
A80: I | B80: Transport, Storage and Communications | C80: 87.59944578 | D80: 90.1801829 | E80: 92.41772091 | F80: 93.98763216 | G80: 95.7766627 | H80: 97.52194116 | I80: 98.78672859 | J80: 98.67179558 | K80: 98.33179643 | L80: 100 | M80: 103.8250058 | N80: 108.0035415 | O80: 111.5393583 | P80: 116.8675848 | Q80: 126.2320623 | R80: =IF(R57<>0,R57/R11*100,0) -> 130.9365452
A81: J | B81: Financial Intermediation | C81: 87.16850204 | D81: 89.70899462 | E81: 91.90214332 | F81: 92.28457034 | G81: 92.56312682 | H81: 96.61348789 | I81: 98.25510727 | J81: 98.47461348 | K81: 98.39416986 | L81: 100 | M81: 104.0698841 | N81: 108.9704102 | O81: 112.8178856 | P81: 120.2529377 | Q81: 129.9698708 | R81: =IF(R58<>0,R58/R12*100,0) -> 135.5045056
A82: K | B82: Real Estate, Renting, Business Activities | C82: 88.02709913 | D82: 90.97151934 | E82: 93.10293608 | F82: 94.58430764 | G82: 94.59072151 | H82: 98.04091842 | I82: 97.69359627 | J82: 99.08198539 | K82: 99.99451316 | L82: 100 | M82: 101.358968 | N82: 104.157079 | O82: 104.7654825 | P82: 106.6220638 | Q82: 114.9983682 | R82: =IF(R59<>0,R59/R13*100,0) -> 119.289755
A83: L | B83: Public Administration | C83: 99.9493503 | D83: 99.8469229 | E83: 99.94609679 | F83: 107.8658743 | G83: 99.0632081 | H83: 96.26131069 | I83: 97.87580921 | J83: 99.86267455 | K83: 98.31493528 | L83: 100 | M83: 102.7386016 | N83: 103.2152734 | O83: 102.1014277 | P83: 107.1213801 | Q83: 115.1058095 | R83: =IF(R60<>0,R60/R14*100,0) -> 116.0568944
A84: M | B84: Education | C84: 93.90850795 | D84: 97.5894549 | E84: 97.35889766 | F84: 102.2565512 | G84: 99.06721976 | H84: 102.7974722 | I84: 103.182384 | J84: 104.6156219 | K84: 101.1343109 | L84: 100 | M84: 98.46564506 | N84: 96.20266914 | O84: 94.37369114 | P84: 97.39066803 | Q84: 99.37803836 | R84: =IF(R61<>0,R61/R15*100,0) -> 99.65330517
A85: N | B85: Health and Social Work | C85: 96.81452032 | D85: 100.7953716 | E85: 102.3205463 | F85: 109.7164231 | G85: 108.0341552 | H85: 106.3798734 | I85: 105.2987766 | J85: 106.2422793 | K85: 100.0417675 | L85: 100 | M85: 99.47470916 | N85: 98.53377905 | O85: 102.0956285 | P85: 108.6148589 | Q85: 111.0682978 | R85: =IF(R62<>0,R62/R16*100,0) -> 107.0145057
A86: O | B86: Other Community, Social, Personal Services | C86: 82.47241655 | D86: 82.39846073 | E86: 85.0515353 | F86: 83.69223364 | G86: 84.25212596 | H86: 91.94585778 | I86: 92.60730933 | J86: 94.1709707 | K86: 95.44945497 | L86: 100 | M86: 104.501492 | N86: 111.4673078 | O86: 114.1791517 | P86: 117.5335969 | Q86: 125.6942566 | R86: =IF(R63<>0,R63/R17*100,0) -> 132.8448052
B87: less intermediate FISIM | C87: 87.48776491 | D87: 89.93416688 | E87: 92.33241133 | F87: 93.83974168 | G87: 95.64083289 | H87: 97.39994568 | I87: 98.68275541 | J87: 98.52544599 | K87: 98.28445822 | L87: 100 | M87: 104.0865057 | N87: 108.6620398 | O87: 112.6166583 | P87: 120.0718664 | Q87: 129.93203 | R87: =IF(R64<>0,R64/R18*100,0) -> 135.4625265
B88: GDP at basic prices | C88: 89.71892377 | D88: 91.93395724 | E88: 93.32290583 | F88: 96.75374618 | G88: 95.41343263 | H88: 97.10583022 | I88: 98.68128974 | J88: 99.72702241 | K88: 99.02125469 | L88: 100 | M88: 102.2016646 | N88: 104.4091382 | O88: 106.3645851 | P88: 114.866979 | Q88: 120.5204922 | R88: =IF(R65<>0,R65/R19*100,0) -> 123.1297853
B89: Taxes on products less Subsidies | C89: =IF((C66+C67)<>0,(C66+C67)/(C20+C67)*100,0) -> 83.0032337 | D89: =IF((D66+D67)<>0,(D66+D67)/(D20+D67)*100,0) -> 83.5856913 | E89: 88.01635301 | F89: 91.96735385 | G89: 93.26643091 | H89: 94.52789945 | I89: 97.58297902 | J89: 97.73587087 | K89: 97.92937042 | L89: 100 | M89: 104.4467556 | N89: 109.9873057 | O89: 113.9910485 | P89: 122.3334643 | Q89: 132.2642019 | R89: =IF((R66+R67)<>0,(R66+R67)/(R20+R67)*100,0) -> 137.3829965
B90: GDP at purchasers prices | C90: =IF(C68<>0,C68/C22*100,0) -> 89.29876722 | D90: 91.50104289 | E90: 93.05098338 | F90: 96.69848358 | G90: 95.25685319 | H90: 96.8215848 | I90: 98.6834215 | J90: 99.69790327 | K90: 98.94626319 | L90: 100 | M90: 102.3895299 | N90: 104.7820834 | O90: 106.9621439 | P90: 115.4137292 | Q90: 121.3716695 | R90: =IF(R68<>0,R68/R22*100,0) -> 124.1224695
A91: Source: SBOC estimates
A92: Table 4e : Pohnpei: Share of GDP by industry, current prices, FY1995-FY2010
C93: =C2 -> FY1995 | D93: FY1996 | E93: FY1997 | F93: FY1998 | G93: FY1999 | H93: FY2000 | I93: FY2001 | J93: FY2002 | K93: FY2003 | L93: FY2004 | M93: FY2005 | N93: FY2006 | O93: FY2007 | P93: FY2008 | Q93: FY2009 | R93: =R2 -> FY2010
A94: A | B94: Agriculture, Hunting and Forestry | C94: =IF(C49/C$68<>0,C49/C$68,"~") -> 0.0642472536 | D94: =IF(D49/D$68<>0,D49/D$68,"~") -> 0.06737049094 | E94: 0.07666200892 | F94: 0.073985862 | G94: 0.07769215045 | H94: 0.08267184022 | I94: 0.0880273028 | J94: 0.08978005242 | K94: 0.09126451325 | L94: 0.09697909383 | M94: 0.0950931259 | N94: 0.09837293435 | O94: 0.09876155816 | P94: 0.101528274 | Q94: 0.1111222332 | R94: =IF(R49/R$68<>0,R49/R$68,"~") -> 0.1095808573
A95: B | B95: Fisheries | C95: =IF(C50/C$68<>0,C50/C$68,"~") -> 0.09989910363 | D95: 0.08273542211 | E95: 0.03125601267 | F95: 0.07680352738 | G95: 0.05761375074 | H95: 0.08582025622 | I95: 0.06101611562 | J95: 0.07323055853 | K95: 0.06826891427 | L95: 0.05252749098 | M95: 0.05599318961 | N95: 0.05601858632 | O95: 0.0821456166 | P95: 0.09317171171 | Q95: 0.07937529423 | R95: =IF(R50/R$68<>0,R50/R$68,"~") -> 0.08531449659
A96: C | B96: Mining and Quarrying | C96: ~ | D96: ~ | E96: ~ | F96: ~ | G96: ~ | H96: ~ | I96: ~ | J96: ~ | K96: ~ | L96: ~ | M96: ~ | N96: ~ | O96: ~ | P96: ~ | Q96: ~ | R96: =IF(R51/R$68<>0,R51/R$68,"~") -> ~
A97: D | B97: Manufacturing | C97: 0.009265834481 | D97: 0.005680876012 | E97: 0.01121319287 | F97: 0.01028755921 | G97: 0.00749483895 | H97: 0.007333009282 | I97: 0.007510948406 | J97: 0.007247177189 | K97: 0.006159681532 | L97: 0.002982779895 | M97: 0.005493974547 | N97: 0.004577908316 | O97: 0.003846648842 | P97: 0.004639871278 | Q97: 0.005339679941 | R97: =IF(R52/R$68<>0,R52/R$68,"~") -> 0.005887083094
A98: E | B98: Electricity, Gas and Water Supply | C98: 0.01461114885 | D98: 0.02884919073 | E98: 0.03468498407 | F98: 0.03339105873 | G98: 0.03360263753 | H98: 0.02995893397 | I98: 0.03023757762 | J98: 0.02805748123 | K98: 0.03203437016 | L98: 0.02687732526 | M98: 0.02329283967 | N98: 0.02086336821 | O98: 0.009374123339 | P98: 0.01296868565 | Q98: 0.02000027084 | R98: =IF(R53/R$68<>0,R53/R$68,"~") -> 0.01486690421
A99: F | B99: Construction | C99: 0.05040865351 | D99: 0.0480518753 | E99: 0.03893405097 | F99: 0.03955253215 | G99: 0.04790605059 | H99: 0.04550550116 | I99: 0.04903071111 | J99: 0.03672468478 | K99: 0.02873967861 | L99: 0.02726818959 | M99: 0.03020631306 | N99: 0.02722198372 | O99: 0.02575714457 | P99: 0.03240955844 | Q99: 0.04301490056 | R99: =IF(R54/R$68<>0,R54/R$68,"~") -> 0.05650879166
A100: G | B100: Wholesale and Retail Trade and Repairs | C100: 0.1242560422 | D100: 0.1257605525 | E100: 0.1356825779 | F100: 0.1294146956 | G100: 0.126864646 | H100: 0.127328361 | I100: 0.1247127804 | J100: 0.1191923969 | K100: 0.1235603808 | L100: 0.1341103612 | M100: 0.13800699 | N100: 0.1427871563 | O100: 0.1509074072 | P100: 0.160458874 | Q100: 0.1397564157 | R100: =IF(R55/R$68<>0,R55/R$68,"~") -> 0.1370126483
A101: H | B101: Hotels and Restaurants | C101: 0.02194010891 | D101: 0.0215029123 | E101: 0.02355279206 | F101: 0.02102377388 | G101: 0.01907694877 | H101: 0.01797613641 | I101: 0.02002685383 | J101: 0.01854848812 | K101: 0.01830076399 | L101: 0.01818649513 | M101: 0.01791068354 | N101: 0.01843092531 | O101: 0.01708914013 | P101: 0.01629989749 | Q101: 0.01548443806 | R101: =IF(R56/R$68<>0,R56/R$68,"~") -> 0.0150977164
A102: I | B102: Transport, Storage and Communications | C102: 0.07632947764 | D102: 0.07577452593 | E102: 0.07906873233 | F102: 0.07717656292 | G102: 0.08137170025 | H102: 0.07911743161 | I102: 0.08321428298 | J102: 0.07706193504 | K102: 0.07568984858 | L102: 0.07954034515 | M102: 0.07594709612 | N102: 0.0785808148 | O102: 0.07967605545 | P102: 0.06535648316 | Q102: 0.06872141411 | R102: =IF(R57/R$68<>0,R57/R$68,"~") -> 0.06863298178
A103: J | B103: Financial Intermediation | C103: 0.01821780386 | D103: 0.01615580626 | E103: 0.01732534283 | F103: 0.01312627087 | G103: 0.02283001142 | H103: 0.02365179841 | I103: 0.02851693683 | J103: 0.0322921305 | K103: 0.01562966205 | L103: 0.01531923343 | M103: 0.0212754308 | N103: 0.02513093869 | O103: 0.02741877146 | P103: 0.02547498611 | Q103: 0.02084277395 | R103: =IF(R58/R$68<>0,R58/R$68,"~") -> 0.02101997865
A104: K | B104: Real Estate, Renting, Business Activities | C104: 0.1125031042 | D104: 0.116928049 | E104: 0.128786554 | F104: 0.1191487984 | G104: 0.1258250213 | H104: 0.1236081253 | I104: 0.123718611 | J104: 0.1219508111 | K104: 0.1240109854 | L104: 0.1215848783 | M104: 0.117279256 | N104: 0.1143130958 | O104: 0.1075264854 | P104: 0.1014607584 | Q104: 0.1054738387 | R104: =IF(R59/R$68<>0,R59/R$68,"~") -> 0.1076051232
A105: L | B105: Public Administration | C105: 0.2166072239 | D105: 0.2063007963 | E105: 0.2192565794 | F105: 0.2178621924 | G105: 0.2062401009 | H105: 0.1827187172 | I105: 0.1802005224 | J105: 0.1795858712 | K105: 0.1780600863 | L105: 0.167972279 | M105: 0.1605542356 | N105: 0.1562356715 | O105: 0.1441306465 | P105: 0.1415103939 | Q105: 0.14614095 | R105: =IF(R60/R$68<>0,R60/R$68,"~") -> 0.1392344055
A106: M | B106: Education | C106: 0.1094314126 | D106: 0.1161621657 | E106: 0.1133245199 | F106: 0.1037249899 | G106: 0.105139006 | H106: 0.1097203538 | I106: 0.1134589709 | J106: 0.1216225686 | K106: 0.131227126 | L106: 0.1373104623 | M106: 0.1341143251 | N106: 0.1333158106 | O106: 0.1288183817 | P106: 0.1251894203 | Q106: 0.1190399641 | R106: =IF(R61/R$68<>0,R61/R$68,"~") -> 0.111410782
A107: N | B107: Health and Social Work | C107: 0.03749458386 | D107: 0.04069563154 | E107: 0.03585967582 | F107: 0.0303063061 | G107: 0.02872617972 | H107: 0.03085381515 | I107: 0.03142493533 | J107: 0.03290231816 | K107: 0.03481681318 | L107: 0.03607517009 | M107: 0.03588159205 | N107: 0.03772823408 | O107: 0.03997348496 | P107: 0.04044455036 | Q107: 0.03973632505 | R107: =IF(R62/R$68<>0,R62/R$68,"~") -> 0.03881973947
A108: O | B108: Other Community, Social, Personal Services | C108: 0.01586733764 | D108: 0.01665805821 | E108: 0.01812446878 | F108: 0.01719730247 | G108: 0.01894730345 | H108: 0.01913556625 | I108: 0.0187637266 | J108: 0.01930855523 | K108: 0.01912642576 | L108: 0.02056639532 | M108: 0.01991000862 | N108: 0.02082722053 | O108: 0.0202625606 | P108: 0.0190921489 | Q108: 0.01957283831 | R108: =IF(R63/R$68<>0,R63/R$68,"~") -> 0.02196658287
B109: less intermediate FISIM | C109: -0.0141480133 | D109: -0.01295430263 | E109: -0.01214007388 | F109: -0.01149329996 | G109: -0.01812706797 | H109: -0.01865243831 | I109: -0.01995012323 | J109: -0.02398915728 | K109: -0.01302246025 | L109: -0.0119585137 | M109: -0.01482288425 | N109: -0.01759435346 | O109: -0.01860913929 | P109: -0.01893988451 | Q109: -0.01695383583 | R109: =IF(R64/R$68<>0,R64/R$68,"~") -> -0.01686859966
B110: GDP at basic prices | C110: 0.9569310755 | D110: 0.9556720503 | E110: 0.9515914187 | F110: 0.9515081319 | G110: 0.9412032781 | H110: 0.9467474077 | I110: 0.9399101527 | J110: 0.9335158717 | K110: 0.9338667895 | L110: 0.9253419857 | M110: 0.9161361764 | N110: 0.9168102951 | O110: 0.9170788856 | P110: 0.9210657292 | Q110: 0.9166675009 | R110: =IF(R65/R$68<>0,R65/R$68,"~") -> 0.9160894915
B111: Taxes on products | C111: =IF(C66/C$68<>0,C66/C$68,"~") -> 0.06227093448 | D111: 0.06840408715 | E111: 0.07034662149 | F111: 0.07406656285 | G111: 0.0820369049 | H111: 0.08391959835 | I111: 0.08018934007 | J111: 0.07775662089 | K111: 0.07300549316 | L111: 0.07872154457 | M111: 0.08776332454 | N111: 0.08672206828 | O111: 0.08550693848 | P111: 0.08115925373 | Q111: 0.08516263594 | R111: =IF(R66/R$68<>0,R66/R$68,"~") -> 0.086089781
B112: less subsidies | C112: -0.01920200996 | D112: -0.02407613741 | E112: -0.02193804018 | F112: -0.02557469473 | G112: -0.02324018298 | H112: -0.03066700604 | I112: -0.02009949274 | J112: -0.01127249263 | K112: -0.006872282694 | L112: -0.004063530271 | M112: -0.003899500965 | N112: -0.003532363372 | O112: -0.002585824086 | P112: -0.002224982936 | Q112: -0.001830136813 | R112: =IF(R67/R$68<>0,R67/R$68,"~") -> -0.002179272497
B113: GDP at purchasers prices | C113: 1 | D113: 1 | E113: 1 | F113: 1 | G113: 1 | H113: 1 | I113: 1 | J113: 1 | K113: 1 | L113: 1 | M113: 1 | N113: 1 | O113: 1 | P113: 1 | Q113: 1 | R113: =IF(R68/R$68<>0,R68/R$68,"~") -> 1
A115: Table 4f : Pohnpei: Constant price GDP by institutional sector, FY1995-FY2010
B116: (constant prices of FY2004, US$ millions) | C116: =C2 -> FY1995 | D116: FY1996 | E116: FY1997 | F116: FY1998 | G116: FY1999 | H116: FY2000 | I116: FY2001 | J116: FY2002 | K116: FY2003 | L116: FY2004 | M116: FY2005 | N116: FY2006 | O116: FY2007 | P116: FY2008 | Q116: FY2009 | R116: =R2 -> FY2010
A117: 1.1 | B117: Private Enterprise | C117: 31.0901908 | D117: 29.51971043 | E117: 27.03085631 | F117: 26.89394072 | G117: 27.10899901 | H117: 27.76627699 | I117: 28.1247205 | J117: 27.51216763 | K117: 26.51753708 | L117: 27.16760147 | M117: 27.89108307 | N117: 27.01891858 | O117: 27.74588022 | P117: 27.68754476 | Q117: 25.18910617 | R117: 28.55313649
A118: 1.2 | B118: Public Enterprise | C118: 12.2569669 | D118: 11.30276109 | E118: 6.56156538 | F118: 10.91068684 | G118: 9.288559023 | H118: 11.85486208 | I118: 9.619818006 | J118: 10.60579165 | K118: 10.54236767 | L118: 8.913689201 | M118: 9.477164175 | N118: 9.737377119 | O118: 11.09668302 | P118: 10.21348457 | Q118: 11.97877513 | R118: 12.73071785
A119: 2 | B119: Finance (Banks) | C119: 1.804568369 | D119: 1.493804152 | E119: 1.447384155 | F119: 1.07931884 | G119: 1.94345297 | H119: 2.108560219 | I119: 2.674136975 | J119: 3.212449529 | K119: 1.537257871 | L119: 1.486140369 | M119: 2.132027046 | N119: 2.483410673 | O119: 2.638024019 | P119: 2.454030957 | Q119: 1.958018218 | R119: 1.992347955
A120: 3 | B120: Government | C120: 33.84033747 | D120: 33.25301727 | E120: 31.03305819 | F120: 29.58666409 | G120: 31.09701019 | H120: 30.97880269 | I120: 31.374658 | J120: 32.64688248 | K120: 34.64517659 | L120: 34.5913431 | M120: 35.14412406 | N120: 36.03978147 | O120: 36.22080926 | P120: 36.65159287 | Q120: 36.31432643 | R120: 37.34482874
A121: 4 | B121: NGOs | C121: 1.933807997 | D121: 1.697053835 | E121: 1.738722567 | F121: 1.899715397 | G121: 2.047449995 | H121: 1.7576629 | I121: 1.905397497 | J121: 1.951801313 | K121: 1.823954065 | L121: 1.797437599 | M121: 1.812589866 | N121: 1.678113502 | O121: 1.665802285 | P121: 1.819218982 | Q121: 1.799331633 | R121: 1.884563131
A122: 5 | B122: Households | C122: 18.44274817 | D122: 18.68029245 | E122: 18.91572281 | F122: 19.1633485 | G122: 19.57812759 | H122: 20.01873774 | I122: 20.4483104 | J122: 20.90866482 | K122: 21.32930387 | L122: 21.88369384 | M122: 22.31174061 | N122: 22.93563693 | O122: 23.23037234 | P122: 23.53753134 | Q122: 23.91735667 | R122: 24.33675532
B123: GDP at basic prices | C123: 99.3686197 | D123: 95.94663923 | E123: 86.72730943 | F123: 89.53367439 | G123: 91.06359878 | H123: 94.48490262 | I123: 94.14704138 | J123: 96.83775743 | K123: 96.39559714 | L123: 95.83990558 | M123: 98.76872882 | N123: 99.89323828 | O123: 102.5975711 | P123: 102.3634035 | Q123: 101.1569143 | R123: 106.8423495
B124: Taxes on Products less Subsidies | C124: 4.88680303 | D124: 4.858081725 | E124: 4.618700694 | F124: 4.559905631 | G124: 5.737517982 | H124: 5.499546377 | I124: 5.891742227 | J124: 6.751382251 | K124: 6.808973639 | L124: 7.633856 | M124: 8.705257196 | N124: 8.519233037 | O124: 8.489046963 | P124: 8.08685928 | Q124: 8.280032599 | R124: 8.707877304
B125: Less intermediate FISIM | C125: -1.484108025 | D125: -1.311322855 | E125: -1.104069833 | F125: -1.101347263 | G125: -1.716682077 | H125: -1.820131378 | I125: -1.956761632 | J125: -2.454993903 | K125: -1.335518339 | L125: -1.222769884 | M125: -1.544579885 | N125: -1.808652982 | O125: -1.929329866 | P125: -1.974808629 | Q125: -1.706118046 | R125: -1.758813374
B126: Real GDP at purchasers prices | C126: 102.7713147 | D126: 99.4933981 | E126: 90.24194029 | F126: 92.99223276 | G126: 95.08443469 | H126: 98.16431762 | I126: 98.08202198 | J126: 101.1341458 | K126: 101.8690524 | L126: 102.2509917 | M126: 105.9294061 | N126: 106.6038183 | O126: 109.1572882 | P126: 108.4754541 | Q126: 107.7308288 | R126: 113.7914134
A128: Table 4g : Pohnpei: Constant price GDP by institutional sector, annual % growth, FY1995-FY2010
C129: =C2 -> FY1995 | D129: FY1996 | E129: FY1997 | F129: FY1998 | G129: FY1999 | H129: FY2000 | I129: FY2001 | J129: FY2002 | K129: FY2003 | L129: FY2004 | M129: FY2005 | N129: FY2006 | O129: FY2007 | P129: FY2008 | Q129: FY2009 | R129: =R2 -> FY2010
A130: 1.1 | B130: Private Enterprise | D130: =D117/C117-1 -> -0.05051369334 | E130: =E117/D117-1 -> -0.08431160343 | F130: -0.00506515932 | G130: 0.007996533221 | H130: 0.02424574869 | I130: 0.01290931146 | J130: -0.02177987411 | K130: -0.03615238795 | L130: 0.02451450857 | M130: 0.02663030829 | N130: -0.03127037003 | O130: 0.02690565256 | P130: -0.002102490688 | Q130: -0.09023691369 | R130: 0.1335509998
A131: 1.2 | B131: Public Enterprise | D131: -0.07785007685 | E131: =E118/D118-1 -> -0.4194723458 | F131: 0.6628176675 | G131: -0.1486733 | H131: 0.2762864562 | I131: -0.1885339583 | J131: 0.1024940013 | K131: -0.005980126634 | L131: -0.1544888699 | M131: 0.06321456377 | N131: 0.02745683608 | O131: 0.1395967195 | P131: -0.07959121217 | Q131: 0.1728392059 | R131: 0.0627729218
A132: 2 | B132: Finance (Banks) | D132: -0.1722097219 | E132: =E119/D119-1 -> -0.03107502236 | F132: -0.254296908 | G132: 0.8006291549 | H132: 0.08495561822 | I132: 0.2682288848 | J132: 0.2013032837 | K132: -0.5214686308 | L132: -0.03325239294 | M132: 0.4346067783 | N132: 0.1648119932 | O132: 0.06225846851 | P132: -0.06974654513 | Q132: -0.2021216307 | R132: 0.01753289948
A133: 3 | B133: Government | D133: -0.01735562469 | E133: =E120/D120-1 -> -0.0667596285 | F133: -0.04660817161 | G133: 0.05104820522 | H133: -0.003801249655 | I133: 0.01277826356 | J133: 0.04054942955 | K133: 0.06120933926 | L133: -0.001553852276 | M133: 0.01598032649 | N133: 0.02548526766 | O133: 0.005022999164 | P133: 0.01189326312 | Q133: -0.009201958668 | R133: 0.02837729373
A134: 4 | B134: NGOs | D134: -0.1224289912 | E134: =E121/D121-1 -> 0.02455357143 | F134: 0.09259259259 | G134: 0.0777666999 | H134: -0.1415356152 | I134: 0.08405172414 | J134: 0.02435387674 | K134: -0.06550218341 | L134: -0.01453790239 | M134: 0.008429926238 | N134: -0.07419017764 | O134: -0.007336343115 | P134: 0.09209778283 | Q134: -0.01093180635 | R134: 0.04736842105
A135: 5 | B135: Households | D135: 0.01288009125 | E135: =E122/D122-1 -> 0.01260314142 | F135: 0.01309099801 | G135: 0.02164439505 | H135: 0.02250522415 | I135: 0.02145852875 | J135: 0.02251307882 | K135: 0.02011792953 | L135: 0.02599193927 | M135: 0.01956007844 | N135: 0.02796269187 | O135: 0.01285054352 | P135: 0.01322230247 | Q135: 0.01613700764 | R135: 0.01753532612
